Workbook

Sheet INDICE
F1: ITÁLIA
F2: Trocas comerciais com Portugal (PT) 2019-2023 Setores agrícola e agroalimentar, do mar e das florestas
C3: Fonte
D4: Estatísticas do Comércio Internacional | F4: Itália - Síntese
D5: dados: 2022 definitivos | F5: 1. Evolução da balança comercial
F6: 2. Ranking dos parceiros comerciais de Portugal por país
C7: Data | D7: 2024-05-10T17:39:15.770 | F7: 2A Parceiros comerciais de Portugal - UE vs. Países Terceiros
F8: 3. Principais produtos transacionados (NC a 2 e 4 dígitos)
F9: 3A Principais produtos transacionados (sem mar nem florestas)
F10: 4A Evolução da balança comercial por produto
F11: 5.2. Trocas comerciais por produto (NC 2 dígitos)

Sheet Sintese
A1: Itália - Síntese (2019-2023)
A3: • As trocas comerciais de bens transacionáveis (excluindo serviços) entre Portugal e Itália representam um total de 2,9 mil milhões de € (M€) em exportações e 4,5 mil M€ em importações, na média do período 2019-2023, correspondendo a um saldo negativo da balança comercial de cerca de -1,5 M€. No que se refere ao total da economia (incluindo serviços), as exportações totalizam 3,6 mil M€ e as importações 4,7 mil milhões, correspondendo a um saldo negativo de cerca de -1,1 mil M€.
A4: • No que respeita aos produtos dos setores agrícola e agroalimentar, mar e florestas, Portugal exportou para Itália 915,1 M€ em média anual, no mesmo período (este país ocupa assim a 3ª posição em relação ao total dos países), enquanto as importações totalizaram 493,5 M€ (6ª posição), com um saldo positivo de 421,6 M€. Estes setores representam perto de 31,1% do total de exportações de bens transacionáveis e 11% das correspondentes importações.
A5: • Se nos referirmos apenas ao setor agrícola e agroalimentar, as exportações representam, em média, 480,4 M€ (3ª posição) e as importações 370,2 milhões (6ª posição), ou seja, Portugal tem um saldo positivo de 110,2 M€. Estes valores representam, respetivamente, cerca de 52,5% das exportações do setor agroflorestal e mar e 75% das importações.
A6: • As principais exportações agrícolas e agroalimentares (NC 4 dígitos) neste período são Charutos, cigarrilhas e cigarros (48%), Azeite (processos mecânicos ou físicos) (23%) e Tomates preparados (3%). As importações agrícolas e agroalimentares mais relevantes referem-se a Chocolate e outras preparações com cacau (11%), Produtos que contenham tabaco, tabaco reconstituído, nicotina ou sucedâneos (9%) e Outros produtos de tabaco (7%). Se considerarmos também os produtos do mar e da floresta, merecem particular destaque, em termos de exportações, Charutos, cigarrilhas e cigarros (25%), Azeite (processos mecânicos ou físicos) (12%) e Papel e cartão p/ escrita, etc. (11%). Nas importações destes setores, destacam-se Chocolate e outras preparações com cacau (8%), Produtos que contenham tabaco, tabaco reconstituído, nicotina ou sucedâneos (7%) e Outros produtos de tabaco (5%).
A9: Saldo da Balança Comercial | B9: 2019 | C9: 2020 | D9: 2021 | E9: 2022 | F9: 2023 | G9: média 2019-2023 | J9: Posição entre os parceiros comerciais de Portugal (milhares de euros)
A10: Total Economia (bens e serviços) | B10: -1009.3 | C10: -1029.3 | D10: -1198.1 | E10: -1318.1 | F10: n.d. | J10: AA + M + F | K10: Posição | L10: média 2019-2023 | M10: % do total | N10: TVMA* 2019-2023 | O10: TVT* 2019-2023
A11: Total de Bens Transacionáveis* | B11: -1426.459928 | C11: -1193.10303 | D11: -1399.449887 | E11: -1787.585919 | F11: -1922.591852 | G11: -1545.838123 | J11: Exportações | K11: 3ª | L11: 915116.4714 | M11: 0.06594965252 | N11: 0.05443007994 | O11: 0.2361499241
A12: Agrícola e Agroalimentar (AA) | B12: 108.320243 | C12: 1900-05-09T02:38:36.269 | D12: 157.076602 | E12: 89.76724 | F12: 1900-03-05T17:26:43.296 | G12: 110.2002234 | J12: Importações | K12: 6ª | L12: 493542.1144 | M12: 0.03051056171 | N12: 0.09591669067 | O12: 0.4424812108
A13: Mar (M) | B13: 104.797647 | C13: 76.748683 | D13: 92.441211 | E13: 112.646579 | F13: 106.512145 | G13: 98.629253 | J13: AA
A14: Florestas (F) | B14: 169.92759 | C14: 1900-06-13T19:37:03.101 | D14: 224.241567 | E14: 290.529088 | F14: 1900-07-31T05:00:36.950 | G14: 212.7448806 | J14: Exportações | K14: 3ª | L14: 480436.9156 | M14: 0.06201705361 | N14: 0.07344062572 | O14: 0.3277371616
A15: AA + M + F | B15: 383.04548 | C15: 1901-01-06T16:13:45.581 | D15: 473.75938 | E15: 492.942907 | F15: 1901-01-19T10:44:49.574 | G15: 421.574357 | J15: Importações | K15: 6ª | L15: 370236.6922 | M15: 0.03300465288 | N15: 0.09627178157 | O15: 0.5834019549
K16: *TVMA - Taxa de variação média anual; TVT - Taxa de variação total
A17: milhões de euros *exclui serviços
A19: Evolução das trocas comerciais Portugal-Itália em milhares de euros (2019-2023)
E28: Exportações | G28: Importações | I28: Saldo
A29: Principais produtos agrícolas e agroalimentares, do mar e da floresta transacionados (NC 4 dígitos)
A48: Principais produtos agrícolas e agroalimentares transacionados (NC 4 dígitos)
A82: Fonte: GPP a partir de dados INE/Comércio Internacional (2022 definitivos) | N82: 2024-05-10T17:39:15.770

Sheet 1
A1: Evolução da balança comercial Portugal-Itália 2019-2023 em milhões de euros
A3: Total da Economia (TE)(1) | B3: 2019 | C3: 2020 | D3: 2021 | E3: 2022 | F3: 2023 | G3: média 2019-2022 | H3: var. 19/20 | I3: var. 20/21 | J3: var. 21/22 | K3: var. 22/23 | L3: TVMA* 2019-2023 | M3: TVT* 2019-2023
A4: Exportações | B4: 3561.2 | C4: 2842.9 | D4: 3439.2 | E4: 4515.4 | F4: n.d. | G4: 3589.675 | H4: -0.2017016736 | I4: 0.2097506068 | J4: 0.3129216097
A5: Importações | B5: 4570.5 | C5: 3872.2 | D5: 4637.3 | E5: 5833.5 | F5: n.d. | G5: 4728.375 | H5: -0.1527841593 | I5: 0.1975879345 | J5: 0.2579518254
A6: Saldo (exp-imp) | B6: -1009.3 | C6: -1029.3 | D6: -1198.1 | E6: -1318.1 | F6: n.d. | G6: -1138.7
A7: Cobertura (exp/imp) | B7: 0.7791707691 | C7: 0.7341821187 | D7: 0.7416384534 | E7: 0.7740464558 | F7: n.d. | G7: 0.7591773072 | L7: Exportações
A8: Exp TE Itália / Exp TE Mundo | B8: 0.03818120815 | C8: 0.03826977951 | D8: 0.03844840947 | E8: 0.03756617946 | F8: n.d. | G8: 0.03566520868 | L8: Importações
A9: Imp TE Itália / Imp TE Mundo | B9: 0.04951692692 | C9: 0.04927417682 | D9: 0.04853382896 | E9: 0.04628579046 | F9: n.d. | G9: 0.04579845783
A10: (1) Todas as transações entre PT e Itália (inclui bens e serviços) | E10: Fonte: GEE/ME e GPP a partir de INE/Contas Nacionais (2016 e 2020 provisórios; 2021 preliminares) | H10: *TVMA - Taxa de variação média anual; TVT - Taxa de variação total
A22: Total de Bens Transacionáveis (BT)(1) | B22: 2019 | C22: 2020 | D22: 2021 | E22: 2022 | F22: 2023 | G22: média quinquénio | H22: var. 19/20 | I22: var. 20/21 | J22: var. 21/22 | K22: var. 22/23 | L22: TVMA* 2019-2023 | M22: TVT* 2019-2023
A23: Exportações | B23: 2682.881339 | C23: 2358.258978 | D23: 2881.763568 | E23: 3501.343506 | F23: 3288.82789 | G23: 2942.615056 | H23: -0.1209976589 | I23: 0.2219877439 | J23: 0.2150002675 | K23: -0.06069544894 | L23: 0.05222816044 | M23: 0.2258566349
A24: Importações | B24: 4109.341267 | C24: 3551.362008 | D24: 4281.213455 | E24: 5288.929425 | F24: 5211.419742 | G24: 4488.453179 | H24: -0.1357831396 | I24: 0.2055131089 | J24: 0.2353809219 | K24: -0.01465507984 | L24: 0.0611968718 | M24: 0.2681885985
A25: Saldo (exp-imp) | B25: -1426.459928 | C25: -1193.10303 | D25: -1399.449887 | E25: -1787.585919 | F25: -1922.591852 | G25: -1545.838123
A26: Cobertura (exp/imp) | B26: 0.652873822 | C26: 0.6640435339 | D26: 0.673118404 | E26: 0.6620136562 | F26: 0.6310809823 | G26: 0.6555966919
A27: Exp BT Itália / Exp TE Itália | B27: 0.7533644106 | C27: 0.8295258286 | D27: 0.8379168318 | E27: 0.775422666 | F27: n.d. | G27: 0.8197441429 | L27: Exportações
A28: Imp BT Itália / Imp TE Itália | B28: 0.8991010321 | C28: 0.9171432281 | D28: 0.9232125278 | E28: 0.9066477115 | F28: n.d. | G28: 0.9492591386 | L28: Importações
A29: Exp BT Itália / Exp BT Mundo | B29: 0.04478723688 | C29: 0.04386855213 | D29: 0.04529755374 | E29: 0.04469525684 | F29: 0.04243829601 | G29: 0.04416834525
A30: Imp BT Itália / Imp BT Mundo | B30: 0.05138145557 | C30: 0.05211435041 | D30: 0.05149048829 | E30: 0.04830698917 | F30: 0.04964790074 | G30: 0.05035039014
A31: Exp BT Itália / Exp TE Mundo | B31: 0.02876436337 | C31: 0.03174577055 | D31: 0.03221656945 | E31: 0.02912966703 | F31: 0.02609332211 | G31: 0.02923634592
A32: Imp BT Itália / Imp TE Mundo | B32: 0.0445207201 | C32: 0.04519147759 | D32: 0.04480703891 | E32: 0.04196490599 | F32: 0.04211282477 | G32: 0.04347460463
A33: (1) Todos os produtos transacionados entre PT e Itália (exclui serviços) | D33: TE - Total da Economia (bens e serviços) Fonte: INE/Contas Nacionais | H33: *TVMA - Taxa de variação média anual; TVT - Taxa de variação total
A46: Agro(1) + Mar + Florestas (AMF) | B46: 2019 | C46: 2020 | D46: 2021 | E46: 2022 | F46: 2023 | G46: média quinquénio | H46: var. 19/20 | I46: var. 20/21 | J46: var. 21/22 | K46: var. 22/23 | L46: TVMA* 2019-2023 | M46: TVT* 2019-2023
A47: Exportações | B47: 809.80502 | C47: 745.258255 | D47: 934.390659 | E47: 1085.088009 | F47: 1001.040414 | G47: 915.1164714 | H47: -0.07970655084 | I47: 0.2537810252 | J47: 0.161278742 | K47: -0.07745693833 | L47: 0.05443007994 | M47: 0.2361499241
A48: Importações | B48: 426.75954 | C48: 372.582033 | D48: 460.631279 | E48: 592.145102 | F48: 615.592618 | G48: 493.5421144 | H48: -0.1269508984 | I48: 0.2363217713 | J48: 0.2855077998 | K48: 0.03959758499 | L48: 0.09591669067 | M48: 0.4424812108
A49: Saldo (exp-imp) | B49: 383.04548 | C49: 372.676222 | D49: 473.75938 | E49: 492.942907 | F49: 385.447796 | G49: 421.574357
A50: Cobertura (exp/imp) | B50: 1.897567469 | C50: 2.000252801 | D50: 2.028500238 | E50: 1.832469787 | F50: 1.62614103 | G50: 1.854181122
A51: Exp AMF Itália / Exp BT Itália | B51: 0.3018415344 | C51: 0.3160205312 | D51: 0.3242426511 | E51: 0.3099061852 | F51: 0.3043760414 | G51: 0.3109874904 | L51: Exportações
A52: Imp AMF Itália / Imp BT Itália | B52: 0.1038510828 | C52: 0.1049124342 | D52: 0.1075936259 | E52: 0.1119593503 | F52: 0.1181237836 | G52: 0.1099581737 | L52: Importações
A53: Exp AMF Itália / Exp TE Itália | B53: 0.2273966697 | C53: 0.262147193 | D53: 0.2716883749 | E53: 0.2403082803 | F53: n.d. | G53: 0.2549301737
A54: Imp AMF Itália / Imp TE Itália | B54: 0.09337261569 | C54: 0.09621972858 | D54: 0.09933178337 | E54: 0.1015076887 | F54: n.d. | G54: 0.1043788013
A55: Exp AMF Itália / Exp AMF Mundo | B55: 0.06846609523 | C55: 0.06460597225 | D55: 0.06974850205 | E55: 0.06621087693 | F55: 0.06167181609 | G55: 0.06594965252
A56: Imp AMF Itália / Imp AMF Mundo | B56: 0.03085001537 | C56: 0.02856044129 | D56: 0.03082256714 | E56: 0.03065991978 | F56: 0.03117896703 | G56: 0.03051056171
A57: Exp AMF Itália / Exp BT Mundo | B57: 0.0135186483 | C57: 0.01386336315 | D57: 0.01468739891 | E57: 0.01385133654 | F57: 0.01291720054 | G57: 0.01373580284
A58: Imp AMF Itália / Imp BT Mundo | B58: 0.005336019795 | C58: 0.005467443358 | D58: 0.005540048336 | E58: 0.005408419121 | F58: 0.005864597884 | G58: 0.005536436946
A59: (1) Produtos agrícolas e agroalimentares | B59: BT - Total de Bens Transacionáveis (exclui serviços); TE - Total da Economia (bens e serviços) | H59: *TVMA - Taxa de variação média anual; TVT - Taxa de variação total
A71: Agroalimentar (AA)(1) | B71: 2019 | C71: 2020 | D71: 2021 | E71: 2022 | F71: 2023 | G71: média quinquénio | H71: var. 19/20 | I71: var. 20/21 | J71: var. 21/22 | K71: var. 22/23 | L71: TVMA* 2019-2023 | M71: TVT* 2019-2023
A72: Exportações | B72: 413.774588 | C72: 400.299293 | D72: 502.661732 | E72: 536.065068 | F72: 549.383897 | G72: 480.4369156 | H72: -0.03256675347 | I72: 0.2557147634 | J72: 0.06645291231 | K72: 0.02484554543 | L72: 0.07344062572 | M72: 0.3277371616
A73: Importações | B73: 305.454345 | C73: 270.189151 | D73: 345.58513 | E73: 446.297828 | F73: 483.657007 | G73: 370.2366922 | H73: -0.1154516037 | I73: 0.2790488764 | J73: 0.2914265958 | K73: 0.08370907644 | L73: 0.1217544323 | M73: 0.5834019549
A74: Saldo (exp-imp) | B74: 108.320243 | C74: 130.110142 | D74: 157.076602 | E74: 89.76724 | F74: 65.72689 | G74: 110.2002234
A75: Cobertura (exp/imp) | B75: 1.354620076 | C75: 1.481552059 | D75: 1.454523613 | E75: 1.201137524 | F75: 1.135895664 | G75: 1.297648034
A76: Exp AA Itália / Exp AMF Itália | B76: 0.51095582 | C76: 0.5371282912 | D76: 0.5379567177 | E76: 0.4940291143 | F76: 0.5488129044 | G76: 0.5250008394 | L76: Exportações
A77: Imp AA Itália / Imp AMF Itália | B77: 0.7157528218 | C77: 0.7251803014 | D77: 0.7502424298 | E77: 0.7536967316 | F77: 0.7856770742 | G77: 0.7501623091 | L77: Importações
A78: Exp AA Itália / Exp BT Itália | B78: 0.1542276887 | C78: 0.1697435679 | D78: 0.1744285123 | E78: 0.1531026782 | F78: 0.1670454993 | G78: 0.1632686935
A79: Imp AA Itália / Imp BT Itália | B79: 0.07433170553 | C79: 0.07608043066 | D79: 0.08072130335 | E79: 0.08438339636 | F79: 0.09280714871 | G79: 0.0824864775
A80: Exp AA Itália / Exp TE Itália | B80: 0.1161896518 | C80: 0.1408066738 | D80: 0.1461565864 | E80: 0.1187192869 | F80: n.d. | G80: 0.1338385552
A81: Imp AA Itália / Imp TE Itália | B81: 0.06683171316 | C81: 0.06977665177 | D81: 0.07452291851 | E81: 0.0765060132 | F81: n.d. | G81: 0.07830104258
A82: Exp AA Itália / Exp AA Mundo | B82: 0.06576557301 | C82: 0.06049483974 | D82: 0.06745505015 | E82: 0.06038539665 | F82: 0.05785230214 | G82: 0.06201705361
A83: Imp AA Itália / Imp AA Mundo | B83: 0.03278436696 | C83: 0.02974193439 | D83: 0.03364720045 | E83: 0.03371542321 | F83: 0.03411081843 | G83: 0.03300465288
A84: Exp AA Itália / Exp AMF Mundo | B84: 0.03498314983 | C84: 0.03470169548 | D84: 0.03752167523 | E84: 0.03271010088 | F84: 0.03384628851 | G84: 0.03462362293
A85: Imp AA Itália / Imp AMF Mundo | B85: 0.02208098555 | C85: 0.02071146943 | D85: 0.02312439766 | E85: 0.02310828133 | F85: 0.02449659959 | G85: 0.02288787343
A86: (1) Produtos agrícolas e agroalimentares | H86: *TVMA - Taxa de variação média anual; TVT - Taxa de variação total
A87: AMF - Agroalimentar, Mar e Florestas; BT - Total de Bens Transacionáveis (exclui serviços); TE - Total da Economia (bens e serviços)
A98: Mar (M) | B98: 2019 | C98: 2020 | D98: 2021 | E98: 2022 | F98: 2023 | G98: média quinquénio | H98: var. 19/20 | I98: var. 20/21 | J98: var. 21/22 | K98: var. 22/23 | L98: TVMA* 2019-2023 | M98: TVT* 2019-2023
A99: Exportações | B99: 123.55097 | C99: 96.319105 | D99: 112.325677 | E99: 127.994564 | F99: 122.781392 | G99: 116.5943416 | H99: -0.2204099652 | I99: 0.1661827319 | J99: 0.1394951486 | K99: -0.04072963599 | L99: -0.001560858139 | M99: -0.006228830093
A100: Importações | B100: 18.753323 | C100: 19.570422 | D100: 19.884466 | E100: 15.347985 | F100: 16.269247 | G100: 17.9650886 | H100: 0.04357089141 | I100: 0.0160468691 | J100: -0.2281419576 | K100: 0.0600249479 | L100: -0.03490002423 | M100: -0.1324605778
A101: Saldo (exp-imp) | B101: 104.797647 | C101: 76.748683 | D101: 92.441211 | E101: 112.646579 | F101: 106.512145 | G101: 98.629253
A102: Cobertura (exp/imp) | B102: 6.588217459 | C102: 4.921667249 | D102: 5.648915943 | E102: 8.339502808 | F102: 7.546839261 | G102: 6.49005102
A103: Exp M Itália / Exp AMF Itália | B103: 0.1525687875 | C103: 0.1292425872 | D103: 0.1202127568 | E103: 0.117957772 | F103: 0.1226537813 | G103: 0.1274092919 | L103: Exportações
A104: Imp M Itália / Imp AMF Itália | B104: 0.04394353551 | C104: 0.05252647811 | D104: 0.04316785878 | E104: 0.0259192974 | F104: 0.0264285934 | G104: 0.03640031534 | L104: Importações
A105: Exp M Itália / Exp BT Itália | B105: 0.04605159692 | C105: 0.04084331106 | D105: 0.03897810294 | E105: 0.03655584314 | F105: 0.03733287241 | G105: 0.03962269593
A106: Imp M Itália / Imp BT Itália | B106: 0.004563583743 | C106: 0.005510680679 | D106: 0.004644586449 | E106: 0.002901907696 | F106: 0.003121845448 | G106: 0.004002512198
A107: Exp M Itália / Exp TE Itália | B107: 0.03469363417 | C107: 0.03388058145 | D107: 0.03266040853 | E107: 0.02834622935 | F107: n.d. | G107: 0.03248047291
A108: Imp M Itália / Imp TE Itália | B108: 0.004103122853 | C108: 0.005054083467 | D108: 0.004287940396 | E108: 0.002631007971 | F108: n.d. | G108: 0.003799421281
A109: Exp M Itália / Exp M Mundo | B109: 0.1156425316 | C109: 0.1070605201 | D109: 0.1025406281 | E109: 0.1000644118 | F109: 0.09209261488 | G109: 0.1027110416
A110: Imp M Itália / Imp M Mundo | B110: 0.008605038088 | C110: 0.01016715595 | D110: 0.009504754822 | E110: 0.005902090251 | F110: 0.006413185917 | G110: 0.00792563053
A111: Exp M Itália / Exp AMF Mundo | B111: 0.01044578913 | C111: 0.008349843002 | D111: 0.008384659711 | E111: 0.007810087527 | F111: 0.007564281443 | G111: 0.008402598527
A112: Imp M Itália / Imp AMF Mundo | B112: 0.001355658746 | C112: 0.001500179394 | D112: 0.001330544225 | E112: 0.0007946835789 | F112: 0.0008240162422 | G112: 0.001110594068
A113: AMF - Agroalimentar, Mar e Florestas; BT - Total de Bens Transacionáveis (exclui serviços); TE - Total da Economia (bens e serviços) | H113: *TVMA - Taxa de variação média anual; TVT - Taxa de variação total
A125: Florestas (F) | B125: 2019 | C125: 2020 | D125: 2021 | E125: 2022 | F125: 2023 | G125: média quinquénio | H125: var. 19/20 | I125: var. 20/21 | J125: var. 21/22 | K125: var. 22/23 | L125: TVMA* 2019-2023 | M125: TVT* 2019-2023
A126: Exportações | B126: 272.479462 | C126: 248.639857 | D126: 319.40325 | E126: 421.028377 | F126: 328.875125 | G126: 318.0852142 | H126: -0.08749138311 | I126: 0.2846019695 | J126: 0.3181718627 | K126: -0.2188765818 | L126: 0.04815211079 | M126: 0.2069721607
A127: Importações | B127: 102.551872 | C127: 82.82246 | D127: 95.161683 | E127: 130.499289 | F127: 115.666364 | G127: 105.3403336 | H127: -0.1923847085 | I127: 0.1489840196 | J127: 0.3713428019 | K127: -0.1136628798 | L127: 0.03054241891 | M127: 0.1278815466
A128: Saldo (exp-imp) | B128: 169.92759 | C128: 165.817397 | D128: 224.241567 | E128: 290.529088 | F128: 213.208761 | G128: 212.7448806
A129: Cobertura (exp/imp) | B129: 2.656991595 | C129: 3.002082491 | D129: 3.356427082 | E129: 3.226288666 | F129: 2.843308233 | G129: 3.01959566
A130: Exp F Itália / Exp AMF Itália | B130: 0.3364753926 | C130: 0.3336291216 | D130: 0.3418305255 | E130: 0.3880131137 | F130: 0.3285333143 | G130: 0.3475898688 | L130: Exportações
A131: Imp F Itália / Imp AMF Itália | B131: 0.2403036427 | C131: 0.2222932205 | D131: 0.2065897114 | E131: 0.220383971 | F131: 0.1878943324 | G131: 0.2134373755 | L131: Importações
A132: Exp F Itália / Exp BT Itália | B132: 0.1015622488 | C132: 0.1054336522 | D132: 0.1108360358 | E132: 0.1202476639 | F132: 0.09999766969 | G132: 0.108096101
A133: Imp F Itália / Imp BT Itália | B133: 0.02495579348 | C133: 0.02332132287 | D133: 0.02222773613 | E133: 0.0246740462 | F133: 0.02219478947 | G133: 0.02346918401
A134: Exp F Itália / Exp TE Itália | B134: 0.07651338369 | C134: 0.08745993774 | D134: 0.09287137997 | E134: 0.0932427641 | G134: 0.08861114563
A135: Imp F Itália / Imp TE Itália | B135: 0.02243777967 | C135: 0.02138899334 | D135: 0.02052092446 | E135: 0.02237066752 | G135: 0.0222783374
A136: Exp F Itália / Exp F Mundo | B136: 0.06098767653 | C136: 0.06187090767 | D136: 0.06586529407 | E136: 0.06756076592 | F136: 0.06087827481 | G136: 0.06369390804
A137: Imp F Itália / Imp F Mundo | B137: 0.04388278083 | C137: 0.04067761463 | D137: 0.03685989988 | E137: 0.03754623709 | F137: 0.03819883216 | G137: 0.0391354282
A138: Exp F Itália / Exp AMF Mundo | B138: 0.02303715627 | C138: 0.02155443377 | D138: 0.02384216711 | E138: 0.02569068852 | F138: 0.02026124614 | G138: 0.02292343106
A139: Imp F Itália / Imp AMF Mundo | B139: 0.007413371069 | C139: 0.006348792473 | D139: 0.00636762525 | E139: 0.006756954873 | F139: 0.005858351195 | G139: 0.006512094217
A140: AMF - Agroalimentar, Mar e Florestas; BT - Total de Bens Transacionáveis (exclui serviços); TE - Total da Economia (bens e serviços) | H140: *TVMA - Taxa de variação média anual; TVT - Taxa de variação total
A150: Fonte: GPP a partir de dados INE/Comércio Internacional (2020 provisórios; 2021 preliminares) | K150: 2024-05-10T17:39:15.770

Sheet 2
A1: Ranking dos parceiros comerciais de Portugal por país (média 2019-2023 em milhares de euros) produtos agrícolas e agroalimentares, do mar e da floresta
A2: Exportações | F2: Importações | K2: Trocas comerciais (total e saldo)
A3: P | B3: País | C3: média quinquénio | D3: % do Total | F3: P | G3: País | H3: média quinquénio | I3: % do Total | K3: P | L3: País | M3: Total (exp+imp) | N3: % do Total | O3: Saldo (exp-imp)
A4: 1 | B4: Espanha | C4: 4589477.65 | D4: 0.330749654 | F4: 1 | G4: Espanha | H4: 7534700.686 | I4: 0.4657919629 | K4: 1 | L4: Espanha | M4: 12124178.34 | N4: 0.4034387285 | O4: -2945223.036
A5: 2 | B5: França | C5: 1475809.99 | D5: 0.106357124 | F5: 2 | G5: França | H5: 1064197.953 | I5: 0.06578826077 | K5: 2 | L5: França | M5: 2540007.943 | N5: 0.08452016677 | O5: 411612.0364
A6: 3 | B6: Itália | C6: 915116.4714 | D6: 0.06594965252 | F6: 3 | G6: Países Baixos | H6: 947328.0688 | I6: 0.05856341467 | K6: 3 | L6: Países Baixos | M6: 1580850.188 | N6: 0.05260366289 | O6: -313805.9492
A7: 4 | B7: Alemanha | C7: 650630.7046 | D7: 0.04688897012 | F7: 4 | G7: Alemanha | H7: 912999.7532 | I7: 0.05644125293 | K7: 4 | L7: Alemanha | M7: 1563630.458 | N7: 0.05203066685 | O7: -262369.0486
A8: 5 | B8: Países Baixos | C8: 633522.1196 | D8: 0.04565600659 | F8: 5 | G8: Brasil | H8: 813481.1404 | I8: 0.050289055 | K8: 5 | L8: Itália | M8: 1408658.586 | N8: 0.04687389224 | O8: 421574.357
A9: 6 | B9: Estados Unidos | C9: 565282.6516 | D9: 0.0407381963 | F9: 6 | G9: Itália | H9: 493542.1144 | I9: 0.03051056171 | K9: 6 | L9: Brasil | M9: 1307207.503 | N9: 0.04349805145 | O9: -319754.7774 | P9: Nota: Nesta listagem, o Reino Unido passa a ser constituído por três componentes: Reino Unido [até 2020] ; Reino Unido (sem Irlanda do Norte) pós-2020 e Reino Unido (Irlanda do Norte) pós-2020. Estas componentes são calculadas igualmente como média do quinquénio, embora a primeira corresponda apenas a 2019-2020 e as duas últimas a 2021-2023.
A10: 7 | B10: Brasil | C10: 493726.363 | D10: 0.03558135286 | F10: 7 | G10: Suécia | H10: 338954.0252 | I10: 0.02095399238 | K10: 7 | L10: Estados Unidos | M10: 831258.1132 | N10: 0.0276605727 | O10: 299307.19
A11: 8 | B11: Reino Unido (sem Irlanda do Norte) pós 2020 | C11: 454913.9818 | D11: 0.03278426295 | F11: 8 | G11: Bélgica | H11: 311896.3766 | I11: 0.01928130015 | K11: 8 | L11: Bélgica | M11: 566475.8276 | N11: 0.01884979594 | O11: -57316.9256
A12: 9 | B12: Angola | C12: 292707.7282 | D12: 0.02109455306 | F12: 9 | G12: Estados Unidos | H12: 265975.4616 | I12: 0.01644248889 | K12: 9 | L12: Reino Unido (sem Irlanda do Norte) pós 2020 | M12: 544532.3606 | N12: 0.01811961496 | O12: 365295.603
A13: 10 | B13: Reino Unido | C13: 261878.4294 | D13: 0.01887277954 | F13: 10 | G13: Polónia | H13: 241286.9558 | I13: 0.01491625606 | K13: 10 | L13: Polónia | M13: 500653.6594 | N13: 0.01665952695 | O13: 18079.7478
A14: 11 | B14: Polónia | C14: 259366.7036 | D14: 0.01869176713 | F14: 11 | G14: Ucrânia | H14: 222824.0602 | I14: 0.01377488778 | K14: 11 | L14: Suécia | M14: 438293.7972 | N14: 0.01458446811 | O14: -239614.2532
A15: 12 | B15: Bélgica | C15: 254579.451 | D15: 0.01834676444 | F15: 12 | G15: China, República Popular da | H15: 185792.3874 | I15: 0.01148560566 | K15: 12 | L15: China, República Popular da | M15: 398800.9512 | N15: 0.01327032185 | O15: 27216.1764
A16: 13 | B16: Israel | C16: 229312.128 | D16: 0.01652582555 | F16: 13 | G16: Dinamarca | H16: 157445.0856 | I16: 0.009733187625 | K16: 13 | L16: Reino Unido | M16: 360801.6302 | N16: 0.01200587346 | O16: 162955.2286
A17: 14 | B17: China, República Popular da | C17: 213008.5638 | D17: 0.01535087741 | F17: 14 | G17: África do Sul | H17: 152632.7646 | I17: 0.009435692006 | K17: 14 | L17: Angola | M17: 311606.1852 | N17: 0.01036886787 | O17: 273809.2712
A18: 15 | B18: Turquia | C18: 183340.2302 | D18: 0.01321277111 | F18: 15 | G18: Roménia | H18: 151340.3218 | I18: 0.009355793747 | K18: 15 | L18: Turquia | M18: 242682.4712 | N18: 0.008075393227 | O18: 123997.9892
A19: 16 | B19: Suíça | C19: 154487.3474 | D19: 0.01113343186 | F19: 16 | G19: Irlanda | H19: 122298.3798 | I19: 0.007560433355 | K19: 16 | L19: Dinamarca | M19: 241944.339 | N19: 0.00805083147 | O19: -72945.8322
A20: 17 | B20: Marrocos | C20: 118641.6206 | D20: 0.008550139679 | F20: 17 | G20: Canadá | H20: 119672.9708 | I20: 0.007398131698 | K20: 17 | L20: Ucrânia | M20: 239492.5 | N20: 0.007969245174 | O20: -206155.6204
A21: 18 | B21: Cabo Verde | C21: 109797.6224 | D21: 0.007912779707 | F21: 18 | G21: Argentina | H21: 105868.1334 | I21: 0.006544722574 | K21: 18 | L21: Israel | M21: 237364.4856 | N21: 0.00789843432 | O21: 221259.7704
A22: 19 | B22: Suécia | C22: 99339.772 | D22: 0.007159114331 | F22: 19 | G22: Uruguai | H22: 104314.013 | I22: 0.006448647518 | K22: 19 | L22: Canadá | M22: 218508.6438 | N22: 0.007270995772 | O22: -20837.2978
A23: 20 | B23: Canadá | C23: 98835.673 | D23: 0.007122785454 | F23: 20 | G23: Rússia, Federação da | H23: 103735.9496 | I23: 0.006412911886 | K23: 20 | L23: Irlanda | M23: 195589.7628 | N23: 0.006508357353 | O23: -49006.9968
A24: 21 | B24: Argélia | C24: 96652.6324 | D24: 0.006965460377 | F24: 21 | G24: Reino Unido | H24: 98923.2008 | I24: 0.006115389821 | K24: 21 | L24: África do Sul | M24: 189444.1922 | N24: 0.006303860098 | O24: -115821.337
A25: 22 | B25: Dinamarca | C25: 84499.2534 | D25: 0.006089603427 | F25: 22 | G25: Reino Unido (sem Irlanda do Norte) pós 2020 | H25: 89618.3788 | I25: 0.005540169718 | K25: 22 | L25: Roménia | M25: 177441.9662 | N25: 0.0059044794 | O25: -125238.6774
A26: 23 | B26: Egito | C26: 82715.0134 | D26: 0.005961018693 | F26: 23 | G26: Finlândia | H26: 81334.7174 | I26: 0.005028077325 | K26: 23 | L26: Rússia, Federação da | M26: 176432.6266 | N26: 0.005870893068 | O26: -31039.2726
A27: 24 | B27: México | C27: 78972.8492 | D27: 0.005691332334 | F27: 24 | G27: Índia | H27: 79609.9066 | I27: 0.004921450262 | K27: 24 | L27: Marrocos | M27: 161461.9424 | N27: 0.005372735285 | O27: 75821.2988
A28: 25 | B28: Japão | C28: 73363.5888 | D28: 0.005287090048 | F28: 25 | G28: Costa Rica | H28: 70759.3454 | I28: 0.004374312367 | K28: 25 | L28: Suíça | M28: 158551.5506 | N28: 0.005275890391 | O28: 150423.1442
A29: 26 | B29: Irlanda | C29: 73291.383 | D29: 0.005281886397 | F29: 26 | G29: Áustria | H29: 70408.8626 | I29: 0.00435264567 | K29: 26 | L29: Argentina | M29: 121955.0376 | N29: 0.004058121214 | O29: -89781.2292
A30: 27 | B30: Rússia, Federação da | C30: 72696.677 | D30: 0.005239027749 | F30: 27 | G30: Vietname | H30: 69724.8096 | I30: 0.004310357807 | K30: 27 | L30: Grécia | M30: 120604.866 | N30: 0.004013193508 | O30: -5813.7356
A31: 28 | B31: Luxemburgo | C31: 58628.216 | D31: 0.004225156681 | F31: 28 | G31: Grécia | H31: 63209.3008 | I31: 0.003907571849 | K31: 28 | L31: Áustria | M31: 112631.9138 | N31: 0.003747889122 | O31: -28185.8114
A32: 29 | B32: Grécia | C32: 57395.5652 | D32: 0.004136323298 | F32: 29 | G32: Turquia | H32: 59342.241 | I32: 0.003668511872 | K32: 29 | L32: Finlândia | M32: 112130.7098 | N32: 0.003731211282 | O32: -50538.725
A33: 30 | B33: Áustria | C33: 42223.0512 | D33: 0.003042886498 | F33: 30 | G33: Equador | H33: 58414.7256 | I33: 0.003611173268 | K33: 30 | L33: Índia | M33: 110947.4156 | N33: 0.003691836514 | O33: -48272.3976
A34: 31 | B34: Moçambique | C34: 41346.8404 | D34: 0.002979740659 | F34: 31 | G34: Chile | H34: 53583.805 | I34: 0.00331252783 | K34: 31 | L34: Cabo Verde | M34: 110216.5244 | N34: 0.003667515706 | O34: 109378.7204
A35: 32 | B35: África do Sul | C35: 36811.4276 | D35: 0.002652887293 | F35: 32 | G35: Bulgária | H35: 44086.0538 | I35: 0.002725380927 | K35: 32 | L35: Uruguai | M35: 107585.2684 | N35: 0.003579959209 | O35: -101042.7576
A36: 33 | B36: Arábia Saudita | C36: 35880.8896 | D36: 0.002585826258 | F36: 33 | G36: Marrocos | H36: 42820.3218 | I36: 0.002647133918 | K36: 33 | L36: Argélia | M36: 103327.6826 | N36: 0.003438285691 | O36: 89977.5822
A37: 34 | B37: Austrália | C37: 35113.0132 | D37: 0.002530487749 | F37: 34 | G37: Checa, República | H37: 40116.599 | I37: 0.002479990934 | K37: 34 | L37: Egito | M37: 96954.5744 | N37: 0.003226216997 | O37: 68475.4524
A38: 35 | B38: Guiné-Bissau | C38: 34934.7244 | D38: 0.002517639019 | F38: 35 | G38: Moçambique | H38: 38763.0688 | I38: 0.002396316278 | K38: 35 | L38: México | M38: 96736.9562 | N38: 0.003218975631 | O38: 61208.7422
A39: 36 | B39: Índia | C39: 31337.509 | D39: 0.002258398678 | F39: 36 | G39: Cuba | H39: 37252.762 | I39: 0.00230294976 | K39: 36 | L39: Japão | M39: 88210.8558 | N39: 0.002935264933 | O39: 58516.3218
A40: 37 | B40: Emirados Árabes Unidos | C40: 31194.84 | D40: 0.002248116959 | F40: 37 | G40: Colômbia | H40: 31648.7828 | I40: 0.001956514171 | K40: 37 | L40: Chile | M40: 83999.5896 | N40: 0.002795132725 | O40: -23168.0204
A41: 38 | B41: Checa, República | C41: 30815.952 | D41: 0.002220811656 | F41: 38 | G41: Guiana | H41: 31014.2578 | I41: 0.001917288108 | K41: 38 | L41: Moçambique | M41: 80109.9092 | N41: 0.002665701462 | O41: 2583.7716
A42: 39 | B42: Finlândia | C42: 30795.9924 | D42: 0.002219373229 | F42: 39 | G42: Indonésia | H42: 29000.573 | I42: 0.001792802977 | K42: 39 | L42: Vietname | M42: 76018.5502 | N42: 0.002529559232 | O42: -63431.069
A43: 40 | B43: Chile | C43: 30415.7846 | D43: 0.002191972812 | F43: 40 | G43: Hungria | H43: 27853.1164 | I43: 0.001721867703 | K43: 40 | L43: Costa Rica | M43: 75105.2118 | N43: 0.002499167392 | O43: -66413.479
A44: 41 | B44: Jordânia | C44: 29568.7308 | D44: 0.002130928229 | F44: 41 | G44: Costa do Marfim | H44: 23657.68 | I44: 0.001462507625 | K44: 41 | L44: Checa, República | M44: 70932.551 | N44: 0.0023603198 | O44: -9300.647
A45: 42 | B45: São Tomé e Príncipe | C45: 26643.6118 | D45: 0.001920123826 | F45: 42 | G45: Uganda | H45: 22974.374 | I45: 0.001420265941 | K45: 42 | L45: Luxemburgo | M45: 67457.2882 | N45: 0.002244678512 | O45: 49799.1438
A46: 43 | B46: Roménia | C46: 26101.6444 | D46: 0.001881065889 | F46: 43 | G46: Namíbia | H46: 22899.6914 | I46: 0.001415649095 | K46: 43 | L46: Equador | M46: 61226.8336 | N46: 0.002037356695 | O46: -55602.6176
A47: 44 | B47: Tunísia | C47: 25934.5578 | D47: 0.001869024467 | F47: 44 | G47: Peru | H47: 21918.8742 | I47: 0.001355015397 | K47: 44 | L47: Bulgária | M47: 58372.2568 | N47: 0.001942369075 | O47: -29799.8508
A48: 45 | B48: Noruega | C48: 23600.8176 | D48: 0.00170083893 | F48: 45 | G48: Letónia | H48: 19634.0354 | I48: 0.001213767643 | K48: 45 | L48: Austrália | M48: 52768.539 | N48: 0.001755902271 | O48: 17457.4874
A49: 46 | B49: Coreia, República da | C49: 22131.0668 | D49: 0.001594918473 | F49: 46 | G49: Lituânia | H49: 19279.9074 | I49: 0.001191875602 | K49: 46 | L49: Hungria | M49: 47560.2566 | N49: 0.001582593799 | O49: -8145.9762
A50: 47 | B50: Hungria | C50: 19707.1402 | D50: 0.001420233477 | F50: 47 | G50: Angola | H50: 18898.457 | I50: 0.001168294502 | K50: 47 | L50: Cuba | M50: 44341.484 | N50: 0.001475487363 | O50: -30164.04
A51: 48 | B51: Nigéria | C51: 18837.3684 | D51: 0.001357551677 | F51: 48 | G51: Suazilândia | H51: 17908.5294 | I51: 0.001107097602 | K51: 48 | L51: Colômbia | M51: 40554.3906 | N51: 0.001349469739 | O51: -22743.175
A52: 49 | B52: Ucrânia | C52: 16668.4398 | D52: 0.001201243609 | F52: 49 | G52: México | H52: 17764.107 | I52: 0.001098169471 | K52: 49 | L52: Noruega | M52: 38853.5172 | N52: 0.001292872238 | O52: 8348.118
A53: 50 | B53: Argentina | C53: 16086.9042 | D53: 0.001159334112 | F53: 50 | G53: Austrália | H53: 17655.5258 | I53: 0.001091457028 | K53: 50 | L53: Tunísia | M53: 37484.3298 | N53: 0.001247311771 | O53: 14384.7858
A54: 51 | B54: Lituânia | C54: 15764.2352 | D54: 0.001136080342 | F54: 51 | G54: Senegal | H54: 16694.6988 | I54: 0.001032059115 | K54: 51 | L54: Arábia Saudita | M54: 35932.1724 | N54: 0.001195662877 | O54: 35829.6068
A55: 52 | B55: Macau | C55: 14584.6512 | D55: 0.001051071321 | F55: 52 | G55: Nova Zelânda | H55: 16509.396 | I55: 0.001020603776 | K55: 52 | L55: Costa do Marfim | M55: 35761.2586 | N55: 0.001189975626 | O55: -11554.1014
A56: 53 | B56: Bulgária | C56: 14286.203 | D56: 0.00102956307 | F56: 53 | G56: Estónia | H56: 16320.5418 | I56: 0.00100892889 | K56: 53 | L56: Guiné-Bissau | M56: 35226.5238 | N56: 0.00117218203 | O56: 34642.925
A57: 54 | B57: Líbia, Jamahira Árabe da | C57: 13798.5402 | D57: 0.0009944186996 | F57: 54 | G57: Eslovénia | H57: 16026.5852 | I57: 0.0009907566193 | K57: 54 | L57: Coreia, República da | M57: 35092.7906 | N57: 0.001167731984 | O57: 9169.343
A58: 55 | B58: Iraque | C58: 13659.5246 | D58: 0.0009844002694 | F58: 55 | G58: Noruega | H58: 15252.6996 | I58: 0.0009429153436 | K58: 55 | L58: Lituânia | M58: 35044.1426 | N58: 0.001166113195 | O58: -3515.6722
A59: 56 | B59: Senegal | C59: 13224.0438 | D59: 0.0009530164966 | F59: 56 | G59: Japão | H59: 14847.267 | I59: 0.0009178516743 | K59: 56 | L59: Indonésia | M59: 33328.2666 | N59: 0.001109016473 | O59: -24672.8794
A60: 57 | B60: Letónia | C60: 13144.4668 | D60: 0.0009472816249 | F60: 57 | G60: Egito | H60: 14239.561 | I60: 0.0008802835502 | K60: 57 | L60: Letónia | M60: 32778.5022 | N60: 0.001090722759 | O60: -6489.5686
A61: 58 | B61: Eslováquia | C61: 12793.9168 | D61: 0.0009220185558 | F61: 58 | G61: Mauritânia | H61: 13443.2356 | I61: 0.0008310550557 | K61: 58 | L61: Emirados Árabes Unidos | M61: 31953.4188 | N61: 0.001063267654 | O61: 30436.2612
A62: 59 | B62: Croácia | C62: 12333.56 | D62: 0.0008888420455 | F62: 59 | G62: Tanzânia, República Unida da | H62: 13079.5878 | I62: 0.0008085745048 | K62: 59 | L62: Guiana | M62: 31130.901 | N62: 0.00103589792 | O62: -30897.6146
A63: 60 | B63: Costa do Marfim | C63: 12103.5786 | D63: 0.0008722679876 | F63: 60 | G63: Camarões | H63: 13022.8276 | I63: 0.0008050656135 | K63: 60 | L63: Senegal | M63: 29918.7426 | N63: 0.0009955626797 | O63: -3470.655
A64: 61 | B64: Síria, República Árabe da | C64: 11995.3212 | D64: 0.000864466207 | F64: 61 | G64: Coreia, República da | H64: 12961.7238 | I64: 0.0008012882029 | K64: 61 | L64: Jordânia | M64: 29716.5252 | N64: 0.0009888337841 | O64: 29420.9364
A65: 62 | B65: Dominicana, República | C65: 11848.0206 | D65: 0.0008538507021 | F65: 62 | G65: Paquistão | H65: 12615.7756 | I65: 0.0007799018336 | K65: 62 | L65: São Tomé e Príncipe | M65: 27732.7016 | N65: 0.0009228209584 | O65: 25554.522
A66: 63 | B66: Território Palestiniano Ocupado | C66: 11806.0928 | D66: 0.0008508290935 | F66: 63 | G66: Tailândia | H66: 12316.114 | I66: 0.0007613768821 | K66: 63 | L66: Peru | M66: 27430.0544 | N66: 0.0009127502057 | O66: -16407.694
A67: 64 | B67: HongKong | C67: 11528.0934 | D67: 0.0008307945247 | F67: 64 | G67: Moldava, República de | H67: 12178.8658 | I67: 0.0007528922573 | K67: 64 | L67: Nigéria | M67: 25016.4128 | N67: 0.0008324349488 | O67: 12658.324
A68: 65 | B68: Kuwait | C68: 10775.802 | D68: 0.0007765791784 | F68: 65 | G68: Sérvia | H68: 11730.1152 | I68: 0.0007251506877 | K68: 65 | L68: Estónia | M68: 24786.1618 | N68: 0.0008247732196 | O68: -7854.9218
A69: 66 | B69: Chipre | C69: 10753.9998 | D69: 0.0007750079604 | F69: 66 | G69: Tunísia | H69: 11549.772 | I69: 0.0007140019485 | K69: 66 | L69: Uganda | M69: 24133.8048 | N69: 0.0008030656803 | O69: -21814.9432
A70: 67 | B70: Malta | C70: 10377.2016 | D70: 0.0007478532635 | F70: 67 | G70: Belize | H70: 10934.5394 | I70: 0.0006759685332 | K70: 67 | L70: Eslovénia | M70: 23946.301 | N70: 0.0007968263878 | O70: -8106.8694
A71: 68 | B71: Tailândia | C71: 9256.6804 | D71: 0.0006671007188 | F71: 68 | G71: Paraguai | H71: 10263.5706 | I71: 0.0006344895299 | K71: 68 | L71: Namíbia | M71: 23765.809 | N71: 0.0007908204168 | O71: -22033.5738
A72: 69 | B72: Colômbia | C72: 8905.6078 | D72: 0.0006417999875 | F72: 69 | G72: Maurícias | H72: 9873.1322 | I72: 0.0006103527956 | K72: 69 | L72: Camarões | M72: 21652.1438 | N72: 0.0007204870402 | O72: -4393.5114
A73: 70 | B73: Geórgia | C73: 8776.724 | D73: 0.0006325117252 | F73: 70 | G73: Reino Unido (Irlanda do Norte) pós-2020 | H73: 9138.2728 | I73: 0.0005649241029 | K73: 70 | L73: Tailândia | M73: 21572.7944 | N73: 0.0007178466451 | O73: -3059.4336
A74: 71 | B74: Líbano | C74: 8677.7716 | D74: 0.0006253805276 | F74: 71 | G74: Islândia | H74: 9112.164 | I74: 0.000563310068 | K74: 71 | L74: Nova Zelânda | M74: 20810.7044 | N74: 0.0006924876796 | O74: -12208.0876
A75: 72 | B75: Camarões | C75: 8629.3162 | D75: 0.0006218884947 | F75: 72 | G75: Luxemburgo | H75: 8829.0722 | I75: 0.0005458094545 | K75: 72 | L75: Croácia | M75: 20488.528 | N75: 0.000681767082 | O75: 4178.592
A76: 73 | B76: Estónia | C76: 8465.62 | D76: 0.0006100914089 | F76: 73 | G76: Croácia | H76: 8154.968 | I76: 0.0005041366221 | K76: 73 | L76: Eslováquia | M76: 20124.608 | N76: 0.000669657443 | O76: 5463.2256
A77: 74 | B77: Gana | C77: 8178.0838 | D77: 0.0005893695521 | F77: 74 | G77: Israel | H77: 8052.3576 | I77: 0.0004977932912 | K77: 74 | L77: Suazilândia | M77: 19975.6478 | N77: 0.0006647007101 | O77: -15841.411
A78: 75 | B78: Eslovénia | C78: 7919.7158 | D78: 0.0005707497585 | F78: 75 | G78: Bangladesh | H78: 7823.177 | I78: 0.0004836254449 | K78: 75 | L78: Sérvia | M78: 19112.5644 | N78: 0.0006359811335 | O78: -4347.666
A79: 76 | B79: Belarus | C79: 7872.655 | D79: 0.0005673582302 | F79: 76 | G79: Malásia | H79: 7805.5168 | I79: 0.0004825336989 | K79: 76 | L79: Paquistão | M79: 17209.3712 | N79: 0.0005726513289 | O79: -8022.18
A80: 77 | B80: Sérvia | C80: 7382.4492 | D80: 0.0005320305936 | F80: 77 | G80: Quénia | H80: 7356.7132 | I80: 0.0004547888529 | K80: 77 | L80: Mauritânia | M80: 16816.7526 | N80: 0.0005595867282 | O80: -10069.7186
A81: 78 | B81: Gibraltar | C81: 7309.7404 | D81: 0.0005267906922 | F81: 78 | G81: Eslováquia | H81: 7330.6912 | I81: 0.0004531801841 | K81: 78 | L81: Maurícias | M81: 16663.174 | N81: 0.0005544763155 | O81: -3083.0904
A82: 79 | B82: Cuba | C82: 7088.722 | D82: 0.0005108625703 | F82: 79 | G82: Filipinas | H82: 7323.2812 | I82: 0.000452722101 | K82: 79 | L82: Moldava, República de | M82: 15413.0416 | N82: 0.0005128774696 | O82: -8944.69
A83: 80 | B83: Maurícias | C83: 6790.0418 | D83: 0.0004893375994 | F83: 80 | G83: Gana | H83: 6780.4694 | I83: 0.0004191657085 | K83: 80 | L83: Chipre | M83: 14994.9744 | N83: 0.0004989660527 | O83: 6513.0252
A84: 81 | B84: Taiwan | C84: 6498.8018 | D84: 0.0004683488211 | F84: 81 | G84: Argélia | H84: 6675.0502 | I84: 0.0004126487388 | K84: 81 | L84: Gana | M84: 14958.5532 | N84: 0.0004977541171 | O84: 1397.6144
A85: 82 | B85: Vietname | C85: 6293.7406 | D85: 0.0004535706859 | F85: 82 | G85: Nigéria | H85: 6179.0444 | I85: 0.0003819858731 | K85: 82 | L85: Macau | M85: 14605.4142 | N85: 0.0004860032219 | O85: 14563.8882
A86: 83 | B86: Andorra | C86: 6022.5714 | D86: 0.0004340283489 | F86: 83 | G86: Panamá | H86: 5653.6226 | I86: 0.0003495045229 | K86: 83 | L86: HongKong | M86: 14502.5934 | N86: 0.000482581803 | O86: 8553.5934
A87: 84 | B87: Guatemala | C87: 5731.0826 | D87: 0.0004130216402 | F87: 84 | G87: Congo | H87: 5587.8752 | I87: 0.0003454400469 | K87: 84 | L87: Dominicana, República | M87: 14480.0812 | N87: 0.0004818326971 | O87: 9215.96
A88: 85 | B88: Peru | C88: 5511.1802 | D88: 0.0003971739451 | F88: 85 | G88: Honduras | H88: 5352.3066 | I88: 0.0003308772971 | K88: 85 | L88: Líbia, Jamahira Árabe da | M88: 13839.6806 | N88: 0.0004605230136 | O88: 13757.3998
A89: 86 | B89: Singapura | C89: 5118.6402 | D89: 0.0003688847847 | F89: 86 | G89: Camboja | H89: 5251.3418 | I89: 0.0003246356965 | K89: 86 | L89: Iraque | M89: 13672.6982 | N89: 0.000454966582 | O89: 13646.351
A90: 87 | B90: Omã | C90: 4766.6966 | D90: 0.0003435212831 | F90: 87 | G90: Zimbabwe | H90: 5173.412 | I90: 0.0003198181097 | K90: 87 | L90: Tanzânia, República Unida da | M90: 13489.132 | N90: 0.0004488583154 | O90: -12670.0436
A91: 88 | B91: Panamá | C91: 4742.5904 | D91: 0.0003417840228 | F91: 88 | G91: Etiópia | H91: 4865.2444 | I91: 0.0003007673209 | K91: 88 | L91: Malta | M91: 12868.9092 | N91: 0.0004282200592 | O91: 7885.494
A92: 89 | B92: Paquistão | C92: 4593.5956 | D92: 0.0003310464221 | F92: 89 | G92: Sri Lanca | H92: 4526.3628 | I92: 0.0002798178058 | K92: 89 | L92: Reino Unido (Irlanda do Norte) pós-2020 | M92: 12739.7782 | N92: 0.0004239231539 | O92: -5536.7674
A93: 90 | B93: Mali | C93: 4507.5844 | D93: 0.0003248478573 | F93: 90 | G93: Suriname | H93: 4461.0484 | I93: 0.0002757800977 | K93: 90 | L93: Kuwait | M93: 12319.6144 | N93: 0.0004099419715 | O93: 9231.9896
A94: 91 | B94: Costa Rica | C94: 4345.8664 | D94: 0.0003131933343 | F94: 91 | G94: Macedónia, Antiga República jugoslava da | H94: 4419.1744 | I94: 0.0002731914649 | K94: 91 | L94: Síria, República Árabe da | M94: 12141.732 | N94: 0.0004040228364 | O94: 11848.9104
A95: 92 | B95: Indonésia | C95: 4327.6936 | D95: 0.0003118836761 | F95: 92 | G95: Myanmar | H95: 4417.7084 | I95: 0.0002731008374 | K95: 92 | L95: Território Palestiniano Ocupado | M95: 11817.7626 | N95: 0.0003932425757 | O95: 11794.423
A96: 93 | B96: Nova Zelânda | C96: 4301.3084 | D96: 0.0003099821752 | F96: 93 | G96: Papuásia-Nova Guiné | H96: 4268.11 | I96: 0.0002638527286 | K96: 93 | L96: Paraguai | M96: 11233.3798 | N96: 0.0003737969154 | O96: -9293.7614
A97: 94 | B97: Burquina Faso | C97: 4086.0794 | D97: 0.0002944712777 | F97: 94 | G97: Chipre | H97: 4240.9746 | I97: 0.0002621752298 | K97: 94 | L97: Islândia | M97: 10997.3204 | N97: 0.0003659419085 | O97: -7227.0076
A98: 95 | B98: Venezuela | C98: 3914.122 | D98: 0.0002820788325 | F98: 95 | G98: Suíça | H98: 4064.2032 | I98: 0.0002512472977 | K98: 95 | L98: Belize | M98: 10954.0486 | N98: 0.0003645020155 | O98: -10915.0302
A99: 96 | B99: Reino Unido (Irlanda do Norte) pós-2020 | C99: 3601.5054 | D99: 0.0002595495077 | F99: 96 | G99: Guatemala | H99: 3891.5604 | I99: 0.0002405745939 | K99: 96 | L99: Filipinas | M99: 10864.8014 | N99: 0.0003615322656 | O99: -3781.761
A100: 97 | B100: Filipinas | C100: 3541.5202 | D100: 0.0002552265574 | F100: 97 | G100: Malavi | H100: 3761.9744 | I100: 0.000232563643 | K100: 97 | L100: Malásia | M100: 10802.9 | N100: 0.0003594724623 | O100: -4808.1336
A101: 98 | B101: Catar | C101: 3509.4766 | D101: 0.0002529172729 | F101: 98 | G101: Congo, República Democrática do | H101: 3658.6746 | I101: 0.0002261776937 | K101: 98 | L101: Panamá | M101: 10396.213 | N101: 0.0003459397279 | O101: -911.0322
A102: 99 | B102: Mauritânia | C102: 3373.517 | D102: 0.0002431190792 | F102: 99 | G102: Madagáscar | H102: 3530.0814 | I102: 0.0002182281172 | K102: 99 | L102: Bangladesh | M102: 9992.5026 | N102: 0.0003325060414 | O102: -5653.8514
A103: 100 | B103: Uruguai | C103: 3271.2554 | D103: 0.0002357493977 | F103: 100 | G103: Taiwan | H103: 3371.904 | I103: 0.0002084496582 | K103: 100 | L103: Taiwan | M103: 9870.7058 | N103: 0.0003284531856 | O103: 3126.8978
A104: 101 | B104: Moldava, República de | C104: 3234.1758 | D104: 0.000233077184 | F104: 101 | G104: Nicarágua | H104: 3348.1498 | I104: 0.0002069811838 | K104: 101 | L104: Geórgia | M104: 9763.0358 | N104: 0.0003248704069 | O104: 7790.4122
A105: 102 | B105: Guiné | C105: 3199.9078 | D105: 0.0002306075938 | F105: 102 | G105: Gâmbia | H105: 3121.0524 | I105: 0.00019294212 | K105: 102 | L105: Quénia | M105: 9728.6568 | N105: 0.0003237264267 | O105: -4984.7696
A106: 103 | B106: Malásia | C106: 2997.3832 | D106: 0.0002160122637 | F106: 103 | G106: HongKong | H106: 2974.5 | I106: 0.0001838823135 | K106: 103 | L106: Guatemala | M106: 9622.643 | N106: 0.000320198759 | O106: 1839.5222
A107: 104 | B107: Gabão | C107: 2969.7446 | D107: 0.0002140204341 | F107: 104 | G107: Gabão | H107: 2833.2392 | I107: 0.0001751496315 | K107: 104 | L107: Líbano | M107: 9030.5168 | N107: 0.0003004954327 | O107: 8325.0264
A108: 105 | B108: Equador | C108: 2812.108 | D108: 0.0002026600452 | F108: 105 | G108: Dominicana, República | H108: 2632.0606 | I108: 0.0001627128568 | K108: 105 | L108: Belarus | M108: 8568.8254 | N108: 0.0002851323965 | O108: 7176.4846
A109: 106 | B109: Arménia | C109: 2727.7232 | D109: 0.0001965786901 | F109: 106 | G109: Malta | H109: 2491.7076 | I109: 0.0001540362945 | K109: 106 | L109: Congo | M109: 8278.2768 | N109: 0.0002754642314 | O109: -2897.4736
A110: 107 | B110: Guiné Equatorial | C110: 2712.0278 | D110: 0.0001954475705 | F110: 107 | G110: Mali | H110: 2475.2544 | I110: 0.0001530191648 | K110: 107 | L110: Gibraltar | M110: 7352.4128 | N110: 0.0002446555956 | O110: 7267.068
A111: 108 | B111: Congo | C111: 2690.4016 | D111: 0.0001938890362 | F111: 108 | G111: Centro-Africana, República | H111: 2466.2132 | I111: 0.0001524602417 | K111: 108 | L111: Mali | M111: 6982.8388 | N111: 0.0002323578167 | O111: 2032.33
A112: 109 | B112: Timor-Leste | C112: 2668.7438 | D112: 0.0001923282246 | F112: 109 | G112: Benim | H112: 1927.4492 | I112: 0.0001191540824 | K112: 109 | L112: Singapura | M112: 6659.3268 | N112: 0.0002215927762 | O112: 3577.9536
A113: 110 | B113: Benim | C113: 2476.0626 | D113: 0.0001784422783 | F113: 110 | G113: Serra Leoa | H113: 1903.7664 | I113: 0.0001176900219 | K113: 110 | L113: Honduras | M113: 6528.2066 | N113: 0.0002172296792 | O113: -4176.4066
A114: 111 | B114: Quénia | C114: 2371.9436 | D114: 0.0001709387396 | F114: 111 | G114: Laos, República Democrática Popular do | H114: 1764.877 | I114: 0.0001091039388 | K114: 111 | L114: Etiópia | M114: 6273.7972 | N114: 0.0002087640659 | O114: -3456.6916
A115: 112 | B115: Seychelles | C115: 2348.937 | D115: 0.0001692807241 | F115: 112 | G115: Burquina Faso | H115: 1596.8146 | I115: 9.871439331e-05 | K115: 112 | L115: Camboja | M115: 6129.6458 | N115: 0.0002039673485 | O115: -4373.0378
A116: 113 | B116: Congo, República Democrática do | C116: 2232.4506 | D116: 0.0001608859046 | F116: 113 | G116: Kuwait | H116: 1543.8124 | I116: 9.543782005e-05 | K116: 113 | L116: Andorra | M116: 6085.3588 | N116: 0.0002024936741 | O116: 5959.784
A117: 114 | B117: Bangladesh | C117: 2169.3256 | D117: 0.0001563366784 | F117: 114 | G117: Singapura | H117: 1540.6866 | I117: 9.524458443e-05 | K117: 114 | L117: Sri Lanca | M117: 6081.5556 | N117: 0.0002023671205 | O117: -2971.17
A118: 115 | B118: Suazilândia | C118: 2067.1184 | D118: 0.0001489709173 | F118: 115 | G118: Seychelles | H118: 1430.66 | I118: 8.844278724e-05 | K118: 115 | L118: Congo, República Democrática do | M118: 5891.1252 | N118: 0.0001960304438 | O118: -1426.224
A119: 116 | B119: Irão, República Islâmica do | C119: 2015.5486 | D119: 0.0001452544391 | F119: 116 | G119: Bolívia | H119: 1415.5294 | I119: 8.750742004e-05 | K119: 116 | L119: Gabão | M119: 5802.9838 | N119: 0.0001930974901 | O119: 136.5054
A120: 117 | B120: Islândia | C120: 1885.1564 | D120: 0.0001358574711 | F120: 117 | G120: São Tomé e Príncipe | H120: 1089.0898 | I120: 6.732706406e-05 | K120: 117 | L120: Burquina Faso | M120: 5682.894 | N120: 0.0001891014357 | O120: 2489.2648
A121: 118 | B121: Togo | C121: 1879.1826 | D121: 0.0001354269575 | F121: 118 | G121: Venezuela | H121: 1080.4086 | I121: 6.6790396e-05 | K121: 118 | L121: Omã | M121: 5590.2944 | N121: 0.0001860201329 | O121: 3943.0988
A122: 119 | B122: Sudão | C122: 1868.0632 | D122: 0.0001346256163 | F122: 119 | G122: Bósnia-Herzegovina | H122: 1034.9794 | I122: 6.398198235e-05 | K122: 119 | L122: Macedónia, Antiga República jugoslava da | M122: 5497.1524 | N122: 0.0001829207814 | O122: -3341.1964
A123: 120 | B123: Nicarágua | C123: 1709.2518 | D123: 0.0001231805631 | F123: 120 | G123: Geórgia | H123: 986.3118 | I123: 6.097337221e-05 | K123: 120 | L123: Zimbabwe | M123: 5240.2714 | N123: 0.0001743729243 | O123: -5106.5526
A124: 121 | B124: Jamaica | C124: 1645.8018 | D124: 0.0001186079152 | F124: 121 | G124: Cazaquistão | H124: 977.1902 | I124: 6.040947881e-05 | K124: 121 | L124: Suriname | M124: 5124.6412 | N124: 0.0001705252655 | O124: -3797.4556
A125: 122 | B125: El Salvador | C125: 1616.0178 | D125: 0.0001164614732 | F125: 122 | G125: El Salvador | H125: 921.9616 | I125: 5.699527046e-05 | K125: 122 | L125: Nicarágua | M125: 5057.4016 | N125: 0.0001682878307 | O125: -1638.898
A126: 123 | B126: Cazaquistão | C126: 1586.0954 | D126: 0.0001143050571 | F126: 123 | G126: Omã | H126: 823.5978 | I126: 5.091446255e-05 | K126: 123 | L126: Venezuela | M126: 4994.5306 | N126: 0.0001661957635 | O126: 2833.7134
A127: 124 | B127: Sri Lanca | C127: 1555.1928 | D127: 0.000112078001 | F127: 124 | G127: Timor-Leste | H127: 773.0574 | I127: 4.779007671e-05 | K127: 124 | L127: Myanmar | M127: 4788.3204 | N127: 0.0001593340052 | O127: -4047.0964
A128: 125 | B128: Ruanda | C128: 1542.3664 | D128: 0.0001111536414 | F128: 125 | G128: Emirados Árabes Unidos | H128: 758.5788 | I128: 4.689501588e-05 | K128: 125 | L128: Benim | M128: 4403.5118 | N128: 0.0001465292866 | O128: 548.6134
A129: 126 | B129: Azerbaijão | C129: 1447.7444 | D129: 0.0001043345225 | F129: 126 | G129: Belarus | H129: 696.1704 | I129: 4.303695537e-05 | K129: 126 | L129: Papuásia-Nova Guiné | M129: 4270.9956 | N129: 0.0001421197368 | O129: -4265.2244
A130: 127 | B130: Etiópia | C130: 1408.5528 | D130: 0.0001015101035 | F130: 127 | G130: Turquemenistão | H130: 693.7048 | I130: 4.288453304e-05 | K130: 127 | L130: Madagáscar | M130: 3916.3472 | N130: 0.0001303186155 | O130: -3143.8156
A131: 128 | B131: Albânia | C131: 1395.6804 | D131: 0.0001005824289 | F131: 128 | G131: Iémen | H131: 684.2014 | I131: 4.229703693e-05 | K131: 128 | L131: Seychelles | M131: 3779.597 | N131: 0.0001257681771 | O131: 918.277
A132: 129 | B132: Bolívia | C132: 1235.6182 | D132: 8.904723441e-05 | F132: 129 | G132: Gronelândia | H132: 628.3832 | I132: 3.884637976e-05 | K132: 129 | L132: Malavi | M132: 3770.4898 | N132: 0.00012546513 | O132: -3753.459
A133: 130 | B133: Montenegro | C133: 1193.9358 | D133: 8.604331099e-05 | F133: 130 | G133: Faroé, Ilhas | H133: 595.1746 | I133: 3.679343836e-05 | K133: 130 | L133: Gâmbia | M133: 3599.2092 | N133: 0.0001197656734 | O133: -2642.8956
A134: 131 | B134: São Bartolomeu | C134: 1183.3114 | D134: 8.527764289e-05 | F134: 131 | G134: Cabo Verde | H134: 418.902 | I134: 2.589634187e-05 | K134: 131 | L134: Catar | M134: 3530.8284 | N134: 0.0001174902646 | O134: 3488.1248
A135: 132 | B135: Honduras | C135: 1175.9 | D135: 8.47435259e-05 | F135: 132 | G135: Usbequistão | H135: 380.4082 | I135: 2.351667167e-05 | K135: 132 | L135: Guiné | M135: 3487.284 | N135: 0.0001160413006 | O135: 2912.5316
A136: 133 | B136: Uganda | C136: 1159.4308 | D136: 8.35566409e-05 | F136: 133 | G136: Líbano | H136: 352.7452 | I136: 2.180655689e-05 | K136: 133 | L136: Timor-Leste | M136: 3441.8012 | N136: 0.0001145278353 | O136: 1895.6864
A137: 134 | B137: Macedónia, Antiga República jugoslava da | C137: 1077.978 | D137: 7.768658608e-05 | F137: 134 | G137: Chade | H137: 303.1764 | I137: 1.874223494e-05 | K137: 134 | L137: Arménia | M137: 2777.2048 | N137: 9.241302316e-05 | O137: 2678.2416
A138: 135 | B138: Paraguai | C138: 969.8092 | D138: 6.989119063e-05 | F138: 135 | G138: Guiné-Bissau | H138: 291.7994 | I138: 1.803891368e-05 | K138: 135 | L138: Guiné Equatorial | M138: 2721.8116 | N138: 9.056978384e-05 | O138: 2702.244
A139: 136 | B139: Bermudas | C139: 957.27 | D139: 6.898752874e-05 | F139: 136 | G139: Guiné | H139: 287.3762 | I139: 1.776547336e-05 | K139: 136 | L139: Bolívia | M139: 2651.1476 | N139: 8.821840023e-05 | O139: -179.9112
A140: 137 | B140: Aruba | C140: 940.2512 | D140: 6.776103574e-05 | F140: 137 | G140: Togo | H140: 238.6312 | I140: 1.475207838e-05 | K140: 137 | L140: Centro-Africana, República | M140: 2569.5112 | N140: 8.550190394e-05 | O140: -2362.9152
A141: 138 | B141: Barbados | C141: 924.8742 | D141: 6.665286225e-05 | F141: 138 | G141: Irão, República Islâmica do | H141: 211.8398 | I141: 1.309584553e-05 | K141: 138 | L141: Cazaquistão | M141: 2563.2856 | N141: 8.529474366e-05 | O141: 608.9052
A142: 139 | B142: Camboja | C142: 878.304 | D142: 6.329669e-05 | F142: 139 | G142: Zâmbia | H142: 183.9494 | I142: 1.137167297e-05 | K142: 139 | L142: El Salvador | M142: 2537.9794 | N142: 8.445266589e-05 | O142: 694.0562
A143: 140 | B143: Trindade e Tobago | C143: 878.2468 | D143: 6.329256777e-05 | F143: 140 | G143: Jordânia | H143: 147.7944 | I143: 9.136586383e-06 | K143: 140 | L143: Serra Leoa | M143: 2340.2336 | N143: 7.787256521e-05 | O143: -1467.2992
A144: 141 | B144: Kosovo | C144: 870.5922 | D144: 6.27409241e-05 | F144: 141 | G144: Síria, República Árabe da | H144: 146.4108 | I144: 9.051052825e-06 | K144: 141 | L144: Irão, República Islâmica do | M144: 2227.3884 | N144: 7.411757887e-05 | O144: 1803.7088
A145: 142 | B145: Namíbia | C145: 866.1176 | D145: 6.241845333e-05 | F145: 142 | G145: Maldivas | H145: 127.2588 | I145: 7.867084403e-06 | K145: 142 | L145: Togo | M145: 2117.8138 | N145: 7.047142355e-05 | O145: 1640.5514
A146: 143 | B146: Turquemenistão | C146: 749.1004 | D146: 5.398538069e-05 | F146: 143 | G146: Albânia | H146: 125.4572 | I146: 7.755710265e-06 | K146: 143 | L146: Laos, República Democrática Popular do | M146: 1935.8146 | N146: 6.441529968e-05 | O146: -1593.9394
A147: 144 | B147: Barém | C147: 728.9324 | D147: 5.253193445e-05 | F147: 144 | G147: Azerbaijão | H147: 124.9342 | I147: 7.723378629e-06 | K147: 144 | L147: Sudão | M147: 1883.1514 | N147: 6.266290262e-05 | O147: 1852.975
A148: 145 | B148: Iémen | C148: 704.0114 | D148: 5.0735954e-05 | F148: 145 | G148: Kosovo | H148: 80.0466 | I148: 4.94844646e-06 | K148: 145 | L148: Jamaica | M148: 1660.4886 | N148: 5.525367501e-05 | O148: 1631.115
A149: 146 | B149: Suriname | C149: 663.5928 | D149: 4.78231088e-05 | F149: 146 | G149: Tajiquistão | H149: 74.7168 | I149: 4.618960512e-06 | K149: 146 | L149: Azerbaijão | M149: 1572.6786 | N149: 5.233174877e-05 | O149: 1322.8102
A150: 147 | B150: Niger | C150: 619.0434 | D150: 4.461256944e-05 | F150: 147 | G150: Andorra | H150: 62.7874 | I150: 3.881490123e-06 | K150: 147 | L150: Bósnia-Herzegovina | M150: 1571.857 | N150: 5.230440958e-05 | O150: -498.1018
A151: 148 | B151: São Martinho (parte holandesa) | C151: 606.1984 | D151: 4.368686947e-05 | F151: 148 | G151: Libéria | H151: 54.4472 | I151: 3.365902538e-06 | K151: 148 | L151: Ruanda | M151: 1569.669 | N151: 5.223160267e-05 | O151: 1515.0638
A152: 149 | B152: Bósnia-Herzegovina | C152: 536.8776 | D152: 3.869113088e-05 | F152: 149 | G152: Arábia Saudita | H152: 51.2828 | I152: 3.170280688e-06 | K152: 149 | L152: Albânia | M152: 1521.1376 | N152: 5.061669354e-05 | O152: 1270.2232
A153: 150 | B153: Curaçau | C153: 534.0534 | D153: 3.84875994e-05 | F153: 150 | G153: Fiji, Ilhas | H153: 50.1218 | I153: 3.098508166e-06 | K153: 150 | L153: Turquemenistão | M153: 1442.8052 | N153: 4.801013968e-05 | O153: 55.3956
A154: 151 | B154: Burundi | C154: 485.0592 | D154: 3.495673687e-05 | F154: 151 | G154: Arménia | H154: 49.4816 | I154: 3.058931277e-06 | K154: 151 | L154: Iémen | M154: 1388.2128 | N154: 4.619354742e-05 | O154: 19.81
A155: 152 | B155: Gâmbia | C155: 478.1568 | D155: 3.445930195e-05 | F155: 152 | G155: Falkland Ilhas (Malvinas) | H155: 46.09 | I155: 2.849264021e-06 | K155: 152 | L155: Montenegro | M155: 1194.2042 | N155: 3.973780414e-05 | O155: 1193.6674
A156: 153 | B156: Antígua e Barbuda | C156: 468.1724 | D156: 3.37397567e-05 | F156: 153 | G156: Aruba | H156: 45.6344 | I156: 2.821099024e-06 | K156: 153 | L156: São Bartolomeu | M156: 1185.2626 | N156: 3.944026746e-05 | O156: 1181.3602
A157: 154 | B157: Serra Leoa | C157: 436.4672 | D157: 3.145485966e-05 | F157: 154 | G157: Gibraltar | H157: 42.6724 | I157: 2.637989455e-06 | K157: 154 | L157: Aruba | M157: 985.8856 | N157: 3.28058877e-05 | O157: 894.6168
A158: 155 | B158: Tanzânia, República Unida da | C158: 409.5442 | D158: 2.951460117e-05 | F158: 155 | G158: Líbia, Jamahira Árabe da | H158: 41.1404 | I158: 2.543281873e-06 | K158: 155 | L158: Bermudas | M158: 958.1048 | N158: 3.188146624e-05 | O158: 956.4352
A159: 156 | B159: Nova Caledónia | C159: 388.6078 | D159: 2.800577869e-05 | F159: 156 | G159: Curaçau | H159: 39.2148 | I159: 2.424242107e-06 | K159: 156 | L159: Kosovo | M159: 950.6388 | N159: 3.163303097e-05 | O159: 790.5456
A160: 157 | B160: Madagáscar | C160: 386.2658 | D160: 2.78369979e-05 | F160: 157 | G160: Botswana | H160: 30.037 | I160: 1.85687445e-06 | K160: 157 | L160: Barbados | M160: 935.22 | N160: 3.111996188e-05 | O160: 914.5284
A161: 158 | B161: Myanmar | C161: 370.612 | D161: 2.670887628e-05 | F161: 158 | G161: São Pedro e Miquelon | H161: 28.9156 | I161: 1.787549983e-06 | K161: 158 | L161: Trindade e Tobago | M161: 878.6292 | N161: 2.923687177e-05 | O161: 877.8644
A162: 159 | B162: Comores | C162: 333.8038 | D162: 2.405622159e-05 | F162: 159 | G162: Ruanda | H162: 27.3026 | I162: 1.687835015e-06 | K162: 159 | L162: Barém | M162: 733.5568 | N162: 2.440950756e-05 | O162: 724.308
A163: 160 | B163: Haiti | C163: 328.0528 | D163: 2.364176457e-05 | F163: 160 | G163: São Marino | H163: 25.3104 | I163: 1.564678066e-06 | K163: 160 | L163: Usbequistão | M163: 665.2294 | N163: 2.213587559e-05 | O163: -95.587
A164: 161 | B164: Polinésia Francesa | C164: 317.6242 | D164: 2.289020718e-05 | F164: 161 | G164: Catar | H164: 21.3518 | I164: 1.319959113e-06 | K164: 161 | L164: Gronelândia | M164: 629.1046 | N164: 2.093380293e-05 | O164: -627.6618
A165: 162 | B165: Bahamas | C165: 305.389 | D165: 2.200845364e-05 | F165: 162 | G165: Macau | H165: 20.763 | I165: 1.28355975e-06 | K165: 162 | L165: Niger | M165: 622.3102 | N165: 2.070771552e-05 | O165: 615.7766
A166: 163 | B166: Libéria | C166: 303.6128 | D166: 2.188044832e-05 | F166: 163 | G166: Marshall, Ilhas | H166: 18.3784 | I166: 1.136144801e-06 | K166: 163 | L166: São Martinho (parte holandesa) | M166: 606.2012 | N166: 2.017167965e-05 | O166: 606.1956
A167: 164 | B167: Somália | C167: 293.0252 | D167: 2.111743229e-05 | F167: 164 | G167: Quirguizistão | H167: 17.5046 | I167: 1.08212686e-06 | K167: 164 | L167: Faroé, Ilhas | M167: 600.7416 | N167: 1.999000844e-05 | O167: -589.6076
A168: 165 | B168: Usbequistão | C168: 284.8212 | D168: 2.052619503e-05 | F168: 165 | G168: Salomão, Ilhas | H168: 16.0532 | I168: 9.924019348e-07 | K168: 165 | L168: Curaçau | M168: 573.2682 | N168: 1.907581589e-05 | O168: 494.8386
A169: 166 | B169: São Marino | C169: 251.4926 | D169: 1.81243045e-05 | F169: 166 | G169: Sudão | H169: 15.0882 | I169: 9.32746049e-07 | K169: 166 | L169: Burundi | M169: 485.2096 | N169: 1.614561735e-05 | O169: 484.9088
A170: 167 | B170: Bonaire, Santo Eustáquio e Saba | C170: 241.8602 | D170: 1.743012682e-05 | F170: 167 | G170: Jamaica | H170: 14.6868 | I170: 9.079316732e-07 | K170: 167 | L170: Antígua e Barbuda | M170: 477.853 | N170: 1.590082242e-05 | O170: 458.4918
A171: 168 | B171: Laos, República Democrática Popular do | C171: 170.9376 | D171: 1.231895138e-05 | F171: 168 | G171: Iraque | H171: 13.1736 | I171: 8.143862986e-07 | K171: 168 | L171: Nova Caledónia | M171: 390.0338 | N171: 1.297859005e-05 | O171: 387.1818
A172: 169 | B172: Zâmbia | C172: 164.8696 | D172: 1.188164914e-05 | F172: 169 | G172: São Cristovão e Nevis | H172: 12.4064 | I172: 7.669583239e-07 | K172: 169 | L172: Libéria | M172: 358.06 | N172: 1.19146442e-05 | O172: 249.1656
A173: 170 | B173: Santa Lúcia | C173: 158.8492 | D173: 1.144777727e-05 | F173: 170 | G173: Nepal | H173: 12.0278 | I173: 7.435534343e-07 | K173: 170 | L173: Zâmbia | M173: 348.819 | N173: 1.160714483e-05 | O173: -19.0798
A174: 171 | B174: Liechtenstein | C174: 144.4366 | D174: 1.040910516e-05 | F174: 171 | G174: Território Palestiniano Ocupado | H174: 11.6698 | I174: 7.21422028e-07 | K174: 171 | L174: Comores | M174: 333.8038 | N174: 1.110750576e-05 | O174: 333.8038
A175: 172 | B175: Maldivas | C175: 139.5096 | D175: 1.00540313e-05 | F175: 172 | G175: Barbados | H175: 10.3458 | I175: 6.395729161e-07 | K175: 172 | L175: Haiti | M175: 328.3394 | N175: 1.092567483e-05 | O175: 327.7662
A176: 173 | B176: Ceuta e Melilha | C176: 132.796 | D176: 9.570202624e-06 | F176: 173 | G176: Jibuti | H176: 9.885 | I176: 6.110864579e-07 | K176: 173 | L176: Polinésia Francesa | M176: 318.4566 | N176: 1.05968192e-05 | O176: 316.7918
A177: 174 | B177: Quirguizistão | C177: 130.9018 | D177: 9.433693408e-06 | F177: 174 | G177: Guiné Equatorial | H177: 9.7838 | I177: 6.048303173e-07 | K177: 174 | L177: Bahamas | M177: 305.389 | N177: 1.01619876e-05 | O177: 305.389
A178: 175 | B178: Botswana | C178: 118.8382 | D178: 8.564306557e-06 | F178: 175 | G178: Antígua e Barbuda | H178: 9.6806 | I178: 5.984505376e-07 | K178: 175 | L178: Chade | M178: 303.2232 | N178: 1.008991941e-05 | O178: -303.1296
A179: 176 | B179: Guiana | C179: 116.6432 | D179: 8.406119603e-06 | F179: 176 | G179: Santa Helena | H179: 5.0476 | I179: 3.120404658e-07 | K179: 176 | L179: Somália | M179: 293.0252 | N179: 9.750575325e-06 | O179: 293.0252
A180: 177 | B180: Nepal | C180: 114.3036 | D180: 8.237511767e-06 | F180: 177 | G180: Barém | H180: 4.6244 | I180: 2.858784235e-07 | K180: 177 | L180: São Marino | M180: 276.803 | N180: 9.210772662e-06 | O180: 226.1822
A181: 178 | B181: Afeganistão | C181: 109.4574 | D181: 7.888260917e-06 | F181: 178 | G181: Niger | H181: 3.2668 | I181: 2.019521741e-07 | K181: 178 | L181: Maldivas | M181: 266.7684 | N181: 8.876865807e-06 | O181: 12.2508
A182: 179 | B182: Virgens Britânicas, Ilhas | C182: 106.6708 | D182: 7.687439155e-06 | F182: 179 | G182: São Bartolomeu | H182: 1.9512 | I182: 1.206223467e-07 | K182: 179 | L182: Bonaire, Santo Eustáquio e Saba | M182: 241.8602 | N182: 8.048031699e-06 | O182: 241.8602
A183: 180 | B183: Centro-Africana, República | C183: 103.298 | D183: 7.444371748e-06 | F183: 180 | G183: Liechtenstein | H183: 1.8568 | I183: 1.147865792e-07 | K183: 180 | L183: Santa Lúcia | M183: 158.8768 | N183: 5.286713244e-06 | O183: 158.8216
A184: 181 | B184: Jibuti | C184: 90.5704 | D184: 6.527132442e-06 | F184: 181 | G184: Lesoto | H184: 1.7136 | I184: 1.059340166e-07 | K184: 181 | L184: Botswana | M184: 148.8752 | N184: 4.953904482e-06 | O184: 88.8012
A185: 182 | B185: Caimão, Ilhas | C185: 73.8006 | D185: 5.318584112e-06 | F185: 182 | G185: Nova Caledónia | H185: 1.426 | I185: 8.815470804e-08 | K185: 182 | L185: Quirguizistão | M185: 148.4064 | N185: 4.938304903e-06 | O185: 113.3972
A186: 183 | B186: Zimbabwe | C186: 66.8594 | D186: 4.818353003e-06 | F186: 183 | G186: Bermudas | H186: 0.8348 | I186: 5.160697775e-08 | K186: 183 | L186: Liechtenstein | M186: 146.2934 | N186: 4.867993661e-06 | O186: 142.5798
A187: 184 | B187: Turcas e Caicos, Ilhas | C187: 48.519 | D187: 3.496616322e-06 | F187: 184 | G187: Polinésia Francesa | H187: 0.8324 | I187: 5.145861078e-08 | K187: 184 | L187: Ceuta e Melilha | M187: 132.796 | N187: 4.418860224e-06 | O187: 132.796
A188: 185 | B188: Virgens dos Estados Unidos, Ilhas | C188: 27.4406 | D188: 1.977560334e-06 | F188: 185 | G188: Micronésia, Estados Federados da | H188: 0.6592 | I188: 4.075146111e-08 | K188: 185 | L188: Nepal | M188: 126.3314 | N188: 4.203747089e-06 | O188: 102.2758
A189: 186 | B189: Mongólia | C189: 26.1112 | D189: 1.881754531e-06 | F189: 186 | G189: Afeganistão | H189: 0.6156 | I189: 3.805612782e-08 | K189: 186 | L189: Afeganistão | M189: 110.073 | N189: 3.662739852e-06 | O189: 108.8418
A190: 187 | B190: Belize | C190: 19.5092 | D190: 1.405968531e-06 | F190: 187 | G190: Trindade e Tobago | H190: 0.3824 | I190: 2.363980389e-08 | K190: 187 | L190: Virgens Britânicas, Ilhas | M190: 106.6778 | N190: 3.549762697e-06 | O190: 106.6638
A191: 188 | B191: Anguila | C191: 15.482 | D191: 1.115740512e-06 | F191: 188 | G191: Haiti | H191: 0.2866 | I191: 1.771748901e-08 | K191: 188 | L191: Jibuti | M191: 100.4554 | N191: 3.342708902e-06 | O191: 80.6854
A192: 189 | B192: Brunei Darussalam | C192: 13.5634 | D192: 9.774728627e-07 | F192: 189 | G192: Montenegro | H192: 0.2684 | I192: 1.659237282e-08 | K192: 189 | L192: Tajiquistão | M192: 74.7168 | N192: 2.486242775e-06 | O192: -74.7168
A193: 190 | B193: Fiji, Ilhas | C193: 11.4598 | D193: 8.258728277e-07 | F193: 190 | G193: Burundi | H193: 0.1504 | I193: 9.297663457e-09 | K193: 190 | L193: Caimão, Ilhas | M193: 73.8014 | N193: 2.455782335e-06 | O193: 73.7998
A194: 191 | B194: Malavi | C194: 8.5154 | D194: 6.136789017e-07 | F194: 191 | G194: Oceano Indico, Território Britânico do | H194: 0.1384 | I194: 8.555828606e-09 | K194: 191 | L194: Fiji, Ilhas | M194: 61.5816 | N194: 2.049161742e-06 | O194: -38.662
A195: 192 | B195: São Vicente e Granadinas | C195: 7.5006 | D195: 5.405453613e-07 | F195: 192 | G195: Vanuatu | H195: 0.0874 | I195: 5.403030493e-09 | K195: 192 | L195: Turcas e Caicos, Ilhas | M195: 48.519 | N195: 1.614496515e-06 | O195: 48.519
A196: 193 | B196: Guam | C196: 6.4026 | D196: 4.614158508e-07 | F196: 193 | G196: Nauru | H196: 0.0694 | I196: 4.290278217e-09 | K196: 193 | L196: Falkland Ilhas (Malvinas) | M196: 46.09 | N196: 1.533670199e-06 | O196: -46.09
A197: 194 | B197: Territórios Franceses do Sul | C197: 6.3292 | D197: 4.561261367e-07 | F197: 194 | G197: Palau | H197: 0.0478 | I197: 2.954975487e-09 | K197: 194 | L197: São Pedro e Miquelon | M197: 28.9156 | N197: 9.621825558e-07 | O197: -28.9156
A198: 195 | B198: Faroé, Ilhas | C198: 5.567 | D198: 4.011967078e-07 | F198: 195 | G198: Santa Lúcia | H198: 0.0276 | I198: 1.706220156e-09 | K198: 195 | L198: Virgens dos Estados Unidos, Ilhas | M198: 27.4406 | N198: 9.131011164e-07 | O198: 27.4406
A199: 196 | B199: Sudão do Sul | C199: 3.771 | D199: 2.717644665e-07 | F199: 196 | G199: Coreia, República Popular Democrática da | H199: 0.0196 | I199: 1.211663589e-09 | K199: 196 | L199: Mongólia | M199: 26.1254 | N199: 8.693371102e-07 | O199: 26.097
A200: 197 | B200: Marianas do Norte, Ilhas | C200: 2.9244 | D200: 2.107525871e-07 | F200: 197 | G200: São Vicente e Granadinas | H200: 0.0144 | I200: 8.902018203e-10 | K200: 197 | L200: Marshall, Ilhas | M200: 18.3784 | N200: 6.115514077e-07 | O200: -18.3784
... 58 more rows

Sheet 2AA
A1: Ranking dos parceiros comerciais de Portugal por país (média 2019-2023 em milhares de euros) produtos agrícolas e agroalimentares
A2: Exportações | F2: Importações | K2: Trocas comerciais (total e saldo)
A3: P | B3: País | C3: média quinquénio | D3: % do Total | F3: P | G3: País | H3: média quinquénio | I3: % do Total | K3: P | L3: País | M3: Total (exp+imp) | N3: % do Total | O3: Saldo (exp-imp)
A4: 1 | B4: Espanha | C4: 2756093.353 | D4: 0.355769475 | F4: 1 | G4: Espanha | H4: 5218042.717 | I4: 0.4651610503 | K4: 1 | L4: Espanha | M4: 7974136.07 | N4: 0.4204755872 | O4: -2461949.364
A5: 2 | B5: França | C5: 750650.2316 | D5: 0.0968974576 | F5: 2 | G5: França | H5: 878313.0456 | I5: 0.07829698623 | K5: 2 | L5: França | M5: 1628963.277 | N5: 0.08589510946 | O5: -127662.814
A6: 3 | B6: Itália | C6: 480436.9156 | D6: 0.06201705361 | F6: 3 | G6: Alemanha | H6: 721146.7026 | I6: 0.06428643378 | K6: 3 | L6: Países Baixos | M6: 1048192.809 | N6: 0.05527112696 | O6: -310787.729
A7: 4 | B7: Brasil | C7: 405387.3582 | D7: 0.05232930424 | F7: 4 | G7: Países Baixos | H7: 679490.2692 | I7: 0.06057298194 | K7: 4 | L7: Brasil | M7: 1040823.749 | N7: 0.05488255698 | O7: -230049.033
A8: 5 | B8: Países Baixos | C8: 368702.5402 | D8: 0.04759385563 | F8: 5 | G8: Brasil | H8: 635436.3912 | I8: 0.05664581054 | K8: 5 | L8: Alemanha | M8: 1002872.88 | N8: 0.05288141054 | O8: -439420.525
A9: 6 | B9: Alemanha | C9: 281726.1776 | D9: 0.03636653823 | F9: 6 | G9: Itália | H9: 370236.6922 | I9: 0.03300465288 | K9: 6 | L9: Itália | M9: 850673.6078 | N9: 0.04485595451 | O9: 110200.2234 | P9: Nota: Nesta listagem, o Reino Unido passa a ser constituído por três componentes: Reino Unido [até 2020] ; Reino Unido (sem Irlanda do Norte) pós-2020 e Reino Unido (Irlanda do Norte) pós-2020. Estas componentes são calculadas igualmente como média do quinquénio, embora a primeira corresponda apenas a 2019-2020 e as duas últimas a 2021-2023.
A10: 7 | B10: Angola | C10: 239258.0836 | D10: 0.03088455719 | F10: 7 | G10: Bélgica | H10: 281579.9028 | I10: 0.02510136663 | K10: 7 | L10: Bélgica | M10: 455978.039 | N10: 0.02404368725 | O10: -107181.7666
A11: 8 | B11: Reino Unido (sem Irlanda do Norte) pós 2020 | C11: 237670.7152 | D11: 0.03067965222 | F11: 8 | G11: Ucrânia | H11: 218361.6698 | I11: 0.01946579382 | K11: 8 | L11: Estados Unidos | M11: 399330.4768 | N11: 0.02105666561 | O11: -4827.0664
A12: 9 | B12: Estados Unidos | C12: 197251.7052 | D12: 0.02546217657 | F12: 9 | G12: Polónia | H12: 216442.184 | I12: 0.01929468176 | K12: 9 | L12: Polónia | M12: 361797.3752 | N12: 0.01907754802 | O12: -71086.9928
A13: 10 | B13: Israel | C13: 180621.8384 | D13: 0.02331551526 | F13: 10 | G13: Estados Unidos | H13: 202078.7716 | I13: 0.01801425913 | K13: 10 | L13: Reino Unido (sem Irlanda do Norte) pós 2020 | M13: 312265.2586 | N13: 0.01646572329 | O13: 163076.1718
A14: 11 | B14: Bélgica | C14: 174398.1362 | D14: 0.02251213054 | F14: 11 | G14: Roménia | H14: 147921.5572 | I14: 0.01318642844 | K14: 11 | L14: Angola | M14: 248844.089 | N14: 0.01312152985 | O14: 229672.0782
A15: 12 | B15: Polónia | C15: 145355.1912 | D15: 0.01876313079 | F15: 12 | G15: África do Sul | H15: 122030.5704 | I15: 0.01087838321 | K15: 12 | L15: Ucrânia | M15: 226323.7844 | N15: 0.0119340359 | O15: -210399.5552
A16: 13 | B16: Reino Unido | C16: 140181.6612 | D16: 0.01809530724 | F16: 13 | G16: Canadá | H16: 114587.6202 | I16: 0.01021488337 | K16: 13 | L16: Reino Unido | M16: 218445.519 | N16: 0.01151861557 | O16: 61917.8034
A17: 14 | B17: Suíça | C17: 101113.5758 | D17: 0.01305221528 | F17: 14 | G17: Irlanda | H17: 113855.5454 | I17: 0.01014962275 | K17: 14 | L17: Canadá | M17: 187938.0432 | N17: 0.009909958695 | O17: -41237.1972
A18: 15 | B18: Cabo Verde | C18: 93276.7052 | D18: 0.01204059522 | F18: 15 | G18: Argentina | H18: 81740.7412 | I18: 0.007286756949 | K18: 15 | L18: Israel | M18: 185954.1124 | N18: 0.009805346175 | O18: 175289.5644
A19: 16 | B19: Canadá | C19: 73350.423 | D19: 0.009468417118 | F19: 16 | G19: Reino Unido | H19: 78263.8578 | I19: 0.00697681109 | K19: 16 | L19: Roménia | M19: 164671.813 | N19: 0.00868313215 | O19: -131171.3014
A20: 17 | B20: China, República Popular da | C20: 65002.3268 | D20: 0.00839080565 | F20: 17 | G20: Dinamarca | H20: 77963.4376 | I20: 0.00695003021 | K20: 17 | L20: Irlanda | M20: 144404.9996 | N20: 0.007614464624 | O20: -83306.0912
A21: 18 | B21: Japão | C21: 61056.1688 | D21: 0.007881417041 | F21: 18 | G21: Reino Unido (sem Irlanda do Norte) pós 2020 | H21: 74594.5434 | I21: 0.006649711019 | K21: 18 | L21: África do Sul | M21: 144191.7208 | N21: 0.007603218449 | O21: -99869.42
A22: 19 | B22: Suécia | C22: 55383.66 | D22: 0.007149182962 | F22: 19 | G22: Costa Rica | H22: 70756.5738 | I22: 0.006307576225 | K22: 19 | L22: Dinamarca | M22: 126433.7134 | N22: 0.006666840072 | O22: -29493.1618
A23: 20 | B23: Marrocos | C23: 49767.4468 | D23: 0.006424215784 | F23: 20 | G23: China, República Popular da | H23: 48105.6586 | I23: 0.004288366327 | K23: 20 | L23: China, República Popular da | M23: 113107.9854 | N23: 0.00596417545 | O23: 16896.6682
A24: 21 | B24: Dinamarca | C24: 48470.2758 | D24: 0.006256770858 | F24: 21 | G24: Bulgária | H24: 41846.0794 | I24: 0.00373035778 | K24: 21 | L24: Suíça | M24: 103785.6028 | N24: 0.005472606926 | O24: 98441.5488
A25: 22 | B25: Luxemburgo | C25: 48434.8998 | D25: 0.006252204358 | F25: 22 | G25: Grécia | H25: 35033.7506 | I25: 0.003123074514 | K25: 22 | L25: Cabo Verde | M25: 93421.8838 | N25: 0.004926128813 | O25: 93131.5266
A26: 23 | B26: Rússia, Federação da | C26: 47519.044 | D26: 0.00613398139 | F26: 23 | G26: Colômbia | H26: 31210.9096 | I26: 0.002782288355 | K26: 23 | L26: Argentina | M26: 82057.1494 | N26: 0.004326867234 | O26: -81424.333
A27: 24 | B27: Guiné-Bissau | C27: 33196.0112 | D27: 0.004285097043 | F27: 24 | G27: Guiana | H27: 31014.2578 | I27: 0.002764757882 | K27: 24 | L27: Japão | M27: 72872.0242 | N27: 0.003842536282 | O27: 49240.3134
A28: 25 | B28: Irlanda | C28: 30549.4542 | D28: 0.003943467035 | F28: 25 | G28: Vietname | H28: 30892.5166 | I28: 0.002753905295 | K28: 25 | L28: Costa Rica | M28: 72068.7862 | N28: 0.003800181604 | O28: -69444.3614
A29: 26 | B29: Arábia Saudita | C29: 29146.6976 | D29: 0.003762392624 | F29: 26 | G29: Cuba | H29: 28789.5394 | I29: 0.002566435944 | K29: 26 | L29: Suécia | M29: 68731.8356 | N29: 0.003624224453 | O29: 42035.4844
A30: 27 | B30: Moçambique | C30: 28593.955 | D30: 0.003691042013 | F30: 27 | G30: Áustria | H30: 27643.7092 | I30: 0.002464291211 | K30: 27 | L30: Marrocos | M30: 61090.9854 | N30: 0.003221323004 | O30: 38443.9082
A31: 28 | B31: São Tomé e Príncipe | C31: 25054.826 | D31: 0.003234194619 | F31: 28 | G31: Chile | H31: 26079.5266 | I31: 0.002324852563 | K31: 28 | L31: Grécia | M31: 59934.495 | N31: 0.003160341354 | O31: -10133.0062
A32: 29 | B32: Grécia | C32: 24900.7444 | D32: 0.003214305043 | F32: 29 | G32: Checa, República | H32: 24321.05 | I32: 0.002168093627 | K32: 29 | L32: Rússia, Federação da | M32: 59387.4766 | N32: 0.003131497115 | O32: 35650.6114
A33: 30 | B33: Finlândia | C33: 22507.9646 | D33: 0.002905433787 | F33: 30 | G33: Índia | H33: 24071.1366 | I33: 0.002145815163 | K33: 30 | L33: Luxemburgo | M33: 56679.3754 | N33: 0.002988699145 | O33: 40190.4242
A34: 31 | B34: África do Sul | C34: 22161.1504 | D34: 0.002860665382 | F34: 31 | G34: Uruguai | H34: 22728.6906 | I34: 0.002026143166 | K34: 31 | L34: Bulgária | M34: 50875.6622 | N34: 0.002682669791 | O34: -32816.4966
A35: 32 | B35: Jordânia | C35: 21893.2362 | D35: 0.002826081758 | F35: 32 | G35: Costa do Marfim | H35: 22619.1534 | I35: 0.002016378501 | K35: 32 | L35: Checa, República | M35: 43840.9252 | N35: 0.002311728645 | O35: -4801.1748
A36: 33 | B36: Argélia | C36: 20568.7852 | D36: 0.002655115402 | F36: 33 | G36: Turquia | H36: 19669.1464 | I36: 0.0017534009 | K36: 33 | L36: Áustria | M36: 42201.1454 | N36: 0.002225263181 | O36: -13086.273
A37: 34 | B37: Checa, República | C37: 19519.8752 | D37: 0.002519717173 | F37: 34 | G37: Hungria | H37: 19322.5132 | I37: 0.001722500375 | K37: 34 | L37: Moçambique | M37: 38413.517 | N37: 0.002025541824 | O37: 18774.393
A38: 35 | B38: Noruega | C38: 18383.7692 | D38: 0.002373063274 | F38: 35 | G38: Suazilândia | H38: 17908.3876 | I38: 0.001596438519 | K38: 35 | L38: Colômbia | M38: 37783.0652 | N38: 0.001992298149 | O38: -24638.754
A39: 36 | B39: Coreia, República da | C39: 16791.4172 | D39: 0.002167514999 | F39: 36 | G39: Letónia | H39: 17568.283 | I39: 0.001566119983 | K39: 36 | L39: Guiné-Bissau | M39: 33466.8492 | N39: 0.001764704408 | O39: 32925.1732
A40: 37 | B40: Roménia | C40: 16750.2558 | D40: 0.002162201692 | F40: 37 | G40: Uganda | H40: 17520.2176 | I40: 0.001561835206 | K40: 37 | L40: Austrália | M40: 33457.6176 | N40: 0.001764217626 | O40: -224.8624
A41: 38 | B41: Austrália | C41: 16616.3776 | D41: 0.002144920065 | F41: 38 | G41: Austrália | H41: 16841.24 | I41: 0.001501307925 | K41: 38 | L41: Cuba | M41: 33227.7552 | N41: 0.001752096999 | O41: -24351.3236
A42: 39 | B42: Áustria | C42: 14557.4362 | D42: 0.001879142239 | F42: 39 | G42: Lituânia | H42: 14594.912 | I42: 0.001301059605 | K42: 39 | L42: Vietname | M42: 32990.675 | N42: 0.001739595779 | O42: -28794.3582
A43: 40 | B43: Emirados Árabes Unidos | C43: 13772.665 | D43: 0.001777840287 | F43: 40 | G43: México | H43: 13942.9954 | I43: 0.00124294467 | K43: 40 | L43: Hungria | M43: 31339.561 | N43: 0.001652532663 | O43: -7305.4654
A44: 41 | B44: Iraque | C44: 13213.736 | D44: 0.001705691106 | F44: 41 | G44: Peru | H44: 13551.1124 | I44: 0.001208010363 | K44: 41 | L44: Chile | M44: 31046.9382 | N44: 0.001637102685 | O44: -21112.115
A45: 42 | B45: Nigéria | C45: 12563.3872 | D45: 0.001621741028 | F45: 42 | G45: Egito | H45: 13444.2972 | I45: 0.00119848835 | K45: 42 | L45: Guiana | M45: 31034.393 | N45: 0.001636441178 | O45: -30994.1226
A46: 43 | B46: Hungria | C46: 12017.0478 | D46: 0.001551216972 | F46: 43 | G46: Indonésia | H46: 13373.0146 | I46: 0.001192133881 | K46: 43 | L46: Finlândia | M46: 30593.483 | N46: 0.001613192027 | O46: 14422.4462
A47: 44 | B47: Macau | C47: 11451.795 | D47: 0.001478251486 | F47: 44 | G47: Suécia | H47: 13348.1756 | I47: 0.001189919615 | K47: 44 | L47: Costa do Marfim | M47: 30195.695 | N47: 0.001592216696 | O47: -15042.6118
A48: 45 | B48: Território Palestiniano Ocupado | C48: 11126.9966 | D48: 0.001436324983 | F48: 45 | G48: Paquistão | H48: 12392.2934 | I48: 0.001104707747 | K48: 45 | L48: Turquia | M48: 29730.2176 | N48: 0.001567672108 | O48: -9608.0752
A49: 46 | B49: Líbia, Jamahira Árabe da | C49: 10747.1924 | D49: 0.001387298073 | F49: 46 | G49: Moldava, República de | H49: 12169.9448 | I49: 0.001084886539 | K49: 46 | L49: Arábia Saudita | M49: 29183.7518 | N49: 0.001538857008 | O49: 29109.6434
A50: 47 | B50: Senegal | C50: 10277.8906 | D50: 0.001326718392 | F50: 47 | G50: Rússia, Federação da | H50: 11868.4326 | I50: 0.001058008313 | K50: 47 | L50: Índia | M50: 27213.734 | N50: 0.00143497812 | O50: -20928.5392
A51: 48 | B51: Turquia | C51: 10061.0712 | D51: 0.001298730326 | F51: 48 | G51: Japão | H51: 11815.8554 | I51: 0.001053321333 | K51: 48 | L51: São Tomé e Príncipe | M51: 26143.659 | N51: 0.001378553147 | O51: 23965.993
A52: 49 | B52: Kuwait | C52: 9238.6512 | D52: 0.00119256849 | F52: 49 | G52: Marrocos | H52: 11323.5386 | I52: 0.00100943388 | K52: 49 | L52: Uruguai | M52: 24804.8014 | N52: 0.001307955287 | O52: -20652.5798
A53: 50 | B53: Bulgária | C53: 9029.5828 | D53: 0.001165580959 | F53: 50 | G53: Tailândia | H53: 10221.1584 | I53: 0.0009111624865 | K53: 50 | L53: Letónia | M53: 24571.9238 | N53: 0.001295675669 | O53: -10564.6422
A54: 51 | B54: Eslováquia | C54: 8981.6584 | D54: 0.001159394652 | F54: 51 | G54: Paraguai | H54: 9863.0808 | I54: 0.0008792417527 | K54: 51 | L54: Argélia | M54: 22398.8544 | N54: 0.001181089885 | O54: 18738.716
A55: 52 | B55: Ucrânia | C55: 7962.1146 | D55: 0.00102778715 | F55: 52 | G55: Moçambique | H55: 9819.562 | I55: 0.0008753622806 | K55: 52 | L55: Jordânia | M55: 22013.8634 | N55: 0.001160789339 | O55: 21772.609
A56: 53 | B56: Costa do Marfim | C56: 7576.5416 | D56: 0.0009780155757 | F56: 53 | G56: Angola | H56: 9586.0054 | I56: 0.0008545419388 | K56: 53 | L56: México | M56: 20411.1484 | N56: 0.0010762783 | O56: -7474.8424
A57: 54 | B57: Letónia | C57: 7003.6408 | D57: 0.0009040628496 | F57: 54 | G57: Equador | H57: 9434.7056 | I57: 0.0008410543577 | K57: 54 | L57: Lituânia | M57: 20237.3848 | N57: 0.001067115758 | O57: -8952.4392
A58: 55 | B58: Gibraltar | C58: 6867.0166 | D58: 0.0008864267562 | F58: 55 | G58: Sérvia | H58: 8961.3684 | I58: 0.0007988588371 | K58: 55 | L58: Suazilândia | M58: 19974.7344 | N58: 0.001053266223 | O58: -15842.0408
A59: 56 | B59: Maurícias | C59: 6601.9064 | D59: 0.0008522050864 | F59: 56 | G59: Belize | H59: 8481.6488 | I59: 0.0007560943591 | K59: 56 | L59: Noruega | M59: 19562.9914 | N59: 0.001031555046 | O59: 17204.547
A60: 57 | B60: Colômbia | C60: 6572.1556 | D60: 0.0008483647134 | F60: 57 | G60: Luxemburgo | H60: 8244.4756 | I60: 0.0007349516164 | K60: 57 | L60: Uganda | M60: 18130.6166 | N60: 0.0009560260316 | O60: -16909.8186
A61: 58 | B61: México | C61: 6468.153 | D61: 0.0008349395693 | F61: 58 | G61: Estónia | H61: 8133.3802 | I61: 0.0007250480461 | K61: 58 | L61: Coreia, República da | M61: 18110.515 | N61: 0.0009549660757 | O61: 15472.3194
A62: 59 | B62: Andorra | C62: 5880.33 | D62: 0.0007590606155 | F62: 59 | G62: Finlândia | H62: 8085.5184 | I62: 0.0007207814184 | K62: 59 | L62: Peru | M62: 15536.0606 | N62: 0.0008192152914 | O62: -11566.1642
A63: 60 | B63: Lituânia | C63: 5642.4728 | D63: 0.0007283568909 | F63: 60 | G63: Nova Zelânda | H63: 7373.8184 | I63: 0.0006573371085 | K63: 60 | L63: Egito | M63: 15081.7762 | N63: 0.0007952609096 | O63: -11806.8182
A64: 61 | B64: Malta | C64: 5438.0306 | D64: 0.0007019665315 | F64: 61 | G64: Malásia | H64: 6878.308 | I64: 0.0006131649638 | K64: 61 | L64: Indonésia | M64: 14601.4892 | N64: 0.0007699354127 | O64: -12144.54
A65: 62 | B65: Estónia | C65: 5388.6736 | D65: 0.0006955952981 | F65: 62 | G65: Camarões | H65: 6873.6916 | I65: 0.000612753436 | K65: 62 | L65: Emirados Árabes Unidos | M65: 14301.0792 | N65: 0.0007540948163 | O65: 13244.2508
A66: 63 | B66: HongKong | C66: 4973.9084 | D66: 0.000642055458 | F66: 63 | G66: Eslovénia | H66: 5854.3628 | I66: 0.0005218856373 | K66: 63 | L66: Eslováquia | M66: 14115.3302 | N66: 0.0007443002857 | O66: 3847.9866
A67: 64 | B67: Chile | C67: 4967.4116 | D67: 0.0006412168206 | F67: 64 | G67: Israel | H67: 5332.274 | I67: 0.0004753441681 | K67: 64 | L67: Tailândia | M67: 13545.4648 | N67: 0.0007142513266 | O67: -6896.852
A68: 65 | B68: Chipre | C68: 4599.9132 | D68: 0.000593778401 | F68: 65 | G68: Honduras | H68: 5320.7232 | I68: 0.000474314475 | K68: 65 | L68: Estónia | M68: 13522.0538 | N68: 0.0007130168663 | O68: -2744.7066
A69: 66 | B69: Cuba | C69: 4438.2158 | D69: 0.0005729057412 | F69: 66 | G69: Camboja | H69: 5251.2876 | I69: 0.0004681246567 | K69: 66 | L69: Iraque | M69: 13226 | N69: 0.000697405972 | O69: 13201.472
A70: 67 | B70: Mali | C70: 4408.7876 | D70: 0.0005691070109 | F70: 67 | G70: Zimbabwe | H70: 5172.692 | I70: 0.0004611182725 | K70: 67 | L70: Paquistão | M70: 12653.1142 | N70: 0.0006671977475 | O70: -12131.4726
A71: 68 | B71: Omã | C71: 4251.3822 | D71: 0.0005487883825 | F71: 68 | G71: Eslováquia | H71: 5133.6718 | I71: 0.000457639827 | K71: 68 | L71: Nigéria | M71: 12613.3818 | N71: 0.000665102661 | O71: 12513.3926
A72: 69 | B72: Sérvia | C72: 3643.2286 | D72: 0.0004702850594 | F72: 69 | G72: Etiópia | H72: 4865.161 | I72: 0.0004337035021 | K72: 69 | L72: Sérvia | M72: 12604.597 | N72: 0.0006646394392 | O72: -5318.1398
A73: 70 | B73: Gana | C73: 3561.703 | D73: 0.0004597613521 | F73: 70 | G73: Reino Unido (Irlanda do Norte) pós-2020 | H73: 4852.6168 | I73: 0.0004325852527 | K73: 70 | L73: Moldava, República de | M73: 12435.7646 | N73: 0.0006557369196 | O73: -11904.125
A74: 71 | B74: Síria, República Árabe da | C74: 3557.076 | D74: 0.0004591640772 | F74: 71 | G74: Tanzânia, República Unida da | H74: 4645.6104 | I74: 0.0004141317214 | K74: 71 | L74: Macau | M74: 11470.0196 | N74: 0.0006048132594 | O74: 11433.5704
A75: 72 | B75: Tailândia | C75: 3324.3064 | D75: 0.0004291170839 | F75: 72 | G75: Filipinas | H75: 4316.8954 | I75: 0.0003848285089 | K75: 72 | L75: Território Palestiniano Ocupado | M75: 11138.6664 | N75: 0.0005873410304 | O75: 11115.3268
A76: 73 | B76: Singapura | C76: 3292.5498 | D76: 0.0004250177928 | F76: 73 | G76: Macedónia, Antiga República jugoslava da | H76: 4269.76 | I76: 0.000380626636 | K76: 73 | L76: Kuwait | M76: 10781.5982 | N76: 0.0005685128514 | O76: 7695.7042
A77: 74 | B77: Eslovénia | C77: 3210.1356 | D77: 0.0004143793808 | F77: 74 | G77: Myanmar | H77: 4258.6984 | I77: 0.0003796405526 | K77: 74 | L77: Senegal | M77: 10777.8706 | N77: 0.0005683162953 | O77: 9777.9106
A78: 75 | B78: Índia | C78: 3142.5974 | D78: 0.0004056612327 | F78: 75 | G78: Tunísia | H78: 4096.3914 | I78: 0.0003651717376 | K78: 75 | L78: Líbia, Jamahira Árabe da | M78: 10763.4438 | N78: 0.0005675555713 | O78: 10730.941
A79: 76 | B79: Taiwan | C79: 3027.0112 | D79: 0.0003907408232 | F79: 76 | G79: Quénia | H79: 3999.6272 | I79: 0.0003565457184 | K79: 76 | L79: Paraguai | M79: 10570.8508 | N79: 0.0005574001571 | O79: -9155.3108
A80: 77 | B80: Guiné | C80: 2745.3572 | D80: 0.0003543836019 | F80: 77 | G80: Chipre | H80: 3965.5184 | I80: 0.0003535050983 | K80: 77 | L80: Equador | M80: 10263.4314 | N80: 0.0005411899555 | O80: -8605.9798
A81: 78 | B81: Burquina Faso | C81: 2525.8832 | D81: 0.0003260528672 | F81: 78 | G81: Suriname | H81: 3877.4378 | I81: 0.0003456531763 | K81: 78 | L81: Nova Zelânda | M81: 9856.0686 | N81: 0.0005197097461 | O81: -4891.5682
A82: 79 | B82: Venezuela | C82: 2486.9168 | D82: 0.0003210229012 | F82: 79 | G82: Malavi | H82: 3756.8802 | I82: 0.0003349061007 | K82: 79 | L82: Maurícias | M82: 9426.6558 | N82: 0.0004970668419 | O82: 3777.157
A83: 80 | B83: Nova Zelânda | C83: 2482.2502 | D83: 0.0003204205146 | F83: 80 | G83: Guatemala | H83: 3336.065 | I83: 0.00029739264 | K83: 80 | L83: Eslovénia | M83: 9064.4984 | N83: 0.0004779703098 | O83: -2644.2272
A84: 81 | B84: Timor-Leste | C84: 2425.5014 | D84: 0.000313095113 | F84: 81 | G84: Sri Lanca | H84: 3081.7942 | I84: 0.0002747257362 | K84: 81 | L84: Camarões | M84: 8912.7596 | N84: 0.0004699691345 | O84: -4834.6236
A85: 82 | B85: Filipinas | C85: 2423.494 | D85: 0.0003128359883 | F85: 82 | G85: Nicarágua | H85: 3050.9764 | I85: 0.0002719784915 | K85: 82 | L85: Chipre | M85: 8565.4316 | N85: 0.0004516545555 | O85: 634.3948
A86: 83 | B86: Congo | C86: 2401.0914 | D86: 0.0003099441555 | F86: 83 | G86: Maurícias | H86: 2824.7494 | I86: 0.0002518115449 | K86: 83 | L86: Belize | M86: 8501.158 | N86: 0.0004482654135 | O86: -8462.1396
A87: 84 | B87: Dominicana, República | C87: 2366.1238 | D87: 0.0003054303735 | F87: 84 | G87: Suíça | H87: 2672.027 | I87: 0.0002381971465 | K87: 84 | L87: Malásia | M87: 8478.9536 | N87: 0.0004470945771 | O87: -5277.6624
A88: 85 | B88: Seychelles | C88: 2266.2448 | D88: 0.000292537523 | F88: 85 | G88: Taiwan | H88: 2620.8988 | I88: 0.0002336393366 | K88: 85 | L88: Mali | M88: 6882.4546 | N88: 0.0003629113065 | O88: 1935.1206
A89: 86 | B89: Belarus | C89: 2265.0334 | D89: 0.0002923811498 | F89: 86 | G89: Dominicana, República | H89: 2590.705 | I89: 0.0002309477182 | K89: 86 | L89: Gibraltar | M89: 6867.0382 | N89: 0.0003620984009 | O89: 6866.995
A90: 87 | B90: Benim | C90: 2254.9256 | D90: 0.0002910763875 | F90: 87 | G90: Mali | H90: 2473.667 | I90: 0.0002205143963 | K90: 87 | L90: Filipinas | M90: 6740.3894 | N90: 0.0003554202194 | O90: -1893.4014
A91: 88 | B91: Guiné Equatorial | C91: 2237.2378 | D91: 0.0002887931632 | F91: 88 | G91: Gana | H91: 2244.213 | I91: 0.0002000597796 | K91: 88 | L91: Reino Unido (Irlanda do Norte) pós-2020 | M91: 6619.5794 | N91: 0.0003490499173 | O91: -3085.6542
A92: 89 | B92: Líbano | C92: 2221.1552 | D92: 0.0002867171457 | F92: 89 | G92: Croácia | H92: 2137.0316 | I92: 0.0001905051218 | K92: 89 | L92: HongKong | M92: 6486.8174 | N92: 0.0003420493871 | O92: 3460.9994
A93: 90 | B93: Gabão | C93: 2209.6904 | D93: 0.0002852372154 | F93: 90 | G93: Congo, República Democrática do | H93: 1937.5966 | I93: 0.000172726541 | K93: 90 | L93: Honduras | M93: 6000.5624 | N93: 0.000316409198 | O93: -4640.884
A94: 91 | B94: Croácia | C94: 2104.1144 | D94: 0.0002716089695 | F94: 91 | G94: Benim | H94: 1901.2374 | I94: 0.0001694853097 | K94: 91 | L94: Malta | M94: 5960.075 | N94: 0.0003142743005 | O94: 4915.9862
A95: 92 | B95: Vietname | C95: 2098.1584 | D95: 0.000270840141 | F95: 92 | G95: Serra Leoa | H95: 1900.5094 | I95: 0.0001694204123 | K95: 92 | L95: Andorra | M95: 5897.0704 | N95: 0.0003109520728 | O95: 5863.5896
A96: 93 | B96: Uruguai | C96: 2076.1108 | D96: 0.0002679941333 | F96: 93 | G96: Argélia | H96: 1830.0692 | I96: 0.0001631410391 | K96: 93 | L96: Gana | M96: 5805.916 | N96: 0.0003061455082 | O96: 1317.49
A97: 94 | B97: Suazilândia | C97: 2066.3468 | D97: 0.0002667337503 | F97: 94 | G97: Laos, República Democrática Popular do | H97: 1764.7672 | I97: 0.0001573197095 | K97: 94 | L97: Camboja | M97: 5661.8046 | N97: 0.0002985465251 | O97: -4840.7706
A98: 95 | B98: Camarões | C98: 2039.068 | D98: 0.0002632124747 | F98: 95 | G98: Burquina Faso | H98: 1596.6714 | I98: 0.0001423348534 | K98: 95 | L98: Taiwan | M98: 5647.91 | N98: 0.0002978138639 | O98: 406.1124
A99: 96 | B99: Peru | C99: 1984.9482 | D99: 0.0002562264367 | F99: 96 | G99: Kuwait | H99: 1542.947 | I99: 0.0001375456059 | K99: 96 | L99: Etiópia | M99: 5274.7014 | N99: 0.0002781346028 | O99: -4455.6206
A100: 97 | B100: Catar | C100: 1923.0908 | D100: 0.000248241593 | F100: 97 | G100: HongKong | H100: 1512.909 | I100: 0.0001348678762 | K100: 97 | L100: Zimbabwe | M100: 5238.022 | N100: 0.0002762005009 | O100: -5107.362
A101: 98 | B101: Irão, República Islâmica do | C101: 1920.529 | D101: 0.0002479109038 | F101: 98 | G101: Panamá | H101: 1505.4946 | I101: 0.0001342069215 | K101: 98 | L101: Tunísia | M101: 5011.6662 | N101: 0.0002642647768 | O101: -3181.1166
A102: 99 | B102: Geórgia | C102: 1916.3824 | D102: 0.0002473756412 | F102: 99 | G102: Madagáscar | H102: 1471.794 | I102: 0.0001312026904 | K102: 99 | L102: Tanzânia, República Unida da | M102: 4986.1414 | N102: 0.000262918856 | O102: -4305.0794
A103: 100 | B103: Reino Unido (Irlanda do Norte) pós-2020 | C103: 1766.9626 | D103: 0.0002280878316 | F103: 100 | G103: Coreia, República da | H103: 1319.0978 | I103: 0.0001175906276 | K103: 100 | L103: Dominicana, República | M103: 4956.8288 | N103: 0.0002613732049 | O103: -224.5812
A104: 101 | B104: Egito | C104: 1637.479 | D104: 0.0002113734803 | F104: 101 | G104: Singapura | H104: 1313.0876 | I104: 0.0001170548499 | K104: 101 | L104: Omã | M104: 4826.1814 | N104: 0.0002544841774 | O104: 3676.583
A105: 102 | B105: Malásia | C105: 1600.6456 | D105: 0.0002066188521 | F105: 102 | G105: Noruega | H105: 1179.2222 | I105: 0.0001051214539 | K105: 102 | L105: Singapura | M105: 4605.6374 | N105: 0.0002428549091 | O105: 1979.4622
A106: 103 | B106: Bangladesh | C106: 1592.1082 | D106: 0.0002055168044 | F106: 103 | G106: São Tomé e Príncipe | H106: 1088.833 | I106: 9.706373239e-05 | K106: 103 | L106: Myanmar | M106: 4593.3818 | N106: 0.0002422086722 | O106: -3924.015
A107: 104 | B107: Congo, República Democrática do | C107: 1487.5888 | D107: 0.0001920249493 | F107: 104 | G107: Timor-Leste | H107: 773.0574 | I107: 6.891399929e-05 | K107: 104 | L107: Macedónia, Antiga República jugoslava da | M107: 4569.63 | N107: 0.0002409562416 | O107: -3969.89
A108: 105 | B108: Costa Rica | C108: 1312.2124 | D108: 0.0001693865399 | F108: 105 | G108: El Salvador | H108: 699.8376 | I108: 6.238683941e-05 | K108: 105 | L108: Quénia | M108: 4449.3114 | N108: 0.000234611851 | O108: -3549.943
A109: 106 | B109: Sudão | C109: 1307.024 | D109: 0.0001687167968 | F109: 106 | G109: Turquemenistão | H109: 693.7048 | I109: 6.184013257e-05 | K109: 106 | L109: Croácia | M109: 4241.146 | N109: 0.0002236353054 | O109: -32.9172
A110: 107 | B110: Togo | C110: 1248.9136 | D110: 0.0001612156335 | F110: 107 | G110: Cazaquistão | H110: 686.1514 | I110: 6.11667867e-05 | K110: 107 | L110: Benim | M110: 4156.163 | N110: 0.0002191541582 | O110: 353.6882
A111: 108 | B111: Indonésia | C111: 1228.4746 | D111: 0.0001585772713 | F111: 108 | G111: Omã | H111: 574.7992 | I111: 5.124032402e-05 | K111: 108 | L111: Burquina Faso | M111: 4122.5546 | N111: 0.0002173819899 | O111: 929.2118
A112: 109 | B112: Islândia | C112: 1198.9784 | D112: 0.0001547697633 | F112: 109 | G112: Geórgia | H112: 547.4606 | I112: 4.880323169e-05 | K112: 109 | L112: Suriname | M112: 4115.4388 | N112: 0.0002170067743 | O112: -3639.4368
A113: 110 | B113: Panamá | C113: 1014.5438 | D113: 0.0001309620789 | F113: 110 | G113: Emirados Árabes Unidos | H113: 528.4142 | I113: 4.710534535e-05 | K113: 110 | L113: Guatemala | M113: 3875.6304 | N113: 0.0002043616956 | O113: -2796.4996
A114: 111 | B114: Tunísia | C114: 915.2748 | D114: 0.0001181479701 | F114: 111 | G114: Malta | H114: 522.0444 | I114: 4.65375112e-05 | K114: 111 | L114: Malavi | M114: 3763.5146 | N114: 0.000198449838 | O114: -3750.2458
A115: 112 | B115: Equador | C115: 828.7258 | D115: 0.0001069758187 | F115: 112 | G115: Senegal | H115: 499.98 | I115: 4.457058605e-05 | K115: 112 | L115: Síria, República Árabe da | M115: 3703.4868 | N115: 0.0001952845767 | O115: 3410.6652
A116: 113 | B116: Bermudas | C116: 818.2718 | D116: 0.0001056263673 | F116: 113 | G116: Usbequistão | H116: 380.3558 | I116: 3.390671809e-05 | K116: 113 | L116: Sri Lanca | M116: 3487.0654 | N116: 0.0001838726928 | O116: -2676.523
A117: 114 | B117: Kosovo | C117: 799.843 | D117: 0.0001032474912 | F117: 114 | G117: Líbano | H117: 342.8862 | I117: 3.056650042e-05 | K117: 114 | L117: Nicarágua | M117: 3449.8386 | N117: 0.0001819097265 | O117: -2652.1142
A118: 115 | B118: Paraguai | C118: 707.77 | D118: 9.13622759e-05 | F118: 115 | G118: Chade | H118: 303.1764 | I118: 2.702658071e-05 | K118: 115 | L118: Congo, República Democrática do | M118: 3425.1854 | N118: 0.0001806097651 | O118: -450.0078
A119: 116 | B119: Honduras | C119: 679.8392 | D119: 8.775683705e-05 | F119: 116 | G119: Bangladesh | H119: 298.8156 | I119: 2.663783834e-05 | K119: 116 | L119: Timor-Leste | M119: 3198.5588 | N119: 0.0001686597618 | O119: 1652.444
A120: 117 | B120: Aruba | C120: 651.3298 | D120: 8.407670979e-05 | F120: 117 | G120: Bolívia | H120: 296.509 | I120: 2.643221709e-05 | K120: 117 | L120: Guiné | M120: 3020.6542 | N120: 0.0001592788658 | O120: 2470.0602
A121: 118 | B121: Mauritânia | C121: 615.705 | D121: 7.947809328e-05 | F121: 118 | G121: Venezuela | H121: 285.0498 | I121: 2.541068971e-05 | K121: 118 | L121: Venezuela | M121: 2771.9666 | N121: 0.0001461655876 | O121: 2201.867
A122: 119 | B122: Uganda | C122: 610.399 | D122: 7.879316988e-05 | F122: 119 | G122: Guiné | H122: 275.297 | I122: 2.454127891e-05 | K122: 119 | L122: Congo | M122: 2655.1662 | N122: 0.0001400067114 | O122: 2147.0166
A123: 120 | B123: Namíbia | C123: 600.2532 | D123: 7.748350236e-05 | F123: 120 | G123: Guiné-Bissau | H123: 270.838 | I123: 2.414378252e-05 | K123: 120 | L123: Líbano | M123: 2564.0414 | N123: 0.0001352017076 | O123: 1878.269
A124: 121 | B124: Cazaquistão | C124: 584.6762 | D124: 7.547275004e-05 | F124: 121 | G124: Congo | H124: 254.0748 | I124: 2.264943145e-05 | K124: 121 | L124: Panamá | M124: 2520.0384 | N124: 0.0001328814328 | O124: -490.9508
A125: 122 | B125: Albânia | C125: 582.0574 | D125: 7.513470304e-05 | F125: 122 | G125: Belarus | H125: 241.8304 | I125: 2.155790762e-05 | K125: 122 | L125: Belarus | M125: 2506.8638 | N125: 0.0001321867371 | O125: 2023.203
A126: 123 | B126: Ruanda | C126: 580.43 | D126: 7.49246306e-05 | F126: 123 | G126: Togo | H126: 238.6312 | I126: 2.127271578e-05 | K126: 123 | L126: Geórgia | M126: 2463.843 | N126: 0.0001299182536 | O126: 1368.9218
A127: 124 | B127: Azerbaijão | C127: 564.159 | D127: 7.28242935e-05 | F127: 124 | G127: Irão, República Islâmica do | H127: 186.7426 | I127: 1.664712013e-05 | K127: 124 | L127: Serra Leoa | M127: 2326.8524 | N127: 0.0001226947497 | O127: -1474.1664
A128: 125 | B128: São Bartolomeu | C128: 548.5216 | D128: 7.080574446e-05 | F128: 125 | G128: Zâmbia | H128: 183.9494 | I128: 1.639812105e-05 | K128: 125 | L128: Seychelles | M128: 2267.3882 | N128: 0.000119559207 | O128: 2265.1014
A129: 126 | B129: Guatemala | C129: 539.5654 | D129: 6.96496361e-05 | F129: 126 | G129: Islândia | H129: 183.9414 | I129: 1.639740789e-05 | K129: 126 | L129: Guiné Equatorial | M129: 2237.2378 | N129: 0.0001179693787 | O129: 2237.2378
A130: 127 | B130: Arménia | C130: 525.5354 | D130: 6.78385778e-05 | F130: 127 | G130: Síria, República Árabe da | H130: 146.4108 | I130: 1.305175239e-05 | K130: 127 | L130: Gabão | M130: 2210.0274 | N130: 0.0001165345764 | O130: 2209.3534
A131: 128 | B131: Barém | C131: 502.4658 | D131: 6.486064548e-05 | F131: 128 | G131: Cabo Verde | H131: 145.1786 | I131: 1.294190824e-05 | K131: 128 | L131: Irão, República Islâmica do | M131: 2107.2716 | N131: 0.0001111162709 | O131: 1733.7864
A132: 129 | B132: Bolívia | C132: 494.4554 | D132: 6.382662542e-05 | F132: 129 | G132: Azerbaijão | H132: 124.8964 | I132: 1.113385684e-05 | K132: 129 | L132: Catar | M132: 1939.3412 | N132: 0.0001022613137 | O132: 1906.8404
A133: 130 | B133: Burundi | C133: 484.978 | D133: 6.260323811e-05 | F133: 130 | G133: Jordânia | H133: 120.6272 | I133: 1.075328013e-05 | K133: 130 | L133: Bangladesh | M133: 1890.9238 | N133: 9.970826787e-05 | O133: 1293.2926
A134: 131 | B134: Quénia | C134: 449.6842 | D134: 5.804734864e-05 | F134: 131 | G134: Albânia | H134: 120.2784 | I134: 1.072218644e-05 | K134: 131 | L134: Laos, República Democrática Popular do | M134: 1777.8864 | N134: 9.374781438e-05 | O134: -1751.648
A135: 132 | B135: Gâmbia | C135: 434.028 | D135: 5.602637281e-05 | F135: 132 | G135: Iémen | H135: 84.6154 | I135: 7.543017654e-06 | K135: 132 | L135: Madagáscar | M135: 1602.4536 | N135: 8.44972562e-05 | O135: -1341.1344
A136: 133 | B136: Serra Leoa | C136: 426.343 | D136: 5.503435691e-05 | F136: 133 | G136: Kosovo | H136: 79.8322 | I136: 7.116620544e-06 | K136: 133 | L136: Togo | M136: 1487.5448 | N136: 7.843812394e-05 | O136: 1010.2824
A137: 134 | B137: Camboja | C137: 410.517 | D137: 5.29914625e-05 | F137: 134 | G137: Tajiquistão | H137: 74.7168 | I137: 6.660609552e-06 | K137: 134 | L137: Islândia | M137: 1382.9198 | N137: 7.292125566e-05 | O137: 1015.037
A138: 135 | B138: Etiópia | C138: 409.5404 | D138: 5.286539839e-05 | F138: 135 | G138: Namíbia | H138: 64.9894 | I138: 5.793463028e-06 | K138: 135 | L138: Sudão | M138: 1318.1622 | N138: 6.950659235e-05 | O138: 1295.8858
A139: 136 | B139: Sri Lanca | C139: 405.2712 | D139: 5.231431e-05 | F139: 136 | G139: Libéria | H139: 54.4472 | I139: 4.853681373e-06 | K139: 136 | L139: Cazaquistão | M139: 1270.8276 | N139: 6.70106425e-05 | O139: -101.4752
A140: 137 | B140: Antígua e Barbuda | C140: 403.3246 | D140: 5.206303373e-05 | F140: 137 | G140: Nigéria | H140: 49.9946 | I140: 4.456755513e-06 | K140: 137 | L140: El Salvador | M140: 1081.0474 | N140: 5.700354701e-05 | O140: -318.6278
A141: 138 | B141: Nicarágua | C141: 398.8622 | D141: 5.148700618e-05 | F141: 138 | G141: Aruba | H141: 45.6144 | I141: 4.066283732e-06 | K141: 138 | L141: Kosovo | M141: 879.6752 | N141: 4.638520626e-05 | O141: 720.0108
A142: 139 | B142: El Salvador | C142: 381.2098 | D142: 4.920835147e-05 | F142: 139 | G142: Bósnia-Herzegovina | H142: 42.5574 | I142: 3.793768268e-06 | K142: 139 | L142: Bermudas | M142: 818.9736 | N142: 4.318441551e-05 | O142: 817.57
A143: 140 | B143: São Martinho (parte holandesa) | C143: 373.2376 | D143: 4.817926245e-05 | F143: 140 | G143: Curaçau | H143: 39.2148 | I143: 3.495793067e-06 | K143: 140 | L143: Bolívia | M143: 790.9644 | N143: 4.170749253e-05 | O143: 197.9464
A144: 141 | B144: Iémen | C144: 360.3172 | D144: 4.651143654e-05 | F144: 141 | G144: Arménia | H144: 37.5752 | I144: 3.349631355e-06 | K144: 141 | L144: Albânia | M144: 702.3358 | N144: 3.703411321e-05 | O144: 461.779
A145: 142 | B145: Tanzânia, República Unida da | C145: 340.531 | D145: 4.395734091e-05 | F145: 142 | G145: Arábia Saudita | H145: 37.0542 | I145: 3.303186947e-06 | K145: 142 | L145: Turquemenistão | M145: 700.9924 | N145: 3.696327583e-05 | O145: -686.4172
A146: 143 | B146: Myanmar | C146: 334.6834 | D146: 4.320250523e-05 | F146: 143 | G146: Botswana | H146: 30.037 | I146: 2.677640492e-06 | K146: 143 | L146: Aruba | M146: 696.9442 | N146: 3.674981455e-05 | O146: 605.7154
A147: 144 | B147: Comores | C147: 333.8038 | D147: 4.308896233e-05 | F147: 144 | G147: Ruanda | H147: 26.8278 | I147: 2.391557199e-06 | K147: 144 | L147: Azerbaijão | M147: 689.0554 | N147: 3.633383873e-05 | O147: 439.2626
A148: 145 | B148: Argentina | C148: 316.4082 | D148: 4.084345658e-05 | F148: 145 | G148: São Marino | H148: 25.2246 | I148: 2.248640355e-06 | K148: 145 | L148: Namíbia | M148: 665.2426 | N148: 3.50781916e-05 | O148: 535.2638
A149: 146 | B149: Jamaica | C149: 302.5728 | D149: 3.905751817e-05 | F149: 146 | G149: Macau | H149: 18.2246 | I149: 1.62462719e-06 | K149: 146 | L149: Mauritânia | M149: 617.715 | N149: 3.257206487e-05 | O149: 613.695
A150: 147 | B150: Libéria | C150: 301.9358 | D150: 3.897529121e-05 | F150: 147 | G150: Quirguizistão | H150: 17.5046 | I150: 1.560442979e-06 | K150: 147 | L150: Ruanda | M150: 607.2578 | N150: 3.202065751e-05 | O150: 553.6022
A151: 148 | B151: Macedónia, Antiga República jugoslava da | C151: 299.87 | D151: 3.870862805e-05 | F151: 148 | G151: Andorra | H151: 16.7404 | I151: 1.49231857e-06 | K151: 148 | L151: Arménia | M151: 563.1106 | N151: 2.969277902e-05 | O151: 487.9602
A152: 149 | B152: Somália | C152: 292.8384 | D152: 3.780095609e-05 | F152: 149 | G152: Líbia, Jamahira Árabe da | H152: 16.2514 | I152: 1.448726793e-06 | K152: 149 | L152: São Bartolomeu | M152: 548.8046 | N152: 2.893842473e-05 | O152: 548.2386
A153: 150 | B153: Moldava, República de | C153: 265.8198 | D153: 3.43132683e-05 | F153: 150 | G153: Catar | H153: 16.2504 | I153: 1.448637649e-06 | K153: 150 | L153: Barém | M153: 506.7884 | N153: 2.672291371e-05 | O153: 498.1432
A154: 151 | B154: Paquistão | C154: 260.8208 | D154: 3.36679739e-05 | F154: 151 | G154: Jamaica | H154: 14.6512 | I154: 1.306077384e-06 | K154: 151 | L154: Burundi | M154: 485.092 | N154: 2.557886419e-05 | O154: 484.864
A155: 152 | B155: Curaçau | C155: 251.4226 | D155: 3.245481011e-05 | F155: 152 | G155: São Cristovão e Nevis | H155: 12.4064 | I155: 1.105965276e-06 | K155: 152 | L155: Iémen | M155: 444.9326 | N155: 2.346126209e-05 | O155: 275.7018
A156: 153 | B156: Suriname | C156: 238.001 | D156: 3.072228694e-05 | F156: 153 | G156: Iraque | H156: 12.264 | I156: 1.093271065e-06 | K156: 153 | L156: Gâmbia | M156: 434.067 | N156: 2.288831983e-05 | O156: 433.989
A157: 154 | B157: Nova Caledónia | C157: 206.2626 | D157: 2.662534519e-05 | F157: 154 | G157: Território Palestiniano Ocupado | H157: 11.6698 | I157: 1.040301262e-06 | K157: 154 | L157: Usbequistão | M157: 421.6984 | N157: 2.223612449e-05 | O157: -339.0132
A158: 155 | B158: Trindade e Tobago | C158: 189.8074 | D158: 2.450123069e-05 | F158: 155 | G158: Sudão | H158: 11.1382 | I158: 9.929119195e-07 | K158: 155 | L158: Antígua e Barbuda | M158: 403.7924 | N158: 2.129194248e-05 | O158: 402.8568
A159: 156 | B159: Haiti | C159: 187.225 | D159: 2.416788237e-05 | F159: 156 | G159: Barém | H159: 4.3226 | I159: 3.85337044e-07 | K159: 156 | L159: São Martinho (parte holandesa) | M159: 373.2376 | N159: 1.96807902e-05 | O159: 373.2376
A160: 157 | B160: Zâmbia | C160: 152.2624 | D160: 1.965474575e-05 | F160: 157 | G160: Nepal | H160: 2.6584 | I160: 2.369823712e-07 | K160: 157 | L160: Libéria | M160: 356.383 | N160: 1.879204843e-05 | O160: 247.4886
A161: 158 | B161: Maldivas | C161: 137.7162 | D161: 1.777705393e-05 | F161: 158 | G161: Fiji, Ilhas | H161: 2.251 | I161: 2.00664805e-07 | K161: 158 | L161: Zâmbia | M161: 336.2118 | N161: 1.772842259e-05 | O161: -31.687
A162: 159 | B162: Liechtenstein | C162: 135.8048 | D162: 1.753032144e-05 | F162: 159 | G162: Mauritânia | H162: 2.01 | I162: 1.791809232e-07 | K162: 159 | L162: Comores | M162: 333.8038 | N162: 1.760144893e-05 | O162: 333.8038
A163: 160 | B163: Polinésia Francesa | C163: 133.9344 | D163: 1.728888142e-05 | F163: 160 | G163: Liechtenstein | H163: 1.7982 | I163: 1.603000677e-07 | K163: 160 | L163: Jamaica | M163: 317.224 | N163: 1.672719734e-05 | O163: 287.9216
A164: 161 | B164: Madagáscar | C164: 130.6596 | D164: 1.686615486e-05 | F164: 161 | G164: Lesoto | H164: 1.7136 | I164: 1.527584228e-07 | K164: 161 | L164: Chade | M164: 303.1804 | N164: 1.598667939e-05 | O164: -303.1724
A165: 162 | B165: Niger | C165: 126.732 | D165: 1.63591618e-05 | F165: 162 | G165: Seychelles | H165: 1.1434 | I165: 1.019280933e-07 | K165: 162 | L165: Somália | M165: 292.8384 | N165: 1.544134651e-05 | O165: 292.8384
A166: 163 | B166: Bósnia-Herzegovina | C166: 90.5322 | D166: 1.168632159e-05 | F166: 163 | G166: Bermudas | H166: 0.7018 | I166: 6.256177705e-08 | K166: 163 | L166: Curaçau | M166: 290.6374 | N166: 1.532528795e-05 | O166: 212.2078
A167: 164 | B167: Centro-Africana, República | C167: 89.9082 | D167: 1.160577274e-05 | F167: 164 | G167: Afeganistão | H167: 0.5848 | I167: 5.213184272e-08 | K167: 164 | L167: Nova Caledónia | M167: 206.2906 | N167: 1.087768762e-05 | O167: 206.2346
A168: 165 | B168: Nepal | C168: 87.8934 | D168: 1.13456929e-05 | F168: 165 | G168: Antígua e Barbuda | H168: 0.4678 | I168: 4.170190838e-08 | K168: 165 | L168: Trindade e Tobago | M168: 189.8764 | N168: 1.00121681e-05 | O168: 189.7384
A169: 166 | B169: Jibuti | C169: 70.7204 | D169: 9.128921396e-06 | F169: 166 | G169: Gabão | H169: 0.337 | I169: 3.004177667e-08 | K169: 166 | L169: Haiti | M169: 187.2274 | N169: 9.872486533e-06 | O169: 187.2226
A170: 167 | B170: Zimbabwe | C170: 65.33 | D170: 8.433103246e-06 | F170: 167 | G170: São Bartolomeu | H170: 0.283 | I170: 2.522796082e-08 | K170: 167 | L170: Maldivas | M170: 137.7198 | N170: 7.261954558e-06 | O170: 137.7126
A171: 168 | B171: Montenegro | C171: 54.6326 | D171: 7.05223261e-06 | F171: 168 | G171: Barbados | H171: 0.1636 | I171: 1.458407912e-08 | K171: 168 | L171: Liechtenstein | M171: 137.603 | N171: 7.255795703e-06 | O171: 134.0066
A172: 169 | B172: Caimão, Ilhas | C172: 53.1296 | D172: 6.85821831e-06 | F172: 169 | G172: Oceano Indico, Território Britânico do | H172: 0.1384 | I172: 1.233763172e-08 | K172: 169 | L172: Polinésia Francesa | M172: 133.9626 | N172: 7.063837689e-06 | O172: 133.9062
A173: 170 | B173: Ceuta e Melilha | C173: 51.6648 | D173: 6.669135046e-06 | F173: 170 | G173: Niger | H173: 0.1252 | I173: 1.116092118e-08 | K173: 170 | L173: Bósnia-Herzegovina | M173: 133.0896 | N173: 7.017804465e-06 | O173: 47.9748
A174: 171 | B174: Bahamas | C174: 43.9552 | D174: 5.673943668e-06 | F174: 171 | G174: Burundi | H174: 0.114 | I174: 1.016250012e-08 | K174: 171 | L174: Niger | M174: 126.8572 | N174: 6.689170488e-06 | O174: 126.6068
A175: 172 | B175: Usbequistão | C175: 41.3426 | D175: 5.336696988e-06 | F175: 172 | G175: Trindade e Tobago | H175: 0.069 | I175: 6.150986914e-09 | K175: 172 | L175: Nepal | M175: 90.5518 | N175: 4.774789513e-06 | O175: 85.235
A176: 173 | B176: Virgens dos Estados Unidos, Ilhas | C176: 26.0742 | D176: 3.365780203e-06 | F176: 173 | G176: Gâmbia | H176: 0.039 | I176: 3.476644778e-09 | K176: 173 | L176: Centro-Africana, República | M176: 89.9082 | N176: 4.740852534e-06 | O176: 89.9082
A177: 174 | B177: Turcas e Caicos, Ilhas | C177: 25.0024 | D177: 3.227427225e-06 | F177: 174 | G177: Polinésia Francesa | H177: 0.0282 | I177: 2.513881608e-09 | K177: 174 | L177: Tajiquistão | M177: 74.7168 | N177: 3.93981117e-06 | O177: -74.7168
A178: 175 | B178: Quirguizistão | C178: 23.7908 | D178: 3.071028206e-06 | F178: 175 | G178: Nova Caledónia | H178: 0.028 | I178: 2.496052661e-09 | K178: 175 | L178: Jibuti | M178: 70.7204 | N178: 3.729081302e-06 | O178: 70.7204
A179: 176 | B179: Guiana | C179: 20.1352 | D179: 2.599146188e-06 | F179: 176 | G179: Papuásia-Nova Guiné | H179: 0.0222 | I179: 1.979013181e-09 | K179: 176 | L179: Montenegro | M179: 54.634 | N179: 2.880846656e-06 | O179: 54.6312
A180: 177 | B180: Belize | C180: 19.5092 | D180: 2.518339168e-06 | F180: 177 | G180: Gibraltar | H180: 0.0216 | I180: 1.925526338e-09 | K180: 177 | L180: Caimão, Ilhas | M180: 53.1304 | N180: 2.801561943e-06 | O180: 53.1288
A181: 178 | B181: Mongólia | C181: 19.1206 | D181: 2.468176855e-06 | F181: 178 | G181: São Vicente e Granadinas | H181: 0.0144 | I181: 1.283684226e-09 | K181: 178 | L181: Ceuta e Melilha | M181: 51.6648 | N181: 2.724280967e-06 | O181: 51.6648
A182: 179 | B182: Afeganistão | C182: 18.9718 | D182: 2.448969052e-06 | F182: 179 | G182: Mongólia | H182: 0.0112 | I182: 9.984210643e-10 | K182: 179 | L182: Bahamas | M182: 43.9552 | N182: 2.317754346e-06 | O182: 43.9552
A183: 180 | B183: Barbados | C183: 15.4724 | D183: 1.997250064e-06 | F183: 180 | G183: Santa Lúcia | H183: 0.009 | I183: 8.02302641e-10 | K183: 180 | L183: Quirguizistão | M183: 41.2954 | N183: 2.177503295e-06 | O183: 6.2862
A184: 181 | B184: Virgens Britânicas, Ilhas | C184: 13.47 | D184: 1.738770867e-06 | F184: 181 | G184: Virgens Britânicas, Ilhas | H184: 0.007 | I184: 6.240131652e-10 | K184: 181 | L184: Botswana | M184: 30.0886 | N184: 1.586569585e-06 | O184: -29.9854
A185: 182 | B185: Laos, República Democrática Popular do | C185: 13.1192 | D185: 1.693487955e-06 | F185: 182 | G185: Maldivas | H185: 0.0036 | I185: 3.209210564e-10 | K185: 182 | L185: Virgens dos Estados Unidos, Ilhas | M185: 26.0742 | N185: 1.374890579e-06 | O185: 26.0742
A186: 183 | B186: Brunei Darussalam | C186: 12.819 | D186: 1.654736729e-06 | F186: 183 | G186: Faroé, Ilhas | H186: 0.0026 | I186: 2.317763185e-10 | K186: 183 | L186: São Marino | M186: 25.2486 | N186: 1.331356754e-06 | O186: -25.2006
A187: 184 | B187: Fiji, Ilhas | C187: 11.4226 | D187: 1.474482858e-06 | F187: 184 | G187: Haiti | H187: 0.0024 | I187: 2.139473709e-10 | K187: 184 | L187: Turcas e Caicos, Ilhas | M187: 25.0024 | N187: 1.318374647e-06 | O187: 25.0024
A188: 185 | B188: Turquemenistão | C188: 7.2876 | D188: 9.407176369e-07 | F188: 185 | G188: Montenegro | H188: 0.0014 | I188: 1.24802633e-10 | K188: 185 | L188: Afeganistão | M188: 19.5566 | N188: 1.031218028e-06 | O188: 18.387
A189: 186 | B189: Santa Lúcia | C189: 7.138 | D189: 9.214065662e-07 | F189: 186 | G189: Caimão, Ilhas | H189: 0.0008 | I189: 7.131579031e-11 | K189: 186 | L189: Mongólia | M189: 19.1318 | N189: 1.008818356e-06 | O189: 19.1094
A190: 187 | B190: Malavi | C190: 6.6344 | D190: 8.563995129e-07 | F190: 187 | G190: Anguila | H190: 0 | I190: 0 | K190: 187 | L190: Barbados | M190: 15.636 | N190: 8.244850884e-07 | O190: 15.3088
A191: 188 | B191: Bonaire, Santo Eustáquio e Saba | C191: 6.6316 | D191: 8.560380757e-07 | F191: 188 | G191: Antárctica | H191: 0 | I191: 0 | K191: 188 | L191: Fiji, Ilhas | M191: 13.6736 | N191: 7.210078859e-07 | O191: 9.1716
A192: 189 | B192: Guam | C192: 6.3336 | D192: 8.17570836e-07 | F192: 189 | G192: Antilhas Holandesas | H192: 0 | I192: 0 | K192: 189 | L192: Virgens Britânicas, Ilhas | M192: 13.477 | N192: 7.106411829e-07 | O192: 13.463
A193: 190 | B193: São Vicente e Granadinas | C193: 4.3128 | D193: 5.567164806e-07 | F193: 190 | G193: Bahamas | H193: 0 | I193: 0 | K193: 190 | L193: São Cristovão e Nevis | M193: 13.1558 | N193: 6.937043314e-07 | O193: -11.657
A194: 191 | B194: Sudão do Sul | C194: 3.771 | D194: 4.867783919e-07 | F194: 191 | G194: Bonaire, Santo Eustáquio e Saba | H194: 0 | I194: 0 | K194: 191 | L194: Brunei Darussalam | M194: 12.819 | N194: 6.759448931e-07 | O194: 12.819
A195: 192 | B195: Marianas do Norte, Ilhas | C195: 2.9244 | D195: 3.774952875e-07 | F195: 192 | G195: Bouvet, Ilha | H195: 0 | I195: 0 | K195: 192 | L195: Santa Lúcia | M195: 7.147 | N195: 3.768607653e-07 | O195: 7.129
A196: 193 | B196: Papuásia-Nova Guiné | C196: 2.8856 | D196: 3.724868013e-07 | F196: 193 | G196: Brunei Darussalam | H196: 0 | I196: 0 | K196: 193 | L196: Bonaire, Santo Eustáquio e Saba | M196: 6.6316 | N196: 3.496837626e-07 | O196: 6.6316
A197: 194 | B197: Anguila | C197: 2.7816 | D197: 3.590619928e-07 | F197: 194 | G197: Butão | H197: 0 | I197: 0 | K197: 194 | L197: Guam | M197: 6.3336 | N197: 3.339702453e-07 | O197: 6.3336
A198: 195 | B198: Domínica | C198: 1.4248 | D198: 1.839198761e-07 | F198: 195 | G198: Centro-Africana, República | H198: 0 | I198: 0 | K198: 195 | L198: São Vicente e Granadinas | M198: 4.3272 | N198: 2.281729262e-07 | O198: 4.2984
A199: 196 | B199: São Cristovão e Nevis | C199: 0.7494 | D199: 9.673607183e-08 | F199: 196 | G199: Ceuta | H199: 0 | I199: 0 | K199: 196 | L199: Sudão do Sul | M199: 3.771 | N199: 1.988445426e-07 | O199: 3.771
A200: 197 | B200: Granada | C200: 0.6942 | D200: 8.961059656e-08 | F200: 197 | G200: Ceuta e Melilha | H200: 0 | I200: 0 | K200: 197 | L200: Marianas do Norte, Ilhas | M200: 2.9244 | N200: 1.542033891e-07 | O200: 2.9244
... 58 more rows

Sheet 2A
A1: Parceiros comerciais de Portugal - União Europeia vs. Países Terceiros (média 2019-2023 em milhões de euros) produtos agrícolas e agroalimentares, do mar e da floresta
A2: Exportações | F2: Importações | K2: Trocas comerciais (total e saldo)
A3: P | B3: Grupo de Países | C3: média quinquénio | D3: % do Total | F3: P | G3: Grupo de Países | H3: média quinquénio | I3: % do Total | K3: P | L3: Grupo de Países | M3: média quinquénio | N3: % do Total | O3: Saldo (exp-imp)
A4: 1 | B4: União Europeia | C4: 9407.139979 | D4: 0.6779438817 | F4: 1 | G4: União Europeia | H4: 12705.30685 | I4: 0.7854366173 | K4: 1 | L4: União Europeia | M4: 22112.44683 | N4: 0.7358038778 | O4: -3298.166875
A5: 2 | B5: Países Terceiros | C5: 4469.1217 | D5: 0.3220759678 | F5: 2 | G5: Países Terceiros | H5: 3470.800262 | I5: 0.2145633827 | K5: 2 | L5: Países Terceiros | M5: 7939.921962 | N5: 0.2642052873 | O5: 998.3214384
B6: Outros | C6: -0.2754318 | D6: -1.984952962e-05 | G6: Outros | H6: 0 | I6: 0 | L6: Outros | M6: -0.2754318 | N6: -9.165145225e-06 | O6: -0.2754318
B7: Total | C7: 13875.98625 | D7: 1 | G7: Total | H7: 16176.10712 | I7: 1 | L7: Total | M7: 30052.09336 | N7: 1 | O7: -2300.120868
F27: valores em milhões de euros
A28: Nota: Outros = Países não determinados, abastecimentos de bordo, etc.
A29: Fonte: GPP a partir de dados INE/Comércio Internacional (2022 provisórios) | M29: 2024-03-04

Sheet 3
A1: Principais produtos agrícolas e agroalimentares, do mar e da floresta transacionados entre Portugal e Itália em 2019-2023 (NC a 2 e 4 dígitos) em milhões de euros
AC4: P | AE4: Cód.NC | AF4: Descritivo | AG4: Média export quinquénio | AH4: % do total | AI4: % acumulada | AN4: P | AO4: NC | AP4: Exportações | AQ4: 2019 | AR4: 2020 | AS4: 2021 | AT4: 2022 | AU4: 2023 | AV4: média quinquénio
AC5: 1 | AD5: º | AE5: 24 | AF5: Tabaco | AG5: 232.5541334 | AH5: 0.254125175 | AN5: 1º | AO5: 24 | AP5: Tabaco | AQ5: 213.566868 | AR5: 186.237524 | AS5: 245.943633 | AT5: 238.960117 | AU5: 278.062525 | AV5: 232.5541334
AC6: 2 | AD6: º | AE6: 48 | AF6: Papel e cartão | AG6: 142.0139444 | AH6: 0.1551867427 | AN6: 2º | AO6: 48 | AP6: Papel e cartão | AQ6: 117.213872 | AR6: 94.87756 | AS6: 136.638871 | AT6: 219.993746 | AU6: 141.345673 | AV6: 142.0139444
AC7: 3 | AD7: º | AE7: 15 | AF7: Gorduras e óleos animais ou vegetais | AG7: 120.4561076 | AH7: 0.131629264 | AI7: 0.5409411817 | AN7: 3º | AO7: 15 | AP7: Gorduras e óleos animais ou vegetais | AQ7: 82.686468 | AR7: 86.534004 | AS7: 137.249486 | AT7: 163.741133 | AU7: 132.069447 | AV7: 120.4561076
AC8: 4 | AD8: º | AE8: 45 | AF8: Cortiça e suas obras | AG8: 115.2556004 | AH8: 0.125946373 | AO8: - | AP8: Outros | AQ8: 396.337812 | AR8: 377.609167 | AS8: 414.558669 | AT8: 462.393013 | AU8: 449.562769 | AV8: 420.092286
AC9: 5 | AD9: º | AE9: 03 | AF9: Peixes e crustáceos | AG9: 70.3697536 | AH9: 0.07689704622 | AP9: Total | AQ9: 809.80502 | AR9: 745.258255 | AS9: 934.390659 | AT9: 1085.088009 | AU9: 1001.040414 | AV9: 915.1164714
AC10: 6 | AD10: º | AE10: 16p | AF10: Preparações e conservas de peixes ou crustáceos (NC 1604-05) (p) | AG10: 43.9075118 | AH10: 0.04798024423
AC11: 7 | AD11: º | AE11: 08 | AF11: Frutas | AG11: 27.2253172 | AH11: 0.02975065803
AC12: 8 | AD12: º | AE12: 38f | AF12: Tall oil, essências e colofónias (f) | AG12: 20.7964516 | AH12: 0.02272546965
AC13: 9 | AD13: º | AE13: 47 | AF13: Pastas de madeira | AG13: 20.6645968 | AH13: 0.02258138439
AC14: 10 | AD14: º | AE14: 44 | AF14: Madeira e suas obras | AG14: 19.3280856 | AH14: 0.02112090232 | AI14: 0.8879432595
AE15: - | AF15: Outros | AG15: 102.544969 | AH15: 0.1120567405
AE16: Total | AG16: 915.1164714 | AH16: 1
AC38: P | AE38: Cód.NC | AF38: Descritivo | AG38: Média import quinquénio | AH38: % do total | AI38: % acumulada | AN38: P | AO38: NC | AP38: Importações | AQ38: 2019 | AR38: 2020 | AS38: 2021 | AT38: 2022 | AU38: 2023 | AV38: média quinquénio
AC39: 1 | AD39: º | AE39: 48 | AF39: Papel e cartão | AG39: 66.6506364 | AH39: 0.1350454894 | AN39: 1º | AO39: 48 | AP39: Papel e cartão | AQ39: 63.607727 | AR39: 54.862335 | AS39: 65.264667 | AT39: 79.385215 | AU39: 70.133238 | AV39: 66.6506364
AC40: 2 | AD40: º | AE40: 24 | AF40: Tabaco | AG40: 64.3938754 | AH40: 0.130472909 | AN40: 2º | AO40: 24 | AP40: Tabaco | AQ40: 35.681862 | AR40: 38.153269 | AS40: 68.227272 | AT40: 84.812671 | AU40: 95.094303 | AV40: 64.3938754
AC41: 3 | AD41: º | AE41: 19a | AF41: Preparações à base de cereais (exc. NC 19022010) (a) | AG41: 43.9177132 | AH41: 0.08898473285 | AI41: 0.3545031313 | AN41: 3º | AO41: 19a | AP41: Preparações à base de cereais (exc. NC 19022010) (a) | AQ41: 42.338362 | AR41: 35.850556 | AS41: 37.097846 | AT41: 47.376893 | AU41: 56.924909 | AV41: 43.9177132
AC42: 4 | AD42: º | AE42: 18 | AF42: Cacau e suas preparações | AG42: 40.595741 | AH42: 0.08225385396 | AO42: - | AP42: Outros | AQ42: 285.131589 | AR42: 243.715873 | AS42: 290.041494 | AT42: 380.570323 | AU42: 393.440168 | AV42: 318.5798894
AC43: 5 | AD43: º | AE43: 22 | AF43: Bebidas, líquidos alcoólicos e vinagres | AG43: 32.8972656 | AH43: 0.06665543758 | AP43: Total | AQ43: 426.75954 | AR43: 372.582033 | AS43: 460.631279 | AT43: 592.145102 | AU43: 615.592618 | AV43: 493.5421144
AC44: 6 | AD44: º | AE44: 02 | AF44: Carnes e miudezas | AG44: 26.636473 | AH44: 0.0539700103
AC45: 7 | AD45: º | AE45: 09 | AF45: Café, chá, mate e especiarias | AG45: 26.2313362 | AH45: 0.05314913446
AC46: 8 | AD46: º | AE46: 21 | AF46: Preparações alimentícias diversas | AG46: 25.8719964 | AH46: 0.0524210511
AC47: 9 | AD47: º | AE47: 04 | AF47: Leite e laticínios; ovos; mel, etc. | AG47: 24.307722 | AH47: 0.04925156596
AC48: 10 | AD48: º | AE48: 45 | AF48: Cortiça e suas obras | AG48: 23.7714492 | AH48: 0.04816498634 | AI48: 0.760369171
AE49: - | AF49: Outros | AG49: 118.267906 | AH49: 0.239630829
AE50: Total | AG50: 493.5421144 | AH50: 1
AC62: DESAGREGAÇÃO A 4 DÍGITOS | AN62: DESAGREGAÇÃO A 4 DÍGITOS
AC64: P | AE64: Cód.NC | AF64: Descritivo | AG64: Média export quinquénio | AH64: % do total | AI64: % acumulada | AN64: P | AO64: NC | AP64: Exportações | AQ64: 2019 | AR64: 2020 | AS64: 2021 | AT64: 2022 | AU64: 2023 | AV64: média quinquénio
AC65: 1 | AD65: º | AE65: 2402 | AF65: Charutos, cigarrilhas e cigarros | AG65: 232.0937344 | AH65: 0.2536220707 | AN65: 1º | AO65: 2402 | AP65: Charutos, cigarrilhas e cigarros | AQ65: 212.807667 | AR65: 185.544831 | AS65: 245.54462 | AT65: 238.780459 | AU65: 277.791095 | AV65: 232.0937344
AC66: 2 | AD66: º | AE66: 1509 | AF66: Azeite (processos mecânicos ou físicos) | AG66: 108.1517424 | AH66: 0.1181835819 | AN66: 2º | AO66: 1509 | AP66: Azeite (processos mecânicos ou físicos) | AQ66: 81.445974 | AR66: 85.716893 | AS66: 128.970391 | AT66: 136.276221 | AU66: 108.349233 | AV66: 108.1517424
AC67: 3 | AD67: º | AE67: 4802 | AF67: Papel e cartão p/ escrita, etc. | AG67: 100.9988294 | AH67: 0.1103671856 | AI67: 0.4821728381 | AN67: 3º | AO67: 4802 | AP67: Papel e cartão p/ escrita, etc. | AQ67: 83.214938 | AR67: 71.893346 | AS67: 89.060107 | AT67: 153.291317 | AU67: 107.534439 | AV67: 100.9988294
AC68: 4 | AD68: º | AE68: 4504 | AF68: Cortiça aglomerada e suas obras | AG68: 71.8950986 | AH68: 0.07856387777 | AN68: - | AO68: - | AP68: Outros | AQ68: 432.336441 | AR68: 402.103185 | AS68: 470.815541 | AT68: 556.740012 | AU68: 507.365647 | AV68: 473.8721652
AC69: 5 | AD69: º | AE69: 1604 | AF69: Preparações e conservas de peixes, etc. | AG69: 42.4562052 | AH69: 0.04639431868 | AP69: Total | AQ69: 809.80502 | AR69: 745.258255 | AS69: 934.390659 | AT69: 1085.088009 | AU69: 1001.040414 | AV69: 915.1164714
AC70: 6 | AD70: º | AE70: 4503 | AF70: Obras de cortiça natural | AG70: 40.3168888 | AH70: 0.04405656554
AC71: 7 | AD71: º | AE71: 4804 | AF71: Papel e cartão "kraft", não revestidos | AG71: 21.720465 | AH71: 0.02373519183
AC72: 8 | AD72: º | AE72: 3806 | AF72: Colofónias e derivados | AG72: 20.6507034 | AH72: 0.02256620228
AC73: 9 | AD73: º | AE73: 4703 | AF73: Pastas químicas de madeira, à soda ou ao sulfato | AG73: 20.5186906 | AH73: 0.02242194435
AC74: 10 | AD74: º | AE74: 0307 | AF74: Moluscos | AG74: 18.2178008 | AH74: 0.01990763074 | AI74: 0.7398185693
AE75: - | AF75: Outros | AG75: 238.0963128 | AH75: 0.2601814307
AE76: Total | AG76: 915.1164714 | AH76: 1
AC89: DESAGREGAÇÃO A 4 DÍGITOS | AN89: DESAGREGAÇÃO A 4 DÍGITOS
G91: média 2019-2023 em milhões de euros | I91: Cód. NC | J91: Descritivo | K91: Export | L91: Import | M91: Saldo | AC91: P | AE91: Cód.NC | AF91: Descritivo | AG91: Média import quinquénio | AH91: % do total | AI91: % acumulada | AN91: P | AO91: NC | AP91: Importações | AQ91: 2019 | AR91: 2020 | AS91: 2021 | AT91: 2022 | AU91: 2023 | AV91: média quinquénio
I92: 2402 | J92: Charutos, cigarrilhas e cigarros | K92: 232.0937344 | L92: 0.0120134 | M92: 232.081721 | AC92: 1 | AD92: º | AE92: 1806 | AF92: Chocolate e outras preparações com cacau | AG92: 40.4158364 | AH92: 0.08188933674 | AN92: 1º | AO92: 1806 | AP92: Chocolate e outras preparações com cacau | AQ92: 39.298894 | AR92: 35.974502 | AS92: 36.144441 | AT92: 45.145803 | AU92: 45.515542 | AV92: 40.4158364
I93: 1509 | J93: Azeite (processos mecânicos ou físicos) | K93: 108.1517424 | L93: 2.0487004 | M93: 106.103042 | AC93: 2 | AD93: º | AE93: 2404 | AF93: Produtos que contenham tabaco, tabaco reconstituído, nicotina ou sucedâneos | AG93: 34.7274918 | AH93: 0.07036378616 | AN93: 2º | AO93: 2404 | AP93: Produtos que contenham tabaco, tabaco reconstituído, nicotina ou sucedâneos | AQ93: 0 | AR93: 0 | AS93: 0 | AT93: 82.383868 | AU93: 91.253591 | AV93: 34.7274918
I94: 4802 | J94: Papel e cartão p/ escrita, etc. | K94: 100.9988294 | L94: 3.6437632 | M94: 97.3550662 | AC94: 3 | AD94: º | AE94: 2403 | AF94: Outros produtos de tabaco | AG94: 27.0396334 | AH94: 0.05478688163 | AI94: 0.2070400045 | AN94: 3º | AO94: 2403 | AP94: Outros produtos de tabaco | AQ94: 33.825574 | AR94: 33.588571 | AS94: 65.875867 | AT94: 0.076675 | AU94: 1.83148 | AV94: 27.0396334
I95: 4504 | J95: Cortiça aglomerada e suas obras | K95: 71.8950986 | L95: 0.3456714 | M95: 71.5494272 | AC95: 4 | AD95: º | AE95: 1905 | AF95: Produtos de padaria, pastelaria, etc. | AG95: 26.0122092 | AH95: 0.05270514601 | AN95: - | AO95: - | AP95: Outros | AQ95: 353.635072 | AR95: 303.01896 | AS95: 358.610971 | AT95: 464.538756 | AU95: 476.992005 | AV95: 391.3591528
I96: 1604 | J96: Preparações e conservas de peixes, etc. | K96: 42.4562052 | L96: 0.8852868 | M96: 41.5709184 | AC96: 5 | AD96: º | AE96: 0901 | AF96: Café | AG96: 25.5716188 | AH96: 0.05181243516 | AP96: Total | AQ96: 426.75954 | AR96: 372.582033 | AS96: 460.631279 | AT96: 592.145102 | AU96: 615.592618 | AV96: 493.5421144
I97: 4503 | J97: Obras de cortiça natural | K97: 40.3168888 | L97: 4.2394062 | M97: 36.0774826 | AC97: 6 | AD97: º | AE97: 0406 | AF97: Queijos e requeijão | AG97: 21.8986368 | AH97: 0.0443703509
I98: 3806 | J98: Colofónias e derivados | K98: 20.6507034 | L98: 0.0207062 | M98: 20.6299972 | AC98: 7 | AD98: º | AE98: 4501 | AF98: Cortiça natural em bruto | AG98: 19.1047786 | AH98: 0.03870952051
I99: 4703 | J99: Pastas químicas de madeira, à soda ou ao sulfato | K99: 20.5186906 | L99: 0.2178598 | M99: 20.3008308 | AC99: 8 | AD99: º | AE99: 0207 | AF99: Carnes e miudezas de aves de capoeira | AG99: 18.329787 | AH99: 0.03713925613
I100: 4804 | J100: Papel e cartão "kraft", não revestidos | K100: 21.720465 | L100: 1.8704038 | M100: 19.8500612 | AC100: 9 | AD100: º | AE100: 4811 | AF100: Papel, cartão, pasta de celulose, etc. | AG100: 18.1020904 | AH100: 0.03667790422
I101: 0307 | J101: Moluscos | K101: 18.2178008 | L101: 0.2405558 | M101: 17.977245 | AC101: 10 | AD101: º | AE101: 2309 | AF101: Preparações p/ alimentação animal | AG101: 16.1517152 | AH101: 0.03272611339 | AI101: 0.5011807308
I102: - | J102: Outros | K102: 226.227492 | L102: 235.92597 | M102: -9.698478 | AE102: - | AF102: Outros | AG102: 246.1883168 | AH102: 0.4988192692
I103: 1902 | J103: Massas alimentícias (exc. NC 1902 20 10) (a) | K103: 0.094708 | L103: 14.8400702 | M103: -14.7453622 | AE103: Total | AG103: 493.5421144 | AH103: 1
I104: 2309 | J104: Preparações p/ alimentação animal | K104: 0.9540012 | L104: 16.1517152 | M104: -15.197714
I105: 4501 | J105: Cortiça natural em bruto | K105: 2.9937962 | L105: 19.1047786 | M105: -16.1109824
I106: 0207 | J106: Carnes e miudezas de aves de capoeira | K106: 1.4292532 | L106: 18.329787 | M106: -16.9005338
I107: 1905 | J107: Produtos de padaria, pastelaria, etc. | K107: 4.2594302 | L107: 26.0122092 | M107: -21.752779
I108: 0406 | J108: Queijos e requeijão | K108: 0.034765 | L108: 21.8986368 | M108: -21.8638718
I109: 0901 | J109: Café | K109: 0.4665924 | L109: 25.5716188 | M109: -25.1050264
I110: 2403 | J110: Outros produtos de tabaco | K110: 0.2656152 | L110: 27.0396334 | M110: -26.7740182
I111: 2404 | J111: Produtos que contenham tabaco, tabaco reconstituído, nicotina ou sucedâneos | K111: 0 | L111: 34.7274918 | M111: -34.7274918
I112: 1806 | J112: Chocolate e outras preparações com cacau | K112: 1.3706594 | L112: 40.4158364 | M112: -39.045177
I113: Total | K113: 915.1164714 | L113: 493.5421144 | M113: 421.574357
A116: Fonte: GPP a partir de dados INE/Comércio Internacional (2022 definitivos) | Y116: 2024-05-10T17:39:15.770

Sheet 3A
A1: Principais produtos agrícolas e agroalimentares transacionados entre Portugal e Itália em 2019-2023 (NC a 2 e 4 dígitos) em milhões de euros
AC4: P | AE4: Cód.NC | AF4: Descritivo | AG4: Média export quinquénio | AH4: % do total | AI4: % acumulada | AN4: P | AO4: NC | AP4: Exportações | AQ4: 2019 | AR4: 2020 | AS4: 2021 | AT4: 2022 | AU4: 2023 | AV4: média quinquénio
AC5: 1 | AD5: º | AE5: 24 | AF5: Tabaco | AG5: 232.5541334 | AH5: 0.4840471784 | AN5: 1º | AO5: 24 | AP5: Tabaco | AQ5: 213.566868 | AR5: 186.237524 | AS5: 245.943633 | AT5: 238.960117 | AU5: 278.062525 | AV5: 232.5541334
AC6: 2 | AD6: º | AE6: 15 | AF6: Gorduras e óleos animais ou vegetais | AG6: 120.4561076 | AH6: 0.2507220068 | AN6: 2º | AO6: 15 | AP6: Gorduras e óleos animais ou vegetais | AQ6: 82.686468 | AR6: 86.534004 | AS6: 137.249486 | AT6: 163.741133 | AU6: 132.069447 | AV6: 120.4561076
AC7: 3 | AD7: º | AE7: 08 | AF7: Frutas | AG7: 27.2253172 | AH7: 0.05666782946 | AI7: 0.7914370146 | AN7: 3º | AO7: 08 | AP7: Frutas | AQ7: 39.153079 | AR7: 24.970722 | AS7: 24.62117 | AT7: 21.045405 | AU7: 26.33621 | AV7: 27.2253172
AC8: 4 | AD8: º | AE8: 20 | AF8: Preparações de produtos vegetais | AG8: 18.5178558 | AH8: 0.03854378213 | AO8: - | AP8: Outros | AQ8: 78.368173 | AR8: 102.557043 | AS8: 94.847443 | AT8: 112.318413 | AU8: 112.915715 | AV8: 100.2013574
AC9: 5 | AD9: º | AE9: 21 | AF9: Preparações alimentícias diversas | AG9: 14.3563696 | AH9: 0.0298819036 | AP9: Total | AQ9: 413.774588 | AR9: 400.299293 | AS9: 502.661732 | AT9: 536.065068 | AU9: 549.383897 | AV9: 480.4369156
AC10: 6 | AD10: º | AE10: 22 | AF10: Bebidas, líquidos alcoólicos e vinagres | AG10: 11.9817994 | AH10: 0.02493938124
AC11: 7 | AD11: º | AE11: 12 | AF11: Sementes e frutos oleaginosos | AG11: 9.9737156 | AH11: 0.02075967786
AC12: 8 | AD12: º | AE12: 07 | AF12: Produtos hortícolas | AG12: 8.0105272 | AH12: 0.0166734215
AC13: 9 | AD13: º | AE13: 19a | AF13: Preparações à base de cereais (exc. NC 19022010) (a) | AG13: 7.2559426 | AH13: 0.0151027999
AC14: 10 | AD14: º | AE14: 04 | AF14: Leite e laticínios; ovos; mel, etc. | AG14: 5.6113028 | AH14: 0.01167958293 | AI14: 0.9490175638
AE15: - | AF15: Outros | AG15: 24.4938444 | AH15: 0.0509824362
AE16: Total | AG16: 480.4369156 | AH16: 1
AC38: P | AE38: Cód.NC | AF38: Descritivo | AG38: Média import quinquénio | AH38: % do total | AI38: % acumulada | AN38: P | AO38: NC | AP38: Importações | AQ38: 2019 | AR38: 2020 | AS38: 2021 | AT38: 2022 | AU38: 2023 | AV38: média quinquénio
AC39: 1 | AD39: º | AE39: 24 | AF39: Tabaco | AG39: 64.3938754 | AH39: 0.173926239 | AN39: 1º | AO39: 24 | AP39: Tabaco | AQ39: 35.681862 | AR39: 38.153269 | AS39: 68.227272 | AT39: 84.812671 | AU39: 95.094303 | AV39: 64.3938754
AC40: 2 | AD40: º | AE40: 19a | AF40: Preparações à base de cereais (exc. NC 19022010) (a) | AG40: 43.9177132 | AH40: 0.1186206395 | AN40: 2º | AO40: 19a | AP40: Preparações à base de cereais (exc. NC 19022010) (a) | AQ40: 42.338362 | AR40: 35.850556 | AS40: 37.097846 | AT40: 47.376893 | AU40: 56.924909 | AV40: 43.9177132
AC41: 3 | AD41: º | AE41: 18 | AF41: Cacau e suas preparações | AG41: 40.595741 | AH41: 0.1096480761 | AI41: 0.4021949546 | AN41: 3º | AO41: 18 | AP41: Cacau e suas preparações | AQ41: 39.330132 | AR41: 36.125268 | AS41: 36.197826 | AT41: 45.378203 | AU41: 45.947276 | AV41: 40.595741
AC42: 4 | AD42: º | AE42: 22 | AF42: Bebidas, líquidos alcoólicos e vinagres | AG42: 32.8972656 | AH42: 0.08885468754 | AO42: - | AP42: Outros | AQ42: 188.103989 | AR42: 160.060058 | AS42: 204.062186 | AT42: 268.730061 | AU42: 285.690519 | AV42: 221.3293626
AC43: 5 | AD43: º | AE43: 02 | AF43: Carnes e miudezas | AG43: 26.636473 | AH43: 0.07194444408 | AP43: Total | AQ43: 305.454345 | AR43: 270.189151 | AS43: 345.58513 | AT43: 446.297828 | AU43: 483.657007 | AV43: 370.2366922
AC44: 6 | AD44: º | AE44: 09 | AF44: Café, chá, mate e especiarias | AG44: 26.2313362 | AH44: 0.07085017977
AC45: 7 | AD45: º | AE45: 21 | AF45: Preparações alimentícias diversas | AG45: 25.8719964 | AH45: 0.069879612
AC46: 8 | AD46: º | AE46: 04 | AF46: Leite e laticínios; ovos; mel, etc. | AG46: 24.307722 | AH46: 0.06565454616
AC47: 9 | AD47: º | AE47: 23a | AF47: Resíduos indústrias alimentares; alimentos p/ animais (exc. NC 230120) (a) | AG47: 17.2861118 | AH47: 0.0466893535
AC48: 10 | AD48: º | AE48: 20 | AF48: Preparações de produtos vegetais | AG48: 8.8942182 | AH48: 0.02402305981 | AI48: 0.8400908374
AE49: - | AF49: Outros | AG49: 59.2042394 | AH49: 0.1599091626
AE50: Total | AG50: 370.2366922 | AH50: 1
AC62: DESAGREGAÇÃO A 4 DÍGITOS | AN62: DESAGREGAÇÃO A 4 DÍGITOS
AC64: P | AE64: Cód.NC | AF64: Descritivo | AG64: Média export quinquénio | AH64: % do total | AI64: % acumulada | AN64: P | AO64: NC | AP64: Exportações | AQ64: 2019 | AR64: 2020 | AS64: 2021 | AT64: 2022 | AU64: 2023 | AV64: média quinquénio
AC65: 1 | AD65: º | AE65: 2402 | AF65: Charutos, cigarrilhas e cigarros | AG65: 232.0937344 | AH65: 0.4830888861 | AN65: 1º | AO65: 2402 | AP65: Charutos, cigarrilhas e cigarros | AQ65: 212.807667 | AR65: 185.544831 | AS65: 245.54462 | AT65: 238.780459 | AU65: 277.791095 | AV65: 232.0937344
AC66: 2 | AD66: º | AE66: 1509 | AF66: Azeite (processos mecânicos ou físicos) | AG66: 108.1517424 | AH66: 0.2251112246 | AN66: 2º | AO66: 1509 | AP66: Azeite (processos mecânicos ou físicos) | AQ66: 81.445974 | AR66: 85.716893 | AS66: 128.970391 | AT66: 136.276221 | AU66: 108.349233 | AV66: 108.1517424
AC67: 3 | AD67: º | AE67: 2002 | AF67: Tomates preparados | AG67: 15.9073612 | AH67: 0.03311019758 | AI67: 0.7413103083 | AN67: 3º | AO67: 2002 | AP67: Tomates preparados | AQ67: 8.00599 | AR67: 22.719834 | AS67: 13.015129 | AT67: 14.874243 | AU67: 20.92161 | AV67: 15.9073612
AC68: 4 | AD68: º | AE68: 0802 | AF68: Frutas de casca rija | AG68: 15.0770018 | AH68: 0.03138185537 | AN68: - | AO68: - | AP68: Outros | AQ68: 111.514957 | AR68: 106.317735 | AS68: 115.131592 | AT68: 146.134145 | AU68: 142.321959 | AV68: 124.2840776
AC69: 5 | AD69: º | AE69: 1515 | AF69: Outras gorduras e óleos vegetais | AG69: 9.3091668 | AH69: 0.01937646025 | AP69: Total | AQ69: 413.774588 | AR69: 400.299293 | AS69: 502.661732 | AT69: 536.065068 | AU69: 549.383897 | AV69: 480.4369156
AC70: 6 | AD70: º | AE70: 2204 | AF70: Vinhos de uvas frescas | AG70: 7.7273078 | AH70: 0.01608391768
AC71: 7 | AD71: º | AE71: 1212 | AF71: Alfarroba, algas, beterraba sacarina, etc. | AG71: 6.9209594 | AH71: 0.01440555289
AC72: 8 | AD72: º | AE72: 0504 | AF72: Tripas de animais (excepto peixes) | AG72: 5.1707666 | AH72: 0.01076263383
AC73: 9 | AD73: º | AE73: 2104 | AF73: Preparações para caldos e sopas | AG73: 4.9214946 | AH73: 0.01024378943
AC74: 10 | AD74: º | AE74: 0811 | AF74: Frutas não cozidas ou cozidas em água ou vapor, congeladas | AG74: 4.7636756 | AH74: 0.009915298857 | AI74: 0.8534798166
AE75: - | AF75: Outros | AG75: 70.393705 | AH75: 0.1465201834
AE76: Total | AG76: 480.4369156 | AH76: 1
AC89: DESAGREGAÇÃO A 4 DÍGITOS | AN89: DESAGREGAÇÃO A 4 DÍGITOS
G91: média 2019-2023 em milhões de euros | I91: Cód. NC | J91: Descritivo | K91: Export | L91: Import | M91: Saldo | AC91: P | AE91: Cód.NC | AF91: Descritivo | AG91: Média import quinquénio | AH91: % do total | AI91: % acumulada | AN91: P | AO91: NC | AP91: Importações | AQ91: 2019 | AR91: 2020 | AS91: 2021 | AT91: 2022 | AU91: 2023 | AV91: média quinquénio
I92: 2402 | J92: Charutos, cigarrilhas e cigarros | K92: 232.0937344 | L92: 0.0120134 | M92: 232.081721 | AC92: 1 | AD92: º | AE92: 1806 | AF92: Chocolate e outras preparações com cacau | AG92: 40.4158364 | AH92: 0.1091621583 | AN92: 1º | AO92: 1806 | AP92: Chocolate e outras preparações com cacau | AQ92: 39.298894 | AR92: 35.974502 | AS92: 36.144441 | AT92: 45.145803 | AU92: 45.515542 | AV92: 40.4158364
I93: 1509 | J93: Azeite (processos mecânicos ou físicos) | K93: 108.1517424 | L93: 2.0487004 | M93: 106.103042 | AC93: 2 | AD93: º | AE93: 2404 | AF93: Produtos que contenham tabaco, tabaco reconstituído, nicotina ou sucedâneos | AG93: 34.7274918 | AH93: 0.0937980825 | AN93: 2º | AO93: 2404 | AP93: Produtos que contenham tabaco, tabaco reconstituído, nicotina ou sucedâneos | AQ93: 0 | AR93: 0 | AS93: 0 | AT93: 82.383868 | AU93: 91.253591 | AV93: 34.7274918
I94: 0802 | J94: Frutas de casca rija | K94: 15.0770018 | L94: 1.3544486 | M94: 13.7225532 | AC94: 3 | AD94: º | AE94: 2403 | AF94: Outros produtos de tabaco | AG94: 27.0396334 | AH94: 0.07303337019 | AI94: 0.275993611 | AN94: 3º | AO94: 2403 | AP94: Outros produtos de tabaco | AQ94: 33.825574 | AR94: 33.588571 | AS94: 65.875867 | AT94: 0.076675 | AU94: 1.83148 | AV94: 27.0396334
I95: 2002 | J95: Tomates preparados | K95: 15.9073612 | L95: 3.422603 | M95: 12.4847582 | AC95: 4 | AD95: º | AE95: 1905 | AF95: Produtos de padaria, pastelaria, etc. | AG95: 26.0122092 | AH95: 0.07025832325 | AN95: - | AO95: - | AP95: Outros | AQ95: 232.329877 | AR95: 200.626078 | AS95: 243.564822 | AT95: 318.691482 | AU95: 345.056394 | AV95: 268.0537306
I96: 1515 | J96: Outras gorduras e óleos vegetais | K96: 9.3091668 | L96: 0.1618736 | M96: 9.1472932 | AC96: 5 | AD96: º | AE96: 0901 | AF96: Café | AG96: 25.5716188 | AH96: 0.06906829965 | AP96: Total | AQ96: 305.454345 | AR96: 270.189151 | AS96: 345.58513 | AT96: 446.297828 | AU96: 483.657007 | AV96: 370.2366922
I97: 1212 | J97: Alfarroba, algas, beterraba sacarina, etc. | K97: 6.9209594 | L97: 0.0015202 | M97: 6.9194392 | AC97: 6 | AD97: º | AE97: 0406 | AF97: Queijos e requeijão | AG97: 21.8986368 | AH97: 0.05914766759
I98: 0504 | J98: Tripas de animais (excepto peixes) | K98: 5.1707666 | L98: 0.1804568 | M98: 4.9903098 | AC98: 7 | AD98: º | AE98: 0207 | AF98: Carnes e miudezas de aves de capoeira | AG98: 18.329787 | AH98: 0.04950829398
I99: 2104 | J99: Preparações para caldos e sopas | K99: 4.9214946 | L99: 0.2376722 | M99: 4.6838224 | AC99: 8 | AD99: º | AE99: 2309 | AF99: Preparações p/ alimentação animal | AG99: 16.1517152 | AH99: 0.04362537679
I100: 0604 | J100: Folhagem, folhas, ramos e outras partes de plantas | K100: 4.6334546 | L100: 0.1556522 | M100: 4.4778024 | AC100: 9 | AD100: º | AE100: 1902 | AF100: Massas alimentícias (exc. NC 1902 20 10) (a) | AG100: 14.8400702 | AH100: 0.04008265662
I101: 0811 | J101: Frutas não cozidas ou cozidas em água ou vapor, congeladas | K101: 4.7636756 | L101: 0.8795226 | M101: 3.884153 | AC101: 10 | AD101: º | AE101: 2204 | AF101: Vinhos de uvas frescas | AG101: 14.0003266 | AH101: 0.03781453026 | AI101: 0.6454987591
I102: - | J102: Outros | K102: 63.166632 | L102: 123.5608988 | M102: -60.3942668 | AE102: - | AF102: Outros | AG102: 131.2493668 | AH102: 0.3545012409
I103: 2106 | J103: Outras preparações alimentícias | K103: 1.4459016 | L103: 13.2343316 | M103: -11.78843 | AE103: Total | AG103: 370.2366922 | AH103: 1
I104: 1902 | J104: Massas alimentícias (exc. NC 1902 20 10) (a) | K104: 0.094708 | L104: 14.8400702 | M104: -14.7453622
I105: 2309 | J105: Preparações p/ alimentação animal | K105: 0.9540012 | L105: 16.1517152 | M105: -15.197714
I106: 0207 | J106: Carnes e miudezas de aves de capoeira | K106: 1.4292532 | L106: 18.329787 | M106: -16.9005338
I107: 1905 | J107: Produtos de padaria, pastelaria, etc. | K107: 4.2594302 | L107: 26.0122092 | M107: -21.752779
I108: 0406 | J108: Queijos e requeijão | K108: 0.034765 | L108: 21.8986368 | M108: -21.8638718
I109: 0901 | J109: Café | K109: 0.4665924 | L109: 25.5716188 | M109: -25.1050264
I110: 2403 | J110: Outros produtos de tabaco | K110: 0.2656152 | L110: 27.0396334 | M110: -26.7740182
I111: 2404 | J111: Produtos que contenham tabaco, tabaco reconstituído, nicotina ou sucedâneos | K111: 0 | L111: 34.7274918 | M111: -34.7274918
I112: 1806 | J112: Chocolate e outras preparações com cacau | K112: 1.3706594 | L112: 40.4158364 | M112: -39.045177
I113: Total | K113: 480.4369156 | L113: 370.2366922 | M113: 110.2002234
A116: Fonte: GPP a partir de dados INE/Comércio Internacional (2022 definitivos) | Y116: 2024-05-10T17:39:15.770

Sheet 4A
A1: Evolução da balança comercial Portugal-Itália 2019-2023 por produto em euros (NC 2 dígitos)
A3: =+aux!A31 -> Evolução da balança comercial Portugal-Itália para Tabaco
A5: Selecione o produto:
Q7: Para obter uma maior desagregação deste produto, clique no botão respetivo:
A20: =+aux!A43 -> Evolução da balança comercial Portugal-Itália para Preparações à base de cereais (exc. NC 19022010) (a)
A22: Selecione o produto:
A38: Fonte: GPP a partir de dados INE/Comércio Internacional (2022 definitivos) | N38: 2024-05-10T17:39:15.770

Sheet 5.2
A1: Trocas comerciais Portugal-Itália 2019-2023 em milhares de euros (NC 2 dígitos) | C1: Produtos agrícolas e agroalimentares, do mar e da floresta
A2: Cód. NC | B2: Descritivo | C2: Importações | K2: Exportações | S2: Saldo quinquénio (exp-imp) | T2: Evolução das importações | U2: =+"Variação das Importações " & INDEX(K3:N3,1,aux!AL1) & "-"& '5.2'!O3 &"" -> Variação das Importações 2019-2023 | Z2: Evolução das exportações | AA2: ="Variação das Exportações " & INDEX(K3:N3,1,aux!AL1) & "-"& '5.2'!O3 &"" -> Variação das Exportações 2019-2023
C3: 2019 | D3: 2020 | E3: 2021 | F3: 2022 | G3: 2023 | H3: média quinquénio | I3: % Subtot | J3: % Total | K3: 2019 | L3: 2020 | M3: 2021 | N3: 2022 | O3: 2023 | P3: média quinquénio | Q3: % Subtot | R3: % Total | U3: variação total em valor | V3: % no subtotal de variação | W3: % no total de variação | X3: taxa de variação média anual | Y3: taxa de variação total | AA3: variação total em valor | AB3: % no subtotal de variação | AC3: % no total de variação | AD3: taxa de variação média anual | AE3: taxa de variação total
A4: 01 | B4: Animais vivos | C4: 393.015 | D4: 51.23 | E4: 99.515 | F4: 0.013 | G4: 141.721 | H4: 137.0988 | I4: 0.0003703004129 | J4: 0.0002777854128 | K4: 160.368 | L4: 335.105 | M4: 258.675 | N4: 432.825 | O4: 0 | P4: 237.3946 | Q4: 0.000494122313 | R4: 0.0002594146291 | S4: 100.2958 | U4: =G4-INDEX($C4:$G4,1,aux!$AL$1) -> -251.294 | V4: =IF($U$37<>0,U4/$U$37, "n.d.") -> -0.001410158508 | W4: =IF($U$53<>0,U4/$U$53, "n.d.") -> -0.001330773203 | X4: =+IF(INDEX($C4:$G4,1,aux!$AL$1)>0,(G4/INDEX($C4:$G4,1,aux!$AL$1))^(1/($G$3-INDEX($C$3:$G$3,1,aux!$AL$1)))-1,"n.d.") -> -0.2250810694 | Y4: =IF(INDEX($C4:$G4,1,aux!$AL$1)>0,(G4-INDEX($C4:$G4,1,aux!$AL$1))/INDEX($C4:$G4,1,aux!$AL$1),"n.d.") -> -0.6394005318 | AA4: =O4-INDEX($K4:$O4,1,aux!$AL$1) -> -160.368 | AB4: =IF($AA$37<>0,AA4/$AA$37, "n.d.") -> -0.001182573683 | AC4: =IF($AA$53<>0,AA4/$AA$53, "n.d.") -> -0.0008385895343 | AD4: =+IF(INDEX($K4:$O4,1,aux!$AL$1)>0,(O4/INDEX($K4:$O4,1,aux!$AL$1))^(1/($O$3-INDEX($K$3:$O$3,1,aux!$AL$1)))-1,"n.d.") -> -1 | AE4: =IF(INDEX($K4:$O4,1,aux!$AL$1)>0,(O4-INDEX($K4:$O4,1,aux!$AL$1))/INDEX($K4:$O4,1,aux!$AL$1),"n.d.") -> -1
A5: 02 | B5: Carnes e miudezas | C5: 25021.327 | D5: 20684.368 | E5: 23834.948 | F5: 26574.274 | G5: 37067.448 | H5: 26636.473 | I5: 0.07194444408 | J5: 0.0539700103 | K5: 1053.243 | L5: 1641.969 | M5: 2981.045 | N5: 6982.009 | O5: 9641.791 | P5: 4460.0114 | Q5: 0.009283240432 | R5: 0.004873709019 | S5: -22176.4616 | U5: =G5-INDEX($C5:$G5,1,aux!$AL$1) -> 12046.121 | V5: 0.06759787348 | W5: 0.06379243048 | X5: =+IF(INDEX($C5:$G5,1,aux!$AL$1)>0,(G5/INDEX($C5:$G5,1,aux!$AL$1))^(1/($G$3-INDEX($C$3:$G$3,1,aux!$AL$1)))-1,"n.d.") -> 0.1032414924 | Y5: =IF(INDEX($C5:$G5,1,aux!$AL$1)>0,(G5-INDEX($C5:$G5,1,aux!$AL$1))/INDEX($C5:$G5,1,aux!$AL$1),"n.d.") -> 0.4814341382 | AA5: =O5-INDEX($K5:$O5,1,aux!$AL$1) -> 8588.548 | AB5: 0.06333302679 | AC5: 0.04491087042 | AD5: =+IF(INDEX($K5:$O5,1,aux!$AL$1)>0,(O5/INDEX($K5:$O5,1,aux!$AL$1))^(1/($O$3-INDEX($K$3:$O$3,1,aux!$AL$1)))-1,"n.d.") -> 0.7394313092 | AE5: =IF(INDEX($K5:$O5,1,aux!$AL$1)>0,(O5-INDEX($K5:$O5,1,aux!$AL$1))/INDEX($K5:$O5,1,aux!$AL$1),"n.d.") -> 8.154384126
A6: 04 | B6: Leite e laticínios; ovos; mel, etc. | C6: 18286.012 | D6: 15793.386 | E6: 22895.2 | F6: 30762.655 | G6: 33801.357 | H6: 24307.722 | I6: 0.06565454616 | J6: 0.04925156596 | K6: 4490.561 | L6: 5236.066 | M6: 5109.067 | N6: 7102.311 | O6: 6118.509 | P6: 5611.3028 | Q6: 0.01167958293 | R6: 0.006131790843 | S6: -18696.4192 | U6: =G6-INDEX($C6:$G6,1,aux!$AL$1) -> 15515.345 | V6: 0.08706573081 | W6: 0.08216433881 | X6: =+IF(INDEX($C6:$G6,1,aux!$AL$1)>0,(G6/INDEX($C6:$G6,1,aux!$AL$1))^(1/($G$3-INDEX($C$3:$G$3,1,aux!$AL$1)))-1,"n.d.") -> 0.1660140509 | Y6: =IF(INDEX($C6:$G6,1,aux!$AL$1)>0,(G6-INDEX($C6:$G6,1,aux!$AL$1))/INDEX($C6:$G6,1,aux!$AL$1),"n.d.") -> 0.8484816153 | AA6: =O6-INDEX($K6:$O6,1,aux!$AL$1) -> 1627.948 | AB6: 0.0120046921 | AC6: 0.008512796538 | AD6: =+IF(INDEX($K6:$O6,1,aux!$AL$1)>0,(O6/INDEX($K6:$O6,1,aux!$AL$1))^(1/($O$3-INDEX($K$3:$O$3,1,aux!$AL$1)))-1,"n.d.") -> 0.08040416748 | AE6: =IF(INDEX($K6:$O6,1,aux!$AL$1)>0,(O6-INDEX($K6:$O6,1,aux!$AL$1))/INDEX($K6:$O6,1,aux!$AL$1),"n.d.") -> 0.362526642
A7: 05a | B7: Outros produtos de origem animal (exc. NC 0508, 051191) (a) | C7: 95.382 | D7: 667.604 | E7: 83.998 | F7: 164.676 | G7: 127.482 | H7: 227.8284 | I7: 0.0006153587821 | J7: 0.0004616189649 | K7: 5686.953 | L7: 5525.024 | M7: 4643.092 | N7: 5482.01 | O7: 4631.456 | P7: 5193.707 | Q7: 0.01081038286 | R7: 0.005675460078 | S7: 4965.8786 | U7: =G7-INDEX($C7:$G7,1,aux!$AL$1) -> 32.1 | V7: 0.0001801319893 | W7: 0.0001699914037 | X7: =+IF(INDEX($C7:$G7,1,aux!$AL$1)>0,(G7/INDEX($C7:$G7,1,aux!$AL$1))^(1/($G$3-INDEX($C$3:$G$3,1,aux!$AL$1)))-1,"n.d.") -> 0.07521573395 | Y7: =IF(INDEX($C7:$G7,1,aux!$AL$1)>0,(G7-INDEX($C7:$G7,1,aux!$AL$1))/INDEX($C7:$G7,1,aux!$AL$1),"n.d.") -> 0.3365414858 | AA7: =O7-INDEX($K7:$O7,1,aux!$AL$1) -> -1055.497 | AB7: -0.007783366848 | AC7: -0.005519360082 | AD7: =+IF(INDEX($K7:$O7,1,aux!$AL$1)>0,(O7/INDEX($K7:$O7,1,aux!$AL$1))^(1/($O$3-INDEX($K$3:$O$3,1,aux!$AL$1)))-1,"n.d.") -> -0.05003090698 | AE7: =IF(INDEX($K7:$O7,1,aux!$AL$1)>0,(O7-INDEX($K7:$O7,1,aux!$AL$1))/INDEX($K7:$O7,1,aux!$AL$1),"n.d.") -> -0.1855997403
A8: 06 | B8: Plantas vivas e produtos de floricultura | C8: 6328.238 | D8: 5462.953 | E8: 8081.443 | F8: 10613.388 | G8: 13645.779 | H8: 8826.3602 | I8: 0.02383977706 | J8: 0.01788370221 | K8: 8188.221 | L8: 6845.427 | M8: 4899.955 | N8: 4662.182 | O8: 2791.631 | P8: 5477.4832 | Q8: 0.01140104564 | R8: 0.005985558529 | S8: -3348.877 | U8: =G8-INDEX($C8:$G8,1,aux!$AL$1) -> 7317.541 | V8: 0.04106302856 | W8: 0.03875137279 | X8: =+IF(INDEX($C8:$G8,1,aux!$AL$1)>0,(G8/INDEX($C8:$G8,1,aux!$AL$1))^(1/($G$3-INDEX($C$3:$G$3,1,aux!$AL$1)))-1,"n.d.") -> 0.2117942356 | Y8: =IF(INDEX($C8:$G8,1,aux!$AL$1)>0,(G8-INDEX($C8:$G8,1,aux!$AL$1))/INDEX($C8:$G8,1,aux!$AL$1),"n.d.") -> 1.15633151 | AA8: =O8-INDEX($K8:$O8,1,aux!$AL$1) -> -5396.59 | AB8: -0.0397951294 | AC8: -0.02821961922 | AD8: =+IF(INDEX($K8:$O8,1,aux!$AL$1)>0,(O8/INDEX($K8:$O8,1,aux!$AL$1))^(1/($O$3-INDEX($K$3:$O$3,1,aux!$AL$1)))-1,"n.d.") -> -0.23587024 | AE8: =IF(INDEX($K8:$O8,1,aux!$AL$1)>0,(O8-INDEX($K8:$O8,1,aux!$AL$1))/INDEX($K8:$O8,1,aux!$AL$1),"n.d.") -> -0.659067458
A9: 07 | B9: Produtos hortícolas | C9: 1103.562 | D9: 1023.082 | E9: 1284.22 | F9: 2187.57 | G9: 2459.145 | H9: 1611.5158 | I9: 0.004352663672 | J9: 0.003265204231 | K9: 7860.2 | L9: 8167.373 | M9: 7686.388 | N9: 8120.096 | O9: 8218.579 | P9: 8010.5272 | Q9: 0.0166734215 | R9: 0.008753560285 | S9: 6399.0114 | U9: =G9-INDEX($C9:$G9,1,aux!$AL$1) -> 1355.583 | V9: 0.007606973907 | W9: 0.00717873698 | X9: =+IF(INDEX($C9:$G9,1,aux!$AL$1)>0,(G9/INDEX($C9:$G9,1,aux!$AL$1))^(1/($G$3-INDEX($C$3:$G$3,1,aux!$AL$1)))-1,"n.d.") -> 0.2217907979 | Y9: =IF(INDEX($C9:$G9,1,aux!$AL$1)>0,(G9-INDEX($C9:$G9,1,aux!$AL$1))/INDEX($C9:$G9,1,aux!$AL$1),"n.d.") -> 1.228370495 | AA9: =O9-INDEX($K9:$O9,1,aux!$AL$1) -> 358.379 | AB9: 0.002642731555 | AC9: 0.001874020245 | AD9: =+IF(INDEX($K9:$O9,1,aux!$AL$1)>0,(O9/INDEX($K9:$O9,1,aux!$AL$1))^(1/($O$3-INDEX($K$3:$O$3,1,aux!$AL$1)))-1,"n.d.") -> 0.01120866957 | AE9: =IF(INDEX($K9:$O9,1,aux!$AL$1)>0,(O9-INDEX($K9:$O9,1,aux!$AL$1))/INDEX($K9:$O9,1,aux!$AL$1),"n.d.") -> 0.04559413246
A10: 08 | B10: Frutas | C10: 9831.864 | D10: 6649.173 | E10: 7401.689 | F10: 9631.843 | G10: 10209.44 | H10: 8744.8018 | I10: 0.02361948987 | J10: 0.01771845106 | K10: 39153.079 | L10: 24970.722 | M10: 24621.17 | N10: 21045.405 | O10: 26336.21 | P10: 27225.3172 | Q10: 0.05666782946 | R10: 0.02975065803 | S10: 18480.5154 | U10: =G10-INDEX($C10:$G10,1,aux!$AL$1) -> 377.576 | V10: 0.002118801121 | W10: 0.001999522562 | X10: =+IF(INDEX($C10:$G10,1,aux!$AL$1)>0,(G10/INDEX($C10:$G10,1,aux!$AL$1))^(1/($G$3-INDEX($C$3:$G$3,1,aux!$AL$1)))-1,"n.d.") -> 0.009465578559 | Y10: =IF(INDEX($C10:$G10,1,aux!$AL$1)>0,(G10-INDEX($C10:$G10,1,aux!$AL$1))/INDEX($C10:$G10,1,aux!$AL$1),"n.d.") -> 0.03840329769 | AA10: =O10-INDEX($K10:$O10,1,aux!$AL$1) -> -12816.869 | AB10: -0.09451319452 | AC10: -0.06702142701 | AD10: =+IF(INDEX($K10:$O10,1,aux!$AL$1)>0,(O10/INDEX($K10:$O10,1,aux!$AL$1))^(1/($O$3-INDEX($K$3:$O$3,1,aux!$AL$1)))-1,"n.d.") -> -0.09437826106 | AE10: =IF(INDEX($K10:$O10,1,aux!$AL$1)>0,(O10-INDEX($K10:$O10,1,aux!$AL$1))/INDEX($K10:$O10,1,aux!$AL$1),"n.d.") -> -0.3273527735
A11: 09 | B11: Café, chá, mate e especiarias | C11: 21596.568 | D11: 20389.601 | E11: 28006.085 | F11: 35506.747 | G11: 25657.68 | H11: 26231.3362 | I11: 0.07085017977 | J11: 0.05314913446 | K11: 407.318 | L11: 915.305 | M11: 703.519 | N11: 293.647 | O11: 109.72 | P11: 485.9018 | Q11: 0.001011374822 | R11: 0.0005309726305 | S11: -25745.4344 | U11: =G11-INDEX($C11:$G11,1,aux!$AL$1) -> 4061.112 | V11: 0.0227892892 | W11: 0.02150635918 | X11: =+IF(INDEX($C11:$G11,1,aux!$AL$1)>0,(G11/INDEX($C11:$G11,1,aux!$AL$1))^(1/($G$3-INDEX($C$3:$G$3,1,aux!$AL$1)))-1,"n.d.") -> 0.04401841919 | Y11: =IF(INDEX($C11:$G11,1,aux!$AL$1)>0,(G11-INDEX($C11:$G11,1,aux!$AL$1))/INDEX($C11:$G11,1,aux!$AL$1),"n.d.") -> 0.1880443226 | AA11: =O11-INDEX($K11:$O11,1,aux!$AL$1) -> -297.598 | AB11: -0.002194524861 | AC11: -0.001556186822 | AD11: =+IF(INDEX($K11:$O11,1,aux!$AL$1)>0,(O11/INDEX($K11:$O11,1,aux!$AL$1))^(1/($O$3-INDEX($K$3:$O$3,1,aux!$AL$1)))-1,"n.d.") -> -0.2795762045 | AE11: =IF(INDEX($K11:$O11,1,aux!$AL$1)>0,(O11-INDEX($K11:$O11,1,aux!$AL$1))/INDEX($K11:$O11,1,aux!$AL$1),"n.d.") -> -0.7306281579
A12: 10 | B12: Cereais | C12: 8632.552 | D12: 4956.923 | E12: 6149.951 | F12: 8718.421 | G12: 10006.779 | H12: 7692.9252 | I12: 0.02077839761 | J12: 0.01558717073 | K12: 116.961 | L12: 134.193 | M12: 424.077 | N12: 844.51 | O12: 2123.736 | P12: 728.6954 | Q12: 0.001516734823 | R12: 0.000796287055 | S12: -6964.2298 | U12: =G12-INDEX($C12:$G12,1,aux!$AL$1) -> 1374.227 | V12: 0.007711596362 | W12: 0.007277469681 | X12: =+IF(INDEX($C12:$G12,1,aux!$AL$1)>0,(G12/INDEX($C12:$G12,1,aux!$AL$1))^(1/($G$3-INDEX($C$3:$G$3,1,aux!$AL$1)))-1,"n.d.") -> 0.03762105655 | Y12: =IF(INDEX($C12:$G12,1,aux!$AL$1)>0,(G12-INDEX($C12:$G12,1,aux!$AL$1))/INDEX($C12:$G12,1,aux!$AL$1),"n.d.") -> 0.1591912797 | AA12: =O12-INDEX($K12:$O12,1,aux!$AL$1) -> 2006.775 | AB12: 0.01479820976 | AC12: 0.0104937426 | AD12: =+IF(INDEX($K12:$O12,1,aux!$AL$1)>0,(O12/INDEX($K12:$O12,1,aux!$AL$1))^(1/($O$3-INDEX($K$3:$O$3,1,aux!$AL$1)))-1,"n.d.") -> 1.064262219 | AE12: =IF(INDEX($K12:$O12,1,aux!$AL$1)>0,(O12-INDEX($K12:$O12,1,aux!$AL$1))/INDEX($K12:$O12,1,aux!$AL$1),"n.d.") -> 17.15764229
A13: 11 | B13: Produtos da indústria de moagem e outros | C13: 2612.11 | D13: 2687.415 | E13: 2857.351 | F13: 4616.101 | G13: 5146.491 | H13: 3583.8936 | I13: 0.009680006535 | J13: 0.007261576055 | K13: 43.589 | L13: 22.788 | M13: 81.973 | N13: 159.971 | O13: 227.789 | P13: 107.222 | Q13: 0.0002231760227 | R13: 0.0001171675993 | S13: -3476.6716 | U13: =G13-INDEX($C13:$G13,1,aux!$AL$1) -> 2534.381 | V13: 0.01422190315 | W13: 0.01342127675 | X13: =+IF(INDEX($C13:$G13,1,aux!$AL$1)>0,(G13/INDEX($C13:$G13,1,aux!$AL$1))^(1/($G$3-INDEX($C$3:$G$3,1,aux!$AL$1)))-1,"n.d.") -> 0.1847587885 | Y13: =IF(INDEX($C13:$G13,1,aux!$AL$1)>0,(G13-INDEX($C13:$G13,1,aux!$AL$1))/INDEX($C13:$G13,1,aux!$AL$1),"n.d.") -> 0.9702428305 | AA13: =O13-INDEX($K13:$O13,1,aux!$AL$1) -> 184.2 | AB13: 0.001358313831 | AC13: 0.0009632108165 | AD13: =+IF(INDEX($K13:$O13,1,aux!$AL$1)>0,(O13/INDEX($K13:$O13,1,aux!$AL$1))^(1/($O$3-INDEX($K$3:$O$3,1,aux!$AL$1)))-1,"n.d.") -> 0.5119553309 | AE13: =IF(INDEX($K13:$O13,1,aux!$AL$1)>0,(O13-INDEX($K13:$O13,1,aux!$AL$1))/INDEX($K13:$O13,1,aux!$AL$1),"n.d.") -> 4.225836794
A14: 12 | B14: Sementes e frutos oleaginosos | C14: 2360.896 | D14: 2733.577 | E14: 3765.333 | F14: 10612.471 | G14: 8666.843 | H14: 5627.824 | I14: 0.01520061117 | J14: 0.01140292558 | K14: 1976.178 | L14: 10654.958 | M14: 17087.162 | N14: 14709.943 | O14: 5440.337 | P14: 9973.7156 | Q14: 0.02075967786 | R14: 0.0108988483 | S14: 4345.8916 | U14: =G14-INDEX($C14:$G14,1,aux!$AL$1) -> 6305.947 | V14: 0.03538637936 | W14: 0.03339429229 | X14: =+IF(INDEX($C14:$G14,1,aux!$AL$1)>0,(G14/INDEX($C14:$G14,1,aux!$AL$1))^(1/($G$3-INDEX($C$3:$G$3,1,aux!$AL$1)))-1,"n.d.") -> 0.3841909908 | Y14: =IF(INDEX($C14:$G14,1,aux!$AL$1)>0,(G14-INDEX($C14:$G14,1,aux!$AL$1))/INDEX($C14:$G14,1,aux!$AL$1),"n.d.") -> 2.670997367 | AA14: =O14-INDEX($K14:$O14,1,aux!$AL$1) -> 3464.159 | AB14: 0.02554514159 | AC14: 0.01811463311 | AD14: =+IF(INDEX($K14:$O14,1,aux!$AL$1)>0,(O14/INDEX($K14:$O14,1,aux!$AL$1))^(1/($O$3-INDEX($K$3:$O$3,1,aux!$AL$1)))-1,"n.d.") -> 0.2881010542 | AE14: =IF(INDEX($K14:$O14,1,aux!$AL$1)>0,(O14-INDEX($K14:$O14,1,aux!$AL$1))/INDEX($K14:$O14,1,aux!$AL$1),"n.d.") -> 1.752958995
A15: 13a | B15: Sucos e extratos vegetais (exc. NC 1301) (a) | C15: 132.268 | D15: 826.235 | E15: 630.366 | F15: 2400.67 | G15: 1189.872 | H15: 1035.8822 | I15: 0.002797891786 | J15: 0.002098872963 | K15: 468.734 | L15: 296.879 | M15: 0.54 | N15: 869.146 | O15: 22.914 | P15: 331.6426 | Q15: 0.0006902937498 | R15: 0.000362404798 | S15: -704.2396 | U15: =G15-INDEX($C15:$G15,1,aux!$AL$1) -> 1057.604 | V15: 0.005934838392 | W15: 0.005600734846 | X15: =+IF(INDEX($C15:$G15,1,aux!$AL$1)>0,(G15/INDEX($C15:$G15,1,aux!$AL$1))^(1/($G$3-INDEX($C$3:$G$3,1,aux!$AL$1)))-1,"n.d.") -> 0.731854349 | Y15: =IF(INDEX($C15:$G15,1,aux!$AL$1)>0,(G15-INDEX($C15:$G15,1,aux!$AL$1))/INDEX($C15:$G15,1,aux!$AL$1),"n.d.") -> 7.99591738 | AA15: =O15-INDEX($K15:$O15,1,aux!$AL$1) -> -445.82 | AB15: -0.003287532422 | AC15: -0.002331263009 | AD15: =+IF(INDEX($K15:$O15,1,aux!$AL$1)>0,(O15/INDEX($K15:$O15,1,aux!$AL$1))^(1/($O$3-INDEX($K$3:$O$3,1,aux!$AL$1)))-1,"n.d.") -> -0.5297881031 | AE15: =IF(INDEX($K15:$O15,1,aux!$AL$1)>0,(O15-INDEX($K15:$O15,1,aux!$AL$1))/INDEX($K15:$O15,1,aux!$AL$1),"n.d.") -> -0.9511151314
A16: 14 | B16: Matérias para entrançar e outros | C16: 103.814 | D16: 70.533 | E16: 236.423 | F16: 136.226 | G16: 80.325 | H16: 125.4642 | I16: 0.0003388756507 | J16: 0.0002542117407 | K16: 0.081 | L16: 4.642 | M16: 0.054 | N16: 0.007 | O16: 0.011 | P16: 0.959 | Q16: 1.996099735e-06 | R16: 1.047954036e-06 | S16: -124.5052 | U16: =G16-INDEX($C16:$G16,1,aux!$AL$1) -> -23.489 | V16: -0.0001318106011 | W16: -0.0001243902829 | X16: =+IF(INDEX($C16:$G16,1,aux!$AL$1)>0,(G16/INDEX($C16:$G16,1,aux!$AL$1))^(1/($G$3-INDEX($C$3:$G$3,1,aux!$AL$1)))-1,"n.d.") -> -0.06211691711 | Y16: =IF(INDEX($C16:$G16,1,aux!$AL$1)>0,(G16-INDEX($C16:$G16,1,aux!$AL$1))/INDEX($C16:$G16,1,aux!$AL$1),"n.d.") -> -0.2262604273 | AA16: =O16-INDEX($K16:$O16,1,aux!$AL$1) -> -0.07 | AB16: -5.161887522e-07 | AC16: -3.660410269e-07 | AD16: =+IF(INDEX($K16:$O16,1,aux!$AL$1)>0,(O16/INDEX($K16:$O16,1,aux!$AL$1))^(1/($O$3-INDEX($K$3:$O$3,1,aux!$AL$1)))-1,"n.d.") -> -0.3929465711 | AE16: =IF(INDEX($K16:$O16,1,aux!$AL$1)>0,(O16-INDEX($K16:$O16,1,aux!$AL$1))/INDEX($K16:$O16,1,aux!$AL$1),"n.d.") -> -0.8641975309
A17: 15 | B17: Gorduras e óleos animais ou vegetais | C17: 7960.015 | D17: 3699.649 | E17: 5595.725 | F17: 8245.229 | G17: 15019.983 | H17: 8104.1202 | I17: 0.02188902497 | J17: 0.01642032152 | K17: 82686.468 | L17: 86534.004 | M17: 137249.486 | N17: 163741.133 | O17: 132069.447 | P17: 120456.1076 | Q17: 0.2507220068 | R17: 0.131629264 | S17: 112351.9874 | U17: =G17-INDEX($C17:$G17,1,aux!$AL$1) -> 7059.968 | V17: 0.03961763489 | W17: 0.03738734799 | X17: =+IF(INDEX($C17:$G17,1,aux!$AL$1)>0,(G17/INDEX($C17:$G17,1,aux!$AL$1))^(1/($G$3-INDEX($C$3:$G$3,1,aux!$AL$1)))-1,"n.d.") -> 0.172030433 | Y17: =IF(INDEX($C17:$G17,1,aux!$AL$1)>0,(G17-INDEX($C17:$G17,1,aux!$AL$1))/INDEX($C17:$G17,1,aux!$AL$1),"n.d.") -> 0.8869289819 | AA17: =O17-INDEX($K17:$O17,1,aux!$AL$1) -> 49382.979 | AB17: 0.3641562616 | AC17: 0.2582313764 | AD17: =+IF(INDEX($K17:$O17,1,aux!$AL$1)>0,(O17/INDEX($K17:$O17,1,aux!$AL$1))^(1/($O$3-INDEX($K$3:$O$3,1,aux!$AL$1)))-1,"n.d.") -> 0.1241958546 | AE17: =IF(INDEX($K17:$O17,1,aux!$AL$1)>0,(O17-INDEX($K17:$O17,1,aux!$AL$1))/INDEX($K17:$O17,1,aux!$AL$1),"n.d.") -> 0.5972316897
A18: 16a | B18: Preparações de carnes (exc. NC 1604-05) (a) | C18: 2774.975 | D18: 1959.469 | E18: 2604.365 | F18: 3488.092 | G18: 4462.238 | H18: 3057.8278 | I18: 0.008259116032 | J18: 0.006195677554 | K18: 15.57 | L18: 14.351 | M18: 25.316 | N18: 54.582 | O18: 123.283 | P18: 46.6204 | Q18: 9.703750583e-05 | R18: 5.094477201e-05 | S18: -3011.2074 | U18: =G18-INDEX($C18:$G18,1,aux!$AL$1) -> 1687.263 | V18: 0.009468225564 | W18: 0.008935208904 | X18: =+IF(INDEX($C18:$G18,1,aux!$AL$1)>0,(G18/INDEX($C18:$G18,1,aux!$AL$1))^(1/($G$3-INDEX($C$3:$G$3,1,aux!$AL$1)))-1,"n.d.") -> 0.1260908091 | Y18: =IF(INDEX($C18:$G18,1,aux!$AL$1)>0,(G18-INDEX($C18:$G18,1,aux!$AL$1))/INDEX($C18:$G18,1,aux!$AL$1),"n.d.") -> 0.6080281804 | AA18: =O18-INDEX($K18:$O18,1,aux!$AL$1) -> 107.713 | AB18: 0.0007942891295 | AC18: 0.0005632482447 | AD18: =+IF(INDEX($K18:$O18,1,aux!$AL$1)>0,(O18/INDEX($K18:$O18,1,aux!$AL$1))^(1/($O$3-INDEX($K$3:$O$3,1,aux!$AL$1)))-1,"n.d.") -> 0.6774656872 | AE18: =IF(INDEX($K18:$O18,1,aux!$AL$1)>0,(O18-INDEX($K18:$O18,1,aux!$AL$1))/INDEX($K18:$O18,1,aux!$AL$1),"n.d.") -> 6.917983301
A19: 17 | B19: Açúcares e produtos de confeitaria | C19: 1649.058 | D19: 1332.02 | E19: 1238.024 | F19: 1395.982 | G19: 2103.266 | H19: 1543.67 | I19: 0.004169413871 | J19: 0.003127737137 | K19: 4.515 | L19: 6.793 | M19: 607.061 | N19: 1068.087 | O19: 1198.901 | P19: 577.0714 | Q19: 0.001201138758 | R19: 0.000630598856 | S19: -966.5986 | U19: =G19-INDEX($C19:$G19,1,aux!$AL$1) -> 454.208 | V19: 0.002548828367 | W19: 0.002405341293 | X19: =+IF(INDEX($C19:$G19,1,aux!$AL$1)>0,(G19/INDEX($C19:$G19,1,aux!$AL$1))^(1/($G$3-INDEX($C$3:$G$3,1,aux!$AL$1)))-1,"n.d.") -> 0.06270951156 | Y19: =IF(INDEX($C19:$G19,1,aux!$AL$1)>0,(G19-INDEX($C19:$G19,1,aux!$AL$1))/INDEX($C19:$G19,1,aux!$AL$1),"n.d.") -> 0.275434824 | AA19: =O19-INDEX($K19:$O19,1,aux!$AL$1) -> 1194.386 | AB19: 0.0088075517 | AC19: 0.006245632542 | AD19: =+IF(INDEX($K19:$O19,1,aux!$AL$1)>0,(O19/INDEX($K19:$O19,1,aux!$AL$1))^(1/($O$3-INDEX($K$3:$O$3,1,aux!$AL$1)))-1,"n.d.") -> 3.036745706 | AE19: =IF(INDEX($K19:$O19,1,aux!$AL$1)>0,(O19-INDEX($K19:$O19,1,aux!$AL$1))/INDEX($K19:$O19,1,aux!$AL$1),"n.d.") -> 264.53732
A20: 18 | B20: Cacau e suas preparações | C20: 39330.132 | D20: 36125.268 | E20: 36197.826 | F20: 45378.203 | G20: 45947.276 | H20: 40595.741 | I20: 0.1096480761 | J20: 0.08225385396 | K20: 565.929 | L20: 904.324 | M20: 858.547 | N20: 744.264 | O20: 3790.415 | P20: 1372.6958 | Q20: 0.002857182193 | R20: 0.001500023049 | S20: -39223.0452 | U20: =G20-INDEX($C20:$G20,1,aux!$AL$1) -> 6617.144 | V20: 0.03713268885 | W20: 0.03504229275 | X20: =+IF(INDEX($C20:$G20,1,aux!$AL$1)>0,(G20/INDEX($C20:$G20,1,aux!$AL$1))^(1/($G$3-INDEX($C$3:$G$3,1,aux!$AL$1)))-1,"n.d.") -> 0.039641462 | Y20: =IF(INDEX($C20:$G20,1,aux!$AL$1)>0,(G20-INDEX($C20:$G20,1,aux!$AL$1))/INDEX($C20:$G20,1,aux!$AL$1),"n.d.") -> 0.1682461681 | AA20: =O20-INDEX($K20:$O20,1,aux!$AL$1) -> 3224.486 | AB20: 0.02377776293 | AC20: 0.01686134524 | AD20: =+IF(INDEX($K20:$O20,1,aux!$AL$1)>0,(O20/INDEX($K20:$O20,1,aux!$AL$1))^(1/($O$3-INDEX($K$3:$O$3,1,aux!$AL$1)))-1,"n.d.") -> 0.608722749 | AE20: =IF(INDEX($K20:$O20,1,aux!$AL$1)>0,(O20-INDEX($K20:$O20,1,aux!$AL$1))/INDEX($K20:$O20,1,aux!$AL$1),"n.d.") -> 5.697686459
A21: 19a | B21: Preparações à base de cereais (exc. NC 19022010) (a) | C21: 42338.362 | D21: 35850.556 | E21: 37097.846 | F21: 47376.893 | G21: 56924.909 | H21: 43917.7132 | I21: 0.1186206395 | J21: 0.08898473285 | K21: 9853.153 | L21: 8471.66 | M21: 9346.685 | N21: 3741.388 | O21: 4866.827 | P21: 7255.9426 | Q21: 0.0151027999 | R21: 0.007928982623 | S21: -36661.7706 | U21: =G21-INDEX($C21:$G21,1,aux!$AL$1) -> 14586.547 | V21: 0.08185369868 | W21: 0.07724571963 | X21: =+IF(INDEX($C21:$G21,1,aux!$AL$1)>0,(G21/INDEX($C21:$G21,1,aux!$AL$1))^(1/($G$3-INDEX($C$3:$G$3,1,aux!$AL$1)))-1,"n.d.") -> 0.07681742158 | Y21: =IF(INDEX($C21:$G21,1,aux!$AL$1)>0,(G21-INDEX($C21:$G21,1,aux!$AL$1))/INDEX($C21:$G21,1,aux!$AL$1),"n.d.") -> 0.3445231773 | AA21: =O21-INDEX($K21:$O21,1,aux!$AL$1) -> -4986.326 | AB21: -0.03676979137 | AC21: -0.02607428414 | AD21: =+IF(INDEX($K21:$O21,1,aux!$AL$1)>0,(O21/INDEX($K21:$O21,1,aux!$AL$1))^(1/($O$3-INDEX($K$3:$O$3,1,aux!$AL$1)))-1,"n.d.") -> -0.1616648601 | AE21: =IF(INDEX($K21:$O21,1,aux!$AL$1)>0,(O21-INDEX($K21:$O21,1,aux!$AL$1))/INDEX($K21:$O21,1,aux!$AL$1),"n.d.") -> -0.506063998
A22: 20 | B22: Preparações de produtos vegetais | C22: 8530.226 | D22: 5794.043 | E22: 7394.342 | F22: 10424.341 | G22: 12328.139 | H22: 8894.2182 | I22: 0.02402305981 | J22: 0.01802119402 | K22: 9105.778 | L22: 23625.522 | M22: 14502.936 | N22: 18769.463 | O22: 26585.58 | P22: 18517.8558 | Q22: 0.03854378213 | R22: 0.02023551797 | S22: 9623.6376 | U22: =G22-INDEX($C22:$G22,1,aux!$AL$1) -> 3797.913 | V22: 0.02131232473 | W22: 0.02011254088 | X22: =+IF(INDEX($C22:$G22,1,aux!$AL$1)>0,(G22/INDEX($C22:$G22,1,aux!$AL$1))^(1/($G$3-INDEX($C$3:$G$3,1,aux!$AL$1)))-1,"n.d.") -> 0.09643842276 | Y22: =IF(INDEX($C22:$G22,1,aux!$AL$1)>0,(G22-INDEX($C22:$G22,1,aux!$AL$1))/INDEX($C22:$G22,1,aux!$AL$1),"n.d.") -> 0.445230056 | AA22: =O22-INDEX($K22:$O22,1,aux!$AL$1) -> 17479.802 | AB22: 0.1288982455 | AC22: 0.0914046382 | AD22: =+IF(INDEX($K22:$O22,1,aux!$AL$1)>0,(O22/INDEX($K22:$O22,1,aux!$AL$1))^(1/($O$3-INDEX($K$3:$O$3,1,aux!$AL$1)))-1,"n.d.") -> 0.3071705968 | AE22: =IF(INDEX($K22:$O22,1,aux!$AL$1)>0,(O22-INDEX($K22:$O22,1,aux!$AL$1))/INDEX($K22:$O22,1,aux!$AL$1),"n.d.") -> 1.919638498
A23: 21 | B23: Preparações alimentícias diversas | C23: 24981.02 | D23: 24709.563 | E23: 26774.377 | F23: 26083.464 | G23: 26811.558 | H23: 25871.9964 | I23: 0.069879612 | J23: 0.0524210511 | K23: 7496.682 | L23: 11645.96 | M23: 9774.133 | N23: 20460.096 | O23: 22404.977 | P23: 14356.3696 | Q23: 0.0298819036 | R23: 0.01568802447 | S23: -11515.6268 | U23: =G23-INDEX($C23:$G23,1,aux!$AL$1) -> 1830.538 | V23: 0.0102722259 | W23: 0.009693947794 | X23: =+IF(INDEX($C23:$G23,1,aux!$AL$1)>0,(G23/INDEX($C23:$G23,1,aux!$AL$1))^(1/($G$3-INDEX($C$3:$G$3,1,aux!$AL$1)))-1,"n.d.") -> 0.01783638343 | Y23: =IF(INDEX($C23:$G23,1,aux!$AL$1)>0,(G23-INDEX($C23:$G23,1,aux!$AL$1))/INDEX($C23:$G23,1,aux!$AL$1),"n.d.") -> 0.07327715201 | AA23: =O23-INDEX($K23:$O23,1,aux!$AL$1) -> 14908.295 | AB23: 0.1099356313 | AC23: 0.07795782302 | AD23: =+IF(INDEX($K23:$O23,1,aux!$AL$1)>0,(O23/INDEX($K23:$O23,1,aux!$AL$1))^(1/($O$3-INDEX($K$3:$O$3,1,aux!$AL$1)))-1,"n.d.") -> 0.3148277254 | AE23: =IF(INDEX($K23:$O23,1,aux!$AL$1)>0,(O23-INDEX($K23:$O23,1,aux!$AL$1))/INDEX($K23:$O23,1,aux!$AL$1),"n.d.") -> 1.988652447
A24: 22 | B24: Bebidas, líquidos alcoólicos e vinagres | C24: 26861.022 | D24: 22961.796 | E24: 33930.121 | F24: 39676.493 | G24: 41056.896 | H24: 32897.2656 | I24: 0.08885468754 | J24: 0.06665543758 | K24: 11969.269 | L24: 10822.806 | M24: 12465.581 | N24: 13845.726 | O24: 10805.615 | P24: 11981.7994 | Q24: 0.02493938124 | R24: 0.01309319608 | S24: -20915.4662 | U24: =G24-INDEX($C24:$G24,1,aux!$AL$1) -> 14195.874 | V24: 0.07966140259 | W24: 0.07517683952 | X24: =+IF(INDEX($C24:$G24,1,aux!$AL$1)>0,(G24/INDEX($C24:$G24,1,aux!$AL$1))^(1/($G$3-INDEX($C$3:$G$3,1,aux!$AL$1)))-1,"n.d.") -> 0.1119004219 | Y24: =IF(INDEX($C24:$G24,1,aux!$AL$1)>0,(G24-INDEX($C24:$G24,1,aux!$AL$1))/INDEX($C24:$G24,1,aux!$AL$1),"n.d.") -> 0.528493443 | AA24: =O24-INDEX($K24:$O24,1,aux!$AL$1) -> -1163.654 | AB24: -0.008580930089 | AC24: -0.006084930073 | AD24: =+IF(INDEX($K24:$O24,1,aux!$AL$1)>0,(O24/INDEX($K24:$O24,1,aux!$AL$1))^(1/($O$3-INDEX($K$3:$O$3,1,aux!$AL$1)))-1,"n.d.") -> -0.02524501352 | AE24: =IF(INDEX($K24:$O24,1,aux!$AL$1)>0,(O24-INDEX($K24:$O24,1,aux!$AL$1))/INDEX($K24:$O24,1,aux!$AL$1),"n.d.") -> -0.09722013934
A25: 23a | B25: Resíduos indústrias alimentares; alimentos p/ animais (exc. NC 230120) (a) | C25: 12021.892 | D25: 12341.951 | E25: 14742.421 | F25: 22088.104 | G25: 25236.191 | H25: 17286.1118 | I25: 0.0466893535 | J25: 0.03502459323 | K25: 7870.26 | L25: 6612.003 | M25: 2355.643 | N25: 3201.659 | O25: 3140.355 | P25: 4635.984 | Q25: 0.009649516616 | R25: 0.005066004323 | S25: -12650.1278 | U25: =G25-INDEX($C25:$G25,1,aux!$AL$1) -> 13214.299 | V25: 0.07415320766 | W25: 0.0699787301 | X25: =+IF(INDEX($C25:$G25,1,aux!$AL$1)>0,(G25/INDEX($C25:$G25,1,aux!$AL$1))^(1/($G$3-INDEX($C$3:$G$3,1,aux!$AL$1)))-1,"n.d.") -> 0.2036847156 | Y25: =IF(INDEX($C25:$G25,1,aux!$AL$1)>0,(G25-INDEX($C25:$G25,1,aux!$AL$1))/INDEX($C25:$G25,1,aux!$AL$1),"n.d.") -> 1.099186301 | AA25: =O25-INDEX($K25:$O25,1,aux!$AL$1) -> -4729.905 | AB25: -0.03487891086 | AC25: -0.02473341833 | AD25: =+IF(INDEX($K25:$O25,1,aux!$AL$1)>0,(O25/INDEX($K25:$O25,1,aux!$AL$1))^(1/($O$3-INDEX($K$3:$O$3,1,aux!$AL$1)))-1,"n.d.") -> -0.2052191097 | AE25: =IF(INDEX($K25:$O25,1,aux!$AL$1)>0,(O25-INDEX($K25:$O25,1,aux!$AL$1))/INDEX($K25:$O25,1,aux!$AL$1),"n.d.") -> -0.6009845926
A26: 24 | B26: Tabaco | C26: 35681.862 | D26: 38153.269 | E26: 68227.272 | F26: 84812.671 | G26: 95094.303 | H26: 64393.8754 | I26: 0.173926239 | J26: 0.130472909 | K26: 213566.868 | L26: 186237.524 | M26: 245943.633 | N26: 238960.117 | O26: 278062.525 | P26: 232554.1334 | Q26: 0.4840471784 | R26: 0.254125175 | S26: 168160.258 | U26: =G26-INDEX($C26:$G26,1,aux!$AL$1) -> 59412.441 | V26: 0.3333981678 | W26: 0.3146294157 | X26: =+IF(INDEX($C26:$G26,1,aux!$AL$1)>0,(G26/INDEX($C26:$G26,1,aux!$AL$1))^(1/($G$3-INDEX($C$3:$G$3,1,aux!$AL$1)))-1,"n.d.") -> 0.2776936829 | Y26: =IF(INDEX($C26:$G26,1,aux!$AL$1)>0,(G26-INDEX($C26:$G26,1,aux!$AL$1))/INDEX($C26:$G26,1,aux!$AL$1),"n.d.") -> 1.665059996 | AA26: =O26-INDEX($K26:$O26,1,aux!$AL$1) -> 64495.657 | AB26: 0.4755990387 | AC26: 0.3372579503 | AD26: =+IF(INDEX($K26:$O26,1,aux!$AL$1)>0,(O26/INDEX($K26:$O26,1,aux!$AL$1))^(1/($O$3-INDEX($K$3:$O$3,1,aux!$AL$1)))-1,"n.d.") -> 0.06819894785 | AE26: =IF(INDEX($K26:$O26,1,aux!$AL$1)>0,(O26-INDEX($K26:$O26,1,aux!$AL$1))/INDEX($K26:$O26,1,aux!$AL$1),"n.d.") -> 0.3019928026
A27: 29 | B27: Manitol e sorbitol (NC 290543; 290544) | C27: 417.725 | D27: 456.501 | E27: 689.225 | F27: 1259.377 | G27: 53.464 | H27: 575.2584 | I27: 0.00155375848 | J27: 0.001165571049 | K27: 0 | L27: 2.45 | M27: 0 | N27: 0 | O27: 0 | P27: 0.49 | Q27: 1.019904974e-06 | R27: 5.354509675e-07 | S27: -574.7684 | U27: =G27-INDEX($C27:$G27,1,aux!$AL$1) -> -364.261 | V27: -0.002044082821 | W27: -0.001929010552 | X27: =+IF(INDEX($C27:$G27,1,aux!$AL$1)>0,(G27/INDEX($C27:$G27,1,aux!$AL$1))^(1/($G$3-INDEX($C$3:$G$3,1,aux!$AL$1)))-1,"n.d.") -> -0.401873912 | Y27: =IF(INDEX($C27:$G27,1,aux!$AL$1)>0,(G27-INDEX($C27:$G27,1,aux!$AL$1))/INDEX($C27:$G27,1,aux!$AL$1),"n.d.") -> -0.8720114908 | AA27: =O27-INDEX($K27:$O27,1,aux!$AL$1) -> 0 | AB27: 0 | AC27: 0 | AD27: =+IF(INDEX($K27:$O27,1,aux!$AL$1)>0,(O27/INDEX($K27:$O27,1,aux!$AL$1))^(1/($O$3-INDEX($K$3:$O$3,1,aux!$AL$1)))-1,"n.d.") -> n.d. | AE27: =IF(INDEX($K27:$O27,1,aux!$AL$1)>0,(O27-INDEX($K27:$O27,1,aux!$AL$1))/INDEX($K27:$O27,1,aux!$AL$1),"n.d.") -> n.d.
A28: 33 | B28: Óleos essenciais e resinóides (NC 3301) | C28: 294.524 | D28: 759.161 | E28: 446.247 | F28: 3245.474 | G28: 1301.504 | H28: 1209.382 | I28: 0.003266510385 | J28: 0.002450412973 | K28: 1.529 | L28: 0.222 | M28: 0.397 | N28: 0.824 | O28: 1.087 | P28: 0.8118 | Q28: 1.689711955e-06 | R28: 8.871001948e-07 | S28: -1208.5702 | U28: =G28-INDEX($C28:$G28,1,aux!$AL$1) -> 1006.98 | V28: 0.005650757338 | W28: 0.005332646222 | X28: =+IF(INDEX($C28:$G28,1,aux!$AL$1)>0,(G28/INDEX($C28:$G28,1,aux!$AL$1))^(1/($G$3-INDEX($C$3:$G$3,1,aux!$AL$1)))-1,"n.d.") -> 0.4498771461 | Y28: =IF(INDEX($C28:$G28,1,aux!$AL$1)>0,(G28-INDEX($C28:$G28,1,aux!$AL$1))/INDEX($C28:$G28,1,aux!$AL$1),"n.d.") -> 3.419008298 | AA28: =O28-INDEX($K28:$O28,1,aux!$AL$1) -> -0.442 | AB28: -3.259363264e-06 | AC28: -2.311287627e-06 | AD28: =+IF(INDEX($K28:$O28,1,aux!$AL$1)>0,(O28/INDEX($K28:$O28,1,aux!$AL$1))^(1/($O$3-INDEX($K$3:$O$3,1,aux!$AL$1)))-1,"n.d.") -> -0.08176146466 | AE28: =IF(INDEX($K28:$O28,1,aux!$AL$1)>0,(O28-INDEX($K28:$O28,1,aux!$AL$1))/INDEX($K28:$O28,1,aux!$AL$1),"n.d.") -> -0.2890778286
A29: 35 | B29: Caseínas, albuminas, gelatinas, peptonas, dextrinas (NC 3501 a 3505) | C29: 2698.253 | D29: 2736.927 | E29: 1815.152 | F29: 2901.452 | G29: 2467.261 | H29: 2523.809 | I29: 0.006816744675 | J29: 0.005113664926 | K29: 9.8 | L29: 61.714 | M29: 52.472 | N29: 5.585 | O29: 22.791 | P29: 30.4724 | Q29: 6.342643334e-05 | R29: 3.329893074e-05 | S29: -2493.3366 | U29: =G29-INDEX($C29:$G29,1,aux!$AL$1) -> -230.992 | V29: -0.001296232039 | W29: -0.00122326026 | X29: =+IF(INDEX($C29:$G29,1,aux!$AL$1)>0,(G29/INDEX($C29:$G29,1,aux!$AL$1))^(1/($G$3-INDEX($C$3:$G$3,1,aux!$AL$1)))-1,"n.d.") -> -0.02212553348 | Y29: =IF(INDEX($C29:$G29,1,aux!$AL$1)>0,(G29-INDEX($C29:$G29,1,aux!$AL$1))/INDEX($C29:$G29,1,aux!$AL$1),"n.d.") -> -0.08560798413 | AA29: =O29-INDEX($K29:$O29,1,aux!$AL$1) -> 12.991 | AB29: 9.579725828e-05 | AC29: 6.793198544e-05 | AD29: =+IF(INDEX($K29:$O29,1,aux!$AL$1)>0,(O29/INDEX($K29:$O29,1,aux!$AL$1))^(1/($O$3-INDEX($K$3:$O$3,1,aux!$AL$1)))-1,"n.d.") -> 0.2349072103 | AE29: =IF(INDEX($K29:$O29,1,aux!$AL$1)>0,(O29-INDEX($K29:$O29,1,aux!$AL$1))/INDEX($K29:$O29,1,aux!$AL$1),"n.d.") -> 1.325612245
A30: 38a | B30: Agentes de acabamento, ácidos gordos, sorbitol (NC 380910, 382311-12-13-19-70, 382460) (a) | C30: 2200.213 | D30: 257.371 | E30: 1081.111 | F30: 2520.029 | G30: 1974.18 | H30: 1606.5808 | I30: 0.004339334361 | J30: 0.003255205084 | K30: 0.127 | L30: 0.085 | M30: 0.042 | N30: 0 | O30: 0 | P30: 0.0508 | Q30: 1.057370871e-07 | R30: 5.551205949e-08 | S30: -1606.53 | U30: =G30-INDEX($C30:$G30,1,aux!$AL$1) -> -226.033 | V30: -0.001268404172 | W30: -0.001196998971 | X30: =+IF(INDEX($C30:$G30,1,aux!$AL$1)>0,(G30/INDEX($C30:$G30,1,aux!$AL$1))^(1/($G$3-INDEX($C$3:$G$3,1,aux!$AL$1)))-1,"n.d.") -> -0.0267363456 | Y30: =IF(INDEX($C30:$G30,1,aux!$AL$1)>0,(G30-INDEX($C30:$G30,1,aux!$AL$1))/INDEX($C30:$G30,1,aux!$AL$1),"n.d.") -> -0.1027323264 | AA30: =O30-INDEX($K30:$O30,1,aux!$AL$1) -> -0.127 | AB30: -9.36513879e-07 | AC30: -6.64103006e-07 | AD30: =+IF(INDEX($K30:$O30,1,aux!$AL$1)>0,(O30/INDEX($K30:$O30,1,aux!$AL$1))^(1/($O$3-INDEX($K$3:$O$3,1,aux!$AL$1)))-1,"n.d.") -> -1 | AE30: =IF(INDEX($K30:$O30,1,aux!$AL$1)>0,(O30-INDEX($K30:$O30,1,aux!$AL$1))/INDEX($K30:$O30,1,aux!$AL$1),"n.d.") -> -1
A31: 41 | B31: Couro e peles em bruto (NC 4101 a 4103) | C31: 162.58 | D31: 437.585 | E31: 1575.466 | F31: 3972.972 | G31: 3571.728 | H31: 1944.0662 | I31: 0.005250873943 | J31: 0.003939007722 | K31: 252.62 | L31: 359.482 | M31: 521.826 | N31: 196.862 | O31: 387.096 | P31: 343.5772 | Q31: 0.0007151348884 | R31: 0.0003754464166 | S31: -1600.489 | U31: =G31-INDEX($C31:$G31,1,aux!$AL$1) -> 3409.148 | V31: 0.01913073554 | W31: 0.01805376492 | X31: =+IF(INDEX($C31:$G31,1,aux!$AL$1)>0,(G31/INDEX($C31:$G31,1,aux!$AL$1))^(1/($G$3-INDEX($C$3:$G$3,1,aux!$AL$1)))-1,"n.d.") -> 1.164974646 | Y31: =IF(INDEX($C31:$G31,1,aux!$AL$1)>0,(G31-INDEX($C31:$G31,1,aux!$AL$1))/INDEX($C31:$G31,1,aux!$AL$1),"n.d.") -> 20.96904908 | AA31: =O31-INDEX($K31:$O31,1,aux!$AL$1) -> 134.476 | AB31: 0.0009916428377 | AC31: 0.0007031961876 | AD31: =+IF(INDEX($K31:$O31,1,aux!$AL$1)>0,(O31/INDEX($K31:$O31,1,aux!$AL$1))^(1/($O$3-INDEX($K$3:$O$3,1,aux!$AL$1)))-1,"n.d.") -> 0.112596625 | AE31: =IF(INDEX($K31:$O31,1,aux!$AL$1)>0,(O31-INDEX($K31:$O31,1,aux!$AL$1))/INDEX($K31:$O31,1,aux!$AL$1),"n.d.") -> 0.5323252316
A32: 43 | B32: Peles com pelo em bruto (NC 4301) | C32: 39.241 | D32: 228.114 | E32: 435.439 | F32: 844.44 | G32: 485.075 | H32: 406.4618 | I32: 0.001097843106 | J32: 0.0008235605192 | K32: 0 | L32: 0 | M32: 0 | N32: 0 | O32: 0 | P32: 0 | Q32: 0 | R32: 0 | S32: -406.4618 | U32: =G32-INDEX($C32:$G32,1,aux!$AL$1) -> 445.834 | V32: 0.002501836925 | W32: 0.002360995249 | X32: =+IF(INDEX($C32:$G32,1,aux!$AL$1)>0,(G32/INDEX($C32:$G32,1,aux!$AL$1))^(1/($G$3-INDEX($C$3:$G$3,1,aux!$AL$1)))-1,"n.d.") -> 0.8750687959 | Y32: =IF(INDEX($C32:$G32,1,aux!$AL$1)>0,(G32-INDEX($C32:$G32,1,aux!$AL$1))/INDEX($C32:$G32,1,aux!$AL$1),"n.d.") -> 11.36143319 | AA32: =O32-INDEX($K32:$O32,1,aux!$AL$1) -> 0 | AB32: 0 | AC32: 0 | AD32: =+IF(INDEX($K32:$O32,1,aux!$AL$1)>0,(O32/INDEX($K32:$O32,1,aux!$AL$1))^(1/($O$3-INDEX($K$3:$O$3,1,aux!$AL$1)))-1,"n.d.") -> n.d. | AE32: =IF(INDEX($K32:$O32,1,aux!$AL$1)>0,(O32-INDEX($K32:$O32,1,aux!$AL$1))/INDEX($K32:$O32,1,aux!$AL$1),"n.d.") -> n.d.
A33: 50 | B33: Seda crua (NC 5001-5003) | C33: 63.955 | D33: 54.027 | E33: 77.848 | F33: 92.733 | G33: 3.058 | H33: 58.3242 | I33: 0.0001575321983 | J33: 0.0001181747176 | K33: 0 | L33: 0 | M33: 0 | N33: 0 | O33: 0 | P33: 0 | Q33: 0 | R33: 0 | S33: -58.3242 | U33: =G33-INDEX($C33:$G33,1,aux!$AL$1) -> -60.897 | V33: -0.0003417289019 | W33: -0.0003224911686 | X33: =+IF(INDEX($C33:$G33,1,aux!$AL$1)>0,(G33/INDEX($C33:$G33,1,aux!$AL$1))^(1/($G$3-INDEX($C$3:$G$3,1,aux!$AL$1)))-1,"n.d.") -> -0.5323825121 | Y33: =IF(INDEX($C33:$G33,1,aux!$AL$1)>0,(G33-INDEX($C33:$G33,1,aux!$AL$1))/INDEX($C33:$G33,1,aux!$AL$1),"n.d.") -> -0.9521851302 | AA33: =O33-INDEX($K33:$O33,1,aux!$AL$1) -> 0 | AB33: 0 | AC33: 0 | AD33: =+IF(INDEX($K33:$O33,1,aux!$AL$1)>0,(O33/INDEX($K33:$O33,1,aux!$AL$1))^(1/($O$3-INDEX($K$3:$O$3,1,aux!$AL$1)))-1,"n.d.") -> n.d. | AE33: =IF(INDEX($K33:$O33,1,aux!$AL$1)>0,(O33-INDEX($K33:$O33,1,aux!$AL$1))/INDEX($K33:$O33,1,aux!$AL$1),"n.d.") -> n.d.
A34: 51 | B34: Lã não cardada (NC 5101-5103) | C34: 485.175 | D34: 91.568 | E34: 172.22 | F34: 490.829 | G34: 582.73 | H34: 364.5044 | I34: 0.0009845172228 | J34: 0.0007385477133 | K34: 55.863 | L34: 0 | M34: 334.303 | N34: 438.085 | O34: 133.574 | P34: 192.365 | Q34: 0.0004003959599 | R34: 0.000210208215 | S34: -172.1394 | U34: =G34-INDEX($C34:$G34,1,aux!$AL$1) -> 97.555 | V34: 0.0005474385113 | W34: 0.0005166202926 | X34: =+IF(INDEX($C34:$G34,1,aux!$AL$1)>0,(G34/INDEX($C34:$G34,1,aux!$AL$1))^(1/($G$3-INDEX($C$3:$G$3,1,aux!$AL$1)))-1,"n.d.") -> 0.04686876132 | Y34: =IF(INDEX($C34:$G34,1,aux!$AL$1)>0,(G34-INDEX($C34:$G34,1,aux!$AL$1))/INDEX($C34:$G34,1,aux!$AL$1),"n.d.") -> 0.2010717782 | AA34: =O34-INDEX($K34:$O34,1,aux!$AL$1) -> 77.711 | AB34: 0.0005730506303 | AC34: 0.0004063630606 | AD34: =+IF(INDEX($K34:$O34,1,aux!$AL$1)>0,(O34/INDEX($K34:$O34,1,aux!$AL$1))^(1/($O$3-INDEX($K$3:$O$3,1,aux!$AL$1)))-1,"n.d.") -> 0.2435103925 | AE34: =IF(INDEX($K34:$O34,1,aux!$AL$1)>0,(O34-INDEX($K34:$O34,1,aux!$AL$1))/INDEX($K34:$O34,1,aux!$AL$1),"n.d.") -> 1.391099655
A35: 52 | B35: Algodão (NC 5201-5203) | C35: 434.553 | D35: 243.139 | E35: 106.132 | F35: 75.818 | G35: 31.568 | H35: 178.242 | I35: 0.000481427162 | J35: 0.0003611485115 | K35: 714.671 | L35: 249.942 | M35: 126.954 | N35: 133.135 | O35: 128.741 | P35: 270.6886 | Q35: 0.0005634217339 | R35: 0.0002957968832 | S35: 92.4466 | U35: =G35-INDEX($C35:$G35,1,aux!$AL$1) -> -402.985 | V35: -0.002261385972 | W35: -0.002134080556 | X35: =+IF(INDEX($C35:$G35,1,aux!$AL$1)>0,(G35/INDEX($C35:$G35,1,aux!$AL$1))^(1/($G$3-INDEX($C$3:$G$3,1,aux!$AL$1)))-1,"n.d.") -> -0.4808401732 | Y35: =IF(INDEX($C35:$G35,1,aux!$AL$1)>0,(G35-INDEX($C35:$G35,1,aux!$AL$1))/INDEX($C35:$G35,1,aux!$AL$1),"n.d.") -> -0.9273552363 | AA35: =O35-INDEX($K35:$O35,1,aux!$AL$1) -> -585.93 | AB35: -0.00432072108 | AC35: -0.00306392027 | AD35: =+IF(INDEX($K35:$O35,1,aux!$AL$1)>0,(O35/INDEX($K35:$O35,1,aux!$AL$1))^(1/($O$3-INDEX($K$3:$O$3,1,aux!$AL$1)))-1,"n.d.") -> -0.3485176119 | AE35: =IF(INDEX($K35:$O35,1,aux!$AL$1)>0,(O35-INDEX($K35:$O35,1,aux!$AL$1))/INDEX($K35:$O35,1,aux!$AL$1),"n.d.") -> -0.8198597676
A36: 53 | B36: Linho e cânhamo em bruto (NC 5301-5302) | C36: 31.954 | D36: 1.094 | E36: 57.449 | F36: 0.177 | G36: 1.318 | H36: 18.3984 | I36: 4.969361597e-05 | J36: 3.727827771e-05 | K36: 0 | L36: 0 | M36: 0 | N36: 0 | O36: 0 | P36: 0 | Q36: 0 | R36: 0 | S36: -18.3984 | U36: =G36-INDEX($C36:$G36,1,aux!$AL$1) -> -30.636 | V36: -0.0001719166238 | W36: =IF($U$53<>0,U36/$U$53, "n.d.") -> -0.0001622385248 | X36: =+IF(INDEX($C36:$G36,1,aux!$AL$1)>0,(G36/INDEX($C36:$G36,1,aux!$AL$1))^(1/($G$3-INDEX($C$3:$G$3,1,aux!$AL$1)))-1,"n.d.") -> -0.5493415228 | Y36: =IF(INDEX($C36:$G36,1,aux!$AL$1)>0,(G36-INDEX($C36:$G36,1,aux!$AL$1))/INDEX($C36:$G36,1,aux!$AL$1),"n.d.") -> -0.9587532077 | AA36: =O36-INDEX($K36:$O36,1,aux!$AL$1) -> 0 | AB36: 0 | AC36: =IF($AA$53<>0,AA36/$AA$53, "n.d.") -> 0 | AD36: =+IF(INDEX($K36:$O36,1,aux!$AL$1)>0,(O36/INDEX($K36:$O36,1,aux!$AL$1))^(1/($O$3-INDEX($K$3:$O$3,1,aux!$AL$1)))-1,"n.d.") -> n.d. | AE36: =IF(INDEX($K36:$O36,1,aux!$AL$1)>0,(O36-INDEX($K36:$O36,1,aux!$AL$1))/INDEX($K36:$O36,1,aux!$AL$1),"n.d.") -> n.d.
A37: Subtotal Agrícola e Agroalimentar | C37: 305454.345 | D37: 270189.151 | E37: 345585.13 | F37: 446297.828 | G37: 483657.007 | H37: 370236.6922 | I37: 1 | J37: 0.7501623091 | K37: 413774.588 | L37: 400299.293 | M37: 502661.732 | N37: 536065.068 | O37: 549383.897 | P37: 480436.9156 | Q37: 1 | R37: 0.5250008394 | S37: 110200.2234 | U37: =G37-INDEX($C37:$G37,1,aux!$AL$1) -> 178202.662 | V37: 1 | W37: 0.9437046935 | X37: =+IF(INDEX($C37:$G37,1,aux!$AL$1)>0,(G37/INDEX($C37:$G37,1,aux!$AL$1))^(1/($G$3-INDEX($C$3:$G$3,1,aux!$AL$1)))-1,"n.d.") -> 0.1217544323 | Y37: =IF(INDEX($C37:$G37,1,aux!$AL$1)>0,(G37-INDEX($C37:$G37,1,aux!$AL$1))/INDEX($C37:$G37,1,aux!$AL$1),"n.d.") -> 0.5834019549 | AA37: =O37-INDEX($K37:$O37,1,aux!$AL$1) -> 135609.309 | AB37: 1 | AC37: 0.7091224389 | AD37: =+IF(INDEX($K37:$O37,1,aux!$AL$1)>0,(O37/INDEX($K37:$O37,1,aux!$AL$1))^(1/($O$3-INDEX($K$3:$O$3,1,aux!$AL$1)))-1,"n.d.") -> 0.07344062572 | AE37: =IF(INDEX($K37:$O37,1,aux!$AL$1)>0,(O37-INDEX($K37:$O37,1,aux!$AL$1))/INDEX($K37:$O37,1,aux!$AL$1),"n.d.") -> 0.3277371616
A38: 03 | B38: Peixes e crustáceos | C38: 17665.073 | D38: 17742.327 | E38: 18983.551 | F38: 14205.009 | G38: 15289.98 | H38: 16777.188 | I38: 0.9338772757 | J38: 0.03399342733 | K38: 72106.117 | L38: 46591.719 | M38: 65829.387 | N38: 85143.357 | O38: 82178.188 | P38: 70369.7536 | Q38: 0.6035434708 | R38: 0.07689704622 | S38: 53592.5656 | U38: =G38-INDEX($C38:$G38,1,aux!$AL$1) -> -2375.093 | V38: =IF($U$44<>0,U38/$U$44, "n.d.") -> 0.9561273488 | W38: -0.0125777381 | X38: =+IF(INDEX($C38:$G38,1,aux!$AL$1)>0,(G38/INDEX($C38:$G38,1,aux!$AL$1))^(1/($G$3-INDEX($C$3:$G$3,1,aux!$AL$1)))-1,"n.d.") -> -0.03545416462 | Y38: =IF(INDEX($C38:$G38,1,aux!$AL$1)>0,(G38-INDEX($C38:$G38,1,aux!$AL$1))/INDEX($C38:$G38,1,aux!$AL$1),"n.d.") -> -0.1344513549 | AA38: =O38-INDEX($K38:$O38,1,aux!$AL$1) -> 10072.071 | AB38: =IF($AA$44<>0,AA38/$AA$44, "n.d.") -> -13.08778447 | AC38: 0.05266844588 | AD38: =+IF(INDEX($K38:$O38,1,aux!$AL$1)>0,(O38/INDEX($K38:$O38,1,aux!$AL$1))^(1/($O$3-INDEX($K$3:$O$3,1,aux!$AL$1)))-1,"n.d.") -> 0.03322787195 | AE38: =IF(INDEX($K38:$O38,1,aux!$AL$1)>0,(O38-INDEX($K38:$O38,1,aux!$AL$1))/INDEX($K38:$O38,1,aux!$AL$1),"n.d.") -> 0.1396840021
A39: 05p | B39: Outros produtos de pescado (NC 0508, 051191) (p) | C39: 0.782 | D39: 20.181 | E39: 4.585 | F39: 0 | G39: 12.034 | H39: 7.5164 | I39: 0.000418389253 | J39: 1.522950075e-05 | K39: 32.886 | L39: 8.524 | M39: 2.828 | N39: 3.473 | O39: 2.416 | P39: 10.0254 | Q39: 8.59853048e-05 | R39: 1.09553268e-05 | S39: 2.509 | U39: =G39-INDEX($C39:$G39,1,aux!$AL$1) -> 11.252 | V39: -0.004529652072 | W39: 5.958701791e-05 | X39: =+IF(INDEX($C39:$G39,1,aux!$AL$1)>0,(G39/INDEX($C39:$G39,1,aux!$AL$1))^(1/($G$3-INDEX($C$3:$G$3,1,aux!$AL$1)))-1,"n.d.") -> 0.9806184191 | Y39: =IF(INDEX($C39:$G39,1,aux!$AL$1)>0,(G39-INDEX($C39:$G39,1,aux!$AL$1))/INDEX($C39:$G39,1,aux!$AL$1),"n.d.") -> 14.3887468 | AA39: =O39-INDEX($K39:$O39,1,aux!$AL$1) -> -30.47 | AB39: 0.03959312766 | AC39: -0.0001593324299 | AD39: =+IF(INDEX($K39:$O39,1,aux!$AL$1)>0,(O39/INDEX($K39:$O39,1,aux!$AL$1))^(1/($O$3-INDEX($K$3:$O$3,1,aux!$AL$1)))-1,"n.d.") -> -0.4793792549 | AE39: =IF(INDEX($K39:$O39,1,aux!$AL$1)>0,(O39-INDEX($K39:$O39,1,aux!$AL$1))/INDEX($K39:$O39,1,aux!$AL$1),"n.d.") -> -0.9265340875
A40: 16p | B40: Preparações e conservas de peixes ou crustáceos (NC 1604-05) (p) | C40: 796.772 | D40: 1635.606 | E40: 703.585 | F40: 859.282 | G40: 702.865 | H40: 939.622 | I40: 0.0523026644 | J40: 0.001903833478 | K40: 47925.652 | L40: 47887.287 | M40: 45111.212 | N40: 40739.418 | O40: 37873.99 | P40: 43907.5118 | Q40: 0.3765835563 | R40: 0.04798024423 | S40: 42967.8898 | U40: =G40-INDEX($C40:$G40,1,aux!$AL$1) -> -93.907 | V40: 0.03780359377 | W40: -0.0004973016433 | X40: =+IF(INDEX($C40:$G40,1,aux!$AL$1)>0,(G40/INDEX($C40:$G40,1,aux!$AL$1))^(1/($G$3-INDEX($C$3:$G$3,1,aux!$AL$1)))-1,"n.d.") -> -0.03086458672 | Y40: =IF(INDEX($C40:$G40,1,aux!$AL$1)>0,(G40-INDEX($C40:$G40,1,aux!$AL$1))/INDEX($C40:$G40,1,aux!$AL$1),"n.d.") -> -0.1178593123 | AA40: =O40-INDEX($K40:$O40,1,aux!$AL$1) -> -10051.662 | AB40: 13.06126475 | AC40: -0.05256172401 | AD40: =+IF(INDEX($K40:$O40,1,aux!$AL$1)>0,(O40/INDEX($K40:$O40,1,aux!$AL$1))^(1/($O$3-INDEX($K$3:$O$3,1,aux!$AL$1)))-1,"n.d.") -> -0.05714858416 | AE40: =IF(INDEX($K40:$O40,1,aux!$AL$1)>0,(O40-INDEX($K40:$O40,1,aux!$AL$1))/INDEX($K40:$O40,1,aux!$AL$1),"n.d.") -> -0.2097344862
A41: 19p | B41: Massas recheadas com pescado (NC 19022010) (p) | C41: 149.767 | D41: 78.81 | E41: 113.349 | F41: 190.82 | G41: 176.232 | H41: 141.7956 | I41: 0.007892841675 | J41: 0.0002873019259 | K41: 31.391 | L41: 20.971 | M41: 0.29 | N41: 0.076 | O41: 0.122 | P41: 10.57 | Q41: 9.065620042e-05 | R41: 1.15504423e-05 | S41: -131.2256 | U41: =G41-INDEX($C41:$G41,1,aux!$AL$1) -> 26.465 | V41: -0.01065386083 | W41: 0.0001401502336 | X41: =+IF(INDEX($C41:$G41,1,aux!$AL$1)>0,(G41/INDEX($C41:$G41,1,aux!$AL$1))^(1/($G$3-INDEX($C$3:$G$3,1,aux!$AL$1)))-1,"n.d.") -> 0.04151891091 | Y41: =IF(INDEX($C41:$G41,1,aux!$AL$1)>0,(G41-INDEX($C41:$G41,1,aux!$AL$1))/INDEX($C41:$G41,1,aux!$AL$1),"n.d.") -> 0.1767078195 | AA41: =O41-INDEX($K41:$O41,1,aux!$AL$1) -> -31.269 | AB41: 0.040631359 | AC41: -0.0001635105267 | AD41: =+IF(INDEX($K41:$O41,1,aux!$AL$1)>0,(O41/INDEX($K41:$O41,1,aux!$AL$1))^(1/($O$3-INDEX($K$3:$O$3,1,aux!$AL$1)))-1,"n.d.") -> -0.7503171747 | AE41: =IF(INDEX($K41:$O41,1,aux!$AL$1)>0,(O41-INDEX($K41:$O41,1,aux!$AL$1))/INDEX($K41:$O41,1,aux!$AL$1),"n.d.") -> -0.9961135357
A42: 23p | B42: Farinhas de pescado (NC 230120) (p) | C42: 26.019 | D42: 0 | E42: 0 | F42: 0 | G42: 0.012 | H42: 5.2062 | I42: 0.0002897953979 | J42: 1.054864387e-05 | K42: 3409.97 | L42: 1750.19 | M42: 1294.554 | N42: 2015.41 | O42: 2657.224 | P42: 2225.4696 | Q42: 0.01908728648 | R42: 0.002431897654 | S42: 2220.2634 | U42: =G42-INDEX($C42:$G42,1,aux!$AL$1) -> -26.007 | V42: 0.01046948644 | W42: -0.0001377248111 | X42: =+IF(INDEX($C42:$G42,1,aux!$AL$1)>0,(G42/INDEX($C42:$G42,1,aux!$AL$1))^(1/($G$3-INDEX($C$3:$G$3,1,aux!$AL$1)))-1,"n.d.") -> -0.8534544412 | Y42: =IF(INDEX($C42:$G42,1,aux!$AL$1)>0,(G42-INDEX($C42:$G42,1,aux!$AL$1))/INDEX($C42:$G42,1,aux!$AL$1),"n.d.") -> -0.9995387986 | AA42: =O42-INDEX($K42:$O42,1,aux!$AL$1) -> -752.746 | AB42: 0.9781282729 | AC42: -0.003936227412 | AD42: =+IF(INDEX($K42:$O42,1,aux!$AL$1)>0,(O42/INDEX($K42:$O42,1,aux!$AL$1))^(1/($O$3-INDEX($K$3:$O$3,1,aux!$AL$1)))-1,"n.d.") -> -0.06045107057 | AE42: =IF(INDEX($K42:$O42,1,aux!$AL$1)>0,(O42-INDEX($K42:$O42,1,aux!$AL$1))/INDEX($K42:$O42,1,aux!$AL$1),"n.d.") -> -0.2207485696
A43: 25 | B43: Sal e cloreto de sódio puro; água do mar (NC 2501) | C43: 114.91 | D43: 93.498 | E43: 79.396 | F43: 92.874 | G43: 88.124 | H43: 93.7604 | I43: 0.005219033543 | J43: 0.0001899744667 | K43: 44.954 | L43: 60.414 | M43: 87.406 | N43: 92.83 | O43: 69.452 | P43: 71.0112 | Q43: 0.0006090449933 | R43: 7.759799132e-05 | S43: -22.7492 | U43: =G43-INDEX($C43:$G43,1,aux!$AL$1) -> -26.786 | V43: 0.01078308393 | W43: -0.0001418501477 | X43: =+IF(INDEX($C43:$G43,1,aux!$AL$1)>0,(G43/INDEX($C43:$G43,1,aux!$AL$1))^(1/($G$3-INDEX($C$3:$G$3,1,aux!$AL$1)))-1,"n.d.") -> -0.0641977301 | Y43: =IF(INDEX($C43:$G43,1,aux!$AL$1)>0,(G43-INDEX($C43:$G43,1,aux!$AL$1))/INDEX($C43:$G43,1,aux!$AL$1),"n.d.") -> -0.2331041685 | AA43: =O43-INDEX($K43:$O43,1,aux!$AL$1) -> 24.498 | AB43: -0.03183303057 | AC43: 0.0001281039011 | AD43: =+IF(INDEX($K43:$O43,1,aux!$AL$1)>0,(O43/INDEX($K43:$O43,1,aux!$AL$1))^(1/($O$3-INDEX($K$3:$O$3,1,aux!$AL$1)))-1,"n.d.") -> 0.1148825137 | AE43: =IF(INDEX($K43:$O43,1,aux!$AL$1)>0,(O43-INDEX($K43:$O43,1,aux!$AL$1))/INDEX($K43:$O43,1,aux!$AL$1),"n.d.") -> 0.5449570672
A44: Subtotal Mar | C44: 18753.323 | D44: 19570.422 | E44: 19884.466 | F44: 15347.985 | G44: 16269.247 | H44: 17965.0886 | I44: 1 | J44: 0.03640031534 | K44: 123550.97 | L44: 96319.105 | M44: 112325.677 | N44: 127994.564 | O44: 122781.392 | P44: 116594.3416 | Q44: 1 | R44: 0.1274092919 | S44: 98629.253 | U44: =G44-INDEX($C44:$G44,1,aux!$AL$1) -> -2484.076 | V44: 1 | W44: -0.01315487745 | X44: =+IF(INDEX($C44:$G44,1,aux!$AL$1)>0,(G44/INDEX($C44:$G44,1,aux!$AL$1))^(1/($G$3-INDEX($C$3:$G$3,1,aux!$AL$1)))-1,"n.d.") -> -0.03490002423 | Y44: =IF(INDEX($C44:$G44,1,aux!$AL$1)>0,(G44-INDEX($C44:$G44,1,aux!$AL$1))/INDEX($C44:$G44,1,aux!$AL$1),"n.d.") -> -0.1324605778 | AA44: =O44-INDEX($K44:$O44,1,aux!$AL$1) -> -769.578 | AB44: 1 | AC44: -0.004024244591 | AD44: =+IF(INDEX($K44:$O44,1,aux!$AL$1)>0,(O44/INDEX($K44:$O44,1,aux!$AL$1))^(1/($O$3-INDEX($K$3:$O$3,1,aux!$AL$1)))-1,"n.d.") -> -0.001560858139 | AE44: =IF(INDEX($K44:$O44,1,aux!$AL$1)>0,(O44-INDEX($K44:$O44,1,aux!$AL$1))/INDEX($K44:$O44,1,aux!$AL$1),"n.d.") -> -0.006228830093
A45: 13f | B45: Gomas e resinas (NC 1301) (f) | C45: 1475.257 | D45: 1365.945 | E45: 1231.068 | F45: 1906.08 | G45: 2484.435 | H45: 1692.557 | I45: 0.0160675113 | J45: 0.003429407442 | K45: 9.563 | L45: 7.912 | M45: 0.636 | N45: 8.644 | O45: 14.437 | P45: 8.2384 | Q45: 2.589997784e-05 | R45: 9.0025699e-06 | S45: -1684.3186 | U45: =G45-INDEX($C45:$G45,1,aux!$AL$1) -> 1009.178 | V45: =IF($U$52<>0,U45/$U$52, "n.d.") -> 0.07695136037 | W45: 0.005344286132 | X45: =+IF(INDEX($C45:$G45,1,aux!$AL$1)>0,(G45/INDEX($C45:$G45,1,aux!$AL$1))^(1/($G$3-INDEX($C$3:$G$3,1,aux!$AL$1)))-1,"n.d.") -> 0.1391738018 | Y45: =IF(INDEX($C45:$G45,1,aux!$AL$1)>0,(G45-INDEX($C45:$G45,1,aux!$AL$1))/INDEX($C45:$G45,1,aux!$AL$1),"n.d.") -> 0.6840692842 | AA45: =O45-INDEX($K45:$O45,1,aux!$AL$1) -> 4.874 | AB45: =IF($AA$52<>0,AA45/$AA$52, "n.d.") -> 8.642508556e-05 | AC45: 2.548691379e-05 | AD45: =+IF(INDEX($K45:$O45,1,aux!$AL$1)>0,(O45/INDEX($K45:$O45,1,aux!$AL$1))^(1/($O$3-INDEX($K$3:$O$3,1,aux!$AL$1)))-1,"n.d.") -> 0.1084617214 | AE45: =IF(INDEX($K45:$O45,1,aux!$AL$1)>0,(O45-INDEX($K45:$O45,1,aux!$AL$1))/INDEX($K45:$O45,1,aux!$AL$1),"n.d.") -> 0.5096726969
A46: 38f | B46: Tall oil, essências e colofónias (NC 3803,3805,3806) (f) | C46: 17.061 | D46: 12.282 | E46: 16.755 | F46: 58.202 | G46: 0.344 | H46: 20.9288 | I46: 0.0001986779355 | J46: 4.240529712e-05 | K46: 14593.361 | L46: 14280.405 | M46: 22497.324 | N46: 28530.646 | O46: 24080.522 | P46: 20796.4516 | Q46: 0.06538012668 | R46: 0.02272546965 | S46: 20775.5228 | U46: =G46-INDEX($C46:$G46,1,aux!$AL$1) -> -16.717 | V46: -0.001274696725 | W46: -8.8527922e-05 | X46: =+IF(INDEX($C46:$G46,1,aux!$AL$1)>0,(G46/INDEX($C46:$G46,1,aux!$AL$1))^(1/($G$3-INDEX($C$3:$G$3,1,aux!$AL$1)))-1,"n.d.") -> -0.6231760568 | Y46: =IF(INDEX($C46:$G46,1,aux!$AL$1)>0,(G46-INDEX($C46:$G46,1,aux!$AL$1))/INDEX($C46:$G46,1,aux!$AL$1),"n.d.") -> -0.9798370553 | AA46: =O46-INDEX($K46:$O46,1,aux!$AL$1) -> 9487.161 | AB46: 0.1682250105 | AC46: 0.04960985935 | AD46: =+IF(INDEX($K46:$O46,1,aux!$AL$1)>0,(O46/INDEX($K46:$O46,1,aux!$AL$1))^(1/($O$3-INDEX($K$3:$O$3,1,aux!$AL$1)))-1,"n.d.") -> 0.1333854755 | AE46: =IF(INDEX($K46:$O46,1,aux!$AL$1)>0,(O46-INDEX($K46:$O46,1,aux!$AL$1))/INDEX($K46:$O46,1,aux!$AL$1),"n.d.") -> 0.6501011659
A47: 44 | B47: Madeira e suas obras | C47: 12598.535 | D47: 10786.831 | E47: 9700.165 | F47: 16406.902 | G47: 12109.999 | H47: 12320.4864 | I47: 0.1169588702 | J47: 0.02496339429 | K47: 10480.178 | L47: 12139.999 | M47: 16642.667 | N47: 29264.816 | O47: 28112.768 | P47: 19328.0856 | Q47: 0.06076386055 | R47: 0.02112090232 | S47: 7007.5992 | U47: =G47-INDEX($C47:$G47,1,aux!$AL$1) -> -488.536 | V47: -0.03725161447 | W47: -0.002587131477 | X47: =+IF(INDEX($C47:$G47,1,aux!$AL$1)>0,(G47/INDEX($C47:$G47,1,aux!$AL$1))^(1/($G$3-INDEX($C$3:$G$3,1,aux!$AL$1)))-1,"n.d.") -> -0.009838547277 | Y47: =IF(INDEX($C47:$G47,1,aux!$AL$1)>0,(G47-INDEX($C47:$G47,1,aux!$AL$1))/INDEX($C47:$G47,1,aux!$AL$1),"n.d.") -> -0.03877720703 | AA47: =O47-INDEX($K47:$O47,1,aux!$AL$1) -> 17632.59 | AB47: 0.312658617 | AC47: 0.09220359072 | AD47: =+IF(INDEX($K47:$O47,1,aux!$AL$1)>0,(O47/INDEX($K47:$O47,1,aux!$AL$1))^(1/($O$3-INDEX($K$3:$O$3,1,aux!$AL$1)))-1,"n.d.") -> 0.2797753398 | AE47: =IF(INDEX($K47:$O47,1,aux!$AL$1)>0,(O47-INDEX($K47:$O47,1,aux!$AL$1))/INDEX($K47:$O47,1,aux!$AL$1),"n.d.") -> 1.682470469
A48: 45 | B48: Cortiça e suas obras | C48: 24066.569 | D48: 15453.038 | E48: 18773.802 | F48: 31174.078 | G48: 29389.759 | H48: 23771.4492 | I48: 0.225663318 | J48: 0.04816498634 | K48: 103475.725 | L48: 94838.786 | M48: 115110.831 | N48: 133654.924 | O48: 129197.736 | P48: 115255.6004 | Q48: 0.3623418985 | R48: 0.125946373 | S48: 91484.1512 | U48: =G48-INDEX($C48:$G48,1,aux!$AL$1) -> 5323.19 | V48: 0.4059013494 | W48: 0.02818992338 | X48: =+IF(INDEX($C48:$G48,1,aux!$AL$1)>0,(G48/INDEX($C48:$G48,1,aux!$AL$1))^(1/($G$3-INDEX($C$3:$G$3,1,aux!$AL$1)))-1,"n.d.") -> 0.05122446862 | Y48: =IF(INDEX($C48:$G48,1,aux!$AL$1)>0,(G48-INDEX($C48:$G48,1,aux!$AL$1))/INDEX($C48:$G48,1,aux!$AL$1),"n.d.") -> 0.2211860777 | AA48: =O48-INDEX($K48:$O48,1,aux!$AL$1) -> 25722.011 | AB48: 0.4560990975 | AC48: 0.1345044474 | AD48: =+IF(INDEX($K48:$O48,1,aux!$AL$1)>0,(O48/INDEX($K48:$O48,1,aux!$AL$1))^(1/($O$3-INDEX($K$3:$O$3,1,aux!$AL$1)))-1,"n.d.") -> 0.05707087325 | AE48: =IF(INDEX($K48:$O48,1,aux!$AL$1)>0,(O48-INDEX($K48:$O48,1,aux!$AL$1))/INDEX($K48:$O48,1,aux!$AL$1),"n.d.") -> 0.2485801477
A49: 46 | B49: Obras de espartaria ou de cestaria | C49: 178.456 | D49: 224.955 | E49: 156.777 | F49: 1249.576 | G49: 992.467 | H49: 560.4462 | I49: 0.005320338192 | J49: 0.00113555902 | K49: 3.436 | L49: 19.854 | M49: 32.564 | N49: 21.796 | O49: 13.835 | P49: 18.297 | Q49: 5.752232164e-05 | R49: 1.999417623e-05 | S49: -542.1492 | U49: =G49-INDEX($C49:$G49,1,aux!$AL$1) -> 814.011 | V49: 0.06206957921 | W49: 0.004310743693 | X49: =+IF(INDEX($C49:$G49,1,aux!$AL$1)>0,(G49/INDEX($C49:$G49,1,aux!$AL$1))^(1/($G$3-INDEX($C$3:$G$3,1,aux!$AL$1)))-1,"n.d.") -> 0.5356640949 | Y49: =IF(INDEX($C49:$G49,1,aux!$AL$1)>0,(G49-INDEX($C49:$G49,1,aux!$AL$1))/INDEX($C49:$G49,1,aux!$AL$1),"n.d.") -> 4.561410095 | AA49: =O49-INDEX($K49:$O49,1,aux!$AL$1) -> 10.399 | AB49: 0.000184393612 | AC49: 5.437800913e-05 | AD49: =+IF(INDEX($K49:$O49,1,aux!$AL$1)>0,(O49/INDEX($K49:$O49,1,aux!$AL$1))^(1/($O$3-INDEX($K$3:$O$3,1,aux!$AL$1)))-1,"n.d.") -> 0.4165486746 | AE49: =IF(INDEX($K49:$O49,1,aux!$AL$1)>0,(O49-INDEX($K49:$O49,1,aux!$AL$1))/INDEX($K49:$O49,1,aux!$AL$1),"n.d.") -> 3.026484284
A50: 47 | B50: Pastas de madeira | C50: 608.267 | D50: 117.074 | E50: 18.449 | F50: 319.236 | G50: 556.122 | H50: 323.8296 | I50: 0.003074127345 | J50: 0.0006561336724 | K50: 26703.327 | L50: 32475.341 | M50: 28480.357 | N50: 9553.805 | O50: 6110.154 | P50: 20664.5968 | Q50: 0.06496560003 | R50: 0.02258138439 | S50: 20340.7672 | U50: =G50-INDEX($C50:$G50,1,aux!$AL$1) -> -52.145 | V50: -0.003976135713 | W50: -0.0002761433566 | X50: =+IF(INDEX($C50:$G50,1,aux!$AL$1)>0,(G50/INDEX($C50:$G50,1,aux!$AL$1))^(1/($G$3-INDEX($C$3:$G$3,1,aux!$AL$1)))-1,"n.d.") -> -0.0221573964 | Y50: =IF(INDEX($C50:$G50,1,aux!$AL$1)>0,(G50-INDEX($C50:$G50,1,aux!$AL$1))/INDEX($C50:$G50,1,aux!$AL$1),"n.d.") -> -0.085727156 | AA50: =O50-INDEX($K50:$O50,1,aux!$AL$1) -> -20593.173 | AB50: -0.3651552603 | AC50: -0.1076849456 | AD50: =+IF(INDEX($K50:$O50,1,aux!$AL$1)>0,(O50/INDEX($K50:$O50,1,aux!$AL$1))^(1/($O$3-INDEX($K$3:$O$3,1,aux!$AL$1)))-1,"n.d.") -> -0.3083733878 | AE50: =IF(INDEX($K50:$O50,1,aux!$AL$1)>0,(O50-INDEX($K50:$O50,1,aux!$AL$1))/INDEX($K50:$O50,1,aux!$AL$1),"n.d.") -> -0.7711837929
A51: 48 | B51: Papel e cartão | C51: 63607.727 | D51: 54862.335 | E51: 65264.667 | F51: 79385.215 | G51: 70133.238 | H51: 66650.6364 | I51: 0.6327171571 | J51: 0.1350454894 | K51: 117213.872 | L51: 94877.56 | M51: 136638.871 | N51: 219993.746 | O51: 141345.673 | P51: 142013.9444 | Q51: 0.4464650919 | R51: 0.1551867427 | S51: 75363.308 | U51: =G51-INDEX($C51:$G51,1,aux!$AL$1) -> 6525.511 | V51: 0.4975801579 | W51: 0.03455703349 | X51: =+IF(INDEX($C51:$G51,1,aux!$AL$1)>0,(G51/INDEX($C51:$G51,1,aux!$AL$1))^(1/($G$3-INDEX($C$3:$G$3,1,aux!$AL$1)))-1,"n.d.") -> 0.02471596723 | Y51: =IF(INDEX($C51:$G51,1,aux!$AL$1)>0,(G51-INDEX($C51:$G51,1,aux!$AL$1))/INDEX($C51:$G51,1,aux!$AL$1),"n.d.") -> 0.1025899102 | AA51: =O51-INDEX($K51:$O51,1,aux!$AL$1) -> 24131.801 | AB51: 0.4279017165 | AC51: 0.1261889888 | AD51: =+IF(INDEX($K51:$O51,1,aux!$AL$1)>0,(O51/INDEX($K51:$O51,1,aux!$AL$1))^(1/($O$3-INDEX($K$3:$O$3,1,aux!$AL$1)))-1,"n.d.") -> 0.04791456429 | AE51: =IF(INDEX($K51:$O51,1,aux!$AL$1)>0,(O51-INDEX($K51:$O51,1,aux!$AL$1))/INDEX($K51:$O51,1,aux!$AL$1),"n.d.") -> 0.2058783708
A52: Subtotal Florestas | C52: 102551.872 | D52: 82822.46 | E52: 95161.683 | F52: 130499.289 | G52: 115666.364 | H52: 105340.3336 | I52: 1 | J52: 0.2134373755 | K52: 272479.462 | L52: 248639.857 | M52: 319403.25 | N52: 421028.377 | O52: 328875.125 | P52: 318085.2142 | Q52: 1 | R52: 0.3475898688 | S52: 212744.8806 | U52: =G52-INDEX($C52:$G52,1,aux!$AL$1) -> 13114.492 | V52: 1 | W52: 0.06945018393 | X52: =+IF(INDEX($C52:$G52,1,aux!$AL$1)>0,(G52/INDEX($C52:$G52,1,aux!$AL$1))^(1/($G$3-INDEX($C$3:$G$3,1,aux!$AL$1)))-1,"n.d.") -> 0.03054241891 | Y52: =IF(INDEX($C52:$G52,1,aux!$AL$1)>0,(G52-INDEX($C52:$G52,1,aux!$AL$1))/INDEX($C52:$G52,1,aux!$AL$1),"n.d.") -> 0.1278815466 | AA52: =O52-INDEX($K52:$O52,1,aux!$AL$1) -> 56395.663 | AB52: 1 | AC52: 0.2949018057 | AD52: =+IF(INDEX($K52:$O52,1,aux!$AL$1)>0,(O52/INDEX($K52:$O52,1,aux!$AL$1))^(1/($O$3-INDEX($K$3:$O$3,1,aux!$AL$1)))-1,"n.d.") -> 0.04815211079 | AE52: =IF(INDEX($K52:$O52,1,aux!$AL$1)>0,(O52-INDEX($K52:$O52,1,aux!$AL$1))/INDEX($K52:$O52,1,aux!$AL$1),"n.d.") -> 0.2069721607
B53: TOTAL | C53: 426759.54 | D53: 372582.033 | E53: 460631.279 | F53: 592145.102 | G53: 615592.618 | H53: 493542.1144 | J53: 1 | K53: 809805.02 | L53: 745258.255 | M53: 934390.659 | N53: 1085088.009 | O53: 1001040.414 | P53: 915116.4714 | R53: 1 | S53: 421574.357 | U53: =G53-INDEX($C53:$G53,1,aux!$AL$1) -> 188833.078 | W53: 1 | X53: =+IF(INDEX($C53:$G53,1,aux!$AL$1)>0,(G53/INDEX($C53:$G53,1,aux!$AL$1))^(1/($G$3-INDEX($C$3:$G$3,1,aux!$AL$1)))-1,"n.d.") -> 0.09591669067 | Y53: =IF(INDEX($C53:$G53,1,aux!$AL$1)>0,(G53-INDEX($C53:$G53,1,aux!$AL$1))/INDEX($C53:$G53,1,aux!$AL$1),"n.d.") -> 0.4424812108 | AA53: =O53-INDEX($K53:$O53,1,aux!$AL$1) -> 191235.394 | AC53: 1 | AD53: =+IF(INDEX($K53:$O53,1,aux!$AL$1)>0,(O53/INDEX($K53:$O53,1,aux!$AL$1))^(1/($O$3-INDEX($K$3:$O$3,1,aux!$AL$1)))-1,"n.d.") -> 0.05443007994 | AE53: =IF(INDEX($K53:$O53,1,aux!$AL$1)>0,(O53-INDEX($K53:$O53,1,aux!$AL$1))/INDEX($K53:$O53,1,aux!$AL$1),"n.d.") -> 0.2361499241
B54: a - agrícola e agroalimentar; p - pescas; f - florestas
A55: Fonte: GPP a partir de dados INE/Comércio Internacional (2022 definitivos) | S55: 2024-05-10T17:39:15.770

Sheet 5.2_var
A1: ="Principais contributos por produto para a variação das trocas comerciais PT-Itália_x000D_ no período " & INDEX('5.2'!K3:N3,1,aux!AL1) & "-2023 (NC 2 dígitos - milhares de euros) Produtos agrícolas e agroalimentares, do mar e da floresta" -> Principais contributos por produto para a variação das trocas comerciais PT-Itália no período 2019-2023 (NC 2 dígitos - milhares de euros) Produtos agrícolas e agroalimentares, do mar e da floresta
E5: aumento das importações | J5: aumento das exportações
E17: redução das importações | J17: redução das exportações
A28: Fonte: GPP a partir de dados INE/Comércio Internacional (2022 definitivos) | F28: a - agrícola e agroalimentar; p - mar; f - florestas | H28: ='3'!Y116 -> 2024-05-10T17:39:15.770
A29: Cód. NC | B29: Descritivo | C29: ="Variação das Importações " & INDEX('5.2'!K3:N3,1,aux!AL1) & "-"& '5.2'!O3 &"" -> Variação das Importações 2019-2023 | F29: Cód. NC | G29: Descritivo | H29: ="Variação das Exportações " & INDEX('5.2'!K3:N3,1,aux!AL1) & "-"& '5.2'!O3 &"" -> Variação das Exportações 2019-2023
C30: variação total em valor | D30: % do aumento/ redução total | H30: variação total em valor | I30: % do aumento/ redução total
A31: =IF(C31>0,aux!AU6,"") -> 24 | B31: =IF(C31>0,aux!AV6,"") -> Tabaco | C31: =IF(aux!AW6>0,aux!AW6,0) -> 59412.441 | D31: =IF(SUM($C$31:$C$41)<>0,C31/SUM($C$31:$C$41),0) -> 0.307036507 | F31: =IF(H31>0,aux!AZ6,"") -> 24 | G31: =IF(H31>0,aux!BA6,"") -> Tabaco | H31: =IF(aux!BB6>0,aux!BB6,0) -> 64495.657 | I31: =IF(SUM($H$31:$H$41)<>0,H31/SUM($H$31:$H$41),0) -> 0.253586543
A32: =IF(C32>0,aux!AU7,"") -> 04 | B32: =IF(C32>0,aux!AV7,"") -> Leite e laticínios; ovos; mel, etc. | C32: =IF(aux!AW7>0,aux!AW7,0) -> 15515.345 | D32: =IF(SUM($C$31:$C$41)<>0,C32/SUM($C$31:$C$41),0) -> 0.08018147804 | F32: =IF(H32>0,aux!AZ7,"") -> 15 | G32: =IF(H32>0,aux!BA7,"") -> Gorduras e óleos animais ou vegetais | H32: =IF(aux!BB7>0,aux!BB7,0) -> 49382.979 | I32: =IF(SUM($H$31:$H$41)<>0,H32/SUM($H$31:$H$41),0) -> 0.1941659254
A33: =IF(C33>0,aux!AU8,"") -> 19a | B33: =IF(C33>0,aux!AV8,"") -> Preparações à base de cereais (exc. NC 19022010) (a) | C33: =IF(aux!AW8>0,aux!AW8,0) -> 14586.547 | D33: 0.07538155923 | F33: =IF(H33>0,aux!AZ8,"") -> 45 | G33: =IF(H33>0,aux!BA8,"") -> Cortiça e suas obras | H33: =IF(aux!BB8>0,aux!BB8,0) -> 25722.011 | I33: 0.1011348074
A34: =IF(C34>0,aux!AU9,"") -> 22 | B34: =IF(C34>0,aux!AV9,"") -> Bebidas, líquidos alcoólicos e vinagres | C34: =IF(aux!AW9>0,aux!AW9,0) -> 14195.874 | D34: 0.07336260711 | F34: =IF(H34>0,aux!AZ9,"") -> 48 | G34: =IF(H34>0,aux!BA9,"") -> Papel e cartão | H34: =IF(aux!BB9>0,aux!BB9,0) -> 24131.801 | I34: 0.09488235761
A35: =IF(C35>0,aux!AU10,"") -> 23a | B35: =IF(C35>0,aux!AV10,"") -> Resíduos indústrias alimentares; alimentos p/ animais (exc. NC 230120) (a) | C35: =IF(aux!AW10>0,aux!AW10,0) -> 13214.299 | D35: 0.06828994297 | F35: =IF(H35>0,aux!AZ10,"") -> 44 | G35: =IF(H35>0,aux!BA10,"") -> Madeira e suas obras | H35: =IF(aux!BB10>0,aux!BB10,0) -> 17632.59 | I35: 0.06932850598
A36: =IF(C36>0,aux!AU11,"") -> 02 | B36: =IF(C36>0,aux!AV11,"") -> Carnes e miudezas | C36: =IF(aux!AW11>0,aux!AW11,0) -> 12046.121 | D36: 0.06225293646 | F36: =IF(H36>0,aux!AZ11,"") -> 20 | G36: =IF(H36>0,aux!BA11,"") -> Preparações de produtos vegetais | H36: =IF(aux!BB11>0,aux!BB11,0) -> 17479.802 | I36: 0.06872776815
A37: =IF(C37>0,aux!AU12,"") -> 06 | B37: =IF(C37>0,aux!AV12,"") -> Plantas vivas e produtos de floricultura | C37: =IF(aux!AW12>0,aux!AW12,0) -> 7317.541 | D37: 0.0378161912 | F37: =IF(H37>0,aux!AZ12,"") -> 21 | G37: =IF(H37>0,aux!BA12,"") -> Preparações alimentícias diversas | H37: =IF(aux!BB12>0,aux!BB12,0) -> 14908.295 | I37: 0.0586170165
A38: =IF(C38>0,aux!AU13,"") -> 15 | B38: =IF(C38>0,aux!AV13,"") -> Gorduras e óleos animais ou vegetais | C38: =IF(aux!AW13>0,aux!AW13,0) -> 7059.968 | D38: 0.03648508423 | F38: =IF(H38>0,aux!AZ13,"") -> 03 | G38: =IF(H38>0,aux!BA13,"") -> Peixes e crustáceos | H38: =IF(aux!BB13>0,aux!BB13,0) -> 10072.071 | I38: 0.03960176211
A39: =IF(C39>0,aux!AU14,"") -> 18 | B39: =IF(C39>0,aux!AV14,"") -> Cacau e suas preparações | C39: =IF(aux!AW14>0,aux!AW14,0) -> 6617.144 | D39: 0.03419662188 | F39: =IF(H39>0,aux!AZ14,"") -> 38f | G39: =IF(H39>0,aux!BA14,"") -> Tall oil, essências e colofónias (NC 3803,3805,3806) (f) | H39: =IF(aux!BB14>0,aux!BB14,0) -> 9487.161 | I39: 0.03730199013
A40: =IF(C40>0,aux!AU15,"") -> 48 | B40: =IF(C40>0,aux!AV15,"") -> Papel e cartão | C40: =IF(aux!AW15>0,aux!AW15,0) -> 6525.511 | D40: 0.03372307332 | F40: =IF(H40>0,aux!AZ15,"") -> 02 | G40: =IF(H40>0,aux!BA15,"") -> Carnes e miudezas | H40: =IF(aux!BB15>0,aux!BB15,0) -> 8588.548 | I40: 0.03376878844
B41: Outros contributos para o aumento das importações | C41: =SUMIF(aux!AW16:AW51,">0") -> 37012.065 | D41: 0.1912739986 | G41: Outros contributos para o aumento das exportações | H41: =SUMIF(aux!BB16:BB51,">0") -> 12432.995 | I41: 0.04888453529
B42: Outros contributos para a redução das importações | C42: =SUMIF(aux!AW6:AW41,"<0") -> -123.635 | D42: =IF(SUM($C$42:$C$52)<>0,C42/SUM($C$42:$C$52),0) -> 0.02647556265 | G42: Outros contributos para a redução das exportações | H42: =SUMIF(aux!BB6:BB41,"<0") -> -966.164 | I42: =IF(SUM($H$42:$H$52)<>0,H42/SUM($H$42:$H$52),0) -> 0.01531199244
A43: =IF(C43<>0,aux!AU42,"") -> 47 | B43: =IF(C43<0,aux!AV42,"") -> Pastas de madeira | C43: =IF(aux!AW42<0,aux!AW42,0) -> -52.145 | D43: =IF(SUM($C$42:$C$52)<>0,C43/SUM($C$42:$C$52),0) -> 0.01116648372 | F43: =IF(H43<>0,aux!AZ42,"") -> 52 | G43: =IF(H43<>0,aux!BA42,"") -> Algodão (NC 5201-5203) | H43: =IF(aux!BB42<0,aux!BB42,0) -> -585.93 | I43: =IF(SUM($H$42:$H$52)<>0,H43/SUM($H$42:$H$52),0) -> 0.009285955315
A44: =IF(C44<>0,aux!AU43,"") -> 50 | B44: =IF(C44<0,aux!AV43,"") -> Seda crua (NC 5001-5003) | C44: =IF(aux!AW43<0,aux!AW43,0) -> -60.897 | D44: 0.01304066275 | F44: =IF(H44<>0,aux!AZ43,"") -> 23p | G44: =IF(H44<>0,aux!BA43,"") -> Farinhas de pescado (NC 230120) (p) | H44: =IF(aux!BB43<0,aux!BB43,0) -> -752.746 | I44: 0.01192969419
A45: =IF(C45<>0,aux!AU44,"") -> 16p | B45: =IF(C45<0,aux!AV44,"") -> Preparações e conservas de peixes ou crustáceos (NC 1604-05) (p) | C45: =IF(aux!AW44<0,aux!AW44,0) -> -93.907 | D45: 0.02010952127 | F45: =IF(H45<>0,aux!AZ44,"") -> 05a | G45: =IF(H45<>0,aux!BA44,"") -> Outros produtos de origem animal (exc. NC 0508, 051191) (a) | H45: =IF(aux!BB44<0,aux!BB44,0) -> -1055.497 | I45: 0.01672776266
A46: =IF(C46<>0,aux!AU45,"") -> 38a | B46: =IF(C46<0,aux!AV45,"") -> Agentes de acabamento, ácidos gordos, sorbitol (NC 380910, 382311-12-13-19-70, 382460) (a) | C46: =IF(aux!AW45<0,aux!AW45,0) -> -226.033 | D46: 0.04840337164 | F46: =IF(H46<>0,aux!AZ45,"") -> 22 | G46: =IF(H46<>0,aux!BA45,"") -> Bebidas, líquidos alcoólicos e vinagres | H46: =IF(aux!BB45<0,aux!BB45,0) -> -1163.654 | I46: 0.01844186003
A47: =IF(C47<>0,aux!AU46,"") -> 35 | B47: =IF(C47<0,aux!AV46,"") -> Caseínas, albuminas, gelatinas, peptonas, dextrinas (NC 3501 a 3505) | C47: =IF(aux!AW46<0,aux!AW46,0) -> -230.992 | D47: 0.04946530649 | F47: =IF(H47<>0,aux!AZ46,"") -> 23a | G47: =IF(H47<>0,aux!BA46,"") -> Resíduos indústrias alimentares; alimentos p/ animais (exc. NC 230120) (a) | H47: =IF(aux!BB46<0,aux!BB46,0) -> -4729.905 | I47: 0.07496063774
A48: =IF(C48<>0,aux!AU47,"") -> 01 | B48: =IF(C48<0,aux!AV47,"") -> Animais vivos | C48: =IF(aux!AW47<0,aux!AW47,0) -> -251.294 | D48: 0.0538128365 | F48: =IF(H48<>0,aux!AZ47,"") -> 19a | G48: =IF(H48<>0,aux!BA47,"") -> Preparações à base de cereais (exc. NC 19022010) (a) | H48: =IF(aux!BB47<0,aux!BB47,0) -> -4986.326 | I48: 0.07902445756
A49: =IF(C49<>0,aux!AU48,"") -> 29 | B49: =IF(C49<0,aux!AV48,"") -> Manitol e sorbitol (NC 290543; 290544) | C49: =IF(aux!AW48<0,aux!AW48,0) -> -364.261 | D49: 0.07800392224 | F49: =IF(H49<>0,aux!AZ48,"") -> 06 | G49: =IF(H49<>0,aux!BA48,"") -> Plantas vivas e produtos de floricultura | H49: =IF(aux!BB48<0,aux!BB48,0) -> -5396.59 | I49: 0.08552641713
A50: =IF(C50<>0,aux!AU49,"") -> 52 | B50: =IF(C50<0,aux!AV49,"") -> Algodão (NC 5201-5203) | C50: =IF(aux!AW49<0,aux!AW49,0) -> -402.985 | D50: 0.08629639353 | F50: =IF(H50<>0,aux!AZ49,"") -> 16p | G50: =IF(H50<>0,aux!BA49,"") -> Preparações e conservas de peixes ou crustáceos (NC 1604-05) (p) | H50: =IF(aux!BB49<0,aux!BB49,0) -> -10051.662 | I50: 0.159301084
A51: =IF(C51<>0,aux!AU50,"") -> 44 | B51: =IF(C51<0,aux!AV50,"") -> Madeira e suas obras | C51: =IF(aux!AW50<0,aux!AW50,0) -> -488.536 | D51: 0.1046165364 | F51: =IF(H51<>0,aux!AZ50,"") -> 08 | G51: =IF(H51<>0,aux!BA50,"") -> Frutas | H51: =IF(aux!BB50<0,aux!BB50,0) -> -12816.869 | I51: 0.2031247296
A52: =IF(C52<>0,aux!AU51,"") -> 03 | B52: =IF(C52<0,aux!AV51,"") -> Peixes e crustáceos | C52: =IF(aux!AW51<0,aux!AW51,0) -> -2375.093 | D52: 0.5086094028 | F52: =IF(H52<>0,aux!AZ51,"") -> 47 | G52: =IF(H52<>0,aux!BA51,"") -> Pastas de madeira | H52: =IF(aux!BB51<0,aux!BB51,0) -> -20593.173 | I52: 0.3263654093
A53: TOTAL | C53: =SUM(C31:C52) -> 188833.078 | F53: TOTAL | H53: =SUM(H31:H52) -> 191235.394

Sheet 5.2A
A1: Trocas comerciais Portugal-Itália 2019-2023 em milhares de euros (NC 4 dígitos) | G1: Produtos agrícolas e agroalimentares, do mar e da floresta
A2: Cód. NC | B2: Descritivo | C2: Importações | K2: Exportações | S2: Saldo quinquénio (exp-imp) | T2: Evolução das importações | U2: =+"Variação das Importações " & INDEX(K3:N3,1,aux!AL1) & "-"& '5.2'!O3 &"" -> Variação das Importações 2019-2023 | Z2: Evolução das exportações | AA2: ="Variação das Exportações " & INDEX(K3:N3,1,aux!AL1) & "-"& '5.2'!O3 &"" -> Variação das Exportações 2019-2023
C3: 2019 | D3: 2020 | E3: 2021 | F3: 2022 | G3: 2023 | H3: média quinquénio | I3: % Subtot | J3: % Total | K3: 2019 | L3: 2020 | M3: 2021 | N3: 2022 | O3: 2023 | P3: média quinquénio | Q3: % Subtot | R3: % Total | U3: variação total em valor | V3: % no subtotal de variação | W3: % no total de variação | X3: taxa de variação média anual | Y3: taxa de variação total | AA3: variação total em valor | AB3: % no subtotal de variação | AC3: % no total de variação | AD3: taxa de variação média anual | AE3: taxa de variação total | AX3: filtro
A4: 0101 | B4: Equídeos vivos | C4: 0 | D4: 0 | E4: 90.18 | F4: 0 | G4: 0 | H4: 18.036 | I4: 4.871478268e-05 | J4: 3.654399386e-05 | K4: 136.813 | L4: 0 | M4: 0 | N4: 432.825 | O4: 0 | P4: 113.9276 | Q4: 0.0002371333182 | R4: 0.0001244951911 | S4: 95.8916 | U4: =G4-INDEX($C4:$G4,1,aux!$AL$1) -> 0 | V4: =IF($U$237<>0,U4/$U$237, "n.d.") -> 0 | W4: =IF($U$322<>0,U4/$U$322, "n.d.") -> 0 | X4: =+IF(INDEX($C4:$G4,1,aux!$AL$1)>0,(G4/INDEX($C4:$G4,1,aux!$AL$1))^(1/($G$3-INDEX($C$3:$G$3,1,aux!$AL$1)))-1,"n.d.") -> n.d. | Y4: =IF(INDEX($C4:$G4,1,aux!$AL$1)>0,(G4-INDEX($C4:$G4,1,aux!$AL$1))/INDEX($C4:$G4,1,aux!$AL$1),"n.d.") -> n.d. | AA4: =O4-INDEX($K4:$O4,1,aux!$AL$1) -> -136.813 | AB4: =IF($AA$237<>0,AA4/$AA$237, "n.d.") -> -0.001008876168 | AC4: =IF($AA$322<>0,AA4/$AA$322, "n.d.") -> -0.0007154167288 | AD4: =+IF(INDEX($K4:$O4,1,aux!$AL$1)>0,(O4/INDEX($K4:$O4,1,aux!$AL$1))^(1/($O$3-INDEX($K$3:$O$3,1,aux!$AL$1)))-1,"n.d.") -> -1 | AE4: =IF(INDEX($K4:$O4,1,aux!$AL$1)>0,(O4-INDEX($K4:$O4,1,aux!$AL$1))/INDEX($K4:$O4,1,aux!$AL$1),"n.d.") -> -1 | AX4: =+LEFT(A4,2) -> 01
A5: 0102 | B5: Bovinos vivos | C5: 0 | D5: 0 | E5: 0 | F5: 0 | G5: 0 | H5: 0 | I5: 0 | J5: 0 | K5: 0 | L5: 0 | M5: 0 | N5: 0 | O5: 0 | P5: 0 | Q5: 0 | R5: 0 | S5: 0 | U5: =G5-INDEX($C5:$G5,1,aux!$AL$1) -> 0 | V5: 0 | W5: 0 | X5: =+IF(INDEX($C5:$G5,1,aux!$AL$1)>0,(G5/INDEX($C5:$G5,1,aux!$AL$1))^(1/($G$3-INDEX($C$3:$G$3,1,aux!$AL$1)))-1,"n.d.") -> n.d. | Y5: =IF(INDEX($C5:$G5,1,aux!$AL$1)>0,(G5-INDEX($C5:$G5,1,aux!$AL$1))/INDEX($C5:$G5,1,aux!$AL$1),"n.d.") -> n.d. | AA5: =O5-INDEX($K5:$O5,1,aux!$AL$1) -> 0 | AB5: 0 | AC5: 0 | AD5: =+IF(INDEX($K5:$O5,1,aux!$AL$1)>0,(O5/INDEX($K5:$O5,1,aux!$AL$1))^(1/($O$3-INDEX($K$3:$O$3,1,aux!$AL$1)))-1,"n.d.") -> n.d. | AE5: =IF(INDEX($K5:$O5,1,aux!$AL$1)>0,(O5-INDEX($K5:$O5,1,aux!$AL$1))/INDEX($K5:$O5,1,aux!$AL$1),"n.d.") -> n.d. | AX5: 01
A6: 0103 | B6: Suínos vivos | C6: 0 | D6: 0 | E6: 0 | F6: 0 | G6: 0 | H6: 0 | I6: 0 | J6: 0 | K6: 0 | L6: 0 | M6: 0 | N6: 0 | O6: 0 | P6: 0 | Q6: 0 | R6: 0 | S6: 0 | U6: =G6-INDEX($C6:$G6,1,aux!$AL$1) -> 0 | V6: 0 | W6: 0 | X6: =+IF(INDEX($C6:$G6,1,aux!$AL$1)>0,(G6/INDEX($C6:$G6,1,aux!$AL$1))^(1/($G$3-INDEX($C$3:$G$3,1,aux!$AL$1)))-1,"n.d.") -> n.d. | Y6: =IF(INDEX($C6:$G6,1,aux!$AL$1)>0,(G6-INDEX($C6:$G6,1,aux!$AL$1))/INDEX($C6:$G6,1,aux!$AL$1),"n.d.") -> n.d. | AA6: =O6-INDEX($K6:$O6,1,aux!$AL$1) -> 0 | AB6: 0 | AC6: 0 | AD6: =+IF(INDEX($K6:$O6,1,aux!$AL$1)>0,(O6/INDEX($K6:$O6,1,aux!$AL$1))^(1/($O$3-INDEX($K$3:$O$3,1,aux!$AL$1)))-1,"n.d.") -> n.d. | AE6: =IF(INDEX($K6:$O6,1,aux!$AL$1)>0,(O6-INDEX($K6:$O6,1,aux!$AL$1))/INDEX($K6:$O6,1,aux!$AL$1),"n.d.") -> n.d. | AX6: 01
A7: 0104 | B7: Ovinos ou caprinos vivos | C7: 0 | D7: 0 | E7: 0 | F7: 0 | G7: 131.534 | H7: 26.3068 | I7: 7.10540056e-05 | J7: 5.330203691e-05 | K7: 19.623 | L7: 335.105 | M7: 258.675 | N7: 0 | O7: 0 | P7: 122.6806 | Q7: 0.0002553521514 | R7: 0.0001340600938 | S7: 96.3738 | U7: =G7-INDEX($C7:$G7,1,aux!$AL$1) -> 131.534 | V7: 0.0007381146753 | W7: 0.0006965622834 | X7: =+IF(INDEX($C7:$G7,1,aux!$AL$1)>0,(G7/INDEX($C7:$G7,1,aux!$AL$1))^(1/($G$3-INDEX($C$3:$G$3,1,aux!$AL$1)))-1,"n.d.") -> n.d. | Y7: =IF(INDEX($C7:$G7,1,aux!$AL$1)>0,(G7-INDEX($C7:$G7,1,aux!$AL$1))/INDEX($C7:$G7,1,aux!$AL$1),"n.d.") -> n.d. | AA7: =O7-INDEX($K7:$O7,1,aux!$AL$1) -> -19.623 | AB7: -0.0001447024555 | AC7: -0.0001026117582 | AD7: =+IF(INDEX($K7:$O7,1,aux!$AL$1)>0,(O7/INDEX($K7:$O7,1,aux!$AL$1))^(1/($O$3-INDEX($K$3:$O$3,1,aux!$AL$1)))-1,"n.d.") -> -1 | AE7: =IF(INDEX($K7:$O7,1,aux!$AL$1)>0,(O7-INDEX($K7:$O7,1,aux!$AL$1))/INDEX($K7:$O7,1,aux!$AL$1),"n.d.") -> -1 | AX7: 01
A8: 0105 | B8: Aves de capoeira vivas | C8: 42.5 | D8: 0 | E8: 0 | F8: 0 | G8: 0 | H8: 8.5 | I8: 2.295828636e-05 | J8: 1.722244111e-05 | K8: 0 | L8: 0 | M8: 0 | N8: 0 | O8: 0 | P8: 0 | Q8: 0 | R8: 0 | S8: -8.5 | U8: =G8-INDEX($C8:$G8,1,aux!$AL$1) -> -42.5 | V8: -0.0002384925092 | W8: -0.0002250665003 | X8: =+IF(INDEX($C8:$G8,1,aux!$AL$1)>0,(G8/INDEX($C8:$G8,1,aux!$AL$1))^(1/($G$3-INDEX($C$3:$G$3,1,aux!$AL$1)))-1,"n.d.") -> -1 | Y8: =IF(INDEX($C8:$G8,1,aux!$AL$1)>0,(G8-INDEX($C8:$G8,1,aux!$AL$1))/INDEX($C8:$G8,1,aux!$AL$1),"n.d.") -> -1 | AA8: =O8-INDEX($K8:$O8,1,aux!$AL$1) -> 0 | AB8: 0 | AC8: 0 | AD8: =+IF(INDEX($K8:$O8,1,aux!$AL$1)>0,(O8/INDEX($K8:$O8,1,aux!$AL$1))^(1/($O$3-INDEX($K$3:$O$3,1,aux!$AL$1)))-1,"n.d.") -> n.d. | AE8: =IF(INDEX($K8:$O8,1,aux!$AL$1)>0,(O8-INDEX($K8:$O8,1,aux!$AL$1))/INDEX($K8:$O8,1,aux!$AL$1),"n.d.") -> n.d. | AX8: 01
A9: 0106 | B9: Outros animais vivos | C9: 350.515 | D9: 51.23 | E9: 9.335 | F9: 0.013 | G9: 10.187 | H9: 84.256 | I9: 0.0002275733383 | J9: 0.0001707169409 | K9: 3.932 | L9: 0 | M9: 0 | N9: 0 | O9: 0 | P9: 0.7864 | Q9: 1.636843412e-06 | R9: 8.59344165e-07 | S9: -83.4696 | U9: =G9-INDEX($C9:$G9,1,aux!$AL$1) -> -340.328 | V9: -0.001909780674 | W9: -0.001802268986 | X9: =+IF(INDEX($C9:$G9,1,aux!$AL$1)>0,(G9/INDEX($C9:$G9,1,aux!$AL$1))^(1/($G$3-INDEX($C$3:$G$3,1,aux!$AL$1)))-1,"n.d.") -> -0.5871094676 | Y9: =IF(INDEX($C9:$G9,1,aux!$AL$1)>0,(G9-INDEX($C9:$G9,1,aux!$AL$1))/INDEX($C9:$G9,1,aux!$AL$1),"n.d.") -> -0.9709370498 | AA9: =O9-INDEX($K9:$O9,1,aux!$AL$1) -> -3.932 | AB9: -2.899505962e-05 | AC9: -2.05610474e-05 | AD9: =+IF(INDEX($K9:$O9,1,aux!$AL$1)>0,(O9/INDEX($K9:$O9,1,aux!$AL$1))^(1/($O$3-INDEX($K$3:$O$3,1,aux!$AL$1)))-1,"n.d.") -> -1 | AE9: =IF(INDEX($K9:$O9,1,aux!$AL$1)>0,(O9-INDEX($K9:$O9,1,aux!$AL$1))/INDEX($K9:$O9,1,aux!$AL$1),"n.d.") -> -1 | AX9: 01
A10: 01SS | B10: Animais vivos | C10: 0 | D10: 0 | E10: 0 | F10: 0 | G10: 0 | H10: 0 | I10: 0 | J10: 0 | K10: 0 | L10: 0 | M10: 0 | N10: 0 | O10: 0 | P10: 0 | Q10: 0 | R10: 0 | S10: 0 | U10: =G10-INDEX($C10:$G10,1,aux!$AL$1) -> 0 | V10: 0 | W10: 0 | X10: =+IF(INDEX($C10:$G10,1,aux!$AL$1)>0,(G10/INDEX($C10:$G10,1,aux!$AL$1))^(1/($G$3-INDEX($C$3:$G$3,1,aux!$AL$1)))-1,"n.d.") -> n.d. | Y10: =IF(INDEX($C10:$G10,1,aux!$AL$1)>0,(G10-INDEX($C10:$G10,1,aux!$AL$1))/INDEX($C10:$G10,1,aux!$AL$1),"n.d.") -> n.d. | AA10: =O10-INDEX($K10:$O10,1,aux!$AL$1) -> 0 | AB10: 0 | AC10: 0 | AD10: =+IF(INDEX($K10:$O10,1,aux!$AL$1)>0,(O10/INDEX($K10:$O10,1,aux!$AL$1))^(1/($O$3-INDEX($K$3:$O$3,1,aux!$AL$1)))-1,"n.d.") -> n.d. | AE10: =IF(INDEX($K10:$O10,1,aux!$AL$1)>0,(O10-INDEX($K10:$O10,1,aux!$AL$1))/INDEX($K10:$O10,1,aux!$AL$1),"n.d.") -> n.d. | AX10: 01
A11: 0201 | B11: Carnes de bovino, frescas ou refrigeradas | C11: 3675.758 | D11: 3700.234 | E11: 4655.051 | F11: 4216.351 | G11: 4939.88 | H11: 4237.4548 | I11: 0.01144525891 | J11: 0.008585801852 | K11: 1.585 | L11: 0 | M11: 1032.437 | N11: 2887.858 | O11: 2028.885 | P11: 1190.153 | Q11: 0.00247723054 | R11: 0.001300548113 | S11: -3047.3018 | U11: =G11-INDEX($C11:$G11,1,aux!$AL$1) -> 1264.122 | V11: 0.007093732416 | W11: 0.006694388575 | X11: =+IF(INDEX($C11:$G11,1,aux!$AL$1)>0,(G11/INDEX($C11:$G11,1,aux!$AL$1))^(1/($G$3-INDEX($C$3:$G$3,1,aux!$AL$1)))-1,"n.d.") -> 0.0766941961 | Y11: =IF(INDEX($C11:$G11,1,aux!$AL$1)>0,(G11-INDEX($C11:$G11,1,aux!$AL$1))/INDEX($C11:$G11,1,aux!$AL$1),"n.d.") -> 0.3439078416 | AA11: =O11-INDEX($K11:$O11,1,aux!$AL$1) -> 2027.3 | AB11: 0.01494956368 | AC11: 0.01060107105 | AD11: =+IF(INDEX($K11:$O11,1,aux!$AL$1)>0,(O11/INDEX($K11:$O11,1,aux!$AL$1))^(1/($O$3-INDEX($K$3:$O$3,1,aux!$AL$1)))-1,"n.d.") -> 4.981457774 | AE11: =IF(INDEX($K11:$O11,1,aux!$AL$1)>0,(O11-INDEX($K11:$O11,1,aux!$AL$1))/INDEX($K11:$O11,1,aux!$AL$1),"n.d.") -> 1279.053628 | AX11: 02
A12: 0202 | B12: Carnes de bovino, congeladas | C12: 978.836 | D12: 412.042 | E12: 1267.924 | F12: 2011.505 | G12: 1403.981 | H12: 1214.8576 | I12: 0.003281299843 | J12: 0.002461507467 | K12: 52.185 | L12: 0.228 | M12: 271.863 | N12: 574.685 | O12: 491.431 | P12: 278.0784 | Q12: 0.0005788031497 | R12: 0.0003038721394 | S12: -936.7792 | U12: =G12-INDEX($C12:$G12,1,aux!$AL$1) -> 425.145 | V12: 0.002385738772 | W12: 0.002251432877 | X12: =+IF(INDEX($C12:$G12,1,aux!$AL$1)>0,(G12/INDEX($C12:$G12,1,aux!$AL$1))^(1/($G$3-INDEX($C$3:$G$3,1,aux!$AL$1)))-1,"n.d.") -> 0.09436658562 | Y12: =IF(INDEX($C12:$G12,1,aux!$AL$1)>0,(G12-INDEX($C12:$G12,1,aux!$AL$1))/INDEX($C12:$G12,1,aux!$AL$1),"n.d.") -> 0.4343373149 | AA12: =O12-INDEX($K12:$O12,1,aux!$AL$1) -> 439.246 | AB12: 0.003239054924 | AC12: 0.002296886527 | AD12: =+IF(INDEX($K12:$O12,1,aux!$AL$1)>0,(O12/INDEX($K12:$O12,1,aux!$AL$1))^(1/($O$3-INDEX($K$3:$O$3,1,aux!$AL$1)))-1,"n.d.") -> 0.7517785944 | AE12: =IF(INDEX($K12:$O12,1,aux!$AL$1)>0,(O12-INDEX($K12:$O12,1,aux!$AL$1))/INDEX($K12:$O12,1,aux!$AL$1),"n.d.") -> 8.417093034 | AX12: 02
A13: 0203 | B13: Carnes de suíno | C13: 24.009 | D13: 19.31 | E13: 4.518 | F13: 82.453 | G13: 137.174 | H13: 53.4928 | I13: 0.0001444827083 | J13: 0.0001083854821 | K13: 297.652 | L13: 498.771 | M13: 85.074 | N13: 369.508 | O13: 339.867 | P13: 318.1744 | Q13: 0.0006622605168 | R13: 0.0003476873272 | S13: 264.6816 | U13: =G13-INDEX($C13:$G13,1,aux!$AL$1) -> 113.165 | V13: 0.000635035407 | W13: 0.0005992858942 | X13: =+IF(INDEX($C13:$G13,1,aux!$AL$1)>0,(G13/INDEX($C13:$G13,1,aux!$AL$1))^(1/($G$3-INDEX($C$3:$G$3,1,aux!$AL$1)))-1,"n.d.") -> 0.5460531958 | Y13: =IF(INDEX($C13:$G13,1,aux!$AL$1)>0,(G13-INDEX($C13:$G13,1,aux!$AL$1))/INDEX($C13:$G13,1,aux!$AL$1),"n.d.") -> 4.713440793 | AA13: =O13-INDEX($K13:$O13,1,aux!$AL$1) -> 42.215 | AB13: 0.0003112986882 | AC13: 0.000220748885 | AD13: =+IF(INDEX($K13:$O13,1,aux!$AL$1)>0,(O13/INDEX($K13:$O13,1,aux!$AL$1))^(1/($O$3-INDEX($K$3:$O$3,1,aux!$AL$1)))-1,"n.d.") -> 0.03371316719 | AE13: =IF(INDEX($K13:$O13,1,aux!$AL$1)>0,(O13-INDEX($K13:$O13,1,aux!$AL$1))/INDEX($K13:$O13,1,aux!$AL$1),"n.d.") -> 0.1418266969 | AX13: 02
A14: 0204 | B14: Carnes de ovino ou caprino | C14: 138.84 | D14: 541.413 | E14: 782.058 | F14: 1763.662 | G14: 1895.036 | H14: 1024.2018 | I14: 0.002766343319 | J14: 0.002075206492 | K14: 213.125 | L14: 64.66 | M14: 271.287 | N14: 1172.25 | O14: 1184.735 | P14: 581.2114 | Q14: 0.001209755914 | R14: 0.0006351228703 | S14: -442.9904 | U14: =G14-INDEX($C14:$G14,1,aux!$AL$1) -> 1756.196 | V14: 0.009855049191 | W14: 0.009300256177 | X14: =+IF(INDEX($C14:$G14,1,aux!$AL$1)>0,(G14/INDEX($C14:$G14,1,aux!$AL$1))^(1/($G$3-INDEX($C$3:$G$3,1,aux!$AL$1)))-1,"n.d.") -> 0.9220988325 | Y14: =IF(INDEX($C14:$G14,1,aux!$AL$1)>0,(G14-INDEX($C14:$G14,1,aux!$AL$1))/INDEX($C14:$G14,1,aux!$AL$1),"n.d.") -> 12.64906367 | AA14: =O14-INDEX($K14:$O14,1,aux!$AL$1) -> 971.61 | AB14: 0.007164773622 | AC14: 0.005080701745 | AD14: =+IF(INDEX($K14:$O14,1,aux!$AL$1)>0,(O14/INDEX($K14:$O14,1,aux!$AL$1))^(1/($O$3-INDEX($K$3:$O$3,1,aux!$AL$1)))-1,"n.d.") -> 0.535488986 | AE14: =IF(INDEX($K14:$O14,1,aux!$AL$1)>0,(O14-INDEX($K14:$O14,1,aux!$AL$1))/INDEX($K14:$O14,1,aux!$AL$1),"n.d.") -> 4.5588739 | AX14: 02
A15: 0205 | B15: Carnes de equídeo | C15: 0 | D15: 0 | E15: 0 | F15: 0 | G15: 0 | H15: 0 | I15: 0 | J15: 0 | K15: 0 | L15: 0 | M15: 0 | N15: 0 | O15: 0 | P15: 0 | Q15: 0 | R15: 0 | S15: 0 | U15: =G15-INDEX($C15:$G15,1,aux!$AL$1) -> 0 | V15: 0 | W15: 0 | X15: =+IF(INDEX($C15:$G15,1,aux!$AL$1)>0,(G15/INDEX($C15:$G15,1,aux!$AL$1))^(1/($G$3-INDEX($C$3:$G$3,1,aux!$AL$1)))-1,"n.d.") -> n.d. | Y15: =IF(INDEX($C15:$G15,1,aux!$AL$1)>0,(G15-INDEX($C15:$G15,1,aux!$AL$1))/INDEX($C15:$G15,1,aux!$AL$1),"n.d.") -> n.d. | AA15: =O15-INDEX($K15:$O15,1,aux!$AL$1) -> 0 | AB15: 0 | AC15: 0 | AD15: =+IF(INDEX($K15:$O15,1,aux!$AL$1)>0,(O15/INDEX($K15:$O15,1,aux!$AL$1))^(1/($O$3-INDEX($K$3:$O$3,1,aux!$AL$1)))-1,"n.d.") -> n.d. | AE15: =IF(INDEX($K15:$O15,1,aux!$AL$1)>0,(O15-INDEX($K15:$O15,1,aux!$AL$1))/INDEX($K15:$O15,1,aux!$AL$1),"n.d.") -> n.d. | AX15: 02
A16: 0206 | B16: Miudezas de bovino, suíno, ovino, caprino,equídeo | C16: 0.042 | D16: 31.048 | E16: 20.858 | F16: 0 | G16: 306.627 | H16: 71.715 | I16: 0.0001937004125 | J16: 0.0001453067487 | K16: 254.478 | L16: 504.926 | M16: 412.558 | N16: 770.298 | O16: 462.795 | P16: 481.011 | Q16: 0.001001194922 | R16: 0.0005256281742 | S16: 409.296 | U16: =G16-INDEX($C16:$G16,1,aux!$AL$1) -> 306.585 | V16: 0.001720428845 | W16: 0.001623576776 | X16: =+IF(INDEX($C16:$G16,1,aux!$AL$1)>0,(G16/INDEX($C16:$G16,1,aux!$AL$1))^(1/($G$3-INDEX($C$3:$G$3,1,aux!$AL$1)))-1,"n.d.") -> 8.243581525 | Y16: =IF(INDEX($C16:$G16,1,aux!$AL$1)>0,(G16-INDEX($C16:$G16,1,aux!$AL$1))/INDEX($C16:$G16,1,aux!$AL$1),"n.d.") -> 7299.642857 | AA16: =O16-INDEX($K16:$O16,1,aux!$AL$1) -> 208.317 | AB16: 0.001536155604 | AC16: 0.001089322409 | AD16: =+IF(INDEX($K16:$O16,1,aux!$AL$1)>0,(O16/INDEX($K16:$O16,1,aux!$AL$1))^(1/($O$3-INDEX($K$3:$O$3,1,aux!$AL$1)))-1,"n.d.") -> 0.1612737358 | AE16: =IF(INDEX($K16:$O16,1,aux!$AL$1)>0,(O16-INDEX($K16:$O16,1,aux!$AL$1))/INDEX($K16:$O16,1,aux!$AL$1),"n.d.") -> 0.8186051446 | AX16: 02
A17: 0207 | B17: Carnes e miudezas de aves de capoeira | C17: 18861.899 | D17: 14832.199 | E17: 15469.275 | F17: 16374.503 | G17: 26111.059 | H17: 18329.787 | I17: 0.04950829398 | J17: 0.03713925613 | K17: 224.303 | L17: 382.502 | M17: 697.355 | N17: 987.318 | O17: 4854.788 | P17: 1429.2532 | Q17: 0.002974902955 | R17: 0.001561826548 | S17: -16900.5338 | U17: =G17-INDEX($C17:$G17,1,aux!$AL$1) -> 7249.16 | V17: 0.04067930253 | W17: 0.03838924873 | X17: =+IF(INDEX($C17:$G17,1,aux!$AL$1)>0,(G17/INDEX($C17:$G17,1,aux!$AL$1))^(1/($G$3-INDEX($C$3:$G$3,1,aux!$AL$1)))-1,"n.d.") -> 0.08470031873 | Y17: =IF(INDEX($C17:$G17,1,aux!$AL$1)>0,(G17-INDEX($C17:$G17,1,aux!$AL$1))/INDEX($C17:$G17,1,aux!$AL$1),"n.d.") -> 0.3843282164 | AA17: =O17-INDEX($K17:$O17,1,aux!$AL$1) -> 4630.485 | AB17: 0.03414577535 | AC17: 0.02421353549 | AD17: =+IF(INDEX($K17:$O17,1,aux!$AL$1)>0,(O17/INDEX($K17:$O17,1,aux!$AL$1))^(1/($O$3-INDEX($K$3:$O$3,1,aux!$AL$1)))-1,"n.d.") -> 1.156918805 | AE17: =IF(INDEX($K17:$O17,1,aux!$AL$1)>0,(O17-INDEX($K17:$O17,1,aux!$AL$1))/INDEX($K17:$O17,1,aux!$AL$1),"n.d.") -> 20.6438835 | AX17: 02
A18: 0208 | B18: Outras carnes e miudezas | C18: 0 | D18: 0 | E18: 15.63 | F18: 16.884 | G18: 0 | H18: 6.5028 | I18: 1.756389936e-05 | J18: 1.31757753e-05 | K18: 0 | L18: 5.936 | M18: 53.74 | N18: 42.084 | O18: 0.787 | P18: 20.5094 | Q18: 4.268905934e-05 | R18: 2.241179199e-05 | S18: 14.0066 | U18: =G18-INDEX($C18:$G18,1,aux!$AL$1) -> 0 | V18: 0 | W18: 0 | X18: =+IF(INDEX($C18:$G18,1,aux!$AL$1)>0,(G18/INDEX($C18:$G18,1,aux!$AL$1))^(1/($G$3-INDEX($C$3:$G$3,1,aux!$AL$1)))-1,"n.d.") -> n.d. | Y18: =IF(INDEX($C18:$G18,1,aux!$AL$1)>0,(G18-INDEX($C18:$G18,1,aux!$AL$1))/INDEX($C18:$G18,1,aux!$AL$1),"n.d.") -> n.d. | AA18: =O18-INDEX($K18:$O18,1,aux!$AL$1) -> 0.787 | AB18: 5.8034364e-06 | AC18: 4.115346974e-06 | AD18: =+IF(INDEX($K18:$O18,1,aux!$AL$1)>0,(O18/INDEX($K18:$O18,1,aux!$AL$1))^(1/($O$3-INDEX($K$3:$O$3,1,aux!$AL$1)))-1,"n.d.") -> n.d. | AE18: =IF(INDEX($K18:$O18,1,aux!$AL$1)>0,(O18-INDEX($K18:$O18,1,aux!$AL$1))/INDEX($K18:$O18,1,aux!$AL$1),"n.d.") -> n.d. | AX18: 02
A19: 0209 | B19: Toucinho, gorduras de porco e de aves | C19: 85.003 | D19: 42.214 | E19: 37.464 | F19: 85.195 | G19: 72.054 | H19: 64.386 | I19: 0.0001739049677 | J19: 0.0001304569521 | K19: 0 | L19: 21.445 | M19: 58.071 | N19: 116.051 | O19: 121.324 | P19: 63.3782 | Q19: 0.0001319178397 | R19: 6.925697655e-05 | S19: -1.0078 | U19: =G19-INDEX($C19:$G19,1,aux!$AL$1) -> -12.949 | V19: -7.266445885e-05 | W19: -6.857379087e-05 | X19: =+IF(INDEX($C19:$G19,1,aux!$AL$1)>0,(G19/INDEX($C19:$G19,1,aux!$AL$1))^(1/($G$3-INDEX($C$3:$G$3,1,aux!$AL$1)))-1,"n.d.") -> -0.04047573824 | Y19: =IF(INDEX($C19:$G19,1,aux!$AL$1)>0,(G19-INDEX($C19:$G19,1,aux!$AL$1))/INDEX($C19:$G19,1,aux!$AL$1),"n.d.") -> -0.1523357999 | AA19: =O19-INDEX($K19:$O19,1,aux!$AL$1) -> 121.324 | AB19: 0.0008946583453 | AC19: 0.0006344223078 | AD19: =+IF(INDEX($K19:$O19,1,aux!$AL$1)>0,(O19/INDEX($K19:$O19,1,aux!$AL$1))^(1/($O$3-INDEX($K$3:$O$3,1,aux!$AL$1)))-1,"n.d.") -> n.d. | AE19: =IF(INDEX($K19:$O19,1,aux!$AL$1)>0,(O19-INDEX($K19:$O19,1,aux!$AL$1))/INDEX($K19:$O19,1,aux!$AL$1),"n.d.") -> n.d. | AX19: 02
A20: 0210 | B20: Carnes e miudezas processadas; farinhas de carnes | C20: 1256.94 | D20: 1105.908 | E20: 1582.17 | F20: 2023.721 | G20: 2201.637 | H20: 1634.0752 | I20: 0.004413596044 | J20: 0.0033109134 | K20: 9.915 | L20: 163.501 | M20: 98.66 | N20: 61.957 | O20: 157.179 | P20: 98.2424 | Q20: 0.0002044855356 | R20: 0.0001073550778 | S20: -1535.8328 | U20: =G20-INDEX($C20:$G20,1,aux!$AL$1) -> 944.697 | V20: 0.005301250775 | W20: 0.005002815238 | X20: =+IF(INDEX($C20:$G20,1,aux!$AL$1)>0,(G20/INDEX($C20:$G20,1,aux!$AL$1))^(1/($G$3-INDEX($C$3:$G$3,1,aux!$AL$1)))-1,"n.d.") -> 0.1504236257 | Y20: =IF(INDEX($C20:$G20,1,aux!$AL$1)>0,(G20-INDEX($C20:$G20,1,aux!$AL$1))/INDEX($C20:$G20,1,aux!$AL$1),"n.d.") -> 0.7515848012 | AA20: =O20-INDEX($K20:$O20,1,aux!$AL$1) -> 147.264 | AB20: 0.001085943149 | AC20: 0.0007700666541 | AD20: =+IF(INDEX($K20:$O20,1,aux!$AL$1)>0,(O20/INDEX($K20:$O20,1,aux!$AL$1))^(1/($O$3-INDEX($K$3:$O$3,1,aux!$AL$1)))-1,"n.d.") -> 0.9953792456 | AE20: =IF(INDEX($K20:$O20,1,aux!$AL$1)>0,(O20-INDEX($K20:$O20,1,aux!$AL$1))/INDEX($K20:$O20,1,aux!$AL$1),"n.d.") -> 14.8526475 | AX20: 02
A21: 02SS | B21: Carnes e miudezas, comestíveis | C21: 0 | D21: 0 | E21: 0 | F21: 0 | G21: 0 | H21: 0 | I21: 0 | J21: 0 | K21: 0 | L21: 0 | M21: 0 | N21: 0 | O21: 0 | P21: 0 | Q21: 0 | R21: 0 | S21: 0 | U21: =G21-INDEX($C21:$G21,1,aux!$AL$1) -> 0 | V21: 0 | W21: 0 | X21: =+IF(INDEX($C21:$G21,1,aux!$AL$1)>0,(G21/INDEX($C21:$G21,1,aux!$AL$1))^(1/($G$3-INDEX($C$3:$G$3,1,aux!$AL$1)))-1,"n.d.") -> n.d. | Y21: =IF(INDEX($C21:$G21,1,aux!$AL$1)>0,(G21-INDEX($C21:$G21,1,aux!$AL$1))/INDEX($C21:$G21,1,aux!$AL$1),"n.d.") -> n.d. | AA21: =O21-INDEX($K21:$O21,1,aux!$AL$1) -> 0 | AB21: 0 | AC21: 0 | AD21: =+IF(INDEX($K21:$O21,1,aux!$AL$1)>0,(O21/INDEX($K21:$O21,1,aux!$AL$1))^(1/($O$3-INDEX($K$3:$O$3,1,aux!$AL$1)))-1,"n.d.") -> n.d. | AE21: =IF(INDEX($K21:$O21,1,aux!$AL$1)>0,(O21-INDEX($K21:$O21,1,aux!$AL$1))/INDEX($K21:$O21,1,aux!$AL$1),"n.d.") -> n.d. | AX21: 02
A22: 0401 | B22: Leite e nata, não concentrados | C22: 235.581 | D22: 33.106 | E22: 30.321 | F22: 140.429 | G22: 199.834 | H22: 127.8542 | I22: 0.0003453309807 | J22: 0.0002590542859 | K22: 0 | L22: 10.319 | M22: 0.123 | N22: 912.6 | O22: 443.511 | P22: 273.3106 | Q22: 0.0005688792662 | R22: 0.0002986620922 | S22: 145.4564 | U22: =G22-INDEX($C22:$G22,1,aux!$AL$1) -> -35.747 | V22: -0.0002005974524 | W22: -0.0001893047573 | X22: =+IF(INDEX($C22:$G22,1,aux!$AL$1)>0,(G22/INDEX($C22:$G22,1,aux!$AL$1))^(1/($G$3-INDEX($C$3:$G$3,1,aux!$AL$1)))-1,"n.d.") -> -0.04030710368 | Y22: =IF(INDEX($C22:$G22,1,aux!$AL$1)>0,(G22-INDEX($C22:$G22,1,aux!$AL$1))/INDEX($C22:$G22,1,aux!$AL$1),"n.d.") -> -0.1517397413 | AA22: =O22-INDEX($K22:$O22,1,aux!$AL$1) -> 443.511 | AB22: 0.003270505567 | AC22: 0.002319188884 | AD22: =+IF(INDEX($K22:$O22,1,aux!$AL$1)>0,(O22/INDEX($K22:$O22,1,aux!$AL$1))^(1/($O$3-INDEX($K$3:$O$3,1,aux!$AL$1)))-1,"n.d.") -> n.d. | AE22: =IF(INDEX($K22:$O22,1,aux!$AL$1)>0,(O22-INDEX($K22:$O22,1,aux!$AL$1))/INDEX($K22:$O22,1,aux!$AL$1),"n.d.") -> n.d. | AX22: 04
A23: 0402 | B23: Leite e nata, concentrados | C23: 76.809 | D23: 96.134 | E23: 184.673 | F23: 464.507 | G23: 524.842 | H23: 269.393 | I23: 0.000727623722 | J23: 0.0005458358915 | K23: 3015.078 | L23: 4026.646 | M23: 3743.858 | N23: 2849.083 | O23: 918.926 | P23: 2910.7182 | Q23: 0.006058481573 | R23: 0.003180707911 | S23: 2641.3252 | U23: =G23-INDEX($C23:$G23,1,aux!$AL$1) -> 448.033 | V23: 0.002514176808 | W23: 0.002372640454 | X23: =+IF(INDEX($C23:$G23,1,aux!$AL$1)>0,(G23/INDEX($C23:$G23,1,aux!$AL$1))^(1/($G$3-INDEX($C$3:$G$3,1,aux!$AL$1)))-1,"n.d.") -> 0.6167918739 | Y23: =IF(INDEX($C23:$G23,1,aux!$AL$1)>0,(G23-INDEX($C23:$G23,1,aux!$AL$1))/INDEX($C23:$G23,1,aux!$AL$1),"n.d.") -> 5.833079457 | AA23: =O23-INDEX($K23:$O23,1,aux!$AL$1) -> -2096.152 | AB23: -0.01545728693 | AC23: -0.01096110901 | AD23: =+IF(INDEX($K23:$O23,1,aux!$AL$1)>0,(O23/INDEX($K23:$O23,1,aux!$AL$1))^(1/($O$3-INDEX($K$3:$O$3,1,aux!$AL$1)))-1,"n.d.") -> -0.2569885662 | AE23: =IF(INDEX($K23:$O23,1,aux!$AL$1)>0,(O23-INDEX($K23:$O23,1,aux!$AL$1))/INDEX($K23:$O23,1,aux!$AL$1),"n.d.") -> -0.6952231418 | AX23: 04
A24: 0403 | B24: Leitelho, leite coalhado, iogurte, etc. | C24: 237.491 | D24: 321.169 | E24: 494.66 | F24: 264.96 | G24: 145.321 | H24: 292.7202 | I24: 0.0007906299029 | J24: 0.0005931007536 | K24: 0 | L24: 0 | M24: 0.06 | N24: 0.113 | O24: 0.096 | P24: 0.0538 | Q24: 1.119814033e-07 | R24: 5.879033072e-08 | S24: -292.6664 | U24: =G24-INDEX($C24:$G24,1,aux!$AL$1) -> -92.17 | V24: -0.0005172201075 | W24: -0.000488103043 | X24: =+IF(INDEX($C24:$G24,1,aux!$AL$1)>0,(G24/INDEX($C24:$G24,1,aux!$AL$1))^(1/($G$3-INDEX($C$3:$G$3,1,aux!$AL$1)))-1,"n.d.") -> -0.1155560706 | Y24: =IF(INDEX($C24:$G24,1,aux!$AL$1)>0,(G24-INDEX($C24:$G24,1,aux!$AL$1))/INDEX($C24:$G24,1,aux!$AL$1),"n.d.") -> -0.3880989174 | AA24: =O24-INDEX($K24:$O24,1,aux!$AL$1) -> 0.096 | AB24: 7.07916003e-07 | AC24: 5.019991226e-07 | AD24: =+IF(INDEX($K24:$O24,1,aux!$AL$1)>0,(O24/INDEX($K24:$O24,1,aux!$AL$1))^(1/($O$3-INDEX($K$3:$O$3,1,aux!$AL$1)))-1,"n.d.") -> n.d. | AE24: =IF(INDEX($K24:$O24,1,aux!$AL$1)>0,(O24-INDEX($K24:$O24,1,aux!$AL$1))/INDEX($K24:$O24,1,aux!$AL$1),"n.d.") -> n.d. | AX24: 04
A25: 0404 | B25: Soro de leite e outros produtos do leite | C25: 107.669 | D25: 42.879 | E25: 100.79 | F25: 3107.952 | G25: 2410.692 | H25: 1153.9964 | I25: 0.003116915272 | J25: 0.002338192358 | K25: 1403.778 | L25: 1113.846 | M25: 1123.624 | N25: 2034.87 | O25: 606.226 | P25: 1256.4688 | Q25: 0.002615262814 | R25: 0.001373015173 | S25: 102.4724 | U25: =G25-INDEX($C25:$G25,1,aux!$AL$1) -> 2303.023 | V25: 0.01292361727 | W25: 0.01219607827 | X25: =+IF(INDEX($C25:$G25,1,aux!$AL$1)>0,(G25/INDEX($C25:$G25,1,aux!$AL$1))^(1/($G$3-INDEX($C$3:$G$3,1,aux!$AL$1)))-1,"n.d.") -> 1.175267954 | Y25: =IF(INDEX($C25:$G25,1,aux!$AL$1)>0,(G25-INDEX($C25:$G25,1,aux!$AL$1))/INDEX($C25:$G25,1,aux!$AL$1),"n.d.") -> 21.38984294 | AA25: =O25-INDEX($K25:$O25,1,aux!$AL$1) -> -797.552 | AB25: -0.005881248167 | AC25: -0.004170525044 | AD25: =+IF(INDEX($K25:$O25,1,aux!$AL$1)>0,(O25/INDEX($K25:$O25,1,aux!$AL$1))^(1/($O$3-INDEX($K$3:$O$3,1,aux!$AL$1)))-1,"n.d.") -> -0.1893487967 | AE25: =IF(INDEX($K25:$O25,1,aux!$AL$1)>0,(O25-INDEX($K25:$O25,1,aux!$AL$1))/INDEX($K25:$O25,1,aux!$AL$1),"n.d.") -> -0.5681468152 | AX25: 04
A26: 0405 | B26: Manteiga | C26: 250.536 | D26: 261.839 | E26: 332.448 | F26: 154.025 | G26: 562.849 | H26: 312.3394 | I26: 0.000843620869 | J26: 0.0006328525791 | K26: 0.273 | L26: 0 | M26: 0.346 | N26: 0.121 | O26: 0.118 | P26: 0.1716 | Q26: 3.571748848e-07 | R26: 1.875171143e-07 | S26: -312.1678 | U26: =G26-INDEX($C26:$G26,1,aux!$AL$1) -> 312.313 | V26: 0.001752572024 | W26: 0.001653910445 | X26: =+IF(INDEX($C26:$G26,1,aux!$AL$1)>0,(G26/INDEX($C26:$G26,1,aux!$AL$1))^(1/($G$3-INDEX($C$3:$G$3,1,aux!$AL$1)))-1,"n.d.") -> 0.2242791121 | Y26: =IF(INDEX($C26:$G26,1,aux!$AL$1)>0,(G26-INDEX($C26:$G26,1,aux!$AL$1))/INDEX($C26:$G26,1,aux!$AL$1),"n.d.") -> 1.246579334 | AA26: =O26-INDEX($K26:$O26,1,aux!$AL$1) -> -0.155 | AB26: -1.14298938e-06 | AC26: -8.105194167e-07 | AD26: =+IF(INDEX($K26:$O26,1,aux!$AL$1)>0,(O26/INDEX($K26:$O26,1,aux!$AL$1))^(1/($O$3-INDEX($K$3:$O$3,1,aux!$AL$1)))-1,"n.d.") -> -0.1891699417 | AE26: =IF(INDEX($K26:$O26,1,aux!$AL$1)>0,(O26-INDEX($K26:$O26,1,aux!$AL$1))/INDEX($K26:$O26,1,aux!$AL$1),"n.d.") -> -0.5677655678 | AX26: 04
A27: 0406 | B27: Queijos e requeijão | C27: 16900.598 | D27: 15034.304 | E27: 21724.257 | F27: 26546.92 | G27: 29287.105 | H27: 21898.6368 | I27: 0.05914766759 | J27: 0.0443703509 | K27: 25.545 | L27: 41.175 | M27: 74.321 | N27: 15.008 | O27: 17.776 | P27: 34.765 | Q27: 7.23612172e-05 | R27: 3.798969977e-05 | S27: -21863.8718 | U27: =G27-INDEX($C27:$G27,1,aux!$AL$1) -> 12386.507 | V27: 0.06950797963 | W27: 0.06559500661 | X27: =+IF(INDEX($C27:$G27,1,aux!$AL$1)>0,(G27/INDEX($C27:$G27,1,aux!$AL$1))^(1/($G$3-INDEX($C$3:$G$3,1,aux!$AL$1)))-1,"n.d.") -> 0.1473438528 | Y27: =IF(INDEX($C27:$G27,1,aux!$AL$1)>0,(G27-INDEX($C27:$G27,1,aux!$AL$1))/INDEX($C27:$G27,1,aux!$AL$1),"n.d.") -> 0.7329034748 | AA27: =O27-INDEX($K27:$O27,1,aux!$AL$1) -> -7.769 | AB27: -5.728957737e-05 | AC27: -4.062532483e-05 | AD27: =+IF(INDEX($K27:$O27,1,aux!$AL$1)>0,(O27/INDEX($K27:$O27,1,aux!$AL$1))^(1/($O$3-INDEX($K$3:$O$3,1,aux!$AL$1)))-1,"n.d.") -> -0.08666093475 | AE27: =IF(INDEX($K27:$O27,1,aux!$AL$1)>0,(O27-INDEX($K27:$O27,1,aux!$AL$1))/INDEX($K27:$O27,1,aux!$AL$1),"n.d.") -> -0.3041299667 | AX27: 04
A28: 0407 | B28: Ovos de aves, com cascas | C28: 472.738 | D28: 0 | E28: 0 | F28: 0 | G28: 91.244 | H28: 112.7964 | I28: 0.0003046602413 | J28: 0.0002285446302 | K28: 15.731 | L28: 12.622 | M28: 124.943 | N28: 1245.125 | O28: 3055.347 | P28: 890.7536 | Q28: 0.001854049036 | R28: 0.0009733772999 | S28: 777.9572 | U28: =G28-INDEX($C28:$G28,1,aux!$AL$1) -> -381.494 | V28: -0.002140787324 | W28: -0.002020271046 | X28: =+IF(INDEX($C28:$G28,1,aux!$AL$1)>0,(G28/INDEX($C28:$G28,1,aux!$AL$1))^(1/($G$3-INDEX($C$3:$G$3,1,aux!$AL$1)))-1,"n.d.") -> -0.3371794716 | Y28: =IF(INDEX($C28:$G28,1,aux!$AL$1)>0,(G28-INDEX($C28:$G28,1,aux!$AL$1))/INDEX($C28:$G28,1,aux!$AL$1),"n.d.") -> -0.806988226 | AA28: =O28-INDEX($K28:$O28,1,aux!$AL$1) -> 3039.616 | AB28: 0.02241450843 | AC28: 0.01589463089 | AD28: =+IF(INDEX($K28:$O28,1,aux!$AL$1)>0,(O28/INDEX($K28:$O28,1,aux!$AL$1))^(1/($O$3-INDEX($K$3:$O$3,1,aux!$AL$1)))-1,"n.d.") -> 2.73315526 | AE28: =IF(INDEX($K28:$O28,1,aux!$AL$1)>0,(O28-INDEX($K28:$O28,1,aux!$AL$1))/INDEX($K28:$O28,1,aux!$AL$1),"n.d.") -> 193.2245884 | AX28: 04
A29: 0408 | B29: Ovos de aves, sem casca | C29: 0.239 | D29: 1.383 | E29: 0 | F29: 0 | G29: 516.776 | H29: 103.6796 | I29: 0.0002800359937 | J29: 0.0002100724477 | K29: 29.076 | L29: 26.016 | M29: 40.246 | N29: 45.125 | O29: 53.54 | P29: 38.8006 | Q29: 8.076107131e-05 | R29: 4.239963022e-05 | S29: -64.879 | U29: =G29-INDEX($C29:$G29,1,aux!$AL$1) -> 516.537 | V29: 0.002898593064 | W29: 0.002735415879 | X29: =+IF(INDEX($C29:$G29,1,aux!$AL$1)>0,(G29/INDEX($C29:$G29,1,aux!$AL$1))^(1/($G$3-INDEX($C$3:$G$3,1,aux!$AL$1)))-1,"n.d.") -> 5.819085075 | Y29: =IF(INDEX($C29:$G29,1,aux!$AL$1)>0,(G29-INDEX($C29:$G29,1,aux!$AL$1))/INDEX($C29:$G29,1,aux!$AL$1),"n.d.") -> 2161.242678 | AA29: =O29-INDEX($K29:$O29,1,aux!$AL$1) -> 24.464 | AB29: 0.0001804005948 | AC29: 0.0001279261097 | AD29: =+IF(INDEX($K29:$O29,1,aux!$AL$1)>0,(O29/INDEX($K29:$O29,1,aux!$AL$1))^(1/($O$3-INDEX($K$3:$O$3,1,aux!$AL$1)))-1,"n.d.") -> 0.164892708 | AE29: =IF(INDEX($K29:$O29,1,aux!$AL$1)>0,(O29-INDEX($K29:$O29,1,aux!$AL$1))/INDEX($K29:$O29,1,aux!$AL$1),"n.d.") -> 0.8413812079 | AX29: 04
A30: 0409 | B30: Mel natural | C30: 4.075 | D30: 2.023 | E30: 2.16 | F30: 17.438 | G30: 5.94 | H30: 6.3272 | I30: 1.708960817e-05 | J30: 1.281997993e-05 | K30: 0 | L30: 0.077 | M30: 0.321 | N30: 0.266 | O30: 1022.969 | P30: 204.7266 | Q30: 0.0004261258728 | R30: 0.0002237164409 | S30: 198.3994 | U30: =G30-INDEX($C30:$G30,1,aux!$AL$1) -> 1.865 | V30: 1.046561246e-05 | W30: 9.8764476e-06 | X30: =+IF(INDEX($C30:$G30,1,aux!$AL$1)>0,(G30/INDEX($C30:$G30,1,aux!$AL$1))^(1/($G$3-INDEX($C$3:$G$3,1,aux!$AL$1)))-1,"n.d.") -> 0.09879002451 | Y30: =IF(INDEX($C30:$G30,1,aux!$AL$1)>0,(G30-INDEX($C30:$G30,1,aux!$AL$1))/INDEX($C30:$G30,1,aux!$AL$1),"n.d.") -> 0.4576687117 | AA30: =O30-INDEX($K30:$O30,1,aux!$AL$1) -> 1022.969 | AB30: 0.007543501309 | AC30: 0.005349266046 | AD30: =+IF(INDEX($K30:$O30,1,aux!$AL$1)>0,(O30/INDEX($K30:$O30,1,aux!$AL$1))^(1/($O$3-INDEX($K$3:$O$3,1,aux!$AL$1)))-1,"n.d.") -> n.d. | AE30: =IF(INDEX($K30:$O30,1,aux!$AL$1)>0,(O30-INDEX($K30:$O30,1,aux!$AL$1))/INDEX($K30:$O30,1,aux!$AL$1),"n.d.") -> n.d. | AX30: 04
A31: 0410 | B31: Outros produtos comestíveis de origem animal | C31: 0.276 | D31: 0.549 | E31: 25.891 | F31: 66.424 | G31: 56.754 | H31: 29.9788 | I31: 8.09719853e-05 | J31: 6.074213147e-05 | K31: 1.08 | L31: 5.365 | M31: 1.225 | N31: 0 | O31: 0 | P31: 1.534 | Q31: 3.192927001e-06 | R31: 1.676289355e-06 | S31: -28.4448 | U31: =G31-INDEX($C31:$G31,1,aux!$AL$1) -> 56.478 | V31: 0.0003169312925 | W31: 0.0002990895483 | X31: =+IF(INDEX($C31:$G31,1,aux!$AL$1)>0,(G31/INDEX($C31:$G31,1,aux!$AL$1))^(1/($G$3-INDEX($C$3:$G$3,1,aux!$AL$1)))-1,"n.d.") -> 2.786795466 | Y31: =IF(INDEX($C31:$G31,1,aux!$AL$1)>0,(G31-INDEX($C31:$G31,1,aux!$AL$1))/INDEX($C31:$G31,1,aux!$AL$1),"n.d.") -> 204.6304348 | AA31: =O31-INDEX($K31:$O31,1,aux!$AL$1) -> -1.08 | AB31: -7.964055034e-06 | AC31: -5.647490129e-06 | AD31: =+IF(INDEX($K31:$O31,1,aux!$AL$1)>0,(O31/INDEX($K31:$O31,1,aux!$AL$1))^(1/($O$3-INDEX($K$3:$O$3,1,aux!$AL$1)))-1,"n.d.") -> -1 | AE31: =IF(INDEX($K31:$O31,1,aux!$AL$1)>0,(O31-INDEX($K31:$O31,1,aux!$AL$1))/INDEX($K31:$O31,1,aux!$AL$1),"n.d.") -> -1 | AX31: 04
A32: 04SS | B32: Leite e lacticínios; ovos de aves; mel natural; etc. | C32: 0 | D32: 0 | E32: 0 | F32: 0 | G32: 0 | H32: 0 | I32: 0 | J32: 0 | K32: 0 | L32: 0 | M32: 0 | N32: 0 | O32: 0 | P32: 0 | Q32: 0 | R32: 0 | S32: 0 | U32: =G32-INDEX($C32:$G32,1,aux!$AL$1) -> 0 | V32: 0 | W32: 0 | X32: =+IF(INDEX($C32:$G32,1,aux!$AL$1)>0,(G32/INDEX($C32:$G32,1,aux!$AL$1))^(1/($G$3-INDEX($C$3:$G$3,1,aux!$AL$1)))-1,"n.d.") -> n.d. | Y32: =IF(INDEX($C32:$G32,1,aux!$AL$1)>0,(G32-INDEX($C32:$G32,1,aux!$AL$1))/INDEX($C32:$G32,1,aux!$AL$1),"n.d.") -> n.d. | AA32: =O32-INDEX($K32:$O32,1,aux!$AL$1) -> 0 | AB32: 0 | AC32: 0 | AD32: =+IF(INDEX($K32:$O32,1,aux!$AL$1)>0,(O32/INDEX($K32:$O32,1,aux!$AL$1))^(1/($O$3-INDEX($K$3:$O$3,1,aux!$AL$1)))-1,"n.d.") -> n.d. | AE32: =IF(INDEX($K32:$O32,1,aux!$AL$1)>0,(O32-INDEX($K32:$O32,1,aux!$AL$1))/INDEX($K32:$O32,1,aux!$AL$1),"n.d.") -> n.d. | AX32: 04
A33: 0501 | B33: Cabelos em bruto | C33: 0 | D33: 0 | E33: 0 | F33: 0 | G33: 0 | H33: 0 | I33: 0 | J33: 0 | K33: 0 | L33: 0 | M33: 0 | N33: 0 | O33: 0 | P33: 0 | Q33: 0 | R33: 0 | S33: 0 | U33: =G33-INDEX($C33:$G33,1,aux!$AL$1) -> 0 | V33: 0 | W33: 0 | X33: =+IF(INDEX($C33:$G33,1,aux!$AL$1)>0,(G33/INDEX($C33:$G33,1,aux!$AL$1))^(1/($G$3-INDEX($C$3:$G$3,1,aux!$AL$1)))-1,"n.d.") -> n.d. | Y33: =IF(INDEX($C33:$G33,1,aux!$AL$1)>0,(G33-INDEX($C33:$G33,1,aux!$AL$1))/INDEX($C33:$G33,1,aux!$AL$1),"n.d.") -> n.d. | AA33: =O33-INDEX($K33:$O33,1,aux!$AL$1) -> 0 | AB33: 0 | AC33: 0 | AD33: =+IF(INDEX($K33:$O33,1,aux!$AL$1)>0,(O33/INDEX($K33:$O33,1,aux!$AL$1))^(1/($O$3-INDEX($K$3:$O$3,1,aux!$AL$1)))-1,"n.d.") -> n.d. | AE33: =IF(INDEX($K33:$O33,1,aux!$AL$1)>0,(O33-INDEX($K33:$O33,1,aux!$AL$1))/INDEX($K33:$O33,1,aux!$AL$1),"n.d.") -> n.d. | AX33: 05
A34: 0502 | B34: Cerdas de porco ou de javali, etc. | C34: 0 | D34: 0.118 | E34: 0 | F34: 0 | G34: 0 | H34: 0.0236 | I34: 6.374300683e-08 | J34: 4.78176012e-08 | K34: 0 | L34: 0 | M34: 0 | N34: 0 | O34: 0 | P34: 0 | Q34: 0 | R34: 0 | S34: -0.0236 | U34: =G34-INDEX($C34:$G34,1,aux!$AL$1) -> 0 | V34: 0 | W34: 0 | X34: =+IF(INDEX($C34:$G34,1,aux!$AL$1)>0,(G34/INDEX($C34:$G34,1,aux!$AL$1))^(1/($G$3-INDEX($C$3:$G$3,1,aux!$AL$1)))-1,"n.d.") -> n.d. | Y34: =IF(INDEX($C34:$G34,1,aux!$AL$1)>0,(G34-INDEX($C34:$G34,1,aux!$AL$1))/INDEX($C34:$G34,1,aux!$AL$1),"n.d.") -> n.d. | AA34: =O34-INDEX($K34:$O34,1,aux!$AL$1) -> 0 | AB34: 0 | AC34: 0 | AD34: =+IF(INDEX($K34:$O34,1,aux!$AL$1)>0,(O34/INDEX($K34:$O34,1,aux!$AL$1))^(1/($O$3-INDEX($K$3:$O$3,1,aux!$AL$1)))-1,"n.d.") -> n.d. | AE34: =IF(INDEX($K34:$O34,1,aux!$AL$1)>0,(O34-INDEX($K34:$O34,1,aux!$AL$1))/INDEX($K34:$O34,1,aux!$AL$1),"n.d.") -> n.d. | AX34: 05
A35: 0504 | B35: Tripas de animais (excepto peixes) | C35: 39.237 | D35: 638.062 | E35: 48.616 | F35: 134.191 | G35: 42.178 | H35: 180.4568 | I35: 0.0004874092811 | J35: 0.0003656360718 | K35: 5675.436 | L35: 5483.855 | M35: 4588.162 | N35: 5479.78 | O35: 4626.6 | P35: 5170.7666 | Q35: 0.01076263383 | R35: 0.005650391793 | S35: 4990.3098 | U35: =G35-INDEX($C35:$G35,1,aux!$AL$1) -> 2.941 | V35: 1.650368163e-05 | W35: 1.557460182e-05 | X35: =+IF(INDEX($C35:$G35,1,aux!$AL$1)>0,(G35/INDEX($C35:$G35,1,aux!$AL$1))^(1/($G$3-INDEX($C$3:$G$3,1,aux!$AL$1)))-1,"n.d.") -> 0.01823388854 | Y35: =IF(INDEX($C35:$G35,1,aux!$AL$1)>0,(G35-INDEX($C35:$G35,1,aux!$AL$1))/INDEX($C35:$G35,1,aux!$AL$1),"n.d.") -> 0.07495476209 | AA35: =O35-INDEX($K35:$O35,1,aux!$AL$1) -> -1048.836 | AB35: -0.007734247802 | AC35: -0.005484528664 | AD35: =+IF(INDEX($K35:$O35,1,aux!$AL$1)>0,(O35/INDEX($K35:$O35,1,aux!$AL$1))^(1/($O$3-INDEX($K$3:$O$3,1,aux!$AL$1)))-1,"n.d.") -> -0.04979856772 | AE35: =IF(INDEX($K35:$O35,1,aux!$AL$1)>0,(O35-INDEX($K35:$O35,1,aux!$AL$1))/INDEX($K35:$O35,1,aux!$AL$1),"n.d.") -> -0.1848027182 | AX35: 05
A36: 0505 | B36: Peles e outras partes de aves | C36: 6.043 | D36: 0 | E36: 0.752 | F36: 0 | G36: 0 | H36: 1.359 | I36: 3.670624843e-06 | J36: 2.753564408e-06 | K36: 0 | L36: 0 | M36: 0 | N36: 0 | O36: 0 | P36: 0 | Q36: 0 | R36: 0 | S36: -1.359 | U36: =G36-INDEX($C36:$G36,1,aux!$AL$1) -> -6.043 | V36: -3.391082901e-05 | W36: -3.20018085e-05 | X36: =+IF(INDEX($C36:$G36,1,aux!$AL$1)>0,(G36/INDEX($C36:$G36,1,aux!$AL$1))^(1/($G$3-INDEX($C$3:$G$3,1,aux!$AL$1)))-1,"n.d.") -> -1 | Y36: =IF(INDEX($C36:$G36,1,aux!$AL$1)>0,(G36-INDEX($C36:$G36,1,aux!$AL$1))/INDEX($C36:$G36,1,aux!$AL$1),"n.d.") -> -1 | AA36: =O36-INDEX($K36:$O36,1,aux!$AL$1) -> 0 | AB36: 0 | AC36: 0 | AD36: =+IF(INDEX($K36:$O36,1,aux!$AL$1)>0,(O36/INDEX($K36:$O36,1,aux!$AL$1))^(1/($O$3-INDEX($K$3:$O$3,1,aux!$AL$1)))-1,"n.d.") -> n.d. | AE36: =IF(INDEX($K36:$O36,1,aux!$AL$1)>0,(O36-INDEX($K36:$O36,1,aux!$AL$1))/INDEX($K36:$O36,1,aux!$AL$1),"n.d.") -> n.d. | AX36: 05
A37: 0506 | B37: Ossos e núcleos córneos, em bruto | C37: 0 | D37: 0 | E37: 0 | F37: 0.193 | G37: 0.111 | H37: 0.0608 | I37: 1.642192718e-07 | J37: 1.231911082e-07 | K37: 10.696 | L37: 0 | M37: 0 | N37: 0 | O37: 4.856 | P37: 3.1104 | Q37: 6.474107003e-06 | R37: 3.398911611e-06 | S37: 3.0496 | U37: =G37-INDEX($C37:$G37,1,aux!$AL$1) -> 0.111 | V37: 6.228863181e-07 | W37: 5.878207419e-07 | X37: =+IF(INDEX($C37:$G37,1,aux!$AL$1)>0,(G37/INDEX($C37:$G37,1,aux!$AL$1))^(1/($G$3-INDEX($C$3:$G$3,1,aux!$AL$1)))-1,"n.d.") -> n.d. | Y37: =IF(INDEX($C37:$G37,1,aux!$AL$1)>0,(G37-INDEX($C37:$G37,1,aux!$AL$1))/INDEX($C37:$G37,1,aux!$AL$1),"n.d.") -> n.d. | AA37: =O37-INDEX($K37:$O37,1,aux!$AL$1) -> -5.84 | AB37: -4.306489018e-05 | AC37: -3.053827996e-05 | AD37: =+IF(INDEX($K37:$O37,1,aux!$AL$1)>0,(O37/INDEX($K37:$O37,1,aux!$AL$1))^(1/($O$3-INDEX($K$3:$O$3,1,aux!$AL$1)))-1,"n.d.") -> -0.1791490201 | AE37: =IF(INDEX($K37:$O37,1,aux!$AL$1)>0,(O37-INDEX($K37:$O37,1,aux!$AL$1))/INDEX($K37:$O37,1,aux!$AL$1),"n.d.") -> -0.5459985041 | AX37: 05
A38: 0507 | B38: Marfim, carapaças de tartaruga, etc. | C38: 0 | D38: 0 | E38: 0 | F38: 0 | G38: 0.299 | H38: 0.0598 | I38: 1.61518297e-07 | J38: 1.211649386e-07 | K38: 0 | L38: 0 | M38: 0 | N38: 0 | O38: 0 | P38: 0 | Q38: 0 | R38: 0 | S38: -0.0598 | U38: =G38-INDEX($C38:$G38,1,aux!$AL$1) -> 0.299 | V38: 1.677864947e-06 | W38: 1.583409025e-06 | X38: =+IF(INDEX($C38:$G38,1,aux!$AL$1)>0,(G38/INDEX($C38:$G38,1,aux!$AL$1))^(1/($G$3-INDEX($C$3:$G$3,1,aux!$AL$1)))-1,"n.d.") -> n.d. | Y38: =IF(INDEX($C38:$G38,1,aux!$AL$1)>0,(G38-INDEX($C38:$G38,1,aux!$AL$1))/INDEX($C38:$G38,1,aux!$AL$1),"n.d.") -> n.d. | AA38: =O38-INDEX($K38:$O38,1,aux!$AL$1) -> 0 | AB38: 0 | AC38: 0 | AD38: =+IF(INDEX($K38:$O38,1,aux!$AL$1)>0,(O38/INDEX($K38:$O38,1,aux!$AL$1))^(1/($O$3-INDEX($K$3:$O$3,1,aux!$AL$1)))-1,"n.d.") -> n.d. | AE38: =IF(INDEX($K38:$O38,1,aux!$AL$1)>0,(O38-INDEX($K38:$O38,1,aux!$AL$1))/INDEX($K38:$O38,1,aux!$AL$1),"n.d.") -> n.d. | AX38: 05
A39: 0510 | B39: Âmbar-cinzento, castóreo, algália e almíscar, etc. | C39: 0 | D39: 0 | E39: 0 | F39: 0 | G39: 0 | H39: 0 | I39: 0 | J39: 0 | K39: 0 | L39: 0 | M39: 0 | N39: 0 | O39: 0 | P39: 0 | Q39: 0 | R39: 0 | S39: 0 | U39: =G39-INDEX($C39:$G39,1,aux!$AL$1) -> 0 | V39: 0 | W39: 0 | X39: =+IF(INDEX($C39:$G39,1,aux!$AL$1)>0,(G39/INDEX($C39:$G39,1,aux!$AL$1))^(1/($G$3-INDEX($C$3:$G$3,1,aux!$AL$1)))-1,"n.d.") -> n.d. | Y39: =IF(INDEX($C39:$G39,1,aux!$AL$1)>0,(G39-INDEX($C39:$G39,1,aux!$AL$1))/INDEX($C39:$G39,1,aux!$AL$1),"n.d.") -> n.d. | AA39: =O39-INDEX($K39:$O39,1,aux!$AL$1) -> 0 | AB39: 0 | AC39: 0 | AD39: =+IF(INDEX($K39:$O39,1,aux!$AL$1)>0,(O39/INDEX($K39:$O39,1,aux!$AL$1))^(1/($O$3-INDEX($K$3:$O$3,1,aux!$AL$1)))-1,"n.d.") -> n.d. | AE39: =IF(INDEX($K39:$O39,1,aux!$AL$1)>0,(O39-INDEX($K39:$O39,1,aux!$AL$1))/INDEX($K39:$O39,1,aux!$AL$1),"n.d.") -> n.d. | AX39: 05
A40: 0511 | B40: Outros produtos de origem animal (exc. NC 0511 91) (a) | C40: 50.102 | D40: 29.424 | E40: 34.63 | F40: 30.292 | G40: 84.894 | H40: 45.8684 | I40: 0.0001238893955 | J40: 9.293715503e-05 | K40: 0.821 | L40: 41.169 | M40: 54.93 | N40: 2.23 | O40: 0 | P40: 19.83 | Q40: 4.127492987e-05 | R40: 2.166937283e-05 | S40: -26.0384 | U40: =G40-INDEX($C40:$G40,1,aux!$AL$1) -> 34.792 | V40: 0.0001952383854 | W40: 0.0001842473806 | X40: =+IF(INDEX($C40:$G40,1,aux!$AL$1)>0,(G40/INDEX($C40:$G40,1,aux!$AL$1))^(1/($G$3-INDEX($C$3:$G$3,1,aux!$AL$1)))-1,"n.d.") -> 0.1409207627 | Y40: =IF(INDEX($C40:$G40,1,aux!$AL$1)>0,(G40-INDEX($C40:$G40,1,aux!$AL$1))/INDEX($C40:$G40,1,aux!$AL$1),"n.d.") -> 0.6944233763 | AA40: =O40-INDEX($K40:$O40,1,aux!$AL$1) -> -0.821 | AB40: -6.054156651e-06 | AC40: -4.29313833e-06 | AD40: =+IF(INDEX($K40:$O40,1,aux!$AL$1)>0,(O40/INDEX($K40:$O40,1,aux!$AL$1))^(1/($O$3-INDEX($K$3:$O$3,1,aux!$AL$1)))-1,"n.d.") -> -1 | AE40: =IF(INDEX($K40:$O40,1,aux!$AL$1)>0,(O40-INDEX($K40:$O40,1,aux!$AL$1))/INDEX($K40:$O40,1,aux!$AL$1),"n.d.") -> -1 | AX40: 05
A41: 05SS | B41: Outros produtos de origem animal | C41: 0 | D41: 0 | E41: 0 | F41: 0 | G41: 0 | H41: 0 | I41: 0 | J41: 0 | K41: 0 | L41: 0 | M41: 0 | N41: 0 | O41: 0 | P41: 0 | Q41: 0 | R41: 0 | S41: 0 | U41: =G41-INDEX($C41:$G41,1,aux!$AL$1) -> 0 | V41: 0 | W41: 0 | X41: =+IF(INDEX($C41:$G41,1,aux!$AL$1)>0,(G41/INDEX($C41:$G41,1,aux!$AL$1))^(1/($G$3-INDEX($C$3:$G$3,1,aux!$AL$1)))-1,"n.d.") -> n.d. | Y41: =IF(INDEX($C41:$G41,1,aux!$AL$1)>0,(G41-INDEX($C41:$G41,1,aux!$AL$1))/INDEX($C41:$G41,1,aux!$AL$1),"n.d.") -> n.d. | AA41: =O41-INDEX($K41:$O41,1,aux!$AL$1) -> 0 | AB41: 0 | AC41: 0 | AD41: =+IF(INDEX($K41:$O41,1,aux!$AL$1)>0,(O41/INDEX($K41:$O41,1,aux!$AL$1))^(1/($O$3-INDEX($K$3:$O$3,1,aux!$AL$1)))-1,"n.d.") -> n.d. | AE41: =IF(INDEX($K41:$O41,1,aux!$AL$1)>0,(O41-INDEX($K41:$O41,1,aux!$AL$1))/INDEX($K41:$O41,1,aux!$AL$1),"n.d.") -> n.d. | AX41: 05
A42: 0601 | B42: Bolbos, tubérculos, raízes, etc. | C42: 10.002 | D42: 22.867 | E42: 14.632 | F42: 40.849 | G42: 29.845 | H42: 23.639 | I42: 6.384834485e-05 | J42: 4.789662181e-05 | K42: 20.488 | L42: 20.417 | M42: 0 | N42: 0 | O42: 0 | P42: 8.181 | Q42: 1.702825019e-05 | R42: 8.939845643e-06 | S42: -15.458 | U42: =G42-INDEX($C42:$G42,1,aux!$AL$1) -> 19.843 | V42: 0.0001113507496 | W42: 0.0001050822251 | X42: =+IF(INDEX($C42:$G42,1,aux!$AL$1)>0,(G42/INDEX($C42:$G42,1,aux!$AL$1))^(1/($G$3-INDEX($C$3:$G$3,1,aux!$AL$1)))-1,"n.d.") -> 0.3143050701 | Y42: =IF(INDEX($C42:$G42,1,aux!$AL$1)>0,(G42-INDEX($C42:$G42,1,aux!$AL$1))/INDEX($C42:$G42,1,aux!$AL$1),"n.d.") -> 1.983903219 | AA42: =O42-INDEX($K42:$O42,1,aux!$AL$1) -> -20.488 | AB42: -0.0001510810736 | AC42: -0.0001071349794 | AD42: =+IF(INDEX($K42:$O42,1,aux!$AL$1)>0,(O42/INDEX($K42:$O42,1,aux!$AL$1))^(1/($O$3-INDEX($K$3:$O$3,1,aux!$AL$1)))-1,"n.d.") -> -1 | AE42: =IF(INDEX($K42:$O42,1,aux!$AL$1)>0,(O42-INDEX($K42:$O42,1,aux!$AL$1))/INDEX($K42:$O42,1,aux!$AL$1),"n.d.") -> -1 | AX42: 06
A43: 0602 | B43: Plantas vivas | C43: 5375.364 | D43: 4153.31 | E43: 6925.75 | F43: 9629.782 | G43: 12490.499 | H43: 7714.941 | I43: 0.02083786173 | J43: 0.01563177847 | K43: 638.903 | L43: 836.281 | M43: 1076.773 | N43: 526.354 | O43: 1088.278 | P43: 833.3178 | Q43: 0.001734499937 | R43: 0.000910613923 | S43: -6881.6232 | U43: =G43-INDEX($C43:$G43,1,aux!$AL$1) -> 7115.135 | V43: 0.03992720939 | W43: 0.0376794949 | X43: =+IF(INDEX($C43:$G43,1,aux!$AL$1)>0,(G43/INDEX($C43:$G43,1,aux!$AL$1))^(1/($G$3-INDEX($C$3:$G$3,1,aux!$AL$1)))-1,"n.d.") -> 0.2346474894 | Y43: =IF(INDEX($C43:$G43,1,aux!$AL$1)>0,(G43-INDEX($C43:$G43,1,aux!$AL$1))/INDEX($C43:$G43,1,aux!$AL$1),"n.d.") -> 1.323656407 | AA43: =O43-INDEX($K43:$O43,1,aux!$AL$1) -> 449.375 | AB43: 0.003313747436 | AC43: 0.002349852664 | AD43: =+IF(INDEX($K43:$O43,1,aux!$AL$1)>0,(O43/INDEX($K43:$O43,1,aux!$AL$1))^(1/($O$3-INDEX($K$3:$O$3,1,aux!$AL$1)))-1,"n.d.") -> 0.1424211391 | AE43: =IF(INDEX($K43:$O43,1,aux!$AL$1)>0,(O43-INDEX($K43:$O43,1,aux!$AL$1))/INDEX($K43:$O43,1,aux!$AL$1),"n.d.") -> 0.7033540303 | AX43: 06
A44: 0603 | B44: Flores e seus botões | C44: 738.316 | D44: 839.462 | E44: 1105.596 | F44: 900.244 | G44: 1077.022 | H44: 932.128 | I44: 0.0025176543 | J44: 0.001888649363 | K44: 1.379 | L44: 11.27 | M44: 0 | N44: 0 | O44: 0 | P44: 2.5298 | Q44: 5.265623681e-06 | R44: 2.764456852e-06 | S44: -929.5982 | U44: =G44-INDEX($C44:$G44,1,aux!$AL$1) -> 338.706 | V44: 0.001900678678 | W44: 0.001793679389 | X44: =+IF(INDEX($C44:$G44,1,aux!$AL$1)>0,(G44/INDEX($C44:$G44,1,aux!$AL$1))^(1/($G$3-INDEX($C$3:$G$3,1,aux!$AL$1)))-1,"n.d.") -> 0.0989946383 | Y44: =IF(INDEX($C44:$G44,1,aux!$AL$1)>0,(G44-INDEX($C44:$G44,1,aux!$AL$1))/INDEX($C44:$G44,1,aux!$AL$1),"n.d.") -> 0.4587547879 | AA44: =O44-INDEX($K44:$O44,1,aux!$AL$1) -> -1.379 | AB44: -1.016891842e-05 | AC44: -7.21100823e-06 | AD44: =+IF(INDEX($K44:$O44,1,aux!$AL$1)>0,(O44/INDEX($K44:$O44,1,aux!$AL$1))^(1/($O$3-INDEX($K$3:$O$3,1,aux!$AL$1)))-1,"n.d.") -> -1 | AE44: =IF(INDEX($K44:$O44,1,aux!$AL$1)>0,(O44-INDEX($K44:$O44,1,aux!$AL$1))/INDEX($K44:$O44,1,aux!$AL$1),"n.d.") -> -1 | AX44: 06
A45: 0604 | B45: Folhagem, folhas, ramos e outras partes de plantas | C45: 204.556 | D45: 447.314 | E45: 35.465 | F45: 42.513 | G45: 48.413 | H45: 155.6522 | I45: 0.00042041268 | J45: 0.0003153777468 | K45: 7527.451 | L45: 5977.459 | M45: 3823.182 | N45: 4135.828 | O45: 1703.353 | P45: 4633.4546 | Q45: 0.009644251825 | R45: 0.005063240303 | S45: 4477.8024 | U45: =G45-INDEX($C45:$G45,1,aux!$AL$1) -> -156.143 | V45: -0.0008762102555 | W45: -0.0008268837306 | X45: =+IF(INDEX($C45:$G45,1,aux!$AL$1)>0,(G45/INDEX($C45:$G45,1,aux!$AL$1))^(1/($G$3-INDEX($C$3:$G$3,1,aux!$AL$1)))-1,"n.d.") -> -0.3025108709 | Y45: =IF(INDEX($C45:$G45,1,aux!$AL$1)>0,(G45-INDEX($C45:$G45,1,aux!$AL$1))/INDEX($C45:$G45,1,aux!$AL$1),"n.d.") -> -0.7633264241 | AA45: =O45-INDEX($K45:$O45,1,aux!$AL$1) -> -5824.098 | AB45: -0.04294762685 | AC45: -0.0304551259 | AD45: =+IF(INDEX($K45:$O45,1,aux!$AL$1)>0,(O45/INDEX($K45:$O45,1,aux!$AL$1))^(1/($O$3-INDEX($K$3:$O$3,1,aux!$AL$1)))-1,"n.d.") -> -0.3102937196 | AE45: =IF(INDEX($K45:$O45,1,aux!$AL$1)>0,(O45-INDEX($K45:$O45,1,aux!$AL$1))/INDEX($K45:$O45,1,aux!$AL$1),"n.d.") -> -0.7737145018 | AX45: 06
A46: 06SS | B46: Plantas vivas e produtos de floricultura | C46: 0 | D46: 0 | E46: 0 | F46: 0 | G46: 0 | H46: 0 | I46: 0 | J46: 0 | K46: 0 | L46: 0 | M46: 0 | N46: 0 | O46: 0 | P46: 0 | Q46: 0 | R46: 0 | S46: 0 | U46: =G46-INDEX($C46:$G46,1,aux!$AL$1) -> 0 | V46: 0 | W46: 0 | X46: =+IF(INDEX($C46:$G46,1,aux!$AL$1)>0,(G46/INDEX($C46:$G46,1,aux!$AL$1))^(1/($G$3-INDEX($C$3:$G$3,1,aux!$AL$1)))-1,"n.d.") -> n.d. | Y46: =IF(INDEX($C46:$G46,1,aux!$AL$1)>0,(G46-INDEX($C46:$G46,1,aux!$AL$1))/INDEX($C46:$G46,1,aux!$AL$1),"n.d.") -> n.d. | AA46: =O46-INDEX($K46:$O46,1,aux!$AL$1) -> 0 | AB46: 0 | AC46: 0 | AD46: =+IF(INDEX($K46:$O46,1,aux!$AL$1)>0,(O46/INDEX($K46:$O46,1,aux!$AL$1))^(1/($O$3-INDEX($K$3:$O$3,1,aux!$AL$1)))-1,"n.d.") -> n.d. | AE46: =IF(INDEX($K46:$O46,1,aux!$AL$1)>0,(O46-INDEX($K46:$O46,1,aux!$AL$1))/INDEX($K46:$O46,1,aux!$AL$1),"n.d.") -> n.d. | AX46: 06
A47: 0701 | B47: Batatas, frescas ou refrigeradas | C47: 13.778 | D47: 0 | E47: 0 | F47: 0.3 | G47: 0 | H47: 2.8156 | I47: 7.604864832e-06 | J47: 5.704882963e-06 | K47: 340.988 | L47: 224.018 | M47: 0 | N47: 0 | O47: 263.865 | P47: 165.7742 | Q47: 0.0003450488391 | R47: 0.0001811509302 | S47: 162.9586 | U47: =G47-INDEX($C47:$G47,1,aux!$AL$1) -> -13.778 | V47: -7.731646568e-05 | W47: -7.296391155e-05 | X47: =+IF(INDEX($C47:$G47,1,aux!$AL$1)>0,(G47/INDEX($C47:$G47,1,aux!$AL$1))^(1/($G$3-INDEX($C$3:$G$3,1,aux!$AL$1)))-1,"n.d.") -> -1 | Y47: =IF(INDEX($C47:$G47,1,aux!$AL$1)>0,(G47-INDEX($C47:$G47,1,aux!$AL$1))/INDEX($C47:$G47,1,aux!$AL$1),"n.d.") -> -1 | AA47: =O47-INDEX($K47:$O47,1,aux!$AL$1) -> -77.123 | AB47: -0.0005687146448 | AC47: -0.000403288316 | AD47: =+IF(INDEX($K47:$O47,1,aux!$AL$1)>0,(O47/INDEX($K47:$O47,1,aux!$AL$1))^(1/($O$3-INDEX($K$3:$O$3,1,aux!$AL$1)))-1,"n.d.") -> -0.0620910654 | AE47: =IF(INDEX($K47:$O47,1,aux!$AL$1)>0,(O47-INDEX($K47:$O47,1,aux!$AL$1))/INDEX($K47:$O47,1,aux!$AL$1),"n.d.") -> -0.2261751147 | AX47: 07
A48: 0702 | B48: Tomates, frescos ou refrigerados | C48: 0.034 | D48: 0 | E48: 20.047 | F48: 48.59 | G48: 19.037 | H48: 17.5416 | I48: 4.73794207e-05 | J48: 3.554225564e-05 | K48: 66.531 | L48: 58.898 | M48: 256.886 | N48: 61.35 | O48: 136.51 | P48: 116.035 | Q48: 0.0002415197422 | R48: 0.0001267980674 | S48: 98.4934 | U48: =G48-INDEX($C48:$G48,1,aux!$AL$1) -> 19.003 | V48: 0.0001066370153 | W48: 0.0001006338519 | X48: =+IF(INDEX($C48:$G48,1,aux!$AL$1)>0,(G48/INDEX($C48:$G48,1,aux!$AL$1))^(1/($G$3-INDEX($C$3:$G$3,1,aux!$AL$1)))-1,"n.d.") -> 3.864406927 | Y48: =IF(INDEX($C48:$G48,1,aux!$AL$1)>0,(G48-INDEX($C48:$G48,1,aux!$AL$1))/INDEX($C48:$G48,1,aux!$AL$1),"n.d.") -> 558.9117647 | AA48: =O48-INDEX($K48:$O48,1,aux!$AL$1) -> 69.979 | AB48: 0.0005160338956 | AC48: 0.0003659312146 | AD48: =+IF(INDEX($K48:$O48,1,aux!$AL$1)>0,(O48/INDEX($K48:$O48,1,aux!$AL$1))^(1/($O$3-INDEX($K$3:$O$3,1,aux!$AL$1)))-1,"n.d.") -> 0.1968372673 | AE48: =IF(INDEX($K48:$O48,1,aux!$AL$1)>0,(O48-INDEX($K48:$O48,1,aux!$AL$1))/INDEX($K48:$O48,1,aux!$AL$1),"n.d.") -> 1.051825465 | AX48: 07
A49: 0703 | B49: Cebolas, alhos, etc., frescos ou refrigerados | C49: 0.381 | D49: 56.955 | E49: 13.302 | F49: 13.142 | G49: 53.793 | H49: 27.5146 | I49: 7.431624304e-05 | J49: 5.574924449e-05 | K49: 235.142 | L49: 15.908 | M49: 148.56 | N49: 1.692 | O49: 146.306 | P49: 109.5216 | Q49: 0.0002279624992 | R49: 0.0001196805034 | S49: 82.007 | U49: =G49-INDEX($C49:$G49,1,aux!$AL$1) -> 53.412 | V49: 0.0002997261623 | W49: 0.0002828529862 | X49: =+IF(INDEX($C49:$G49,1,aux!$AL$1)>0,(G49/INDEX($C49:$G49,1,aux!$AL$1))^(1/($G$3-INDEX($C$3:$G$3,1,aux!$AL$1)))-1,"n.d.") -> 2.447070751 | Y49: =IF(INDEX($C49:$G49,1,aux!$AL$1)>0,(G49-INDEX($C49:$G49,1,aux!$AL$1))/INDEX($C49:$G49,1,aux!$AL$1),"n.d.") -> 140.1889764 | AA49: =O49-INDEX($K49:$O49,1,aux!$AL$1) -> -88.836 | AB49: -0.0006550877713 | AC49: -0.0004645374381 | AD49: =+IF(INDEX($K49:$O49,1,aux!$AL$1)>0,(O49/INDEX($K49:$O49,1,aux!$AL$1))^(1/($O$3-INDEX($K$3:$O$3,1,aux!$AL$1)))-1,"n.d.") -> -0.111856826 | AE49: =IF(INDEX($K49:$O49,1,aux!$AL$1)>0,(O49-INDEX($K49:$O49,1,aux!$AL$1))/INDEX($K49:$O49,1,aux!$AL$1),"n.d.") -> -0.3777972459 | AX49: 07
A50: 0704 | B50: Couves, frescas ou refrigeradas | C50: 0 | D50: 0 | E50: 0.885 | F50: 0.396 | G50: 0 | H50: 0.2562 | I50: 6.919897606e-07 | J50: 5.191046367e-07 | K50: 1100.977 | L50: 805.691 | M50: 372.296 | N50: 311.351 | O50: 1015.663 | P50: 721.1956 | Q50: 0.001501124449 | R50: 0.0007880915955 | S50: 720.9394 | U50: =G50-INDEX($C50:$G50,1,aux!$AL$1) -> 0 | V50: 0 | W50: 0 | X50: =+IF(INDEX($C50:$G50,1,aux!$AL$1)>0,(G50/INDEX($C50:$G50,1,aux!$AL$1))^(1/($G$3-INDEX($C$3:$G$3,1,aux!$AL$1)))-1,"n.d.") -> n.d. | Y50: =IF(INDEX($C50:$G50,1,aux!$AL$1)>0,(G50-INDEX($C50:$G50,1,aux!$AL$1))/INDEX($C50:$G50,1,aux!$AL$1),"n.d.") -> n.d. | AA50: =O50-INDEX($K50:$O50,1,aux!$AL$1) -> -85.314 | AB50: -0.0006291161029 | AC50: -0.0004461203453 | AD50: =+IF(INDEX($K50:$O50,1,aux!$AL$1)>0,(O50/INDEX($K50:$O50,1,aux!$AL$1))^(1/($O$3-INDEX($K$3:$O$3,1,aux!$AL$1)))-1,"n.d.") -> -0.01996215582 | AE50: =IF(INDEX($K50:$O50,1,aux!$AL$1)>0,(O50-INDEX($K50:$O50,1,aux!$AL$1))/INDEX($K50:$O50,1,aux!$AL$1),"n.d.") -> -0.07748935718 | AX50: 07
A51: 0705 | B51: Alfaces, frescas ou refrigeradas | C51: 113.576 | D51: 26.006 | E51: 210.08 | F51: 606.891 | G51: 575.425 | H51: 306.3956 | I51: 0.0008275668146 | J51: 0.0006208094326 | K51: 24.775 | L51: 17.964 | M51: 7.28 | N51: 69.378 | O51: 4.748 | P51: 24.829 | Q51: 5.168004205e-05 | R51: 2.713206545e-05 | S51: -281.5666 | U51: =G51-INDEX($C51:$G51,1,aux!$AL$1) -> 461.849 | V51: 0.002591706514 | W51: 0.002445805602 | X51: =+IF(INDEX($C51:$G51,1,aux!$AL$1)>0,(G51/INDEX($C51:$G51,1,aux!$AL$1))^(1/($G$3-INDEX($C$3:$G$3,1,aux!$AL$1)))-1,"n.d.") -> 0.5002911218 | Y51: =IF(INDEX($C51:$G51,1,aux!$AL$1)>0,(G51-INDEX($C51:$G51,1,aux!$AL$1))/INDEX($C51:$G51,1,aux!$AL$1),"n.d.") -> 4.066431288 | AA51: =O51-INDEX($K51:$O51,1,aux!$AL$1) -> -20.027 | AB51: -0.000147681602 | AC51: -0.0001047243378 | AD51: =+IF(INDEX($K51:$O51,1,aux!$AL$1)>0,(O51/INDEX($K51:$O51,1,aux!$AL$1))^(1/($O$3-INDEX($K$3:$O$3,1,aux!$AL$1)))-1,"n.d.") -> -0.3383561779 | AE51: =IF(INDEX($K51:$O51,1,aux!$AL$1)>0,(O51-INDEX($K51:$O51,1,aux!$AL$1))/INDEX($K51:$O51,1,aux!$AL$1),"n.d.") -> -0.8083551968 | AX51: 07
A52: 0706 | B52: Cenouras, nabos, beterrabas, etc., frescos ou refrigerados | C52: 0 | D52: 0 | E52: 0 | F52: 0.396 | G52: 0 | H52: 0.0792 | I52: 2.139172094e-07 | J52: 1.604726277e-07 | K52: 40.528 | L52: 5.16 | M52: 0 | N52: 0 | O52: 0 | P52: 9.1376 | Q52: 1.901935447e-05 | R52: 9.985177063e-06 | S52: 9.0584 | U52: =G52-INDEX($C52:$G52,1,aux!$AL$1) -> 0 | V52: 0 | W52: 0 | X52: =+IF(INDEX($C52:$G52,1,aux!$AL$1)>0,(G52/INDEX($C52:$G52,1,aux!$AL$1))^(1/($G$3-INDEX($C$3:$G$3,1,aux!$AL$1)))-1,"n.d.") -> n.d. | Y52: =IF(INDEX($C52:$G52,1,aux!$AL$1)>0,(G52-INDEX($C52:$G52,1,aux!$AL$1))/INDEX($C52:$G52,1,aux!$AL$1),"n.d.") -> n.d. | AA52: =O52-INDEX($K52:$O52,1,aux!$AL$1) -> -40.528 | AB52: -0.0002988585393 | AC52: -0.0002119272963 | AD52: =+IF(INDEX($K52:$O52,1,aux!$AL$1)>0,(O52/INDEX($K52:$O52,1,aux!$AL$1))^(1/($O$3-INDEX($K$3:$O$3,1,aux!$AL$1)))-1,"n.d.") -> -1 | AE52: =IF(INDEX($K52:$O52,1,aux!$AL$1)>0,(O52-INDEX($K52:$O52,1,aux!$AL$1))/INDEX($K52:$O52,1,aux!$AL$1),"n.d.") -> -1 | AX52: 07
A53: 0707 | B53: Pepinos e pepininhos, frescos ou refrigerados | C53: 0 | D53: 0 | E53: 0.315 | F53: 0.686 | G53: 0.117 | H53: 0.2236 | I53: 6.0393798e-07 | J53: 4.530515096e-07 | K53: 0 | L53: 0 | M53: 11.439 | N53: 0 | O53: 0 | P53: 2.2878 | Q53: 4.76191551e-06 | R53: 2.50000964e-06 | S53: 2.0642 | U53: =G53-INDEX($C53:$G53,1,aux!$AL$1) -> 0.117 | V53: 6.565558488e-07 | W53: 6.19594836e-07 | X53: =+IF(INDEX($C53:$G53,1,aux!$AL$1)>0,(G53/INDEX($C53:$G53,1,aux!$AL$1))^(1/($G$3-INDEX($C$3:$G$3,1,aux!$AL$1)))-1,"n.d.") -> n.d. | Y53: =IF(INDEX($C53:$G53,1,aux!$AL$1)>0,(G53-INDEX($C53:$G53,1,aux!$AL$1))/INDEX($C53:$G53,1,aux!$AL$1),"n.d.") -> n.d. | AA53: =O53-INDEX($K53:$O53,1,aux!$AL$1) -> 0 | AB53: 0 | AC53: 0 | AD53: =+IF(INDEX($K53:$O53,1,aux!$AL$1)>0,(O53/INDEX($K53:$O53,1,aux!$AL$1))^(1/($O$3-INDEX($K$3:$O$3,1,aux!$AL$1)))-1,"n.d.") -> n.d. | AE53: =IF(INDEX($K53:$O53,1,aux!$AL$1)>0,(O53-INDEX($K53:$O53,1,aux!$AL$1))/INDEX($K53:$O53,1,aux!$AL$1),"n.d.") -> n.d. | AX53: 07
A54: 0708 | B54: Tomates preparados ou conservados | C54: 0 | D54: 0 | E54: 0 | F54: 2.149 | G54: 0 | H54: 0.4298 | I54: 1.160878997e-06 | J54: 8.708476692e-07 | K54: 0 | L54: 0 | M54: 0 | N54: 0 | O54: 0 | P54: 0 | Q54: 0 | R54: 0 | S54: -0.4298 | U54: =G54-INDEX($C54:$G54,1,aux!$AL$1) -> 0 | V54: 0 | W54: 0 | X54: =+IF(INDEX($C54:$G54,1,aux!$AL$1)>0,(G54/INDEX($C54:$G54,1,aux!$AL$1))^(1/($G$3-INDEX($C$3:$G$3,1,aux!$AL$1)))-1,"n.d.") -> n.d. | Y54: =IF(INDEX($C54:$G54,1,aux!$AL$1)>0,(G54-INDEX($C54:$G54,1,aux!$AL$1))/INDEX($C54:$G54,1,aux!$AL$1),"n.d.") -> n.d. | AA54: =O54-INDEX($K54:$O54,1,aux!$AL$1) -> 0 | AB54: 0 | AC54: 0 | AD54: =+IF(INDEX($K54:$O54,1,aux!$AL$1)>0,(O54/INDEX($K54:$O54,1,aux!$AL$1))^(1/($O$3-INDEX($K$3:$O$3,1,aux!$AL$1)))-1,"n.d.") -> n.d. | AE54: =IF(INDEX($K54:$O54,1,aux!$AL$1)>0,(O54-INDEX($K54:$O54,1,aux!$AL$1))/INDEX($K54:$O54,1,aux!$AL$1),"n.d.") -> n.d. | AX54: 07
A55: 0709 | B55: Outros produtos hortícolas, frescos ou refrigerados | C55: 502.786 | D55: 420.14 | E55: 435.237 | F55: 722.404 | G55: 762.072 | H55: 568.5278 | I55: 0.001535579298 | J55: 0.001151933712 | K55: 983.424 | L55: 1123.971 | M55: 471.176 | N55: 1048.29 | O55: 715.754 | P55: 868.523 | Q55: 0.001807777404 | R55: 0.0009490846544 | S55: 299.9952 | U55: =G55-INDEX($C55:$G55,1,aux!$AL$1) -> 259.286 | V55: 0.001455006323 | W55: 0.001373096296 | X55: =+IF(INDEX($C55:$G55,1,aux!$AL$1)>0,(G55/INDEX($C55:$G55,1,aux!$AL$1))^(1/($G$3-INDEX($C$3:$G$3,1,aux!$AL$1)))-1,"n.d.") -> 0.1095661708 | Y55: =IF(INDEX($C55:$G55,1,aux!$AL$1)>0,(G55-INDEX($C55:$G55,1,aux!$AL$1))/INDEX($C55:$G55,1,aux!$AL$1),"n.d.") -> 0.5156985278 | AA55: =O55-INDEX($K55:$O55,1,aux!$AL$1) -> -267.67 | AB55: -0.001973832047 | AC55: -0.001399688595 | AD55: =+IF(INDEX($K55:$O55,1,aux!$AL$1)>0,(O55/INDEX($K55:$O55,1,aux!$AL$1))^(1/($O$3-INDEX($K$3:$O$3,1,aux!$AL$1)))-1,"n.d.") -> -0.07635359285 | AE55: =IF(INDEX($K55:$O55,1,aux!$AL$1)>0,(O55-INDEX($K55:$O55,1,aux!$AL$1))/INDEX($K55:$O55,1,aux!$AL$1),"n.d.") -> -0.2721816836 | AX55: 07
A56: 0710 | B56: Produtos hortícolas congelados | C56: 40.174 | D56: 32.085 | E56: 89.147 | F56: 154.605 | G56: 326.642 | H56: 128.5306 | I56: 0.0003471579201 | J56: 0.000260424787 | K56: 1060.5 | L56: 1551.69 | M56: 1093.255 | N56: 1221.554 | O56: 1618.038 | P56: 1309.0074 | Q56: 0.002724618691 | R56: 0.0014304271 | S56: 1180.4768 | U56: =G56-INDEX($C56:$G56,1,aux!$AL$1) -> 286.468 | V56: 0.00160754052 | W56: 0.001517043534 | X56: =+IF(INDEX($C56:$G56,1,aux!$AL$1)>0,(G56/INDEX($C56:$G56,1,aux!$AL$1))^(1/($G$3-INDEX($C$3:$G$3,1,aux!$AL$1)))-1,"n.d.") -> 0.6886192572 | Y56: =IF(INDEX($C56:$G56,1,aux!$AL$1)>0,(G56-INDEX($C56:$G56,1,aux!$AL$1))/INDEX($C56:$G56,1,aux!$AL$1),"n.d.") -> 7.130681535 | AA56: =O56-INDEX($K56:$O56,1,aux!$AL$1) -> 557.538 | AB56: 0.004111354922 | AC56: 0.002915454029 | AD56: =+IF(INDEX($K56:$O56,1,aux!$AL$1)>0,(O56/INDEX($K56:$O56,1,aux!$AL$1))^(1/($O$3-INDEX($K$3:$O$3,1,aux!$AL$1)))-1,"n.d.") -> 0.1113977443 | AE56: =IF(INDEX($K56:$O56,1,aux!$AL$1)>0,(O56-INDEX($K56:$O56,1,aux!$AL$1))/INDEX($K56:$O56,1,aux!$AL$1),"n.d.") -> 0.5257312588 | AX56: 07
A57: 0711 | B57: Produtos hortícolas conservados transitoriamente | C57: 1.65 | D57: 1.937 | E57: 1.503 | F57: 56.796 | G57: 64.622 | H57: 25.3016 | I57: 6.833898566e-05 | J57: 5.126533129e-05 | K57: 0 | L57: 374.931 | M57: 1082.957 | N57: 0.025 | O57: 0.022 | P57: 291.587 | Q57: 0.0006069204729 | R57: 0.0003186337577 | S57: 266.2854 | U57: =G57-INDEX($C57:$G57,1,aux!$AL$1) -> 62.972 | V57: 0.0003533729479 | W57: 0.0003334797095 | X57: =+IF(INDEX($C57:$G57,1,aux!$AL$1)>0,(G57/INDEX($C57:$G57,1,aux!$AL$1))^(1/($G$3-INDEX($C$3:$G$3,1,aux!$AL$1)))-1,"n.d.") -> 1.501635969 | Y57: =IF(INDEX($C57:$G57,1,aux!$AL$1)>0,(G57-INDEX($C57:$G57,1,aux!$AL$1))/INDEX($C57:$G57,1,aux!$AL$1),"n.d.") -> 38.16484848 | AA57: =O57-INDEX($K57:$O57,1,aux!$AL$1) -> 0.022 | AB57: 1.622307507e-07 | AC57: 1.150414656e-07 | AD57: =+IF(INDEX($K57:$O57,1,aux!$AL$1)>0,(O57/INDEX($K57:$O57,1,aux!$AL$1))^(1/($O$3-INDEX($K$3:$O$3,1,aux!$AL$1)))-1,"n.d.") -> n.d. | AE57: =IF(INDEX($K57:$O57,1,aux!$AL$1)>0,(O57-INDEX($K57:$O57,1,aux!$AL$1))/INDEX($K57:$O57,1,aux!$AL$1),"n.d.") -> n.d. | AX57: 07
A58: 0712 | B58: Produtos hortícolas secos | C58: 65.888 | D58: 83.909 | E58: 164.984 | F58: 253.435 | G58: 248.399 | H58: 163.323 | I58: 0.000441131318 | J58: 0.0003309200881 | K58: 380.577 | L58: 437.316 | M58: 737.556 | N58: 976.792 | O58: 1223.966 | P58: 751.2414 | Q58: 0.00156366294 | R58: 0.0008209243561 | S58: 587.9184 | U58: =G58-INDEX($C58:$G58,1,aux!$AL$1) -> 182.511 | V58: 0.00102417662 | W58: 0.0009665202831 | X58: =+IF(INDEX($C58:$G58,1,aux!$AL$1)>0,(G58/INDEX($C58:$G58,1,aux!$AL$1))^(1/($G$3-INDEX($C$3:$G$3,1,aux!$AL$1)))-1,"n.d.") -> 0.3934323199 | Y58: =IF(INDEX($C58:$G58,1,aux!$AL$1)>0,(G58-INDEX($C58:$G58,1,aux!$AL$1))/INDEX($C58:$G58,1,aux!$AL$1),"n.d.") -> 2.77001882 | AA58: =O58-INDEX($K58:$O58,1,aux!$AL$1) -> 843.389 | AB58: 0.006219255936 | AC58: 0.004410213938 | AD58: =+IF(INDEX($K58:$O58,1,aux!$AL$1)>0,(O58/INDEX($K58:$O58,1,aux!$AL$1))^(1/($O$3-INDEX($K$3:$O$3,1,aux!$AL$1)))-1,"n.d.") -> 0.3391576417 | AE58: =IF(INDEX($K58:$O58,1,aux!$AL$1)>0,(O58-INDEX($K58:$O58,1,aux!$AL$1))/INDEX($K58:$O58,1,aux!$AL$1),"n.d.") -> 2.216079795 | AX58: 07
A59: 0713 | B59: Legumes de vagem, secos, em grão | C59: 356.656 | D59: 401.076 | E59: 325.816 | F59: 327.78 | G59: 389.968 | H59: 360.2592 | I59: 0.0009730510443 | J59: 0.0007299462183 | K59: 3611.803 | L59: 3517.475 | M59: 3482.706 | N59: 4409.981 | O59: 2977.09 | P59: 3599.811 | Q59: 0.00749278601 | R59: 0.003933718945 | S59: 3239.5518 | U59: =G59-INDEX($C59:$G59,1,aux!$AL$1) -> 33.312 | V59: 0.0001869332345 | W59: 0.0001764097708 | X59: =+IF(INDEX($C59:$G59,1,aux!$AL$1)>0,(G59/INDEX($C59:$G59,1,aux!$AL$1))^(1/($G$3-INDEX($C$3:$G$3,1,aux!$AL$1)))-1,"n.d.") -> 0.02257426609 | Y59: =IF(INDEX($C59:$G59,1,aux!$AL$1)>0,(G59-INDEX($C59:$G59,1,aux!$AL$1))/INDEX($C59:$G59,1,aux!$AL$1),"n.d.") -> 0.09340092414 | AA59: =O59-INDEX($K59:$O59,1,aux!$AL$1) -> -634.713 | AB59: -0.004680453021 | AC59: -0.003319014262 | AD59: =+IF(INDEX($K59:$O59,1,aux!$AL$1)>0,(O59/INDEX($K59:$O59,1,aux!$AL$1))^(1/($O$3-INDEX($K$3:$O$3,1,aux!$AL$1)))-1,"n.d.") -> -0.04716658866 | AE59: =IF(INDEX($K59:$O59,1,aux!$AL$1)>0,(O59-INDEX($K59:$O59,1,aux!$AL$1))/INDEX($K59:$O59,1,aux!$AL$1),"n.d.") -> -0.1757330065 | AX59: 07
A60: 0714 | B60: Raízes de mandioca, de araruta, batata-doce, etc. | C60: 8.639 | D60: 0.974 | E60: 22.904 | F60: 0 | G60: 19.07 | H60: 10.3174 | I60: 2.786703808e-05 | J60: 2.090480163e-05 | K60: 14.955 | L60: 34.351 | M60: 22.277 | N60: 19.683 | O60: 116.617 | P60: 41.5766 | Q60: 8.65391452e-05 | R60: 4.543312387e-05 | S60: 31.2592 | U60: =G60-INDEX($C60:$G60,1,aux!$AL$1) -> 10.431 | V60: 5.853447913e-05 | W60: 5.523926269e-05 | X60: =+IF(INDEX($C60:$G60,1,aux!$AL$1)>0,(G60/INDEX($C60:$G60,1,aux!$AL$1))^(1/($G$3-INDEX($C$3:$G$3,1,aux!$AL$1)))-1,"n.d.") -> 0.2189104623 | Y60: =IF(INDEX($C60:$G60,1,aux!$AL$1)>0,(G60-INDEX($C60:$G60,1,aux!$AL$1))/INDEX($C60:$G60,1,aux!$AL$1),"n.d.") -> 1.207431416 | AA60: =O60-INDEX($K60:$O60,1,aux!$AL$1) -> 101.662 | AB60: 0.000749668299 | AC60: 0.0005316066125 | AD60: =+IF(INDEX($K60:$O60,1,aux!$AL$1)>0,(O60/INDEX($K60:$O60,1,aux!$AL$1))^(1/($O$3-INDEX($K$3:$O$3,1,aux!$AL$1)))-1,"n.d.") -> 0.6710669961 | AE60: =IF(INDEX($K60:$O60,1,aux!$AL$1)>0,(O60-INDEX($K60:$O60,1,aux!$AL$1))/INDEX($K60:$O60,1,aux!$AL$1),"n.d.") -> 6.797860247 | AX60: 07
A61: 07SS | B61: Produtos hortícolas, plantas, raízes e tubérculos, comestíveis | C61: 0 | D61: 0 | E61: 0 | F61: 0 | G61: 0 | H61: 0 | I61: 0 | J61: 0 | K61: 0 | L61: 0 | M61: 0 | N61: 0 | O61: 0 | P61: 0 | Q61: 0 | R61: 0 | S61: 0 | U61: =G61-INDEX($C61:$G61,1,aux!$AL$1) -> 0 | V61: 0 | W61: 0 | X61: =+IF(INDEX($C61:$G61,1,aux!$AL$1)>0,(G61/INDEX($C61:$G61,1,aux!$AL$1))^(1/($G$3-INDEX($C$3:$G$3,1,aux!$AL$1)))-1,"n.d.") -> n.d. | Y61: =IF(INDEX($C61:$G61,1,aux!$AL$1)>0,(G61-INDEX($C61:$G61,1,aux!$AL$1))/INDEX($C61:$G61,1,aux!$AL$1),"n.d.") -> n.d. | AA61: =O61-INDEX($K61:$O61,1,aux!$AL$1) -> 0 | AB61: 0 | AC61: 0 | AD61: =+IF(INDEX($K61:$O61,1,aux!$AL$1)>0,(O61/INDEX($K61:$O61,1,aux!$AL$1))^(1/($O$3-INDEX($K$3:$O$3,1,aux!$AL$1)))-1,"n.d.") -> n.d. | AE61: =IF(INDEX($K61:$O61,1,aux!$AL$1)>0,(O61-INDEX($K61:$O61,1,aux!$AL$1))/INDEX($K61:$O61,1,aux!$AL$1),"n.d.") -> n.d. | AX61: 07
A62: 0801 | B62: Cocos, castanhas do brasil e castanha de cajú | C62: 215.975 | D62: 89.546 | E62: 23.948 | F62: 63.553 | G62: 31.616 | H62: 84.9276 | I62: 0.000229387313 | J62: 0.0001720777164 | K62: 236.524 | L62: 65.531 | M62: 0.679 | N62: 1.524 | O62: 25.438 | P62: 65.9392 | Q62: 0.0001372484042 | R62: 7.205552742e-05 | S62: -18.9884 | U62: =G62-INDEX($C62:$G62,1,aux!$AL$1) -> -184.359 | V62: -0.001034546835 | W62: -0.0009763067041 | X62: =+IF(INDEX($C62:$G62,1,aux!$AL$1)>0,(G62/INDEX($C62:$G62,1,aux!$AL$1))^(1/($G$3-INDEX($C$3:$G$3,1,aux!$AL$1)))-1,"n.d.") -> -0.3814485062 | Y62: =IF(INDEX($C62:$G62,1,aux!$AL$1)>0,(G62-INDEX($C62:$G62,1,aux!$AL$1))/INDEX($C62:$G62,1,aux!$AL$1),"n.d.") -> -0.8536126867 | AA62: =O62-INDEX($K62:$O62,1,aux!$AL$1) -> -211.086 | AB62: -0.001556574556 | AC62: -0.001103801946 | AD62: =+IF(INDEX($K62:$O62,1,aux!$AL$1)>0,(O62/INDEX($K62:$O62,1,aux!$AL$1))^(1/($O$3-INDEX($K$3:$O$3,1,aux!$AL$1)))-1,"n.d.") -> -0.4273332908 | AE62: =IF(INDEX($K62:$O62,1,aux!$AL$1)>0,(O62-INDEX($K62:$O62,1,aux!$AL$1))/INDEX($K62:$O62,1,aux!$AL$1),"n.d.") -> -0.8924506604 | AX62: 08
A63: 0802 | B63: Frutas de casca rija | C63: 976.59 | D63: 1223.398 | E63: 1303.345 | F63: 2308.653 | G63: 960.257 | H63: 1354.4486 | I63: 0.003658331626 | J63: 0.0027443425 | K63: 27682.02 | L63: 12291.683 | M63: 12885.704 | N63: 8310.783 | O63: 14214.819 | P63: 15077.0018 | Q63: 0.03138185537 | R63: 0.01647550041 | S63: 13722.5532 | U63: =G63-INDEX($C63:$G63,1,aux!$AL$1) -> -16.333 | V63: -9.165407417e-05 | W63: -8.649437997e-05 | X63: =+IF(INDEX($C63:$G63,1,aux!$AL$1)>0,(G63/INDEX($C63:$G63,1,aux!$AL$1))^(1/($G$3-INDEX($C$3:$G$3,1,aux!$AL$1)))-1,"n.d.") -> -0.004207611842 | Y63: =IF(INDEX($C63:$G63,1,aux!$AL$1)>0,(G63-INDEX($C63:$G63,1,aux!$AL$1))/INDEX($C63:$G63,1,aux!$AL$1),"n.d.") -> -0.01672452104 | AA63: =O63-INDEX($K63:$O63,1,aux!$AL$1) -> -13467.201 | AB63: -0.099308824 | AC63: -0.07042211548 | AD63: =+IF(INDEX($K63:$O63,1,aux!$AL$1)>0,(O63/INDEX($K63:$O63,1,aux!$AL$1))^(1/($O$3-INDEX($K$3:$O$3,1,aux!$AL$1)))-1,"n.d.") -> -0.1534826007 | AE63: =IF(INDEX($K63:$O63,1,aux!$AL$1)>0,(O63-INDEX($K63:$O63,1,aux!$AL$1))/INDEX($K63:$O63,1,aux!$AL$1),"n.d.") -> -0.4864963251 | AX63: 08
A64: 0803 | B64: Bananas, frescas ou secas | C64: 314.614 | D64: 191.174 | E64: 155.762 | F64: 50.401 | G64: 407.835 | H64: 223.9572 | I64: 0.0006049027682 | J64: 0.0004537752574 | K64: 16.361 | L64: 0 | M64: 331.401 | N64: 115.564 | O64: 13.004 | P64: 95.266 | Q64: 0.0001982903414 | R64: 0.0001041025957 | S64: -128.6912 | U64: =G64-INDEX($C64:$G64,1,aux!$AL$1) -> 93.221 | V64: 0.000523117887 | W64: 0.0004936688052 | X64: =+IF(INDEX($C64:$G64,1,aux!$AL$1)>0,(G64/INDEX($C64:$G64,1,aux!$AL$1))^(1/($G$3-INDEX($C$3:$G$3,1,aux!$AL$1)))-1,"n.d.") -> 0.06702995671 | Y64: =IF(INDEX($C64:$G64,1,aux!$AL$1)>0,(G64-INDEX($C64:$G64,1,aux!$AL$1))/INDEX($C64:$G64,1,aux!$AL$1),"n.d.") -> 0.296302771 | AA64: =O64-INDEX($K64:$O64,1,aux!$AL$1) -> -3.357 | AB64: -2.475493773e-05 | AC64: -1.755428182e-05 | AD64: =+IF(INDEX($K64:$O64,1,aux!$AL$1)>0,(O64/INDEX($K64:$O64,1,aux!$AL$1))^(1/($O$3-INDEX($K$3:$O$3,1,aux!$AL$1)))-1,"n.d.") -> -0.05579394957 | AE64: =IF(INDEX($K64:$O64,1,aux!$AL$1)>0,(O64-INDEX($K64:$O64,1,aux!$AL$1))/INDEX($K64:$O64,1,aux!$AL$1),"n.d.") -> -0.2051830573 | AX64: 08
A65: 0804 | B65: Tâmaras, figos, ananases, abacates, goiabas, mangas | C65: 50.868 | D65: 23.381 | E65: 141.243 | F65: 139.686 | G65: 33.421 | H65: 77.7198 | I65: 0.0002099192264 | J65: 0.0001574734916 | K65: 2896.085 | L65: 2429.506 | M65: 2393.793 | N65: 2005.484 | O65: 1334.415 | P65: 2211.8566 | Q65: 0.004603843977 | R65: 0.002417021952 | S65: 2134.1368 | U65: =G65-INDEX($C65:$G65,1,aux!$AL$1) -> -17.447 | V65: -9.79053837e-05 | W65: -9.239377012e-05 | X65: =+IF(INDEX($C65:$G65,1,aux!$AL$1)>0,(G65/INDEX($C65:$G65,1,aux!$AL$1))^(1/($G$3-INDEX($C$3:$G$3,1,aux!$AL$1)))-1,"n.d.") -> -0.09968664075 | Y65: =IF(INDEX($C65:$G65,1,aux!$AL$1)>0,(G65-INDEX($C65:$G65,1,aux!$AL$1))/INDEX($C65:$G65,1,aux!$AL$1),"n.d.") -> -0.3429857671 | AA65: =O65-INDEX($K65:$O65,1,aux!$AL$1) -> -1561.67 | AB65: -0.01151594984 | AC65: -0.008166218435 | AD65: =+IF(INDEX($K65:$O65,1,aux!$AL$1)>0,(O65/INDEX($K65:$O65,1,aux!$AL$1))^(1/($O$3-INDEX($K$3:$O$3,1,aux!$AL$1)))-1,"n.d.") -> -0.1761087268 | AE65: =IF(INDEX($K65:$O65,1,aux!$AL$1)>0,(O65-INDEX($K65:$O65,1,aux!$AL$1))/INDEX($K65:$O65,1,aux!$AL$1),"n.d.") -> -0.5392348636 | AX65: 08
A66: 0805 | B66: Citrinos, frescos ou secos | C66: 73.083 | D66: 3.163 | E66: 57.276 | F66: 2.137 | G66: 1.703 | H66: 27.4724 | I66: 7.42022619e-05 | J66: 5.566374013e-05 | K66: 419.672 | L66: 608.667 | M66: 146.959 | N66: 502.438 | O66: 359.705 | P66: 407.4882 | Q66: 0.0008481617186 | R66: 0.0004452856142 | S66: 380.0158 | U66: =G66-INDEX($C66:$G66,1,aux!$AL$1) -> -71.38 | V66: -0.0004005551836 | W66: -0.0003780058068 | X66: =+IF(INDEX($C66:$G66,1,aux!$AL$1)>0,(G66/INDEX($C66:$G66,1,aux!$AL$1))^(1/($G$3-INDEX($C$3:$G$3,1,aux!$AL$1)))-1,"n.d.") -> -0.6092944591 | Y66: =IF(INDEX($C66:$G66,1,aux!$AL$1)>0,(G66-INDEX($C66:$G66,1,aux!$AL$1))/INDEX($C66:$G66,1,aux!$AL$1),"n.d.") -> -0.9766977272 | AA66: =O66-INDEX($K66:$O66,1,aux!$AL$1) -> -59.967 | AB66: -0.0004422041558 | AC66: -0.0003135768894 | AD66: =+IF(INDEX($K66:$O66,1,aux!$AL$1)>0,(O66/INDEX($K66:$O66,1,aux!$AL$1))^(1/($O$3-INDEX($K$3:$O$3,1,aux!$AL$1)))-1,"n.d.") -> -0.0378138084 | AE66: =IF(INDEX($K66:$O66,1,aux!$AL$1)>0,(O66-INDEX($K66:$O66,1,aux!$AL$1))/INDEX($K66:$O66,1,aux!$AL$1),"n.d.") -> -0.1428901618 | AX66: 08
A67: 0806 | B67: Uvas, frescas ou secas | C67: 2026.229 | D67: 1458.594 | E67: 1266.237 | F67: 2182.681 | G67: 2097.14 | H67: 1806.1762 | I67: 0.004878436519 | J67: 0.003659619204 | K67: 0 | L67: 0 | M67: 56.654 | N67: 0.083 | O67: 20.456 | P67: 15.4386 | Q67: 3.213449987e-05 | R67: 1.68706394e-05 | S67: -1790.7376 | U67: =G67-INDEX($C67:$G67,1,aux!$AL$1) -> 70.911 | V67: 0.0003979233486 | W67: 0.0003755221318 | X67: =+IF(INDEX($C67:$G67,1,aux!$AL$1)>0,(G67/INDEX($C67:$G67,1,aux!$AL$1))^(1/($G$3-INDEX($C$3:$G$3,1,aux!$AL$1)))-1,"n.d.") -> 0.008636602518 | Y67: =IF(INDEX($C67:$G67,1,aux!$AL$1)>0,(G67-INDEX($C67:$G67,1,aux!$AL$1))/INDEX($C67:$G67,1,aux!$AL$1),"n.d.") -> 0.0349965379 | AA67: =O67-INDEX($K67:$O67,1,aux!$AL$1) -> 20.456 | AB67: 0.0001508451016 | AC67: 0.0001069676464 | AD67: =+IF(INDEX($K67:$O67,1,aux!$AL$1)>0,(O67/INDEX($K67:$O67,1,aux!$AL$1))^(1/($O$3-INDEX($K$3:$O$3,1,aux!$AL$1)))-1,"n.d.") -> n.d. | AE67: =IF(INDEX($K67:$O67,1,aux!$AL$1)>0,(O67-INDEX($K67:$O67,1,aux!$AL$1))/INDEX($K67:$O67,1,aux!$AL$1),"n.d.") -> n.d. | AX67: 08
A68: 0807 | B68: Melões, melancias e papaia, frescos | C68: 0 | D68: 0 | E68: 0 | F68: 41.428 | G68: 10.828 | H68: 10.4512 | I68: 2.822842852e-05 | J68: 2.117590312e-05 | K68: 1.068 | L68: 97.659 | M68: 82.538 | N68: 0.887 | O68: 94.09 | P68: 55.2484 | Q68: 0.0001149961591 | R68: 6.037308007e-05 | S68: 44.7972 | U68: =G68-INDEX($C68:$G68,1,aux!$AL$1) -> 10.828 | V68: =IF($U$237<>0,U68/$U$237, "n.d.") -> 6.076227975e-05 | W68: =IF($U$322<>0,U68/$U$322, "n.d.") -> 5.734164859e-05 | X68: =+IF(INDEX($C68:$G68,1,aux!$AL$1)>0,(G68/INDEX($C68:$G68,1,aux!$AL$1))^(1/($G$3-INDEX($C$3:$G$3,1,aux!$AL$1)))-1,"n.d.") -> n.d. | Y68: =IF(INDEX($C68:$G68,1,aux!$AL$1)>0,(G68-INDEX($C68:$G68,1,aux!$AL$1))/INDEX($C68:$G68,1,aux!$AL$1),"n.d.") -> n.d. | AA68: =O68-INDEX($K68:$O68,1,aux!$AL$1) -> 93.022 | AB68: =IF($AA$237<>0,AA68/$AA$237, "n.d.") -> 0.0006859558587 | AC68: =IF($AA$322<>0,AA68/$AA$322, "n.d.") -> 0.0004864266915 | AD68: =+IF(INDEX($K68:$O68,1,aux!$AL$1)>0,(O68/INDEX($K68:$O68,1,aux!$AL$1))^(1/($O$3-INDEX($K$3:$O$3,1,aux!$AL$1)))-1,"n.d.") -> 2.063677549 | AE68: =IF(INDEX($K68:$O68,1,aux!$AL$1)>0,(O68-INDEX($K68:$O68,1,aux!$AL$1))/INDEX($K68:$O68,1,aux!$AL$1),"n.d.") -> 87.09925094 | AX68: 08
A69: 0808 | B69: Maçãs, peras e marmelos, frescos | C69: 2993.493 | D69: 1692.879 | E69: 2582.745 | F69: 2816.063 | G69: 4719.973 | H69: 2961.0306 | I69: 0.007997669227 | J69: 0.005999550015 | K69: 836.567 | L69: 1308.883 | M69: 1425.756 | N69: 2843.769 | O69: 563.508 | P69: 1395.6966 | Q69: 0.002905056949 | R69: 0.001525157336 | S69: -1565.334 | U69: =G69-INDEX($C69:$G69,1,aux!$AL$1) -> 1726.48 | V69: 0.009688295229 | W69: 0.00914288968 | X69: =+IF(INDEX($C69:$G69,1,aux!$AL$1)>0,(G69/INDEX($C69:$G69,1,aux!$AL$1))^(1/($G$3-INDEX($C$3:$G$3,1,aux!$AL$1)))-1,"n.d.") -> 0.1205734201 | Y69: =IF(INDEX($C69:$G69,1,aux!$AL$1)>0,(G69-INDEX($C69:$G69,1,aux!$AL$1))/INDEX($C69:$G69,1,aux!$AL$1),"n.d.") -> 0.5767442917 | AA69: =O69-INDEX($K69:$O69,1,aux!$AL$1) -> -273.059 | AB69: -0.002013571207 | AC69: -0.001427868525 | AD69: =+IF(INDEX($K69:$O69,1,aux!$AL$1)>0,(O69/INDEX($K69:$O69,1,aux!$AL$1))^(1/($O$3-INDEX($K$3:$O$3,1,aux!$AL$1)))-1,"n.d.") -> -0.09405915777 | AE69: =IF(INDEX($K69:$O69,1,aux!$AL$1)>0,(O69-INDEX($K69:$O69,1,aux!$AL$1))/INDEX($K69:$O69,1,aux!$AL$1),"n.d.") -> -0.3264042211 | AX69: 08
A70: 0809 | B70: Damascos, cerejas, pêssegos, etc., frescos | C70: 634.102 | D70: 68.625 | E70: 21.48 | F70: 0 | G70: 0 | H70: 144.8414 | I70: 0.0003912129809 | J70: 0.0002934732331 | K70: 145.077 | L70: 166.128 | M70: 76.754 | N70: 19.475 | O70: 0 | P70: 81.4868 | Q70: 0.0001696097809 | R70: 8.904527735e-05 | S70: -63.3546 | U70: =G70-INDEX($C70:$G70,1,aux!$AL$1) -> -634.102 | V70: -0.00355831946 | W70: -0.003358002775 | X70: =+IF(INDEX($C70:$G70,1,aux!$AL$1)>0,(G70/INDEX($C70:$G70,1,aux!$AL$1))^(1/($G$3-INDEX($C$3:$G$3,1,aux!$AL$1)))-1,"n.d.") -> -1 | Y70: =IF(INDEX($C70:$G70,1,aux!$AL$1)>0,(G70-INDEX($C70:$G70,1,aux!$AL$1))/INDEX($C70:$G70,1,aux!$AL$1),"n.d.") -> -1 | AA70: =O70-INDEX($K70:$O70,1,aux!$AL$1) -> -145.077 | AB70: -0.001069815937 | AC70: -0.0007586304866 | AD70: =+IF(INDEX($K70:$O70,1,aux!$AL$1)>0,(O70/INDEX($K70:$O70,1,aux!$AL$1))^(1/($O$3-INDEX($K$3:$O$3,1,aux!$AL$1)))-1,"n.d.") -> -1 | AE70: =IF(INDEX($K70:$O70,1,aux!$AL$1)>0,(O70-INDEX($K70:$O70,1,aux!$AL$1))/INDEX($K70:$O70,1,aux!$AL$1),"n.d.") -> -1 | AX70: 08
A71: 0810 | B71: Outras frutas frescas | C71: 1105.236 | D71: 908.254 | E71: 597.37 | F71: 773.693 | G71: 904.636 | H71: 857.8378 | I71: 0.002316998337 | J71: 0.001738124823 | K71: 1520.318 | L71: 1653.313 | M71: 1928.213 | N71: 4305.288 | O71: 5861.094 | P71: 3053.6452 | Q71: 0.006355975365 | R71: 0.003336892402 | S71: 2195.8074 | U71: =G71-INDEX($C71:$G71,1,aux!$AL$1) -> -200.6 | V71: -0.001125684643 | W71: -0.001062313881 | X71: =+IF(INDEX($C71:$G71,1,aux!$AL$1)>0,(G71/INDEX($C71:$G71,1,aux!$AL$1))^(1/($G$3-INDEX($C$3:$G$3,1,aux!$AL$1)))-1,"n.d.") -> -0.048837519 | Y71: =IF(INDEX($C71:$G71,1,aux!$AL$1)>0,(G71-INDEX($C71:$G71,1,aux!$AL$1))/INDEX($C71:$G71,1,aux!$AL$1),"n.d.") -> -0.1814996978 | AA71: =O71-INDEX($K71:$O71,1,aux!$AL$1) -> 4340.776 | AB71: 0.03200942496 | AC71: 0.02269860149 | AD71: =+IF(INDEX($K71:$O71,1,aux!$AL$1)>0,(O71/INDEX($K71:$O71,1,aux!$AL$1))^(1/($O$3-INDEX($K$3:$O$3,1,aux!$AL$1)))-1,"n.d.") -> 0.4012352766 | AE71: =IF(INDEX($K71:$O71,1,aux!$AL$1)>0,(O71-INDEX($K71:$O71,1,aux!$AL$1))/INDEX($K71:$O71,1,aux!$AL$1),"n.d.") -> 2.855176351 | AX71: 08
A72: 0811 | B72: Frutas não cozidas ou cozidas em água ou vapor, congeladas | C72: 1063.517 | D72: 732.572 | E72: 885.478 | F72: 966.898 | G72: 749.148 | H72: 879.5226 | I72: 0.002375568436 | J72: 0.001782061904 | K72: 5399.387 | L72: 6346.595 | M72: 5288.466 | N72: 2937.881 | O72: 3846.049 | P72: 4763.6756 | Q72: 0.009915298857 | R72: 0.005205540222 | S72: 3884.153 | U72: =G72-INDEX($C72:$G72,1,aux!$AL$1) -> -314.369 | V72: -0.00176410945 | W72: -0.001664798368 | X72: =+IF(INDEX($C72:$G72,1,aux!$AL$1)>0,(G72/INDEX($C72:$G72,1,aux!$AL$1))^(1/($G$3-INDEX($C$3:$G$3,1,aux!$AL$1)))-1,"n.d.") -> -0.08387275909 | Y72: =IF(INDEX($C72:$G72,1,aux!$AL$1)>0,(G72-INDEX($C72:$G72,1,aux!$AL$1))/INDEX($C72:$G72,1,aux!$AL$1),"n.d.") -> -0.2955937705 | AA72: =O72-INDEX($K72:$O72,1,aux!$AL$1) -> -1553.338 | AB72: -0.01145450863 | AC72: -0.008122649095 | AD72: =+IF(INDEX($K72:$O72,1,aux!$AL$1)>0,(O72/INDEX($K72:$O72,1,aux!$AL$1))^(1/($O$3-INDEX($K$3:$O$3,1,aux!$AL$1)))-1,"n.d.") -> -0.08131296143 | AE72: =IF(INDEX($K72:$O72,1,aux!$AL$1)>0,(O72-INDEX($K72:$O72,1,aux!$AL$1))/INDEX($K72:$O72,1,aux!$AL$1),"n.d.") -> -0.2876878431 | AX72: 08
A73: 0812 | B73: Frutas conservadas transitoriamente | C73: 122.755 | D73: 151.444 | E73: 265.246 | F73: 176.301 | G73: 213.13 | H73: 185.7752 | I73: 0.0005017741459 | J73: 0.0003764120519 | K73: 0 | L73: 0 | M73: 1.103 | N73: 0 | O73: 0.175 | P73: 0.2556 | Q73: 5.320157376e-07 | R73: 2.793087088e-07 | S73: -185.5196 | U73: =G73-INDEX($C73:$G73,1,aux!$AL$1) -> 90.375 | V73: 0.0005071473063 | W73: 0.0004785972932 | X73: =+IF(INDEX($C73:$G73,1,aux!$AL$1)>0,(G73/INDEX($C73:$G73,1,aux!$AL$1))^(1/($G$3-INDEX($C$3:$G$3,1,aux!$AL$1)))-1,"n.d.") -> 0.1478928442 | Y73: =IF(INDEX($C73:$G73,1,aux!$AL$1)>0,(G73-INDEX($C73:$G73,1,aux!$AL$1))/INDEX($C73:$G73,1,aux!$AL$1),"n.d.") -> 0.7362225571 | AA73: =O73-INDEX($K73:$O73,1,aux!$AL$1) -> 0.175 | AB73: 1.290471881e-06 | AC73: 9.151025673e-07 | AD73: =+IF(INDEX($K73:$O73,1,aux!$AL$1)>0,(O73/INDEX($K73:$O73,1,aux!$AL$1))^(1/($O$3-INDEX($K$3:$O$3,1,aux!$AL$1)))-1,"n.d.") -> n.d. | AE73: =IF(INDEX($K73:$O73,1,aux!$AL$1)>0,(O73-INDEX($K73:$O73,1,aux!$AL$1))/INDEX($K73:$O73,1,aux!$AL$1),"n.d.") -> n.d. | AX73: 08
A74: 0813 | B74: Outras frutas secas | C74: 255.402 | D74: 106.143 | E74: 101.544 | F74: 110.349 | G74: 79.679 | H74: 130.6234 | I74: 0.0003528105203 | J74: 0.0002646651546 | K74: 0 | L74: 2.757 | M74: 3.15 | N74: 2.229 | O74: 3.457 | P74: 2.3186 | Q74: 4.826023823e-06 | R74: 2.533666558e-06 | S74: -128.3048 | U74: =G74-INDEX($C74:$G74,1,aux!$AL$1) -> -175.723 | V74: -0.0009860851574 | W74: -0.0009305731912 | X74: =+IF(INDEX($C74:$G74,1,aux!$AL$1)>0,(G74/INDEX($C74:$G74,1,aux!$AL$1))^(1/($G$3-INDEX($C$3:$G$3,1,aux!$AL$1)))-1,"n.d.") -> -0.252639922 | Y74: =IF(INDEX($C74:$G74,1,aux!$AL$1)>0,(G74-INDEX($C74:$G74,1,aux!$AL$1))/INDEX($C74:$G74,1,aux!$AL$1),"n.d.") -> -0.6880251525 | AA74: =O74-INDEX($K74:$O74,1,aux!$AL$1) -> 3.457 | AB74: 2.549235023e-05 | AC74: 1.807719757e-05 | AD74: =+IF(INDEX($K74:$O74,1,aux!$AL$1)>0,(O74/INDEX($K74:$O74,1,aux!$AL$1))^(1/($O$3-INDEX($K$3:$O$3,1,aux!$AL$1)))-1,"n.d.") -> n.d. | AE74: =IF(INDEX($K74:$O74,1,aux!$AL$1)>0,(O74-INDEX($K74:$O74,1,aux!$AL$1))/INDEX($K74:$O74,1,aux!$AL$1),"n.d.") -> n.d. | AX74: 08
A75: 0814 | B75: Cascas de citrinos, melões ou melancias | C75: 0 | D75: 0 | E75: 0.015 | F75: 0 | G75: 0.074 | H75: 0.0178 | I75: 4.807735261e-08 | J75: 3.606581785e-08 | K75: 0 | L75: 0 | M75: 0 | N75: 0 | O75: 0 | P75: 0 | Q75: 0 | R75: 0 | S75: -0.0178 | U75: =G75-INDEX($C75:$G75,1,aux!$AL$1) -> 0.074 | V75: 4.152575454e-07 | W75: 3.918804946e-07 | X75: =+IF(INDEX($C75:$G75,1,aux!$AL$1)>0,(G75/INDEX($C75:$G75,1,aux!$AL$1))^(1/($G$3-INDEX($C$3:$G$3,1,aux!$AL$1)))-1,"n.d.") -> n.d. | Y75: =IF(INDEX($C75:$G75,1,aux!$AL$1)>0,(G75-INDEX($C75:$G75,1,aux!$AL$1))/INDEX($C75:$G75,1,aux!$AL$1),"n.d.") -> n.d. | AA75: =O75-INDEX($K75:$O75,1,aux!$AL$1) -> 0 | AB75: 0 | AC75: 0 | AD75: =+IF(INDEX($K75:$O75,1,aux!$AL$1)>0,(O75/INDEX($K75:$O75,1,aux!$AL$1))^(1/($O$3-INDEX($K$3:$O$3,1,aux!$AL$1)))-1,"n.d.") -> n.d. | AE75: =IF(INDEX($K75:$O75,1,aux!$AL$1)>0,(O75-INDEX($K75:$O75,1,aux!$AL$1))/INDEX($K75:$O75,1,aux!$AL$1),"n.d.") -> n.d. | AX75: =+LEFT(A75,2) -> 08
A76: 08SS | B76: Frutas; cascas de citrinos e de melões | C76: 0 | D76: 0 | E76: 0 | F76: 0 | G76: 0 | H76: 0 | I76: 0 | J76: 0 | K76: 0 | L76: 0 | M76: 0 | N76: 0 | O76: 0 | P76: 0 | Q76: 0 | R76: 0 | S76: 0 | U76: =G76-INDEX($C76:$G76,1,aux!$AL$1) -> 0 | V76: 0 | W76: 0 | X76: =+IF(INDEX($C76:$G76,1,aux!$AL$1)>0,(G76/INDEX($C76:$G76,1,aux!$AL$1))^(1/($G$3-INDEX($C$3:$G$3,1,aux!$AL$1)))-1,"n.d.") -> n.d. | Y76: =IF(INDEX($C76:$G76,1,aux!$AL$1)>0,(G76-INDEX($C76:$G76,1,aux!$AL$1))/INDEX($C76:$G76,1,aux!$AL$1),"n.d.") -> n.d. | AA76: =O76-INDEX($K76:$O76,1,aux!$AL$1) -> 0 | AB76: 0 | AC76: 0 | AD76: =+IF(INDEX($K76:$O76,1,aux!$AL$1)>0,(O76/INDEX($K76:$O76,1,aux!$AL$1))^(1/($O$3-INDEX($K$3:$O$3,1,aux!$AL$1)))-1,"n.d.") -> n.d. | AE76: =IF(INDEX($K76:$O76,1,aux!$AL$1)>0,(O76-INDEX($K76:$O76,1,aux!$AL$1))/INDEX($K76:$O76,1,aux!$AL$1),"n.d.") -> n.d. | AX76: 08
A77: 0901 | B77: Café | C77: 21268.078 | D77: 19925.144 | E77: 27524.425 | F77: 34475.11 | G77: 24665.337 | H77: 25571.6188 | I77: 0.06906829965 | J77: 0.05181243516 | K77: 396.824 | L77: 909.147 | M77: 676.479 | N77: 270.753 | O77: 79.759 | P77: 466.5924 | Q77: 0.0009711834891 | R77: 0.000509872147 | S77: -25105.0264 | U77: =G77-INDEX($C77:$G77,1,aux!$AL$1) -> 3397.259 | V77: 0.01906401937 | W77: 0.01799080456 | X77: =+IF(INDEX($C77:$G77,1,aux!$AL$1)>0,(G77/INDEX($C77:$G77,1,aux!$AL$1))^(1/($G$3-INDEX($C$3:$G$3,1,aux!$AL$1)))-1,"n.d.") -> 0.03774273649 | Y77: =IF(INDEX($C77:$G77,1,aux!$AL$1)>0,(G77-INDEX($C77:$G77,1,aux!$AL$1))/INDEX($C77:$G77,1,aux!$AL$1),"n.d.") -> 0.1597351204 | AA77: =O77-INDEX($K77:$O77,1,aux!$AL$1) -> -317.065 | AB77: -0.002338076953 | AC77: -0.001657982831 | AD77: =+IF(INDEX($K77:$O77,1,aux!$AL$1)>0,(O77/INDEX($K77:$O77,1,aux!$AL$1))^(1/($O$3-INDEX($K$3:$O$3,1,aux!$AL$1)))-1,"n.d.") -> -0.3304308394 | AE77: =IF(INDEX($K77:$O77,1,aux!$AL$1)>0,(O77-INDEX($K77:$O77,1,aux!$AL$1))/INDEX($K77:$O77,1,aux!$AL$1),"n.d.") -> -0.7990066125 | AX77: 09
A78: 0902 | B78: Chá | C78: 269.844 | D78: 317.039 | E78: 276.252 | F78: 509.546 | G78: 503.426 | H78: 375.2214 | I78: 0.00101346357 | J78: 0.0007602621723 | K78: 0 | L78: 4.375 | M78: 4.268 | N78: 3.642 | O78: 3.952 | P78: 3.2474 | Q78: 6.759264108e-06 | R78: 3.54861933e-06 | S78: -371.974 | U78: =G78-INDEX($C78:$G78,1,aux!$AL$1) -> 233.582 | V78: 0.001310766054 | W78: 0.001236976077 | X78: =+IF(INDEX($C78:$G78,1,aux!$AL$1)>0,(G78/INDEX($C78:$G78,1,aux!$AL$1))^(1/($G$3-INDEX($C$3:$G$3,1,aux!$AL$1)))-1,"n.d.") -> 0.1687071981 | Y78: =IF(INDEX($C78:$G78,1,aux!$AL$1)>0,(G78-INDEX($C78:$G78,1,aux!$AL$1))/INDEX($C78:$G78,1,aux!$AL$1),"n.d.") -> 0.8656186537 | AA78: =O78-INDEX($K78:$O78,1,aux!$AL$1) -> 3.952 | AB78: 2.914254212e-05 | AC78: 2.066563055e-05 | AD78: =+IF(INDEX($K78:$O78,1,aux!$AL$1)>0,(O78/INDEX($K78:$O78,1,aux!$AL$1))^(1/($O$3-INDEX($K$3:$O$3,1,aux!$AL$1)))-1,"n.d.") -> n.d. | AE78: =IF(INDEX($K78:$O78,1,aux!$AL$1)>0,(O78-INDEX($K78:$O78,1,aux!$AL$1))/INDEX($K78:$O78,1,aux!$AL$1),"n.d.") -> n.d. | AX78: 09
A79: 0903 | B79: Mate | C79: 0 | D79: 0 | E79: 0 | F79: 0 | G79: 0.276 | H79: 0.0552 | I79: 1.490938126e-07 | J79: 1.118445587e-07 | K79: 10.494 | L79: 1.783 | M79: 16.055 | N79: 15.912 | O79: 18.072 | P79: 12.4632 | Q79: 2.594138709e-05 | R79: 1.361925e-05 | S79: 12.408 | U79: =G79-INDEX($C79:$G79,1,aux!$AL$1) -> 0.276 | V79: 1.548798412e-06 | W79: 1.461608331e-06 | X79: =+IF(INDEX($C79:$G79,1,aux!$AL$1)>0,(G79/INDEX($C79:$G79,1,aux!$AL$1))^(1/($G$3-INDEX($C$3:$G$3,1,aux!$AL$1)))-1,"n.d.") -> n.d. | Y79: =IF(INDEX($C79:$G79,1,aux!$AL$1)>0,(G79-INDEX($C79:$G79,1,aux!$AL$1))/INDEX($C79:$G79,1,aux!$AL$1),"n.d.") -> n.d. | AA79: =O79-INDEX($K79:$O79,1,aux!$AL$1) -> 7.578 | AB79: 5.588111949e-05 | AC79: 3.962655574e-05 | AD79: =+IF(INDEX($K79:$O79,1,aux!$AL$1)>0,(O79/INDEX($K79:$O79,1,aux!$AL$1))^(1/($O$3-INDEX($K$3:$O$3,1,aux!$AL$1)))-1,"n.d.") -> 0.1455559081 | AE79: =IF(INDEX($K79:$O79,1,aux!$AL$1)>0,(O79-INDEX($K79:$O79,1,aux!$AL$1))/INDEX($K79:$O79,1,aux!$AL$1),"n.d.") -> 0.7221269297 | AX79: 09
A80: 0904 | B80: Pimenta | C80: 7.126 | D80: 2.603 | E80: 9.696 | F80: 7.167 | G80: 9.02 | H80: 7.1224 | I80: 1.923742338e-05 | J80: 1.443118995e-05 | K80: 0 | L80: 0 | M80: 2.405 | N80: 1.532 | O80: 1.64 | P80: 1.1154 | Q80: 2.321636751e-06 | R80: 1.218861243e-06 | S80: -6.007 | U80: =G80-INDEX($C80:$G80,1,aux!$AL$1) -> 1.894 | V80: 1.062834853e-05 | W80: 1.003002239e-05 | X80: =+IF(INDEX($C80:$G80,1,aux!$AL$1)>0,(G80/INDEX($C80:$G80,1,aux!$AL$1))^(1/($G$3-INDEX($C$3:$G$3,1,aux!$AL$1)))-1,"n.d.") -> 0.06069416531 | Y80: =IF(INDEX($C80:$G80,1,aux!$AL$1)>0,(G80-INDEX($C80:$G80,1,aux!$AL$1))/INDEX($C80:$G80,1,aux!$AL$1),"n.d.") -> 0.2657872579 | AA80: =O80-INDEX($K80:$O80,1,aux!$AL$1) -> 1.64 | AB80: 1.209356505e-05 | AC80: 8.575818345e-06 | AD80: =+IF(INDEX($K80:$O80,1,aux!$AL$1)>0,(O80/INDEX($K80:$O80,1,aux!$AL$1))^(1/($O$3-INDEX($K$3:$O$3,1,aux!$AL$1)))-1,"n.d.") -> n.d. | AE80: =IF(INDEX($K80:$O80,1,aux!$AL$1)>0,(O80-INDEX($K80:$O80,1,aux!$AL$1))/INDEX($K80:$O80,1,aux!$AL$1),"n.d.") -> n.d. | AX80: 09
A81: 0905 | B81: Baunilha | C81: 0 | D81: 1.668 | E81: 6.1 | F81: 2.379 | G81: 1.587 | H81: 2.3468 | I81: 6.338647815e-06 | J81: 4.755014682e-06 | K81: 0 | L81: 0 | M81: 0 | N81: 0.005 | O81: 0.006 | P81: 0.0022 | Q81: 4.57916519e-09 | R81: 2.404065568e-09 | S81: -2.3446 | U81: =G81-INDEX($C81:$G81,1,aux!$AL$1) -> 1.587 | V81: 8.905590872e-06 | W81: 8.404247904e-06 | X81: =+IF(INDEX($C81:$G81,1,aux!$AL$1)>0,(G81/INDEX($C81:$G81,1,aux!$AL$1))^(1/($G$3-INDEX($C$3:$G$3,1,aux!$AL$1)))-1,"n.d.") -> n.d. | Y81: =IF(INDEX($C81:$G81,1,aux!$AL$1)>0,(G81-INDEX($C81:$G81,1,aux!$AL$1))/INDEX($C81:$G81,1,aux!$AL$1),"n.d.") -> n.d. | AA81: =O81-INDEX($K81:$O81,1,aux!$AL$1) -> 0.006 | AB81: 4.424475019e-08 | AC81: 3.137494516e-08 | AD81: =+IF(INDEX($K81:$O81,1,aux!$AL$1)>0,(O81/INDEX($K81:$O81,1,aux!$AL$1))^(1/($O$3-INDEX($K$3:$O$3,1,aux!$AL$1)))-1,"n.d.") -> n.d. | AE81: =IF(INDEX($K81:$O81,1,aux!$AL$1)>0,(O81-INDEX($K81:$O81,1,aux!$AL$1))/INDEX($K81:$O81,1,aux!$AL$1),"n.d.") -> n.d. | AX81: 09
A82: 0906 | B82: Canela | C82: 0.032 | D82: 0 | E82: 0.129 | F82: 16.395 | G82: 17.935 | H82: 6.8982 | I82: 1.863186482e-05 | J82: 1.397692274e-05 | K82: 0 | L82: 0 | M82: 0 | N82: 0.208 | O82: 0.008 | P82: 0.0432 | Q82: 8.991815283e-08 | R82: 4.720710571e-08 | S82: -6.855 | U82: =G82-INDEX($C82:$G82,1,aux!$AL$1) -> 17.903 | V82: 0.000100464268 | W82: 9.480860128e-05 | X82: =+IF(INDEX($C82:$G82,1,aux!$AL$1)>0,(G82/INDEX($C82:$G82,1,aux!$AL$1))^(1/($G$3-INDEX($C$3:$G$3,1,aux!$AL$1)))-1,"n.d.") -> 3.865616221 | Y82: =IF(INDEX($C82:$G82,1,aux!$AL$1)>0,(G82-INDEX($C82:$G82,1,aux!$AL$1))/INDEX($C82:$G82,1,aux!$AL$1),"n.d.") -> 559.46875 | AA82: =O82-INDEX($K82:$O82,1,aux!$AL$1) -> 0.008 | AB82: 5.899300025e-08 | AC82: 4.183326022e-08 | AD82: =+IF(INDEX($K82:$O82,1,aux!$AL$1)>0,(O82/INDEX($K82:$O82,1,aux!$AL$1))^(1/($O$3-INDEX($K$3:$O$3,1,aux!$AL$1)))-1,"n.d.") -> n.d. | AE82: =IF(INDEX($K82:$O82,1,aux!$AL$1)>0,(O82-INDEX($K82:$O82,1,aux!$AL$1))/INDEX($K82:$O82,1,aux!$AL$1),"n.d.") -> n.d. | AX82: 09
A83: 0907 | B83: Cravo-da-índia | C83: 0 | D83: 0 | E83: 0 | F83: 1.875 | G83: 0 | H83: 0.375 | I83: 1.012865575e-06 | J83: 7.598135783e-07 | K83: 0 | L83: 0 | M83: 0 | N83: 0 | O83: 0 | P83: 0 | Q83: 0 | R83: 0 | S83: -0.375 | U83: =G83-INDEX($C83:$G83,1,aux!$AL$1) -> 0 | V83: 0 | W83: 0 | X83: =+IF(INDEX($C83:$G83,1,aux!$AL$1)>0,(G83/INDEX($C83:$G83,1,aux!$AL$1))^(1/($G$3-INDEX($C$3:$G$3,1,aux!$AL$1)))-1,"n.d.") -> n.d. | Y83: =IF(INDEX($C83:$G83,1,aux!$AL$1)>0,(G83-INDEX($C83:$G83,1,aux!$AL$1))/INDEX($C83:$G83,1,aux!$AL$1),"n.d.") -> n.d. | AA83: =O83-INDEX($K83:$O83,1,aux!$AL$1) -> 0 | AB83: 0 | AC83: 0 | AD83: =+IF(INDEX($K83:$O83,1,aux!$AL$1)>0,(O83/INDEX($K83:$O83,1,aux!$AL$1))^(1/($O$3-INDEX($K$3:$O$3,1,aux!$AL$1)))-1,"n.d.") -> n.d. | AE83: =IF(INDEX($K83:$O83,1,aux!$AL$1)>0,(O83-INDEX($K83:$O83,1,aux!$AL$1))/INDEX($K83:$O83,1,aux!$AL$1),"n.d.") -> n.d. | AX83: 09
A84: 0908 | B84: Noz-moscada, etc. | C84: 0 | D84: 0.542 | E84: 0 | F84: 10.691 | G84: 7.991 | H84: 3.8448 | I84: 1.038470816e-05 | J84: 7.790216656e-06 | K84: 0 | L84: 0 | M84: 0 | N84: 0 | O84: 0 | P84: 0 | Q84: 0 | R84: 0 | S84: -3.8448 | U84: =G84-INDEX($C84:$G84,1,aux!$AL$1) -> 7.991 | V84: 4.484220331e-05 | W84: 4.231779773e-05 | X84: =+IF(INDEX($C84:$G84,1,aux!$AL$1)>0,(G84/INDEX($C84:$G84,1,aux!$AL$1))^(1/($G$3-INDEX($C$3:$G$3,1,aux!$AL$1)))-1,"n.d.") -> n.d. | Y84: =IF(INDEX($C84:$G84,1,aux!$AL$1)>0,(G84-INDEX($C84:$G84,1,aux!$AL$1))/INDEX($C84:$G84,1,aux!$AL$1),"n.d.") -> n.d. | AA84: =O84-INDEX($K84:$O84,1,aux!$AL$1) -> 0 | AB84: 0 | AC84: 0 | AD84: =+IF(INDEX($K84:$O84,1,aux!$AL$1)>0,(O84/INDEX($K84:$O84,1,aux!$AL$1))^(1/($O$3-INDEX($K$3:$O$3,1,aux!$AL$1)))-1,"n.d.") -> n.d. | AE84: =IF(INDEX($K84:$O84,1,aux!$AL$1)>0,(O84-INDEX($K84:$O84,1,aux!$AL$1))/INDEX($K84:$O84,1,aux!$AL$1),"n.d.") -> n.d. | AX84: 09
A85: 0909 | B85: Sementes de anis, funcho, etc. | C85: 4.2 | D85: 3.618 | E85: 11.621 | F85: 10.75 | G85: 2.089 | H85: 6.4556 | I85: 1.743641334e-05 | J85: 1.30801401e-05 | K85: 0 | L85: 0 | M85: 0.001 | N85: 0 | O85: 0 | P85: 0.0002 | Q85: 4.162877446e-10 | R85: 2.185514153e-10 | S85: -6.4554 | U85: =G85-INDEX($C85:$G85,1,aux!$AL$1) -> -2.111 | V85: -1.184606322e-05 | W85: -1.117918546e-05 | X85: =+IF(INDEX($C85:$G85,1,aux!$AL$1)>0,(G85/INDEX($C85:$G85,1,aux!$AL$1))^(1/($G$3-INDEX($C$3:$G$3,1,aux!$AL$1)))-1,"n.d.") -> -0.1602069283 | Y85: =IF(INDEX($C85:$G85,1,aux!$AL$1)>0,(G85-INDEX($C85:$G85,1,aux!$AL$1))/INDEX($C85:$G85,1,aux!$AL$1),"n.d.") -> -0.5026190476 | AA85: =O85-INDEX($K85:$O85,1,aux!$AL$1) -> 0 | AB85: 0 | AC85: 0 | AD85: =+IF(INDEX($K85:$O85,1,aux!$AL$1)>0,(O85/INDEX($K85:$O85,1,aux!$AL$1))^(1/($O$3-INDEX($K$3:$O$3,1,aux!$AL$1)))-1,"n.d.") -> n.d. | AE85: =IF(INDEX($K85:$O85,1,aux!$AL$1)>0,(O85-INDEX($K85:$O85,1,aux!$AL$1))/INDEX($K85:$O85,1,aux!$AL$1),"n.d.") -> n.d. | AX85: 09
A86: 0910 | B86: Gengibre, açafrão, tomilho, louro, etc. | C86: 47.288 | D86: 138.987 | E86: 177.862 | F86: 472.834 | G86: 450.019 | H86: 257.398 | I86: 0.0006952255285 | J86: 0.0005215319878 | K86: 0 | L86: 0 | M86: 4.311 | N86: 1.595 | O86: 6.283 | P86: 2.4378 | Q86: 5.074131318e-06 | R86: 2.663923201e-06 | S86: -254.9602 | U86: =G86-INDEX($C86:$G86,1,aux!$AL$1) -> 402.731 | V86: 0.002259960628 | W86: 0.002132735452 | X86: =+IF(INDEX($C86:$G86,1,aux!$AL$1)>0,(G86/INDEX($C86:$G86,1,aux!$AL$1))^(1/($G$3-INDEX($C$3:$G$3,1,aux!$AL$1)))-1,"n.d.") -> 0.7563860374 | Y86: =IF(INDEX($C86:$G86,1,aux!$AL$1)>0,(G86-INDEX($C86:$G86,1,aux!$AL$1))/INDEX($C86:$G86,1,aux!$AL$1),"n.d.") -> 8.516558112 | AA86: =O86-INDEX($K86:$O86,1,aux!$AL$1) -> 6.283 | AB86: 4.633162757e-05 | AC86: 3.285479674e-05 | AD86: =+IF(INDEX($K86:$O86,1,aux!$AL$1)>0,(O86/INDEX($K86:$O86,1,aux!$AL$1))^(1/($O$3-INDEX($K$3:$O$3,1,aux!$AL$1)))-1,"n.d.") -> n.d. | AE86: =IF(INDEX($K86:$O86,1,aux!$AL$1)>0,(O86-INDEX($K86:$O86,1,aux!$AL$1))/INDEX($K86:$O86,1,aux!$AL$1),"n.d.") -> n.d. | AX86: 09
A87: 09SS | B87: Café, chá, mate e especiarias | C87: 0 | D87: 0 | E87: 0 | F87: 0 | G87: 0 | H87: 0 | I87: 0 | J87: 0 | K87: 0 | L87: 0 | M87: 0 | N87: 0 | O87: 0 | P87: 0 | Q87: 0 | R87: 0 | S87: 0 | U87: =G87-INDEX($C87:$G87,1,aux!$AL$1) -> 0 | V87: 0 | W87: 0 | X87: =+IF(INDEX($C87:$G87,1,aux!$AL$1)>0,(G87/INDEX($C87:$G87,1,aux!$AL$1))^(1/($G$3-INDEX($C$3:$G$3,1,aux!$AL$1)))-1,"n.d.") -> n.d. | Y87: =IF(INDEX($C87:$G87,1,aux!$AL$1)>0,(G87-INDEX($C87:$G87,1,aux!$AL$1))/INDEX($C87:$G87,1,aux!$AL$1),"n.d.") -> n.d. | AA87: =O87-INDEX($K87:$O87,1,aux!$AL$1) -> 0 | AB87: 0 | AC87: 0 | AD87: =+IF(INDEX($K87:$O87,1,aux!$AL$1)>0,(O87/INDEX($K87:$O87,1,aux!$AL$1))^(1/($O$3-INDEX($K$3:$O$3,1,aux!$AL$1)))-1,"n.d.") -> n.d. | AE87: =IF(INDEX($K87:$O87,1,aux!$AL$1)>0,(O87-INDEX($K87:$O87,1,aux!$AL$1))/INDEX($K87:$O87,1,aux!$AL$1),"n.d.") -> n.d. | AX87: 09
A88: 1001 | B88: Trigo e mistura trigo/centeio | C88: 1373.105 | D88: 621.636 | E88: 18.766 | F88: 7.867 | G88: 7.083 | H88: 405.6914 | I88: 0.001095762275 | J88: 0.0008219995582 | K88: 0 | L88: 0 | M88: 0 | N88: 0 | O88: 0 | P88: 0 | Q88: 0 | R88: 0 | S88: -405.6914 | U88: =G88-INDEX($C88:$G88,1,aux!$AL$1) -> -1366.022 | V88: -0.007665553279 | W88: -0.007234018608 | X88: =+IF(INDEX($C88:$G88,1,aux!$AL$1)>0,(G88/INDEX($C88:$G88,1,aux!$AL$1))^(1/($G$3-INDEX($C$3:$G$3,1,aux!$AL$1)))-1,"n.d.") -> -0.7320039622 | Y88: =IF(INDEX($C88:$G88,1,aux!$AL$1)>0,(G88-INDEX($C88:$G88,1,aux!$AL$1))/INDEX($C88:$G88,1,aux!$AL$1),"n.d.") -> -0.9948416181 | AA88: =O88-INDEX($K88:$O88,1,aux!$AL$1) -> 0 | AB88: 0 | AC88: 0 | AD88: =+IF(INDEX($K88:$O88,1,aux!$AL$1)>0,(O88/INDEX($K88:$O88,1,aux!$AL$1))^(1/($O$3-INDEX($K$3:$O$3,1,aux!$AL$1)))-1,"n.d.") -> n.d. | AE88: =IF(INDEX($K88:$O88,1,aux!$AL$1)>0,(O88-INDEX($K88:$O88,1,aux!$AL$1))/INDEX($K88:$O88,1,aux!$AL$1),"n.d.") -> n.d. | AX88: 10
A89: 1002 | B89: Centeio | C89: 0 | D89: 0 | E89: 0 | F89: 0.246 | G89: 0 | H89: 0.0492 | I89: 1.328879634e-07 | J89: 9.968754148e-08 | K89: 0 | L89: 0 | M89: 0 | N89: 0 | O89: 0 | P89: 0 | Q89: 0 | R89: 0 | S89: -0.0492 | U89: =G89-INDEX($C89:$G89,1,aux!$AL$1) -> 0 | V89: 0 | W89: 0 | X89: =+IF(INDEX($C89:$G89,1,aux!$AL$1)>0,(G89/INDEX($C89:$G89,1,aux!$AL$1))^(1/($G$3-INDEX($C$3:$G$3,1,aux!$AL$1)))-1,"n.d.") -> n.d. | Y89: =IF(INDEX($C89:$G89,1,aux!$AL$1)>0,(G89-INDEX($C89:$G89,1,aux!$AL$1))/INDEX($C89:$G89,1,aux!$AL$1),"n.d.") -> n.d. | AA89: =O89-INDEX($K89:$O89,1,aux!$AL$1) -> 0 | AB89: 0 | AC89: 0 | AD89: =+IF(INDEX($K89:$O89,1,aux!$AL$1)>0,(O89/INDEX($K89:$O89,1,aux!$AL$1))^(1/($O$3-INDEX($K$3:$O$3,1,aux!$AL$1)))-1,"n.d.") -> n.d. | AE89: =IF(INDEX($K89:$O89,1,aux!$AL$1)>0,(O89-INDEX($K89:$O89,1,aux!$AL$1))/INDEX($K89:$O89,1,aux!$AL$1),"n.d.") -> n.d. | AX89: 10
A90: 1003 | B90: Cevada | C90: 0.105 | D90: 3.588 | E90: 3.507 | F90: 4.944 | G90: 249.201 | H90: 52.269 | I90: 0.0001411772553 | J90: 0.0001059058558 | K90: 0 | L90: 0 | M90: 0 | N90: 0 | O90: 0 | P90: 0 | Q90: 0 | R90: 0 | S90: -52.269 | U90: =G90-INDEX($C90:$G90,1,aux!$AL$1) -> 249.096 | V90: 0.001397824237 | W90: 0.001319133293 | X90: =+IF(INDEX($C90:$G90,1,aux!$AL$1)>0,(G90/INDEX($C90:$G90,1,aux!$AL$1))^(1/($G$3-INDEX($C$3:$G$3,1,aux!$AL$1)))-1,"n.d.") -> 5.979754067 | Y90: =IF(INDEX($C90:$G90,1,aux!$AL$1)>0,(G90-INDEX($C90:$G90,1,aux!$AL$1))/INDEX($C90:$G90,1,aux!$AL$1),"n.d.") -> 2372.342857 | AA90: =O90-INDEX($K90:$O90,1,aux!$AL$1) -> 0 | AB90: 0 | AC90: 0 | AD90: =+IF(INDEX($K90:$O90,1,aux!$AL$1)>0,(O90/INDEX($K90:$O90,1,aux!$AL$1))^(1/($O$3-INDEX($K$3:$O$3,1,aux!$AL$1)))-1,"n.d.") -> n.d. | AE90: =IF(INDEX($K90:$O90,1,aux!$AL$1)>0,(O90-INDEX($K90:$O90,1,aux!$AL$1))/INDEX($K90:$O90,1,aux!$AL$1),"n.d.") -> n.d. | AX90: 10
A91: 1004 | B91: Aveia | C91: 0 | D91: 35.158 | E91: 26.754 | F91: 49.952 | G91: 244.484 | H91: 71.2696 | I91: 0.0001924973983 | J91: 0.0001444042928 | K91: 0 | L91: 1.755 | M91: 8.707 | N91: 10.387 | O91: 1.512 | P91: 4.4722 | Q91: 9.308610256e-06 | R91: 4.887028198e-06 | S91: -66.7974 | U91: =G91-INDEX($C91:$G91,1,aux!$AL$1) -> 244.484 | V91: 0.001371943591 | W91: 0.001294709606 | X91: =+IF(INDEX($C91:$G91,1,aux!$AL$1)>0,(G91/INDEX($C91:$G91,1,aux!$AL$1))^(1/($G$3-INDEX($C$3:$G$3,1,aux!$AL$1)))-1,"n.d.") -> n.d. | Y91: =IF(INDEX($C91:$G91,1,aux!$AL$1)>0,(G91-INDEX($C91:$G91,1,aux!$AL$1))/INDEX($C91:$G91,1,aux!$AL$1),"n.d.") -> n.d. | AA91: =O91-INDEX($K91:$O91,1,aux!$AL$1) -> 1.512 | AB91: 1.114967705e-05 | AC91: 7.906486181e-06 | AD91: =+IF(INDEX($K91:$O91,1,aux!$AL$1)>0,(O91/INDEX($K91:$O91,1,aux!$AL$1))^(1/($O$3-INDEX($K$3:$O$3,1,aux!$AL$1)))-1,"n.d.") -> n.d. | AE91: =IF(INDEX($K91:$O91,1,aux!$AL$1)>0,(O91-INDEX($K91:$O91,1,aux!$AL$1))/INDEX($K91:$O91,1,aux!$AL$1),"n.d.") -> n.d. | AX91: 10
A92: 1005 | B92: Milho | C92: 1461.267 | D92: 28.568 | E92: 616.092 | F92: 1829.99 | G92: 1343.992 | H92: 1055.9818 | I92: 0.0028521803 | J92: 0.00213959816 | K92: 0 | L92: 0 | M92: 0.063 | N92: 52.098 | O92: 0.572 | P92: 10.5466 | Q92: 2.195210163e-05 | R92: 1.152487178e-05 | S92: -1045.4352 | U92: =G92-INDEX($C92:$G92,1,aux!$AL$1) -> -117.275 | V92: -0.0006580990356 | W92: -0.0006210511487 | X92: =+IF(INDEX($C92:$G92,1,aux!$AL$1)>0,(G92/INDEX($C92:$G92,1,aux!$AL$1))^(1/($G$3-INDEX($C$3:$G$3,1,aux!$AL$1)))-1,"n.d.") -> -0.02069769494 | Y92: =IF(INDEX($C92:$G92,1,aux!$AL$1)>0,(G92-INDEX($C92:$G92,1,aux!$AL$1))/INDEX($C92:$G92,1,aux!$AL$1),"n.d.") -> -0.08025569591 | AA92: =O92-INDEX($K92:$O92,1,aux!$AL$1) -> 0.572 | AB92: 4.217999518e-06 | AC92: 2.991078106e-06 | AD92: =+IF(INDEX($K92:$O92,1,aux!$AL$1)>0,(O92/INDEX($K92:$O92,1,aux!$AL$1))^(1/($O$3-INDEX($K$3:$O$3,1,aux!$AL$1)))-1,"n.d.") -> n.d. | AE92: =IF(INDEX($K92:$O92,1,aux!$AL$1)>0,(O92-INDEX($K92:$O92,1,aux!$AL$1))/INDEX($K92:$O92,1,aux!$AL$1),"n.d.") -> n.d. | AX92: 10
A93: 1006 | B93: Arroz | C93: 5737.141 | D93: 4161.897 | E93: 5364.571 | F93: 6717.631 | G93: 8013.107 | H93: 5998.8694 | I93: 0.01620279547 | J93: 0.01215472647 | K93: 116.961 | L93: 129.956 | M93: 359.062 | N93: 778.264 | O93: 2120.653 | P93: 700.9792 | Q93: 0.001459045251 | R93: 0.0007659999813 | S93: -5297.8902 | U93: =G93-INDEX($C93:$G93,1,aux!$AL$1) -> 2275.966 | V93: 0.01277178452 | W93: 0.012052793 | X93: =+IF(INDEX($C93:$G93,1,aux!$AL$1)>0,(G93/INDEX($C93:$G93,1,aux!$AL$1))^(1/($G$3-INDEX($C$3:$G$3,1,aux!$AL$1)))-1,"n.d.") -> 0.08711716883 | Y93: =IF(INDEX($C93:$G93,1,aux!$AL$1)>0,(G93-INDEX($C93:$G93,1,aux!$AL$1))/INDEX($C93:$G93,1,aux!$AL$1),"n.d.") -> 0.3967073495 | AA93: =O93-INDEX($K93:$O93,1,aux!$AL$1) -> 2003.692 | AB93: 0.01477547533 | AC93: 0.0104776211 | AD93: =+IF(INDEX($K93:$O93,1,aux!$AL$1)>0,(O93/INDEX($K93:$O93,1,aux!$AL$1))^(1/($O$3-INDEX($K$3:$O$3,1,aux!$AL$1)))-1,"n.d.") -> 1.063512645 | AE93: =IF(INDEX($K93:$O93,1,aux!$AL$1)>0,(O93-INDEX($K93:$O93,1,aux!$AL$1))/INDEX($K93:$O93,1,aux!$AL$1),"n.d.") -> 17.13128308 | AX93: 10
A94: 1007 | B94: Sorgo de grão | C94: 54.677 | D94: 38.096 | E94: 93.517 | F94: 38.227 | G94: 95.048 | H94: 63.913 | I94: 0.0001726274066 | J94: 0.000129498574 | K94: 0 | L94: 0 | M94: 47.431 | N94: 0 | O94: 0 | P94: 9.4862 | Q94: 1.974494401e-05 | R94: 1.036611218e-05 | S94: -54.4268 | U94: =G94-INDEX($C94:$G94,1,aux!$AL$1) -> 40.371 | V94: 0.0002265454374 | W94: 0.0002137919925 | X94: =+IF(INDEX($C94:$G94,1,aux!$AL$1)>0,(G94/INDEX($C94:$G94,1,aux!$AL$1))^(1/($G$3-INDEX($C$3:$G$3,1,aux!$AL$1)))-1,"n.d.") -> 0.1482450351 | Y94: =IF(INDEX($C94:$G94,1,aux!$AL$1)>0,(G94-INDEX($C94:$G94,1,aux!$AL$1))/INDEX($C94:$G94,1,aux!$AL$1),"n.d.") -> 0.7383543355 | AA94: =O94-INDEX($K94:$O94,1,aux!$AL$1) -> 0 | AB94: 0 | AC94: 0 | AD94: =+IF(INDEX($K94:$O94,1,aux!$AL$1)>0,(O94/INDEX($K94:$O94,1,aux!$AL$1))^(1/($O$3-INDEX($K$3:$O$3,1,aux!$AL$1)))-1,"n.d.") -> n.d. | AE94: =IF(INDEX($K94:$O94,1,aux!$AL$1)>0,(O94-INDEX($K94:$O94,1,aux!$AL$1))/INDEX($K94:$O94,1,aux!$AL$1),"n.d.") -> n.d. | AX94: 10
A95: 1008 | B95: Trigo mourisco, painço e outros cereais | C95: 6.257 | D95: 67.98 | E95: 26.744 | F95: 69.564 | G95: 53.864 | H95: 44.8818 | I95: 0.0001212246137 | J95: 9.093813616e-05 | K95: 0 | L95: 2.482 | M95: 8.814 | N95: 3.761 | O95: 0.999 | P95: 3.2112 | Q95: 6.683916027e-06 | R95: 3.509061524e-06 | S95: -41.6706 | U95: =G95-INDEX($C95:$G95,1,aux!$AL$1) -> 47.607 | V95: 0.0002671508914 | W95: 0.0002521115501 | X95: =+IF(INDEX($C95:$G95,1,aux!$AL$1)>0,(G95/INDEX($C95:$G95,1,aux!$AL$1))^(1/($G$3-INDEX($C$3:$G$3,1,aux!$AL$1)))-1,"n.d.") -> 0.7129043474 | Y95: =IF(INDEX($C95:$G95,1,aux!$AL$1)>0,(G95-INDEX($C95:$G95,1,aux!$AL$1))/INDEX($C95:$G95,1,aux!$AL$1),"n.d.") -> 7.60859837 | AA95: =O95-INDEX($K95:$O95,1,aux!$AL$1) -> 0.999 | AB95: 7.366750906e-06 | AC95: 5.22392837e-06 | AD95: =+IF(INDEX($K95:$O95,1,aux!$AL$1)>0,(O95/INDEX($K95:$O95,1,aux!$AL$1))^(1/($O$3-INDEX($K$3:$O$3,1,aux!$AL$1)))-1,"n.d.") -> n.d. | AE95: =IF(INDEX($K95:$O95,1,aux!$AL$1)>0,(O95-INDEX($K95:$O95,1,aux!$AL$1))/INDEX($K95:$O95,1,aux!$AL$1),"n.d.") -> n.d. | AX95: 10
A96: 10SS | B96: Cereais | C96: 0 | D96: 0 | E96: 0 | F96: 0 | G96: 0 | H96: 0 | I96: 0 | J96: 0 | K96: 0 | L96: 0 | M96: 0 | N96: 0 | O96: 0 | P96: 0 | Q96: 0 | R96: 0 | S96: 0 | U96: =G96-INDEX($C96:$G96,1,aux!$AL$1) -> 0 | V96: 0 | W96: 0 | X96: =+IF(INDEX($C96:$G96,1,aux!$AL$1)>0,(G96/INDEX($C96:$G96,1,aux!$AL$1))^(1/($G$3-INDEX($C$3:$G$3,1,aux!$AL$1)))-1,"n.d.") -> n.d. | Y96: =IF(INDEX($C96:$G96,1,aux!$AL$1)>0,(G96-INDEX($C96:$G96,1,aux!$AL$1))/INDEX($C96:$G96,1,aux!$AL$1),"n.d.") -> n.d. | AA96: =O96-INDEX($K96:$O96,1,aux!$AL$1) -> 0 | AB96: 0 | AC96: 0 | AD96: =+IF(INDEX($K96:$O96,1,aux!$AL$1)>0,(O96/INDEX($K96:$O96,1,aux!$AL$1))^(1/($O$3-INDEX($K$3:$O$3,1,aux!$AL$1)))-1,"n.d.") -> n.d. | AE96: =IF(INDEX($K96:$O96,1,aux!$AL$1)>0,(O96-INDEX($K96:$O96,1,aux!$AL$1))/INDEX($K96:$O96,1,aux!$AL$1),"n.d.") -> n.d. | AX96: 10
A97: 1101 | B97: Farinhas de trigo ou trigo/centeio | C97: 1069.204 | D97: 1167 | E97: 1181.519 | F97: 2524.585 | G97: 2132.298 | H97: 1614.9212 | I97: 0.004361861571 | J97: 0.003272104149 | K97: 0.771 | L97: 10.817 | M97: 0.088 | N97: 0.285 | O97: 0.429 | P97: 2.478 | Q97: 5.157805155e-06 | R97: 2.707852036e-06 | S97: -1612.4432 | U97: =G97-INDEX($C97:$G97,1,aux!$AL$1) -> 1063.094 | V97: 0.005965646013 | W97: 0.005629808142 | X97: =+IF(INDEX($C97:$G97,1,aux!$AL$1)>0,(G97/INDEX($C97:$G97,1,aux!$AL$1))^(1/($G$3-INDEX($C$3:$G$3,1,aux!$AL$1)))-1,"n.d.") -> 0.1883567331 | Y97: =IF(INDEX($C97:$G97,1,aux!$AL$1)>0,(G97-INDEX($C97:$G97,1,aux!$AL$1))/INDEX($C97:$G97,1,aux!$AL$1),"n.d.") -> 0.9942854684 | AA97: =O97-INDEX($K97:$O97,1,aux!$AL$1) -> -0.342 | AB97: -2.521950761e-06 | AC97: -1.788371874e-06 | AD97: =+IF(INDEX($K97:$O97,1,aux!$AL$1)>0,(O97/INDEX($K97:$O97,1,aux!$AL$1))^(1/($O$3-INDEX($K$3:$O$3,1,aux!$AL$1)))-1,"n.d.") -> -0.1363242446 | AE97: =IF(INDEX($K97:$O97,1,aux!$AL$1)>0,(O97-INDEX($K97:$O97,1,aux!$AL$1))/INDEX($K97:$O97,1,aux!$AL$1),"n.d.") -> -0.4435797665 | AX97: 11
A98: 1102 | B98: Outras farinhas de cereais | C98: 1332.783 | D98: 1331.467 | E98: 1440.178 | F98: 1529.914 | G98: 2292.477 | H98: 1585.3638 | I98: 0.004282027777 | J98: 0.003212215845 | K98: 0.615 | L98: 0.257 | M98: 59.23 | N98: 135.298 | O98: 124.429 | P98: 63.9658 | Q98: 0.0001331408931 | R98: 6.989908061e-05 | S98: -1521.398 | U98: =G98-INDEX($C98:$G98,1,aux!$AL$1) -> 959.694 | V98: 0.005385407767 | W98: 0.005082234586 | X98: =+IF(INDEX($C98:$G98,1,aux!$AL$1)>0,(G98/INDEX($C98:$G98,1,aux!$AL$1))^(1/($G$3-INDEX($C$3:$G$3,1,aux!$AL$1)))-1,"n.d.") -> 0.1452133068 | Y98: =IF(INDEX($C98:$G98,1,aux!$AL$1)>0,(G98-INDEX($C98:$G98,1,aux!$AL$1))/INDEX($C98:$G98,1,aux!$AL$1),"n.d.") -> 0.7200677079 | AA98: =O98-INDEX($K98:$O98,1,aux!$AL$1) -> 123.814 | AB98: 0.0009130199166 | AC98: 0.0006474429101 | AD98: =+IF(INDEX($K98:$O98,1,aux!$AL$1)>0,(O98/INDEX($K98:$O98,1,aux!$AL$1))^(1/($O$3-INDEX($K$3:$O$3,1,aux!$AL$1)))-1,"n.d.") -> 2.771478391 | AE98: =IF(INDEX($K98:$O98,1,aux!$AL$1)>0,(O98-INDEX($K98:$O98,1,aux!$AL$1))/INDEX($K98:$O98,1,aux!$AL$1),"n.d.") -> 201.3235772 | AX98: 11
A99: 1103 | B99: Grumos, sêmolas, etc. de cereais | C99: 20.889 | D99: 69.76 | E99: 70.816 | F99: 192.561 | G99: 148.981 | H99: 100.6014 | I99: 0.0002717218529 | J99: 0.0002038354926 | K99: 0.094 | L99: 0 | M99: 0 | N99: 0.183 | O99: 0.12 | P99: 0.0794 | Q99: 1.652662346e-07 | R99: 8.676491188e-08 | S99: -100.522 | U99: =G99-INDEX($C99:$G99,1,aux!$AL$1) -> 128.092 | V99: 0.0007187995879 | W99: 0.0006783345448 | X99: =+IF(INDEX($C99:$G99,1,aux!$AL$1)>0,(G99/INDEX($C99:$G99,1,aux!$AL$1))^(1/($G$3-INDEX($C$3:$G$3,1,aux!$AL$1)))-1,"n.d.") -> 0.6341928604 | Y99: =IF(INDEX($C99:$G99,1,aux!$AL$1)>0,(G99-INDEX($C99:$G99,1,aux!$AL$1))/INDEX($C99:$G99,1,aux!$AL$1),"n.d.") -> 6.132031213 | AA99: =O99-INDEX($K99:$O99,1,aux!$AL$1) -> 0.026 | AB99: 1.917272508e-07 | AC99: 1.359580957e-07 | AD99: =+IF(INDEX($K99:$O99,1,aux!$AL$1)>0,(O99/INDEX($K99:$O99,1,aux!$AL$1))^(1/($O$3-INDEX($K$3:$O$3,1,aux!$AL$1)))-1,"n.d.") -> 0.06295125275 | AE99: =IF(INDEX($K99:$O99,1,aux!$AL$1)>0,(O99-INDEX($K99:$O99,1,aux!$AL$1))/INDEX($K99:$O99,1,aux!$AL$1),"n.d.") -> 0.2765957447 | AX99: 11
